{"text_format":"1","workbook":"xlsx","n_sheets":32,"sheets":["PRINCIPAL","PRINCIPAL (2)","MODELO","MODELO (2)","MODELO (3)","MODELO (4)","MODELO (5)","MODELO (6)","MODELO (7)","MODELO (8)","MODELO (9)","MODELO (10)","MODELO (11)","MODELO (12)","MODELO (13)","MODELO (14)","ATVFLORESTAIS","ATVFLORESTAIS (2)","AGROPECUÁRIA","TELECOMUNICAÇÃO","COLETATRANSPORTE","ENERGIA","COMERCIO","OBRAS","MINERIO","INDUSTRIA","SISPASS","FAUNA","LAC","LS","DISPENSA","APOIO"],"not_rendered":{"charts":0,"images":5,"macros":1,"external_links":2,"defined_names":141,"comments":1,"pivot_tables":0},"unopened":[],"bounds":{"document_bytes":16777216,"sheet_cells":100000,"rows_first":2000,"rows_last":500,"rows_between":2000,"halvings":0,"cell_chars":16384,"cell_head_chars":4096},"cells_cut":0,"cells_raw":0,"read":"whole","date_system":"1900"}

{"sheet":"PRINCIPAL","index":0,"n_rows":0,"n_cols":0,"rows_kept":0,"cut":false,"hidden":false,"merged":[]}

{"sheet":"PRINCIPAL (2)","index":1,"n_rows":0,"n_cols":0,"rows_kept":0,"cut":false,"hidden":false,"merged":[]}

{"sheet":"MODELO","index":2,"n_rows":60,"n_cols":17,"rows_kept":60,"cut":false,"hidden":false,"merged":[[32,0,32,3],[26,0,26,3],[28,1,28,3],[20,1,20,3],[22,1,22,3],[24,1,24,2],[29,1,29,3],[30,1,30,3],[59,0,59,3],[34,1,34,3],[35,1,35,3],[41,1,41,3],[42,1,42,3],[43,1,43,3],[40,1,40,3],[36,0,39,0],[36,1,39,3],[50,0,54,3],[57,0,57,3],[44,1,44,3],[48,1,48,2],[46,1,46,3],[47,1,47,3],[33,1,33,3],[0,0,5,3],[7,0,7,3],[21,1,21,3],[27,1,27,3],[8,0,8,1],[9,0,9,1],[10,0,10,1],[11,0,11,1],[12,0,12,1],[17,0,17,3],[18,1,18,3],[19,1,19,3],[13,0,13,1],[14,0,14,1],[31,1,31,3]]}
[null,null,null,null,null,null,null,null,null,null,null,null,null,null,null,"Autorização Ambiental - AA",{"$f":"IF(P1=$P$20,\"X\",\"\")","v":"X"}]
[null,null,null,null,null,null,null,null,null,null,null,null,null,null,null,"Dispensa de Licença",{"$f":"IF(P2=$P$20,\"X\",\"\")","v":""}]
[null,null,null,null,null,null,null,null,null,null,null,null,null,null,null,"Licença por Adesão e Compromisso - LAC",""]
[null,null,null,null,null,null,null,null,null,null,null,null,null,null,null,"Licença Simplificada - LS",""]
[null,null,null,null,null,null,null,null,null,null,null,null,null,null,null,"Licença de Alteração de Instalação - LAI",""]
[null,null,null,null,null,null,null,null,null,null,null,null,null,null,null,"Licença de Alteração de Operação - LAO",""]
[null,null,null,null,null,null,null,null,null,null,null,null,null,null,null,"Licença Prévia - LP",""]
["TIPO DE SOLICITAÇÃO",null,null,null,null,null,null,null,null,null,null,null,null,null,null,"Licença de Operação de Pesquisa Mineral - LOP",""]
["[   ] Autorização Ambiental - AA",null,"[   ] Licença de Instalação – LI",null,null,null,null,null,null,null,null,null,null,null,null,"Licença de Instalação – LI",""]
["[   ] Dispensa de Licença",null,"[   ] Renovação de Licença de Instalação – RLI",null,null,null,null,null,null,null,null,null,null,null,null,"Renovação de Licença de Instalação – RLI",""]
["[   ] Licença por Adesão e Compromisso - LAC",null,"[   ] Licença de Operação – LO",null,null,null,null,null,null,null,null,null,null,null,null,"Licença de Operação – LO",""]
["[   ] Licença Simplificada - LS",null,"[   ] Renovação de Licença de Operação – RLO",null,null,null,null,null,null,null,null,null,null,null,null,"Renovação de Licença de Operação – RLO",""]
["[   ] Licença de Alteração de Instalação - LAI",null,"[   ] Licença de Regularização de Operação – LRO",null,null,null,null,null,null,null,null,null,null,null,null,"Licença de Regularização de Operação – LRO",""]
["[   ] Licença de Alteração de Operação - LAO",null,"[   ] Licença de Transporte Estadual – LTE",null,null,null,null,null,null,null,null,null,null,null,null,"Licença de Transporte Estadual – LTE",""]
["[   ] Licença Prévia - LP",null,"[   ] Licença para Veículo de Publicidade ou Eventos – LVPE",null,null,null,null,null,null,null,null,null,null,null,null,"Licença para Veículo de Publicida de ou Eventos – LVPE",""]
["[   ] L. de Operação de Pesquisa Mineral - LOP",null,"[   ] Registro",null,null,null,null,null,null,null,null,null,null,null,null,"Registro",{"$f":"IF(P16=$P$20,\"X\",\"\")","v":""}]
[null,null,"[   ] Outros (especificar):",null,null,null,null,null,null,null,null,null,null,null,null,"Outros (especificar)",""]
["DADOS DO REQUERENTE",null,null,null,null,null,null,null,null,null,null,null,null,null,null,{"$f":"TODAY()","v":"2022-04-28"}]
["Nome/Razão Social:",{"$f":"ATVFLORESTAIS!A26","v":0}]
["CNPJ/CPF:",{"$f":"ATVFLORESTAIS!A28","v":0},null,null,null,null,null,null,null,null,null,null,null,null,null,{"$f":"ATVFLORESTAIS!A17","v":"Autorização Ambiental - AA"}]
["Código CNAE:",{"$f":"ATVFLORESTAIS!E28","v":0},null,null,null,null,null,null,null,null,null,null,null,null,null,{"$f":"ATVFLORESTAIS!L15","v":""}]
["Nome Fantasia (caso haja):",{"$f":"ATVFLORESTAIS!A30","v":0},null,null,null,null,null,null,null,null,null,null,null,null,null,{"$f":"IF(P21=0,\"\",P21)","v":""}]
["Logradouro/Nº",{"$f":"ATVFLORESTAIS!A32","v":0},null,null,null,null,null,null,null,null,null,null,null,null,null,{"$f":"ATVFLORESTAIS!A34","v":0}]
["Município:",{"$f":"ATVFLORESTAIS!E34","v":"BREJO DA CRUZ"},"CEP:","Bairro:",null,null,null,null,null,null,null,null,null,null,null,{"$f":"ATVFLORESTAIS!I34","v":0}]
["Complemento:",{"$f":"ATVFLORESTAIS!A36","v":0},null,"Estado:",null,null,null,null,null,null,null,null,null,null,null,{"$f":"ATVFLORESTAIS!H36","v":0}]
["Coordenadas Geográficas:","Latitude:",null,null,null,null,null,null,null,null,null,null,null,null,null,{"$f":"ATVFLORESTAIS!F38","v":0}]
["REPRESENTANTES LEGAIS ",null,null,null,null,null,null,null,null,null,null,null,null,null,null,{"$f":"ATVFLORESTAIS!H38","v":0}]
["Nome:",{"$f":"ATVFLORESTAIS!A46","v":0}]
["CPF: ",{"$f":"ATVFLORESTAIS!A48","v":0}]
["Telefone para contato:",{"$f":"ATVFLORESTAIS!E48","v":0}]
["E-mail para contato:",{"$f":"ATVFLORESTAIS!A50","v":0}]
["Endereço para correspondencia:",{"$f":"ATVFLORESTAIS!A52","v":0}]
["DADOS DO EMPREENDIMENTO "]
["Atividade:",{"$f":"ATVFLORESTAIS!A14","v":"Autorização para Plano   de   Recuperação de Área   de Preservação Permanente (PRAD)"}]
["CÓDIGO da Atividade:",{"$f":"ATVFLORESTAIS!I14","v":"08.49.800"}]
["Número da Licença Anterior (quando houver):",{"$f":"ATVFLORESTAIS!E59","v":0}]
["Descrição da(s) atividades: ",{"$f":"ATVFLORESTAIS!A66","v":0}]
[]
[]
[]
[{"$f":"ATVFLORESTAIS!A62:C62","v":""},{"$f":"ATVFLORESTAIS!A63","v":0}]
["Área do Empreendimento (HA):",{"$f":"ATVFLORESTAIS!A61","v":0}]
["Faturamento Anual (R$):",{"$f":"ATVFLORESTAIS!E61","v":0}]
["Número de Funcionários:",{"$f":"ATVFLORESTAIS!H61","v":0}]
["Endereço da Atividade:",{"$f":"ATVFLORESTAIS!A71","v":0}]
["Município:",{"$f":"ATVFLORESTAIS!E73","v":0},{"$f":"ATVFLORESTAIS!M76","v":"CEP: "},{"$f":"ATVFLORESTAIS!M77","v":"Bairro: "}]
["Estado:",{"$f":"ATVFLORESTAIS!H75","v":0}]
["Complemento:",{"$f":"ATVFLORESTAIS!A75","v":0}]
["Coordenadas Geográficas:",{"$f":"ATVFLORESTAIS!M79","v":"Latitude: "},null,{"$f":"ATVFLORESTAIS!M80","v":"Longitude: "}]
[]
["DECLARO PARA OS DEVIDOS FINS, QUE O DESENVOLVIMENTO DAS ATIVIDADES RELACIONADAS NESTE REQUERIMENTO REALIZAR-SE-Á DE ACORDO COM OS DADOS TRANSCRITOS E ANEXOS INDICADOS NO ITEM 7(SETE). PELO QUE VENHO REQUERER A SUDEMA (Superintendência de Administração do Meio Ambiente), A EXPEDIÇÃO DA RESPECTIVA LICENÇA."]
[]
[]
[]
[]
[]
[]
[{"$f":"P18","v":"2022-04-28"}]
[]
["                 _______________________________________________________________ (assinatura) (nome)"]

{"sheet":"MODELO (2)","index":3,"n_rows":62,"n_cols":20,"rows_kept":62,"cut":false,"hidden":false,"merged":[[52,0,56,3],[59,0,59,3],[61,0,61,3],[36,0,39,0],[36,1,39,3],[40,1,40,3],[41,1,41,3],[42,1,42,3],[43,1,43,3],[45,1,45,3],[49,1,49,2],[49,3,49,4],[47,1,47,3],[48,1,48,3],[35,1,35,3],[21,1,21,3],[22,1,22,3],[24,1,24,2],[26,0,26,3],[27,1,27,3],[28,1,28,3],[29,1,29,3],[30,1,30,3],[31,1,31,3],[32,0,32,3],[34,1,34,3],[33,1,33,3],[0,0,5,3],[20,1,20,3],[7,0,7,3],[8,0,8,1],[9,0,9,1],[10,0,10,1],[11,0,11,1],[12,0,12,1],[13,0,13,1],[14,0,14,1],[17,0,17,3],[18,1,18,3],[19,1,19,3]]}
[null,null,null,null,null,null,null,null,null,null,null,null,null,null,null,"Autorização Ambiental - AA",{"$f":"IF(P1=$P$20,\"X\",\"\")","v":""},null,"Licença Prévia - LP","Licença Prévia - LP"]
[null,null,null,null,null,null,null,null,null,null,null,null,null,null,null,"Dispensa de Licença",{"$f":"IF(P2=$P$20,\"X\",\"\")","v":""},null,"Licença de Instalação – LI","Licença de Instalação – LI"]
[null,null,null,null,null,null,null,null,null,null,null,null,null,null,null,"Licença por Adesão e Compromisso - LAC",{"$f":"IF(P3=$P$20,\"X\",\"\")","v":""},null,"Licença de Operação – LO","Licença de Operação – LO"]
[null,null,null,null,null,null,null,null,null,null,null,null,null,null,null,"Licença Simplificada - LS","",null,"Licença de Alteração de Operação - LAO","Licença de Alteração de Operação - LAO"]
[null,null,null,null,null,null,null,null,null,null,null,null,null,null,null,"Licença de Alteração de Instalação - LAI","",null,"Licença de Alteração de Instalação - LAI","Licença de Alteração de Instalação - LAI"]
[null,null,null,null,null,null,null,null,null,null,null,null,null,null,null,"Licença de Alteração de Operação - LAO","",null,"Licença Simplificada - LS","Licença Simplificada - LS"]
[null,null,null,null,null,null,null,null,null,null,null,null,null,null,1,"Licença Prévia - LP",{"$f":"IF(Q20=1,\"X\",IF(OR(Q20=4,Q20=5),\"X\",\"\"))","v":""},null,"Autorização Ambiental - AA","Autorização Ambiental - AA"]
["TIPO DE SOLICITAÇÃO",null,null,null,null,null,null,null,null,null,null,null,null,null,null,"Licença de Operação de Pesquisa Mineral - LOP","",null,"Licença de Regularização de Operação – LRO","Licença de Regularização de Operação – LRO"]
["[   ] Autorização Ambiental - AA",null,"[   ] Licença de Instalação – LI",null,null,null,null,null,null,null,null,null,null,null,2,"Licença de Instalação – LI",{"$f":"IF(Q20=2,\"X\",IF(OR(Q20=4,Q20=5),\"X\",\"\"))","v":""},4,"Licença Prévia - LP + Licença de Instalação – LI","Licença Prévia - LP + Licença de Instalação – LI"]
["[   ] Dispensa de Licença",null,"[   ] Renovação de Licença de Instalação – RLI",null,null,null,null,null,null,null,null,null,null,null,null,"Renovação de Licença de Instalação – RLI","X",5,"Licença Prévia - LP + Licença de Instalação – LI + Licença de Operação – LO","Licença Prévia - LP + Licença de Instalação – LI + Licença de Operação – LO"]
["[   ] Licença por Adesão e Compromisso - LAC",null,"[   ] Licença de Operação – LO",null,null,null,null,null,null,null,null,null,null,null,3,"Licença de Operação – LO",{"$f":"IF(Q20=3,\"X\",IF(Q20=5,\"X\",\"\"))","v":""}]
["[   ] Licença Simplificada - LS",null,"[   ] Renovação de Licença de Operação – RLO",null,null,null,null,null,null,null,null,null,null,null,null,"Renovação de Licença de Operação – RLO",""]
["[   ] Licença de Alteração de Instalação - LAI",null,"[   ] Licença de Regularização de Operação – LRO",null,null,null,null,null,null,null,null,null,null,null,null,"Licença de Regularização de Operação – LRO",""]
["[   ] Licença de Alteração de Operação - LAO",null,"[   ] Licença de Transporte Estadual – LTE",null,null,null,null,null,null,null,null,null,null,null,null,"Licença de Transporte Estadual – LTE",""]
["[   ] Licença Prévia - LP",null,"[   ] Licença para Veículo de Publicidade ou Eventos – LVPE",null,null,null,null,null,null,null,null,null,null,null,null,"Licença para Veículo de Publicida de ou Eventos – LVPE",""]
["[   ] L. de Operação de Pesquisa Mineral - LOP",null,"[   ] Registro",null,null,null,null,null,null,null,null,null,null,null,null,"Registro",{"$f":"IF(P16=$P$20,\"X\",\"\")","v":""}]
[null,null,"[   ] Outros (especificar):",null,null,null,null,null,null,null,null,null,null,null,null,"Outros (especificar)",""]
["DADOS DO REQUERENTE",null,null,null,null,null,null,null,null,null,null,null,null,null,null,{"$f":"TODAY()","v":"2022-04-28"}]
["Nome/Razão Social:",{"$f":"AGROPECUÁRIA!A26","v":0}]
["CNPJ/CPF:",{"$f":"AGROPECUÁRIA!A28","v":0},null,null,null,null,null,null,null,null,null,null,null,null,null,{"$f":"AGROPECUÁRIA!A17","v":"Renovação de Licença de Instalação – RLI"},{"$f":"IFERROR(IF(P20=P7,1,IF(P20=P9,2,IF(P20=P11,3,IF(P20=S9,4,IF(P20=S10,5,\"\"))))),\"\")","v":""}]
["Código CNAE:",{"$f":"AGROPECUÁRIA!E28","v":0},null,null,null,null,null,null,null,null,null,null,null,null,null,{"$f":"AGROPECUÁRIA!L15","v":""}]
["Nome Fantasia (caso haja):",{"$f":"AGROPECUÁRIA!A30","v":0},null,null,null,null,null,null,null,null,null,null,null,null,null,{"$f":"IF(P21=0,\"\",P21)","v":""}]
["Logradouro/Nº",{"$f":"ATVFLORESTAIS!A32","v":0},null,null,null,null,null,null,null,null,null,null,null,null,null,{"$f":"AGROPECUÁRIA!A34","v":0}]
["Município:",{"$f":"AGROPECUÁRIA!E34","v":0},"CEP:","Bairro:",null,null,null,null,null,null,null,null,null,null,null,{"$f":"AGROPECUÁRIA!I34","v":0}]
["Complemento:",{"$f":"ATVFLORESTAIS!A36","v":0},null,"Estado:",null,null,null,null,null,null,null,null,null,null,null,{"$f":"AGROPECUÁRIA!H36","v":0}]
["Coordenadas Geográficas:","Latitude:",null,null,null,null,null,null,null,null,null,null,null,null,null,{"$f":"AGROPECUÁRIA!F38","v":0}]
["REPRESENTANTES LEGAIS ",null,null,null,null,null,null,null,null,null,null,null,null,null,null,{"$f":"AGROPECUÁRIA!H38","v":0}]
["Nome:",{"$f":"AGROPECUÁRIA!A46","v":0}]
["CPF: ",{"$f":"AGROPECUÁRIA!A48","v":0}]
["Telefone para contato:",{"$f":"AGROPECUÁRIA!E48","v":0}]
["E-mail para contato:",{"$f":"AGROPECUÁRIA!A50","v":0}]
["Endereço para correspondencia:",{"$f":"AGROPECUÁRIA!A52","v":0}]
["DADOS DO EMPREENDIMENTO "]
["Atividade:",{"$f":"AGROPECUÁRIA!A14","v":"Bovinocultura e Bubalinocultura"}]
["CÓDIGO da Atividade:",{"$f":"AGROPECUÁRIA!I14","v":"16.60.499"}]
["Número da Licença Anterior (quando houver):",{"$f":"AGROPECUÁRIA!E59","v":0}]
["Descrição da(s) atividades: ",{"$f":"AGROPECUÁRIA!A66","v":0}]
[]
[]
[]
[{"$f":"AGROPECUÁRIA!A62","v":"Número de Cabeças:"},{"$f":"AGROPECUÁRIA!A63","v":0}]
["Área do Empreendimento:",{"$f":"AGROPECUÁRIA!A61","v":0}]
["Faturamento Anual (R$):",{"$f":"AGROPECUÁRIA!E61","v":0}]
["Número de Funcionários:",{"$f":"AGROPECUÁRIA!H61","v":0}]
[]
["Endereço da Atividade:",{"$f":"AGROPECUÁRIA!A71","v":0}]
["Município:",{"$f":"AGROPECUÁRIA!E73","v":0},{"$f":"AGROPECUÁRIA!AB74","v":"CEP: "},{"$f":"AGROPECUÁRIA!AB75","v":"Bairro: "}]
["Estado:",{"$f":"AGROPECUÁRIA!H75","v":0}]
["Complemento:",{"$f":"AGROPECUÁRIA!A75","v":0}]
["Coordenadas Geográficas:",{"$f":"AGROPECUÁRIA!AB77","v":"Latidude: "},null,{"$f":"AGROPECUÁRIA!AB78","v":"Longitude: "}]
[]
[]
["DECLARO PARA OS DEVIDOS FINS, QUE O DESENVOLVIMENTO DAS ATIVIDADES RELACIONADAS NESTE REQUERIMENTO REALIZAR-SE-Á DE ACORDO COM OS DADOS TRANSCRITOS E ANEXOS INDICADOS NO ITEM 7(SETE). PELO QUE VENHO REQUERER A SUDEMA (Superintendência de Administração do Meio Ambiente), A EXPEDIÇÃO DA RESPECTIVA LICENÇA."]
[]
[]
[]
[]
[]
[]
[{"$f":"P18","v":"2022-04-28"}]
[]
["                      _______________________________________________________________ (assinatura) (nome)"]

{"sheet":"MODELO (3)","index":4,"n_rows":61,"n_cols":19,"rows_kept":61,"cut":false,"hidden":false,"merged":[[51,0,55,3],[58,0,58,3],[60,0,60,3],[36,0,39,0],[36,1,39,3],[40,1,40,3],[42,1,42,3],[43,1,43,3],[44,1,44,3],[45,1,45,3],[49,1,49,2],[47,1,47,3],[48,1,48,3],[35,1,35,3],[21,1,21,3],[22,1,22,3],[24,1,24,2],[26,0,26,3],[27,1,27,3],[28,1,28,3],[29,1,29,3],[30,1,30,3],[31,1,31,3],[32,0,32,3],[34,1,34,3],[33,1,33,3],[0,0,5,3],[20,1,20,3],[7,0,7,3],[8,0,8,1],[9,0,9,1],[10,0,10,1],[11,0,11,1],[12,0,12,1],[13,0,13,1],[14,0,14,1],[17,0,17,3],[18,1,18,3],[19,1,19,3]]}
[null,null,null,null,null,null,null,null,null,null,null,null,null,null,null,"Autorização Ambiental - AA",{"$f":"IF(P1=$P$20,\"X\",\"\")","v":""},null,"Licença Prévia - LP"]
[null,null,null,null,null,null,null,null,null,null,null,null,null,null,null,"Dispensa de Licença",{"$f":"IF(P2=$P$20,\"X\",\"\")","v":""},null,"Licença de Instalação – LI"]
[null,null,null,null,null,null,null,null,null,null,null,null,null,null,null,"Licença por Adesão e Compromisso - LAC",{"$f":"IF(P3=$P$20,\"X\",\"\")","v":""},null,"Licença de Operação – LO"]
[null,null,null,null,null,null,null,null,null,null,null,null,null,null,null,"Licença Simplificada - LS","",null,"Licença de Alteração de Operação - LAO"]
[null,null,null,null,null,null,null,null,null,null,null,null,null,null,null,"Licença de Alteração de Instalação - LAI","",null,"Licença de Alteração de Instalação - LAI"]
[null,null,null,null,null,null,null,null,null,null,null,null,null,null,null,"Licença de Alteração de Operação - LAO","",null,"Licença Simplificada - LS"]
[null,null,null,null,null,null,null,null,null,null,null,null,null,null,1,"Licença Prévia - LP",{"$f":"IF(Q20=1,\"X\",IF(OR(Q20=4,Q20=5),\"X\",\"\"))","v":""},null,"Autorização Ambiental - AA"]
["TIPO DE SOLICITAÇÃO",null,null,null,null,null,null,null,null,null,null,null,null,null,null,"Licença de Operação de Pesquisa Mineral - LOP","",null,"Licença de Regularização de Operação – LRO"]
["[   ] Autorização Ambiental - AA",null,"[   ] Licença de Instalação – LI",null,null,null,null,null,null,null,null,null,null,null,2,"Licença de Instalação – LI",{"$f":"IF(Q20=2,\"X\",IF(OR(Q20=4,Q20=5),\"X\",\"\"))","v":""},4,"Licença Prévia - LP + Licença de Instalação – LI"]
["[   ] Dispensa de Licença",null,"[   ] Renovação de Licença de Instalação – RLI",null,null,null,null,null,null,null,null,null,null,null,null,"Renovação de Licença de Instalação – RLI","",5,"Licença Prévia - LP + Licença de Instalação – LI + Licença de Operação – LO"]
["[   ] Licença por Adesão e Compromisso - LAC",null,"[   ] Licença de Operação – LO",null,null,null,null,null,null,null,null,null,null,null,3,"Licença de Operação – LO",{"$f":"IF(Q20=3,\"X\",IF(Q20=5,\"X\",\"\"))","v":""}]
["[   ] Licença Simplificada - LS",null,"[   ] Renovação de Licença de Operação – RLO",null,null,null,null,null,null,null,null,null,null,null,null,"Renovação de Licença de Operação – RLO","X"]
["[   ] Licença de Alteração de Instalação - LAI",null,"[   ] Licença de Regularização de Operação – LRO",null,null,null,null,null,null,null,null,null,null,null,null,"Licença de Regularização de Operação – LRO",""]
["[   ] Licença de Alteração de Operação - LAO",null,"[   ] Licença de Transporte Estadual – LTE",null,null,null,null,null,null,null,null,null,null,null,null,"Licença de Transporte Estadual – LTE",""]
["[   ] Licença Prévia - LP",null,"[   ] Licença para Veículo de Publicidade ou Eventos – LVPE",null,null,null,null,null,null,null,null,null,null,null,null,"Licença para Veículo de Publicida de ou Eventos – LVPE",""]
["[   ] L. de Operação de Pesquisa Mineral - LOP",null,"[   ] Registro",null,null,null,null,null,null,null,null,null,null,null,null,"Registro",{"$f":"IF(P16=$P$20,\"X\",\"\")","v":""}]
[null,null,"[   ] Outros (especificar):",null,null,null,null,null,null,null,null,null,null,null,null,"Outros (especificar)",""]
["DADOS DO REQUERENTE",null,null,null,null,null,null,null,null,null,null,null,null,null,null,{"$f":"TODAY()","v":"2022-04-28"}]
["Nome/Razão Social:",{"$f":"TELECOMUNICAÇÃO!A26","v":0}]
["CNPJ/CPF:",{"$f":"TELECOMUNICAÇÃO!A28","v":0},null,null,null,null,null,null,null,null,null,null,null,null,null,{"$f":"TELECOMUNICAÇÃO!A17","v":"Renovação de Licença de Operação – RLO"},{"$f":"IFERROR(IF(P20=P7,1,IF(P20=P9,2,IF(P20=P11,3,IF(P20=S9,4,IF(P20=S10,5,\"\"))))),\"\")","v":""}]
["Código CNAE:",{"$f":"TELECOMUNICAÇÃO!E28","v":0},null,null,null,null,null,null,null,null,null,null,null,null,null,{"$f":"TELECOMUNICAÇÃO!L16","v":""}]
["Nome Fantasia (caso haja):",{"$f":"TELECOMUNICAÇÃO!A30","v":0},null,null,null,null,null,null,null,null,null,null,null,null,null,{"$f":"IF(P21=0,\"\",P21)","v":""}]
["Logradouro/Nº",{"$f":"TELECOMUNICAÇÃO!A32","v":0},null,null,null,null,null,null,null,null,null,null,null,null,null,{"$f":"TELECOMUNICAÇÃO!A34","v":0}]
["Município:",{"$f":"TELECOMUNICAÇÃO!E34","v":0},"CEP:","Bairro:",null,null,null,null,null,null,null,null,null,null,null,{"$f":"TELECOMUNICAÇÃO!I34","v":0}]
["Complemento:",{"$f":"TELECOMUNICAÇÃO!A36","v":0},null,"Estado:",null,null,null,null,null,null,null,null,null,null,null,{"$f":"TELECOMUNICAÇÃO!H36","v":0}]
["Coordenadas Geográficas:","Latitude:",null,null,null,null,null,null,null,null,null,null,null,null,null,{"$f":"TELECOMUNICAÇÃO!F38","v":0}]
["REPRESENTANTES LEGAIS ",null,null,null,null,null,null,null,null,null,null,null,null,null,null,{"$f":"TELECOMUNICAÇÃO!H38","v":0}]
["Nome:",{"$f":"TELECOMUNICAÇÃO!A46","v":0}]
["CPF: ",{"$f":"TELECOMUNICAÇÃO!A48","v":0}]
["Telefone para contato:",{"$f":"TELECOMUNICAÇÃO!E48","v":0}]
["E-mail para contato:",{"$f":"TELECOMUNICAÇÃO!A50","v":0}]
["Endereço para correspondencia:",{"$f":"TELECOMUNICAÇÃO!A52","v":0}]
["DADOS DO EMPREENDIMENTO "]
["Atividade:",{"$f":"TELECOMUNICAÇÃO!A14","v":"Estrutura para instalação de sistemas de telecomunicações e equipamentos afins instaladas em área de preservação"}]
["CÓDIGO da Atividade:",{"$f":"TELECOMUNICAÇÃO!I14","v":"24.33.666"}]
["Número da Licença Anterior (quando houver):",{"$f":"TELECOMUNICAÇÃO!E59","v":0}]
["Descrição da(s) atividades: ",{"$f":"TELECOMUNICAÇÃO!A66","v":0}]
[]
[]
[]
["Área efetiva para implantação da estrutura (m²):",{"$f":"TELECOMUNICAÇÃO!A63","v":0}]
["Comprimento de Rede (km): ",{"$f":"TELECOMUNICAÇÃO!A65","v":0}]
["Área do Empreendimento (m²):",{"$f":"TELECOMUNICAÇÃO!A63","v":0}]
["Faturamento Anual (R$):",{"$f":"TELECOMUNICAÇÃO!E61","v":0}]
["Número de Funcionários:",{"$f":"TELECOMUNICAÇÃO!H61","v":0}]
["Endereço da Atividade:",{"$f":"TELECOMUNICAÇÃO!A73","v":0}]
["Município:",{"$f":"TELECOMUNICAÇÃO!E75","v":0},{"$f":"TELECOMUNICAÇÃO!AB75","v":"CEP: "},{"$f":"TELECOMUNICAÇÃO!AB76","v":"Bairro: "}]
["Estado:",{"$f":"TELECOMUNICAÇÃO!H77","v":0}]
["Complemento:",{"$f":"TELECOMUNICAÇÃO!A77","v":0}]
["Coordenadas Geográficas:",{"$f":"TELECOMUNICAÇÃO!AB78","v":"Latitude: "},null,{"$f":"TELECOMUNICAÇÃO!AB79","v":"Longitude: "}]
[]
["DECLARO PARA OS DEVIDOS FINS, QUE O DESENVOLVIMENTO DAS ATIVIDADES RELACIONADAS NESTE REQUERIMENTO REALIZAR-SE-Á DE ACORDO COM OS DADOS TRANSCRITOS E ANEXOS INDICADOS NO ITEM 7(SETE). PELO QUE VENHO REQUERER A SUDEMA (Superintendência de Administração do Meio Ambiente), A EXPEDIÇÃO DA RESPECTIVA LICENÇA."]
[]
[]
[]
[]
[]
[]
[{"$f":"P18","v":"2022-04-28"}]
[]
["_______________________________________________________________ (assinatura) (nome)"]

{"sheet":"MODELO (4)","index":5,"n_rows":63,"n_cols":19,"rows_kept":63,"cut":false,"hidden":false,"merged":[[34,1,34,3],[53,0,57,3],[60,0,60,3],[62,0,62,3],[36,0,39,0],[36,1,39,3],[41,1,41,3],[43,1,43,3],[44,1,44,3],[45,1,45,3],[46,1,46,3],[50,1,50,2],[48,1,48,3],[49,1,49,3],[28,1,28,3],[29,1,29,3],[30,1,30,3],[31,1,31,3],[32,0,32,3],[21,1,21,3],[22,1,22,3],[24,1,24,2],[26,0,26,3],[27,1,27,3],[0,0,5,3],[33,1,33,3],[40,1,40,3],[20,1,20,3],[7,0,7,3],[8,0,8,1],[9,0,9,1],[10,0,10,1],[11,0,11,1],[12,0,12,1],[13,0,13,1],[14,0,14,1],[17,0,17,3],[18,1,18,3],[19,1,19,3],[35,1,35,3]]}
[null,null,null,null,null,null,null,null,null,null,null,null,null,null,null,"Autorização Ambiental - AA",{"$f":"IF(P1=$P$20,\"X\",\"\")","v":""},null,"Licença Prévia - LP"]
[null,null,null,null,null,null,null,null,null,null,null,null,null,null,null,"Dispensa de Licença",{"$f":"IF(P2=$P$20,\"X\",\"\")","v":""},null,"Licença de Instalação – LI"]
[null,null,null,null,null,null,null,null,null,null,null,null,null,null,null,"Licença por Adesão e Compromisso - LAC",{"$f":"IF(P3=$P$20,\"X\",\"\")","v":""},null,"Licença de Operação – LO"]
[null,null,null,null,null,null,null,null,null,null,null,null,null,null,null,"Licença Simplificada - LS","",null,"Licença de Alteração de Operação - LAO"]
[null,null,null,null,null,null,null,null,null,null,null,null,null,null,null,"Licença de Alteração de Instalação - LAI","",null,"Licença de Alteração de Instalação - LAI"]
[null,null,null,null,null,null,null,null,null,null,null,null,null,null,null,"Licença de Alteração de Operação - LAO","",null,"Licença Simplificada - LS"]
[null,null,null,null,null,null,null,null,null,null,null,null,null,null,1,"Licença Prévia - LP",{"$f":"IF(Q20=1,\"X\",IF(OR(Q20=4,Q20=5),\"X\",\"\"))","v":""},null,"Autorização Ambiental - AA"]
["TIPO DE SOLICITAÇÃO",null,null,null,null,null,null,null,null,null,null,null,null,null,null,"Licença de Operação de Pesquisa Mineral - LOP","",null,"Licença de Regularização de Operação – LRO"]
["[   ] Autorização Ambiental - AA",null,"[   ] Licença de Instalação – LI",null,null,null,null,null,null,null,null,null,null,null,2,"Licença de Instalação – LI",{"$f":"IF(Q20=2,\"X\",IF(OR(Q20=4,Q20=5),\"X\",\"\"))","v":""},4,"Licença Prévia - LP + Licença de Instalação – LI"]
["[   ] Dispensa de Licença",null,"[   ] Renovação de Licença de Instalação – RLI",null,null,null,null,null,null,null,null,null,null,null,null,"Renovação de Licença de Instalação – RLI","X",5,"Licença Prévia - LP + Licença de Instalação – LI + Licença de Operação – LO"]
["[   ] Licença por Adesão e Compromisso - LAC",null,"[   ] Licença de Operação – LO",null,null,null,null,null,null,null,null,null,null,null,3,"Licença de Operação – LO",{"$f":"IF(Q20=3,\"X\",IF(Q20=5,\"X\",\"\"))","v":""}]
["[   ] Licença Simplificada - LS",null,"[   ] Renovação de Licença de Operação – RLO",null,null,null,null,null,null,null,null,null,null,null,null,"Renovação de Licença de Operação – RLO",""]
["[   ] Licença de Alteração de Instalação - LAI",null,"[   ] Licença de Regularização de Operação – LRO",null,null,null,null,null,null,null,null,null,null,null,null,"Licença de Regularização de Operação – LRO",""]
["[   ] Licença de Alteração de Operação - LAO",null,"[   ] Licença de Transporte Estadual – LTE",null,null,null,null,null,null,null,null,null,null,null,null,"Licença de Transporte Estadual – LTE",""]
["[   ] Licença Prévia - LP",null,"[   ] Licença para Veículo de Publicidade ou Eventos – LVPE",null,null,null,null,null,null,null,null,null,null,null,null,"Licença para Veículo de Publicida de ou Eventos – LVPE",""]
["[   ] L. de Operação de Pesquisa Mineral - LOP",null,"[   ] Registro",null,null,null,null,null,null,null,null,null,null,null,null,"Registro",{"$f":"IF(P16=$P$20,\"X\",\"\")","v":""}]
[null,null,"[   ] Outros (especificar):",null,null,null,null,null,null,null,null,null,null,null,null,"Outros (especificar)",""]
["DADOS DO REQUERENTE",null,null,null,null,null,null,null,null,null,null,null,null,null,null,{"$f":"TODAY()","v":"2022-04-28"}]
["Nome/Razão Social:",{"$f":"COLETATRANSPORTE!A26","v":0}]
["CNPJ/CPF:",{"$f":"COLETATRANSPORTE!A28","v":0},null,null,null,null,null,null,null,null,null,null,null,null,null,{"$f":"COLETATRANSPORTE!A17","v":"Renovação de Licença de Instalação – RLI"},{"$f":"IFERROR(IF(P20=P7,1,IF(P20=P9,2,IF(P20=P11,3,IF(P20=S9,4,IF(P20=S10,5,\"\"))))),\"\")","v":""}]
["Código CNAE:",{"$f":"COLETATRANSPORTE!E28","v":0},null,null,null,null,null,null,null,null,null,null,null,null,null,{"$f":"COLETATRANSPORTE!L18","v":""}]
["Nome Fantasia (caso haja):",{"$f":"COLETATRANSPORTE!A30","v":0},null,null,null,null,null,null,null,null,null,null,null,null,null,{"$f":"IF(P21=0,\"\",P21)","v":""}]
["Logradouro/Nº",{"$f":"COLETATRANSPORTE!A32","v":0},null,null,null,null,null,null,null,null,null,null,null,null,null,{"$f":"COLETATRANSPORTE!A34","v":0}]
["Município:",{"$f":"COLETATRANSPORTE!E34","v":0},"CEP:","Bairro:",null,null,null,null,null,null,null,null,null,null,null,{"$f":"COLETATRANSPORTE!I34","v":0}]
["Complemento:",{"$f":"COLETATRANSPORTE!A36","v":0},null,"Estado:",null,null,null,null,null,null,null,null,null,null,null,{"$f":"COLETATRANSPORTE!H36","v":0}]
["Coordenadas Geográficas:",null,null,null,null,null,null,null,null,null,null,null,null,null,null,{"$f":"COLETATRANSPORTE!F38","v":0}]
["REPRESENTANTES LEGAIS ",null,null,null,null,null,null,null,null,null,null,null,null,null,null,{"$f":"COLETATRANSPORTE!H38","v":0}]
["Nome:",{"$f":"COLETATRANSPORTE!A46","v":0},null,null,null,null,null,null,null,null,null,null,null,null,null,{"$f":"COLETATRANSPORTE!E61","v":0}]
["CPF: ",{"$f":"COLETATRANSPORTE!A48","v":0}]
["Telefone para contato:",{"$f":"COLETATRANSPORTE!E48","v":0}]
["E-mail para contato:",{"$f":"COLETATRANSPORTE!A50","v":0}]
["Endereço para correspondencia:",{"$f":"COLETATRANSPORTE!A52","v":0}]
["DADOS DO EMPREENDIMENTO "]
["Atividade:",{"$f":"COLETATRANSPORTE!A14","v":"Coleta e Transporte de Resíduos Classe I – Perigosos"}]
["CÓDIGO da Atividade:",{"$f":"COLETATRANSPORTE!I14","v":"32.15.143"}]
["Número da Licença Anterior (quando houver):",{"$f":"COLETATRANSPORTE!E59","v":0}]
["Descrição da(s) atividades: ",{"$f":"COLETATRANSPORTE!A72","v":0}]
[]
[]
[]
[{"$f":"COLETATRANSPORTE!A62:C62","v":"Número de veículos: "},{"$f":"COLETATRANSPORTE!A63","v":0}]
[{"$f":"COLETATRANSPORTE!A64:B64","v":""},{"$f":"COLETATRANSPORTE!A65","v":0}]
[{"$f":"COLETATRANSPORTE!A66:B66","v":""},{"$f":"COLETATRANSPORTE!A67","v":0}]
[{"$f":"COLETATRANSPORTE!A68:B68","v":""},{"$f":"COLETATRANSPORTE!A69","v":0}]
["Faturamento Anual (R$):",{"$f":"COLETATRANSPORTE!A61:C61","v":0}]
["Número de Funcionários:",{"$f":"COLETATRANSPORTE!E61","v":0}]
["Endereço da Atividade:",{"$f":"COLETATRANSPORTE!A77","v":0}]
["Município:",{"$f":"COLETATRANSPORTE!E79","v":0},{"$f":"COLETATRANSPORTE!AF79","v":"CEP: "},{"$f":"COLETATRANSPORTE!AF80","v":"Bairro: "}]
["Estado:",{"$f":"COLETATRANSPORTE!H81","v":0}]
["Complemento:",{"$f":"COLETATRANSPORTE!A81","v":0}]
["Coordenadas Geográficas:",{"$f":"COLETATRANSPORTE!AF82","v":"Latitude: "},null,{"$f":"COLETATRANSPORTE!AF83","v":"Longitude: "}]
[]
[]
["DECLARO PARA OS DEVIDOS FINS, QUE O DESENVOLVIMENTO DAS ATIVIDADES RELACIONADAS NESTE REQUERIMENTO REALIZAR-SE-Á DE ACORDO COM OS DADOS TRANSCRITOS E ANEXOS INDICADOS NO ITEM 7(SETE). PELO QUE VENHO REQUERER A SUDEMA (Superintendência de Administração do Meio Ambiente), A EXPEDIÇÃO DA RESPECTIVA LICENÇA."]
[]
[]
[]
[]
[]
[]
[{"$f":"P18","v":"2022-04-28"}]
[]
["_______________________________________________________________ (assinatura) (nome)"]

{"sheet":"MODELO (5)","index":6,"n_rows":65,"n_cols":19,"rows_kept":65,"cut":false,"hidden":false,"merged":[[0,0,5,3],[36,1,36,3],[21,1,21,3],[7,0,7,3],[8,0,8,1],[9,0,9,1],[10,0,10,1],[11,0,11,1],[12,0,12,1],[13,0,13,1],[14,0,14,1],[18,0,18,3],[19,1,19,3],[20,1,20,3],[38,1,38,3],[22,1,22,3],[23,1,23,3],[25,1,25,2],[28,0,28,3],[29,1,29,3],[30,1,30,3],[31,1,31,3],[32,1,32,3],[33,1,33,3],[35,0,35,3],[37,1,37,3],[55,0,59,3],[62,0,62,3],[64,0,64,3],[39,0,42,0],[39,1,42,3],[44,1,44,3],[46,1,46,3],[47,1,47,3],[48,1,48,3],[49,1,49,3],[53,1,53,2],[51,1,51,3],[52,1,52,3]]}
[null,null,null,null,null,null,null,null,null,null,null,null,null,null,null,"Autorização Ambiental - AA",{"$f":"IF(P1=$P$20,\"X\",\"\")","v":""},null,"Licença Prévia - LP"]
[null,null,null,null,null,null,null,null,null,null,null,null,null,null,null,"Dispensa de Licença",{"$f":"IF(P2=$P$20,\"X\",\"\")","v":""},null,"Licença de Instalação – LI"]
[null,null,null,null,null,null,null,null,null,null,null,null,null,null,null,"Licença por Adesão e Compromisso - LAC",{"$f":"IF(P3=$P$20,\"X\",\"\")","v":""},null,"Licença de Operação – LO"]
[null,null,null,null,null,null,null,null,null,null,null,null,null,null,null,"Licença Simplificada - LS","",null,"Licença de Alteração de Operação - LAO"]
[null,null,null,null,null,null,null,null,null,null,null,null,null,null,null,"Licença de Alteração de Instalação - LAI","",null,"Licença de Alteração de Instalação - LAI"]
[null,null,null,null,null,null,null,null,null,null,null,null,null,null,null,"Licença de Alteração de Operação - LAO","",null,"Licença Simplificada - LS"]
[null,null,null,null,null,null,null,null,null,null,null,null,null,null,1,"Licença Prévia - LP",{"$f":"IF(Q20=1,\"X\",IF(OR(Q20=4,Q20=5),\"X\",\"\"))","v":""},null,"Autorização Ambiental - AA"]
["TIPO DE SOLICITAÇÃO",null,null,null,null,null,null,null,null,null,null,null,null,null,null,"Licença de Operação de Pesquisa Mineral - LOP","",null,"Licença de Regularização de Operação – LRO"]
["[   ] Autorização Ambiental - AA",null,"[   ] Licença de Instalação – LI",null,null,null,null,null,null,null,null,null,null,null,2,"Licença de Instalação – LI",{"$f":"IF(Q20=2,\"X\",IF(OR(Q20=4,Q20=5),\"X\",\"\"))","v":""},4,"Licença Prévia - LP + Licença de Instalação – LI"]
["[   ] Dispensa de Licença",null,"[   ] Renovação de Licença de Instalação – RLI",null,null,null,null,null,null,null,null,null,null,null,null,"Renovação de Licença de Instalação – RLI","X",5,"Licença Prévia - LP + Licença de Instalação – LI + Licença de Operação – LO"]
["[   ] Licença por Adesão e Compromisso - LAC",null,"[   ] Licença de Operação – LO",null,null,null,null,null,null,null,null,null,null,null,3,"Licença de Operação – LO",{"$f":"IF(Q20=3,\"X\",IF(Q20=5,\"X\",\"\"))","v":""}]
["[   ] Licença Simplificada - LS",null,"[   ] Renovação de Licença de Operação – RLO",null,null,null,null,null,null,null,null,null,null,null,null,"Renovação de Licença de Operação – RLO",""]
["[   ] Licença de Alteração de Instalação - LAI",null,"[   ] Licença de Regularização de Operação – LRO",null,null,null,null,null,null,null,null,null,null,null,null,"Licença de Regularização de Operação – LRO",""]
["[   ] Licença de Alteração de Operação - LAO",null,"[   ] Licença de Transporte Estadual – LTE",null,null,null,null,null,null,null,null,null,null,null,null,"Licença de Transporte Estadual – LTE",""]
["[   ] Licença Prévia - LP",null,"[   ] Licença para Veículo de Publicidade ou Eventos – LVPE",null,null,null,null,null,null,null,null,null,null,null,null,"Licença para Veículo de Publicida de ou Eventos – LVPE",""]
["[   ] L. de Operação de Pesquisa Mineral - LOP",null,"[   ] Registro",null,null,null,null,null,null,null,null,null,null,null,null,"Registro",{"$f":"IF(P16=$P$20,\"X\",\"\")","v":""}]
[null,null,"[   ] Outros (especificar):",null,null,null,null,null,null,null,null,null,null,null,null,"Outros (especificar)",""]
[null,null,null,null,null,null,null,null,null,null,null,null,null,null,null,{"$f":"TODAY()","v":"2022-04-28"}]
["DADOS DO REQUERENTE"]
["Nome/Razão Social:",{"$f":"ENERGIA!A26","v":"Carmen Vilar Filho"},null,null,null,null,null,null,null,null,null,null,null,null,null,{"$f":"ENERGIA!A17","v":"Renovação de Licença de Instalação – RLI"},{"$f":"IFERROR(IF(P20=P7,1,IF(P20=P9,2,IF(P20=P11,3,IF(P20=S9,4,IF(P20=S10,5,\"\"))))),\"\")","v":""}]
["CNPJ/CPF:",{"$f":"ENERGIA!A28","v":"368.395.374-80"},null,null,null,null,null,null,null,null,null,null,null,null,null,{"$f":"ENERGIA!L18","v":0}]
["Código CNAE:",{"$f":"ENERGIA!E28","v":"28.952.102-6"},null,null,null,null,null,null,null,null,null,null,null,null,null,{"$f":"IF(P21=0,\"\",P21)","v":""}]
["Nome Fantasia (caso haja):",{"$f":"ENERGIA!A30","v":"Carmen Vilar Filho"},null,null,null,null,null,null,null,null,null,null,null,null,null,{"$f":"ENERGIA!A34","v":"Oitizeiro"}]
["Logradouro/Nº",{"$f":"ENERGIA!A32","v":"Rua Artur Ataíde"},null,null,null,null,null,null,null,null,null,null,null,null,null,{"$f":"ENERGIA!I34","v":"58087-050"}]
["Município:",{"$f":"ENERGIA!E34","v":"João Pessoa"},"CEP:","Bairro:",null,null,null,null,null,null,null,null,null,null,null,{"$f":"ENERGIA!H36","v":"PB"}]
["Complemento:",{"$f":"ENERGIA!A36","v":"Casa 101"},null,"Estado:",null,null,null,null,null,null,null,null,null,null,null,{"$f":"ENERGIA!F38","v":"3.85.866.6896"}]
["Coordenadas Geográficas:","Latitude:",null,null,null,null,null,null,null,null,null,null,null,null,null,{"$f":"ENERGIA!H38","v":"3.85.866.6896"}]
[null,null,null,null,null,null,null,null,null,null,null,null,null,null,null,{"$f":"ENERGIA!E61","v":15}]
["REPRESENTANTES LEGAIS "]
["Nome:",{"$f":"ENERGIA!A46","v":"Carmen Vilar Filho"}]
["CPF: ",{"$f":"ENERGIA!A48","v":"368.395.374-80"}]
["Telefone para contato:",{"$f":"ENERGIA!E48","v":"(83) 99740-4734"}]
["E-mail para contato:",{"$f":"ENERGIA!A50","v":"carmen.filho@geradornv.com.br"}]
["Endereço para correspondencia:",{"$f":"ENERGIA!A52","v":"Carmen Vilar Filho,731 - Oitizeiro - João Pessoa - PB"}]
[]
["DADOS DO EMPREENDIMENTO "]
["Atividade:",{"$f":"ENERGIA!A14","v":"Geração de energia Eólica"}]
["CÓDIGO da Atividade:",{"$f":"ENERGIA!I14","v":"40.70.499"}]
["Número da Licença Anterior (quando houver):",{"$f":"ENERGIA!E59","v":0}]
["Descrição da(s) atividades: ",{"$f":"ENERGIA!A72","v":"ATIVIDADES DE IMPLANTAÇÃO DE NOVO GERADOR DE ENERGIA"}]
[]
[]
[]
[{"$f":"ENERGIA!A60","v":"Faturamento Anual (R$):"},{"$f":"ENERGIA!A61","v":158005}]
[{"$f":"ENERGIA!E60","v":"Nº de Funcionários:"},{"$f":"ENERGIA!E61","v":15}]
[{"$f":"ENERGIA!A62","v":"Potencia Gerada (Mw): "},{"$f":"ENERGIA!A63","v":588}]
[{"$f":"ENERGIA!A64","v":"Numero de aerogeradores: "},{"$f":"ENERGIA!A65","v":56}]
[{"$f":"ENERGIA!A66","v":"Área do Empreendimento (m²):"},{"$f":"ENERGIA!A67","v":352}]
[{"$f":"ENERGIA!A68","v":"Área Construida (m²):"},{"$f":"ENERGIA!A69","v":285}]
["Endereço da Atividade:",{"$f":"ENERGIA!A77","v":"Rua Artur Ataíde"}]
["Município:",{"$f":"ENERGIA!E79","v":"João Pessoa"},{"$f":"ENERGIA!M78","v":"CEP: 58087-050"},{"$f":"ENERGIA!M79","v":"Bairro: Oitizeiro"}]
["Estado:",{"$f":"ENERGIA!H81","v":"PB"}]
["Complemento:",{"$f":"ENERGIA!A81","v":"Casa 101"}]
["Coordenadas Geográficas:",{"$f":"ENERGIA!M81","v":"Latitude: 3.85.866.6896"},null,{"$f":"ENERGIA!M82","v":"Longitude: 3.85.866.6896"}]
[]
["DECLARO PARA OS DEVIDOS FINS, QUE O DESENVOLVIMENTO DAS ATIVIDADES RELACIONADAS NESTE REQUERIMENTO REALIZAR-SE-Á DE ACORDO COM OS DADOS TRANSCRITOS E ANEXOS INDICADOS NO ITEM 7(SETE). PELO QUE VENHO REQUERER A SUDEMA (Superintendência de Administração do Meio Ambiente), A EXPEDIÇÃO DA RESPECTIVA LICENÇA."]
[]
[]
[]
[]
[]
[]
[{"$f":"P18","v":"2022-04-28"}]
[]
["_______________________________________________________________ (assinatura) (nome)"]

{"sheet":"MODELO (6)","index":7,"n_rows":65,"n_cols":19,"rows_kept":65,"cut":false,"hidden":false,"merged":[[38,1,38,3],[22,1,22,3],[23,1,23,3],[25,1,25,2],[28,0,28,3],[31,1,31,3],[32,1,32,3],[33,1,33,3],[29,1,29,3],[30,1,30,3],[55,0,59,3],[62,0,62,3],[64,0,64,3],[39,0,42,0],[39,1,42,3],[44,1,44,3],[46,1,46,3],[47,1,47,3],[48,1,48,3],[49,1,49,3],[53,1,53,2],[51,1,51,3],[52,1,52,3],[0,0,5,3],[36,1,36,3],[35,0,35,3],[37,1,37,3],[21,1,21,3],[7,0,7,3],[8,0,8,1],[9,0,9,1],[10,0,10,1],[11,0,11,1],[12,0,12,1],[13,0,13,1],[14,0,14,1],[18,0,18,3],[19,1,19,3],[20,1,20,3]]}
[null,null,null,null,null,null,null,null,null,null,null,null,null,null,null,"Autorização Ambiental - AA",{"$f":"IF(P1=$P$20,\"X\",\"\")","v":""},null,"Licença Prévia - LP"]
[null,null,null,null,null,null,null,null,null,null,null,null,null,null,null,"Dispensa de Licença",{"$f":"IF(P2=$P$20,\"X\",\"\")","v":""},null,"Licença de Instalação – LI"]
[null,null,null,null,null,null,null,null,null,null,null,null,null,null,null,"Licença por Adesão e Compromisso - LAC",{"$f":"IF(P3=$P$20,\"X\",\"\")","v":""},null,"Licença de Operação – LO"]
[null,null,null,null,null,null,null,null,null,null,null,null,null,null,null,"Licença Simplificada - LS","",null,"Licença de Alteração de Operação - LAO"]
[null,null,null,null,null,null,null,null,null,null,null,null,null,null,null,"Licença de Alteração de Instalação - LAI","",null,"Licença de Alteração de Instalação - LAI"]
[null,null,null,null,null,null,null,null,null,null,null,null,null,null,null,"Licença de Alteração de Operação - LAO","",null,"Licença Simplificada - LS"]
[null,null,null,null,null,null,null,null,null,null,null,null,null,null,1,"Licença Prévia - LP",{"$f":"IF(Q20=1,\"X\",IF(OR(Q20=4,Q20=5),\"X\",\"\"))","v":""},null,"Autorização Ambiental - AA"]
["TIPO DE SOLICITAÇÃO",null,null,null,null,null,null,null,null,null,null,null,null,null,null,"Licença de Operação de Pesquisa Mineral - LOP","",null,"Licença de Regularização de Operação – LRO"]
["[   ] Autorização Ambiental - AA",null,"[   ] Licença de Instalação – LI",null,null,null,null,null,null,null,null,null,null,null,2,"Licença de Instalação – LI",{"$f":"IF(Q20=2,\"X\",IF(OR(Q20=4,Q20=5),\"X\",\"\"))","v":""},4,"Licença Prévia - LP + Licença de Instalação – LI"]
["[   ] Dispensa de Licença",null,"[   ] Renovação de Licença de Instalação – RLI",null,null,null,null,null,null,null,null,null,null,null,null,"Renovação de Licença de Instalação – RLI","",5,"Licença Prévia - LP + Licença de Instalação – LI + Licença de Operação – LO"]
["[   ] Licença por Adesão e Compromisso - LAC",null,"[   ] Licença de Operação – LO",null,null,null,null,null,null,null,null,null,null,null,3,"Licença de Operação – LO",{"$f":"IF(Q20=3,\"X\",IF(Q20=5,\"X\",\"\"))","v":""}]
["[   ] Licença Simplificada - LS",null,"[   ] Renovação de Licença de Operação – RLO",null,null,null,null,null,null,null,null,null,null,null,null,"Renovação de Licença de Operação – RLO","X"]
["[   ] Licença de Alteração de Instalação - LAI",null,"[   ] Licença de Regularização de Operação – LRO",null,null,null,null,null,null,null,null,null,null,null,null,"Licença de Regularização de Operação – LRO",""]
["[   ] Licença de Alteração de Operação - LAO",null,"[   ] Licença de Transporte Estadual – LTE",null,null,null,null,null,null,null,null,null,null,null,null,"Licença de Transporte Estadual – LTE",""]
["[   ] Licença Prévia - LP",null,"[   ] Licença para Veículo de Publicidade ou Eventos – LVPE",null,null,null,null,null,null,null,null,null,null,null,null,"Licença para Veículo de Publicida de ou Eventos – LVPE",""]
["[   ] L. de Operação de Pesquisa Mineral - LOP",null,"[   ] Registro",null,null,null,null,null,null,null,null,null,null,null,null,"Registro",{"$f":"IF(P16=$P$20,\"X\",\"\")","v":""}]
[null,null,"[   ] Outros (especificar):",null,null,null,null,null,null,null,null,null,null,null,null,"Outros (especificar)",""]
[null,null,null,null,null,null,null,null,null,null,null,null,null,null,null,{"$f":"TODAY()","v":"2022-04-28"}]
["DADOS DO REQUERENTE"]
["Nome/Razão Social:",{"$f":"COMERCIO!A26","v":0},null,null,null,null,null,null,null,null,null,null,null,null,null,{"$f":"COMERCIO!A17","v":"Renovação de Licença de Operação – RLO"},{"$f":"IFERROR(IF(P20=P7,1,IF(P20=P9,2,IF(P20=P11,3,IF(P20=S9,4,IF(P20=S10,5,\"\"))))),\"\")","v":""}]
["CNPJ/CPF:",{"$f":"COMERCIO!A28","v":0},null,null,null,null,null,null,null,null,null,null,null,null,null,{"$f":"COMERCIO!L18","v":0}]
["Código CNAE:",{"$f":"COMERCIO!E28","v":0},null,null,null,null,null,null,null,null,null,null,null,null,null,{"$f":"IF(P21=0,\"\",P21)","v":""}]
["Nome Fantasia (caso haja):",{"$f":"COMERCIO!A30","v":0},null,null,null,null,null,null,null,null,null,null,null,null,null,{"$f":"COMERCIO!A34","v":0}]
["Logradouro/Nº",{"$f":"COMERCIO!A32","v":0},null,null,null,null,null,null,null,null,null,null,null,null,null,{"$f":"COMERCIO!I34","v":0}]
["Município:",{"$f":"COMERCIO!E34","v":0},"CEP:","Bairro:",null,null,null,null,null,null,null,null,null,null,null,{"$f":"COMERCIO!H36","v":0}]
["Complemento:",{"$f":"COMERCIO!A36","v":0},null,"Estado:",null,null,null,null,null,null,null,null,null,null,null,{"$f":"COMERCIO!F38","v":0}]
["Coordenadas Geográficas:","Latitude:",null,null,null,null,null,null,null,null,null,null,null,null,null,{"$f":"COMERCIO!H38","v":0}]
[null,null,null,null,null,null,null,null,null,null,null,null,null,null,null,{"$f":"COMERCIO!E61","v":0}]
["REPRESENTANTES LEGAIS "]
["Nome:",{"$f":"COMERCIO!A46","v":0}]
["CPF: ",{"$f":"COMERCIO!A48","v":0}]
["Telefone para contato:",{"$f":"COMERCIO!E48","v":0}]
["E-mail para contato:",{"$f":"COMERCIO!A50","v":0}]
["Endereço para correspondencia:",{"$f":"COMERCIO!A52","v":0}]
[]
["DADOS DO EMPREENDIMENTO "]
["Atividade:",{"$f":"COMERCIO!A14","v":"Cemitério com crematório"}]
["CÓDIGO da Atividade:",{"$f":"COMERCIO!A59","v":"48.55.625"}]
["Número da Licença Anterior (quando houver):",{"$f":"COMERCIO!E59","v":0}]
["Descrição da(s) atividades: ",{"$f":"COMERCIO!A72","v":0}]
[]
[]
[]
[{"$f":"COMERCIO!$A$62","v":"Área do Empreendimento (m²) ou (HA):"},{"$f":"COMERCIO!$A$63","v":0}]
[{"$f":"COMERCIO!$A$64","v":"Área Construida (m²) OU (HA):"},{"$f":"COMERCIO!$A$65","v":0}]
[{"$f":"COMERCIO!$A$66","v":"Número de Jazigos:"},{"$f":"COMERCIO!$A$67","v":0}]
[{"$f":"COMERCIO!$A$68","v":"Capacidade instalada (kg∕dia):"},{"$f":"COMERCIO!$A$69","v":0}]
[{"$f":"COMERCIO!$A$60","v":"Faturamento Anual (R$):"},{"$f":"COMERCIO!$A$61","v":0}]
[{"$f":"COMERCIO!$E$60","v":"Nº de Funcionários:"},{"$f":"COMERCIO!$E$61","v":0}]
["Endereço da Atividade:",{"$f":"COMERCIO!A77","v":0}]
["Município:",{"$f":"COMERCIO!E79","v":0},{"$f":"COMERCIO!AF77","v":"CEP: "},{"$f":"COMERCIO!AF78","v":"Bairro: "}]
["Estado:",{"$f":"COMERCIO!H81","v":0}]
["Complemento:",{"$f":"COMERCIO!A81","v":0}]
["Coordenadas Geográficas:",{"$f":"COMERCIO!AF80","v":"Latitude: "},null,{"$f":"COMERCIO!AF81","v":"Longitude: "}]
[]
["DECLARO PARA OS DEVIDOS FINS, QUE O DESENVOLVIMENTO DAS ATIVIDADES RELACIONADAS NESTE REQUERIMENTO REALIZAR-SE-Á DE ACORDO COM OS DADOS TRANSCRITOS E ANEXOS INDICADOS NO ITEM 7(SETE). PELO QUE VENHO REQUERER A SUDEMA (Superintendência de Administração do Meio Ambiente), A EXPEDIÇÃO DA RESPECTIVA LICENÇA."]
[]
[]
[]
[]
[]
[]
[{"$f":"P18","v":"2022-04-28"}]
[]
["_______________________________________________________________ (assinatura) (nome)"]

{"sheet":"MODELO (7)","index":8,"n_rows":65,"n_cols":19,"rows_kept":65,"cut":false,"hidden":false,"merged":[[38,1,38,3],[22,1,22,3],[23,1,23,3],[25,1,25,2],[28,0,28,3],[31,1,31,3],[32,1,32,3],[33,1,33,3],[29,1,29,3],[30,1,30,3],[55,0,59,3],[62,0,62,3],[64,0,64,3],[39,0,42,0],[39,1,42,3],[44,1,44,3],[46,1,46,3],[47,1,47,3],[48,1,48,3],[49,1,49,3],[53,1,53,2],[51,1,51,3],[52,1,52,3],[0,0,5,3],[36,1,36,3],[35,0,35,3],[37,1,37,3],[21,1,21,3],[7,0,7,3],[8,0,8,1],[9,0,9,1],[10,0,10,1],[11,0,11,1],[12,0,12,1],[13,0,13,1],[14,0,14,1],[18,0,18,3],[19,1,19,3],[20,1,20,3]]}
[null,null,null,null,null,null,null,null,null,null,null,null,null,null,null,"Autorização Ambiental - AA",{"$f":"IF(P1=$P$20,\"X\",\"\")","v":""},null,"Licença Prévia - LP"]
[null,null,null,null,null,null,null,null,null,null,null,null,null,null,null,"Dispensa de Licença",{"$f":"IF(P2=$P$20,\"X\",\"\")","v":""},null,"Licença de Instalação – LI"]
[null,null,null,null,null,null,null,null,null,null,null,null,null,null,null,"Licença por Adesão e Compromisso - LAC",{"$f":"IF(P3=$P$20,\"X\",\"\")","v":""},null,"Licença de Operação – LO"]
[null,null,null,null,null,null,null,null,null,null,null,null,null,null,null,"Licença Simplificada - LS","",null,"Licença de Alteração de Operação - LAO"]
[null,null,null,null,null,null,null,null,null,null,null,null,null,null,null,"Licença de Alteração de Instalação - LAI","",null,"Licença de Alteração de Instalação - LAI"]
[null,null,null,null,null,null,null,null,null,null,null,null,null,null,null,"Licença de Alteração de Operação - LAO","",null,"Licença Simplificada - LS"]
[null,null,null,null,null,null,null,null,null,null,null,null,null,null,1,"Licença Prévia - LP",{"$f":"IF(Q20=1,\"X\",IF(OR(Q20=4,Q20=5),\"X\",\"\"))","v":""},null,"Autorização Ambiental - AA"]
["TIPO DE SOLICITAÇÃO",null,null,null,null,null,null,null,null,null,null,null,null,null,null,"Licença de Operação de Pesquisa Mineral - LOP","",null,"Licença de Regularização de Operação – LRO"]
["[   ] Autorização Ambiental - AA",null,"[   ] Licença de Instalação – LI",null,null,null,null,null,null,null,null,null,null,null,2,"Licença de Instalação – LI",{"$f":"IF(Q20=2,\"X\",IF(OR(Q20=4,Q20=5),\"X\",\"\"))","v":""},4,"Licença Prévia - LP + Licença de Instalação – LI"]
["[   ] Dispensa de Licença",null,"[   ] Renovação de Licença de Instalação – RLI",null,null,null,null,null,null,null,null,null,null,null,null,"Renovação de Licença de Instalação – RLI","X",5,"Licença Prévia - LP + Licença de Instalação – LI + Licença de Operação – LO"]
["[   ] Licença por Adesão e Compromisso - LAC",null,"[   ] Licença de Operação – LO",null,null,null,null,null,null,null,null,null,null,null,3,"Licença de Operação – LO",{"$f":"IF(Q20=3,\"X\",IF(Q20=5,\"X\",\"\"))","v":""}]
["[   ] Licença Simplificada - LS",null,"[   ] Renovação de Licença de Operação – RLO",null,null,null,null,null,null,null,null,null,null,null,null,"Renovação de Licença de Operação – RLO",""]
["[   ] Licença de Alteração de Instalação - LAI",null,"[   ] Licença de Regularização de Operação – LRO",null,null,null,null,null,null,null,null,null,null,null,null,"Licença de Regularização de Operação – LRO",""]
["[   ] Licença de Alteração de Operação - LAO",null,"[   ] Licença de Transporte Estadual – LTE",null,null,null,null,null,null,null,null,null,null,null,null,"Licença de Transporte Estadual – LTE",""]
["[   ] Licença Prévia - LP",null,"[   ] Licença para Veículo de Publicidade ou Eventos – LVPE",null,null,null,null,null,null,null,null,null,null,null,null,"Licença para Veículo de Publicida de ou Eventos – LVPE",""]
["[   ] L. de Operação de Pesquisa Mineral - LOP",null,"[   ] Registro",null,null,null,null,null,null,null,null,null,null,null,null,"Registro",{"$f":"IF(P16=$P$20,\"X\",\"\")","v":""}]
[null,null,"[   ] Outros (especificar):",null,null,null,null,null,null,null,null,null,null,null,null,"Outros (especificar)",""]
[null,null,null,null,null,null,null,null,null,null,null,null,null,null,null,{"$f":"TODAY()","v":"2022-04-28"}]
["DADOS DO REQUERENTE"]
["Nome/Razão Social:",{"$f":"OBRAS!A26","v":0},null,null,null,null,null,null,null,null,null,null,null,null,null,{"$f":"OBRAS!A17","v":"Renovação de Licença de Instalação – RLI"},{"$f":"IFERROR(IF(P20=P7,1,IF(P20=P9,2,IF(P20=P11,3,IF(P20=S9,4,IF(P20=S10,5,\"\"))))),\"\")","v":""}]
["CNPJ/CPF:",{"$f":"OBRAS!A28","v":0},null,null,null,null,null,null,null,null,null,null,null,null,null,{"$f":"OBRAS!L18","v":0}]
["Código CNAE:",{"$f":"OBRAS!E28","v":0},null,null,null,null,null,null,null,null,null,null,null,null,null,{"$f":"IF(P21=0,\"\",P21)","v":""}]
["Nome Fantasia (caso haja):",{"$f":"OBRAS!A30","v":0},null,null,null,null,null,null,null,null,null,null,null,null,null,{"$f":"OBRAS!A34","v":0}]
["Logradouro/Nº",{"$f":"OBRAS!A32","v":0},null,null,null,null,null,null,null,null,null,null,null,null,null,{"$f":"OBRAS!I34","v":0}]
["Município:",{"$f":"OBRAS!E34","v":0},"CEP:","Bairro:",null,null,null,null,null,null,null,null,null,null,null,{"$f":"OBRAS!H36","v":0}]
["Complemento:",{"$f":"OBRAS!A36","v":0},null,"Estado:",null,null,null,null,null,null,null,null,null,null,null,{"$f":"OBRAS!F38","v":0}]
["Coordenadas Geográficas:",null,null,null,null,null,null,null,null,null,null,null,null,null,null,{"$f":"OBRAS!H38","v":0}]
[null,null,null,null,null,null,null,null,null,null,null,null,null,null,null,{"$f":"COMERCIO!E61","v":0}]
["REPRESENTANTES LEGAIS "]
["Nome:",{"$f":"OBRAS!A46","v":0}]
["CPF: ",{"$f":"OBRAS!A48","v":0}]
["Telefone para contato:",{"$f":"OBRAS!E48","v":0}]
["E-mail para contato:",{"$f":"OBRAS!A50","v":0}]
["Endereço para correspondencia:",{"$f":"OBRAS!A52","v":0}]
[]
["DADOS DO EMPREENDIMENTO "]
["Atividade:",{"$f":"OBRAS!A14","v":"Captação de águas subterrâneas"}]
["CÓDIGO da Atividade:",{"$f":"OBRAS!A59","v":"56.85.800"}]
["Número da Licença Anterior (quando houver):",{"$f":"OBRAS!E59","v":0}]
["Descrição da(s) atividades: ",{"$f":"OBRAS!A72","v":0}]
[]
[]
[]
[{"$f":"OBRAS!A62","v":"Vazão (M³/H)"},{"$f":"OBRAS!A63","v":0}]
[{"$f":"OBRAS!A64","v":"Área do Empreendimento (m²) ou (HA):"},{"$f":"OBRAS!A65","v":0}]
[{"$f":"OBRAS!A66","v":"Área Construida (m²) OU (HA):"},{"$f":"OBRAS!A67","v":0}]
[{"$f":"OBRAS!A68","v":""},{"$f":"OBRAS!A69","v":0}]
[{"$f":"OBRAS!A60","v":"Faturamento Anual (R$):"},{"$f":"OBRAS!A61","v":0}]
[{"$f":"OBRAS!E60","v":"Nº de Funcionários:"},{"$f":"OBRAS!E61","v":0}]
["Endereço da Atividade:",{"$f":"OBRAS!A77","v":0}]
["Município:",{"$f":"OBRAS!E79","v":0},{"$f":"OBRAS!AF79","v":"CEP: "},{"$f":"OBRAS!AF80","v":"Bairro: "}]
["Estado:",{"$f":"OBRAS!H81","v":0}]
["Complemento:",{"$f":"OBRAS!A81","v":0}]
["Coordenadas Geográficas:",{"$f":"OBRAS!AF82","v":"Latitude: "},null,{"$f":"OBRAS!AF83","v":"Longitude: "}]
[]
["DECLARO PARA OS DEVIDOS FINS, QUE O DESENVOLVIMENTO DAS ATIVIDADES RELACIONADAS NESTE REQUERIMENTO REALIZAR-SE-Á DE ACORDO COM OS DADOS TRANSCRITOS E ANEXOS INDICADOS NO ITEM 7(SETE). PELO QUE VENHO REQUERER A SUDEMA (Superintendência de Administração do Meio Ambiente), A EXPEDIÇÃO DA RESPECTIVA LICENÇA."]
[]
[]
[]
[]
[]
[]
[{"$f":"P18","v":"2022-04-28"}]
[]
["_______________________________________________________________ (assinatura) (nome)"]

{"sheet":"MODELO (8)","index":9,"n_rows":65,"n_cols":19,"rows_kept":65,"cut":false,"hidden":false,"merged":[[62,0,62,3],[64,0,64,3],[39,0,42,0],[39,1,42,3],[44,1,44,3],[46,1,46,3],[47,1,47,3],[48,1,48,3],[49,1,49,3],[53,1,53,2],[51,1,51,3],[52,1,52,3],[32,1,32,3],[33,1,33,3],[35,0,35,3],[0,0,5,3],[55,0,59,3],[38,1,38,3],[22,1,22,3],[23,1,23,3],[25,1,25,2],[28,0,28,3],[29,1,29,3],[37,1,37,3],[36,1,36,3],[21,1,21,3],[7,0,7,3],[8,0,8,1],[9,0,9,1],[10,0,10,1],[11,0,11,1],[12,0,12,1],[13,0,13,1],[31,1,31,3],[14,0,14,1],[18,0,18,3],[19,1,19,3],[20,1,20,3],[30,1,30,3]]}
[null,null,null,null,null,null,null,null,null,null,null,null,null,null,null,"Autorização Ambiental - AA",{"$f":"IF(P1=$P$20,\"X\",\"\")","v":""},null,"Licença Prévia - LP"]
[null,null,null,null,null,null,null,null,null,null,null,null,null,null,null,"Dispensa de Licença",{"$f":"IF(P2=$P$20,\"X\",\"\")","v":""},null,"Licença de Instalação – LI"]
[null,null,null,null,null,null,null,null,null,null,null,null,null,null,null,"Licença por Adesão e Compromisso - LAC",{"$f":"IF(P3=$P$20,\"X\",\"\")","v":""},null,"Licença de Operação – LO"]
[null,null,null,null,null,null,null,null,null,null,null,null,null,null,null,"Licença Simplificada - LS","",null,"Licença de Alteração de Operação - LAO"]
[null,null,null,null,null,null,null,null,null,null,null,null,null,null,null,"Licença de Alteração de Instalação - LAI","",null,"Licença de Alteração de Instalação - LAI"]
[null,null,null,null,null,null,null,null,null,null,null,null,null,null,null,"Licença de Alteração de Operação - LAO","",null,"Licença Simplificada - LS"]
[null,null,null,null,null,null,null,null,null,null,null,null,null,null,1,"Licença Prévia - LP",{"$f":"IF(Q20=1,\"X\",IF(OR(Q20=4,Q20=5),\"X\",\"\"))","v":""},null,"Autorização Ambiental - AA"]
["TIPO DE SOLICITAÇÃO",null,null,null,null,null,null,null,null,null,null,null,null,null,null,"L. de Operação de Pesquisa Mineral - LOP","X",null,"Licença de Regularização de Operação – LRO"]
["[   ] Autorização Ambiental - AA",null,"[   ] Licença de Instalação – LI",null,null,null,null,null,null,null,null,null,null,null,2,"Licença de Instalação – LI",{"$f":"IF(Q20=2,\"X\",IF(OR(Q20=4,Q20=5),\"X\",\"\"))","v":""},4,"Licença Prévia - LP + Licença de Instalação – LI"]
["[   ] Dispensa de Licença",null,"[   ] Renovação de Licença de Instalação – RLI",null,null,null,null,null,null,null,null,null,null,null,null,"Renovação de Licença de Instalação – RLI","",5,"Licença Prévia - LP + Licença de Instalação – LI + Licença de Operação – LO"]
["[   ] Licença por Adesão e Compromisso - LAC",null,"[   ] Licença de Operação – LO",null,null,null,null,null,null,null,null,null,null,null,3,"Licença de Operação – LO",{"$f":"IF(Q20=3,\"X\",IF(Q20=5,\"X\",\"\"))","v":""}]
["[   ] Licença Simplificada - LS",null,"[   ] Renovação de Licença de Operação – RLO",null,null,null,null,null,null,null,null,null,null,null,null,"Renovação de Licença de Operação – RLO",""]
["[   ] Licença de Alteração de Instalação - LAI",null,"[   ] Licença de Regularização de Operação – LRO",null,null,null,null,null,null,null,null,null,null,null,null,"Licença de Regularização de Operação – LRO",""]
["[   ] Licença de Alteração de Operação - LAO",null,"[   ] Licença de Transporte Estadual – LTE",null,null,null,null,null,null,null,null,null,null,null,null,"Licença de Transporte Estadual – LTE",""]
["[   ] Licença Prévia - LP",null,"[   ] Licença para Veículo de Publicidade ou Eventos – LVPE",null,null,null,null,null,null,null,null,null,null,null,null,"Licença para Veículo de Publicida de ou Eventos – LVPE",""]
["[   ] L. de Operação de Pesquisa Mineral - LOP",null,"[   ] Registro",null,null,null,null,null,null,null,null,null,null,null,null,"Registro",{"$f":"IF(P16=$P$20,\"X\",\"\")","v":""}]
[null,null,"[   ] Outros (especificar):",null,null,null,null,null,null,null,null,null,null,null,null,"Outros (especificar)",""]
[null,null,null,null,null,null,null,null,null,null,null,null,null,null,null,{"$f":"TODAY()","v":"2022-04-28"}]
["DADOS DO REQUERENTE"]
["Nome/Razão Social:",{"$f":"MINERIO!A26","v":0},null,null,null,null,null,null,null,null,null,null,null,null,null,{"$f":"MINERIO!A17","v":"L. de Operação de Pesquisa Mineral - LOP"},{"$f":"IFERROR(IF(P20=P7,1,IF(P20=P9,2,IF(P20=P11,3,IF(P20=S9,4,IF(P20=S10,5,\"\"))))),\"\")","v":""}]
["CNPJ/CPF:",{"$f":"MINERIO!A28","v":0},null,null,null,null,null,null,null,null,null,null,null,null,null,{"$f":"MINERIO!L18","v":0}]
["Código CNAE:",{"$f":"MINERIO!E28","v":0},null,null,null,null,null,null,null,null,null,null,null,null,null,{"$f":"IF(P21=0,\"\",P21)","v":""}]
["Nome Fantasia (caso haja):",{"$f":"MINERIO!A30","v":0},null,null,null,null,null,null,null,null,null,null,null,null,null,{"$f":"MINERIO!A34","v":0}]
["Logradouro/Nº",{"$f":"MINERIO!A32","v":0},null,null,null,null,null,null,null,null,null,null,null,null,null,{"$f":"MINERIO!I34","v":0}]
["Município:",{"$f":"MINERIO!E34","v":0},"CEP:","Bairro:",null,null,null,null,null,null,null,null,null,null,null,{"$f":"MINERIO!H36","v":0}]
["Complemento:",{"$f":"MINERIO!A36","v":0},null,"Estado:",null,null,null,null,null,null,null,null,null,null,null,{"$f":"MINERIO!F38","v":0}]
["Coordenadas Geográficas:","Latitude:",null,null,null,null,null,null,null,null,null,null,null,null,null,{"$f":"MINERIO!H38","v":0}]
[null,null,null,null,null,null,null,null,null,null,null,null,null,null,null,{"$f":"MINERIO!E61","v":0}]
["REPRESENTANTES LEGAIS "]
["Nome:",{"$f":"MINERIO!A46","v":0}]
["CPF: ",{"$f":"MINERIO!A48","v":0}]
["Telefone para contato:",{"$f":"MINERIO!E48","v":0}]
["E-mail para contato:",{"$f":"MINERIO!A50","v":0}]
["Endereço para correspondencia:",{"$f":"MINERIO!A52","v":0}]
[]
["DADOS DO EMPREENDIMENTO "]
["Atividade:",{"$f":"MINERIO!A14","v":"Pesquisa Mineral"}]
["CÓDIGO da Atividade:",{"$f":"MINERIO!A59","v":"64.8.499"}]
["Número da Licença Anterior (quando houver):",{"$f":"MINERIO!E59","v":0}]
["Descrição da(s) atividades: ",{"$f":"MINERIO!A72","v":0}]
[]
[]
[]
[{"$f":"MINERIO!A62","v":"Área requerida ANM (HA):"},{"$f":"MINERIO!$A$63","v":0}]
[{"$f":"MINERIO!$A$64","v":"Investimento Total (R$)"},{"$f":"MINERIO!$A$65","v":0}]
[{"$f":"MINERIO!$A$66","v":"Área Construída (m²):"},{"$f":"MINERIO!$A$67","v":0}]
[{"$f":"MINERIO!$A$68","v":""},{"$f":"MINERIO!$A$69","v":0}]
[{"$f":"MINERIO!$A$60","v":"Faturamento Anual (R$):"},{"$f":"MINERIO!$A$61","v":0}]
[{"$f":"MINERIO!$E$60","v":"Nº de Funcionários:"},{"$f":"MINERIO!$E$61","v":0}]
["Endereço da Atividade:",{"$f":"MINERIO!A77","v":0}]
["Município:",{"$f":"MINERIO!E79","v":0},{"$f":"MINERIO!AF77","v":"CEP: "},{"$f":"MINERIO!AF78","v":"Bairro: "}]
["Estado:",{"$f":"MINERIO!H81","v":0}]
["Complemento:",{"$f":"MINERIO!A81","v":0}]
["Coordenadas Geográficas:",{"$f":"MINERIO!AF80","v":"Latitude: "},null,{"$f":"MINERIO!AF81","v":"Longitude: "}]
[]
["DECLARO PARA OS DEVIDOS FINS, QUE O DESENVOLVIMENTO DAS ATIVIDADES RELACIONADAS NESTE REQUERIMENTO REALIZAR-SE-Á DE ACORDO COM OS DADOS TRANSCRITOS E ANEXOS INDICADOS NO ITEM 7(SETE). PELO QUE VENHO REQUERER A SUDEMA (Superintendência de Administração do Meio Ambiente), A EXPEDIÇÃO DA RESPECTIVA LICENÇA."]
[]
[]
[]
[]
[]
[]
[{"$f":"P18","v":"2022-04-28"}]
[]
["_______________________________________________________________ (assinatura) (nome)"]

{"sheet":"MODELO (9)","index":10,"n_rows":63,"n_cols":19,"rows_kept":63,"cut":false,"hidden":false,"merged":[[60,0,60,3],[62,0,62,3],[39,0,42,0],[39,1,42,3],[44,1,44,3],[45,1,45,3],[46,1,46,3],[47,1,47,3],[51,1,51,2],[49,1,49,3],[50,1,50,3],[33,1,33,3],[35,0,35,3],[0,0,5,3],[36,1,36,3],[53,0,57,3],[38,1,38,3],[22,1,22,3],[23,1,23,3],[25,1,25,2],[28,0,28,3],[29,1,29,3],[37,1,37,3],[21,1,21,3],[7,0,7,3],[8,0,8,1],[9,0,9,1],[10,0,10,1],[11,0,11,1],[12,0,12,1],[13,0,13,1],[14,0,14,1],[32,1,32,3],[18,0,18,3],[19,1,19,3],[20,1,20,3],[30,1,30,3],[31,1,31,3]]}
[null,null,null,null,null,null,null,null,null,null,null,null,null,null,null,"Autorização Ambiental - AA",{"$f":"IF(P1=$P$20,\"X\",\"\")","v":""},null,"Licença Prévia - LP"]
[null,null,null,null,null,null,null,null,null,null,null,null,null,null,null,"Dispensa de Licença",{"$f":"IF(P2=$P$20,\"X\",\"\")","v":""},null,"Licença de Instalação – LI"]
[null,null,null,null,null,null,null,null,null,null,null,null,null,null,null,"Licença por Adesão e Compromisso - LAC",{"$f":"IF(P3=$P$20,\"X\",\"\")","v":""},null,"Licença de Operação – LO"]
[null,null,null,null,null,null,null,null,null,null,null,null,null,null,null,"Licença Simplificada - LS","",null,"Licença de Alteração de Operação - LAO"]
[null,null,null,null,null,null,null,null,null,null,null,null,null,null,null,"Licença de Alteração de Instalação - LAI","",null,"Licença de Alteração de Instalação - LAI"]
[null,null,null,null,null,null,null,null,null,null,null,null,null,null,null,"Licença de Alteração de Operação - LAO","",null,"Licença Simplificada - LS"]
[null,null,null,null,null,null,null,null,null,null,null,null,null,null,1,"Licença Prévia - LP",{"$f":"IF(Q20=1,\"X\",IF(OR(Q20=4,Q20=5),\"X\",\"\"))","v":""},null,"Autorização Ambiental - AA"]
["TIPO DE SOLICITAÇÃO",null,null,null,null,null,null,null,null,null,null,null,null,null,null,"Licença de Operação de Pesquisa Mineral - LOP","",null,"Licença de Regularização de Operação – LRO"]
["[   ] Autorização Ambiental - AA",null,"[   ] Licença de Instalação – LI",null,null,null,null,null,null,null,null,null,null,null,2,"Licença de Instalação – LI",{"$f":"IF(Q20=2,\"X\",IF(OR(Q20=4,Q20=5),\"X\",\"\"))","v":"X"},4,"Licença Prévia - LP + Licença de Instalação – LI"]
["[   ] Dispensa de Licença",null,"[   ] Renovação de Licença de Instalação – RLI",null,null,null,null,null,null,null,null,null,null,null,null,"Renovação de Licença de Instalação – RLI","",5,"Licença Prévia - LP + Licença de Instalação – LI + Licença de Operação – LO"]
["[   ] Licença por Adesão e Compromisso - LAC",null,"[   ] Licença de Operação – LO",null,null,null,null,null,null,null,null,null,null,null,3,"Licença de Operação – LO",{"$f":"IF(Q20=3,\"X\",IF(Q20=5,\"X\",\"\"))","v":""}]
["[   ] Licença Simplificada - LS",null,"[   ] Renovação de Licença de Operação – RLO",null,null,null,null,null,null,null,null,null,null,null,null,"Renovação de Licença de Operação – RLO",""]
["[   ] Licença de Alteração de Instalação - LAI",null,"[   ] Licença de Regularização de Operação – LRO",null,null,null,null,null,null,null,null,null,null,null,null,"Licença de Regularização de Operação – LRO",""]
["[   ] Licença de Alteração de Operação - LAO",null,"[   ] Licença de Transporte Estadual – LTE",null,null,null,null,null,null,null,null,null,null,null,null,"Licença de Transporte Estadual – LTE",""]
["[   ] Licença Prévia - LP",null,"[   ] Licença para Veículo de Publicidade ou Eventos – LVPE",null,null,null,null,null,null,null,null,null,null,null,null,"Licença para Veículo de Publicida de ou Eventos – LVPE",""]
["[   ] L. de Operação de Pesquisa Mineral - LOP",null,"[   ] Registro",null,null,null,null,null,null,null,null,null,null,null,null,"Registro",{"$f":"IF(P16=$P$20,\"X\",\"\")","v":""}]
[null,null,"[   ] Outros (especificar):",null,null,null,null,null,null,null,null,null,null,null,null,"Outros (especificar)",""]
[null,null,null,null,null,null,null,null,null,null,null,null,null,null,null,{"$f":"TODAY()","v":"2022-04-28"}]
["DADOS DO REQUERENTE"]
["Nome/Razão Social:",{"$f":"INDUSTRIA!A26","v":0},null,null,null,null,null,null,null,null,null,null,null,null,null,{"$f":"INDUSTRIA!A17","v":"Licença de Instalação – LI"},{"$f":"IFERROR(IF(P20=P7,1,IF(P20=P9,2,IF(P20=P11,3,IF(P20=S9,4,IF(P20=S10,5,\"\"))))),\"\")","v":2}]
["CNPJ/CPF:",{"$f":"INDUSTRIA!A28","v":0},null,null,null,null,null,null,null,null,null,null,null,null,null,{"$f":"INDUSTRIA!L18","v":0}]
["Código CNAE:",{"$f":"INDUSTRIA!E28","v":0},null,null,null,null,null,null,null,null,null,null,null,null,null,{"$f":"IF(P21=0,\"\",P21)","v":""}]
["Nome Fantasia (caso haja):",{"$f":"INDUSTRIA!A30","v":0},null,null,null,null,null,null,null,null,null,null,null,null,null,{"$f":"INDUSTRIA!A34","v":0}]
["Logradouro/Nº",{"$f":"INDUSTRIA!A32","v":0},null,null,null,null,null,null,null,null,null,null,null,null,null,{"$f":"INDUSTRIA!I34","v":0}]
["Município:",{"$f":"INDUSTRIA!E34","v":0},"CEP:","Bairro:",null,null,null,null,null,null,null,null,null,null,null,{"$f":"INDUSTRIA!H36","v":0}]
["Complemento:",{"$f":"INDUSTRIA!A36","v":0},null,"Estado:",null,null,null,null,null,null,null,null,null,null,null,{"$f":"INDUSTRIA!F38","v":0}]
["Coordenadas Geográficas:","Latitude:",null,null,null,null,null,null,null,null,null,null,null,null,null,{"$f":"INDUSTRIA!H38","v":0}]
[null,null,null,null,null,null,null,null,null,null,null,null,null,null,null,{"$f":"INDUSTRIA!E61","v":0}]
["REPRESENTANTES LEGAIS "]
["Nome:",{"$f":"INDUSTRIA!A46","v":0}]
["CPF: ",{"$f":"INDUSTRIA!A48","v":0}]
["Telefone para contato:",{"$f":"INDUSTRIA!E48","v":0}]
["E-mail para contato:",{"$f":"INDUSTRIA!A50","v":0}]
["Endereço para correspondencia:",{"$f":"INDUSTRIA!A52","v":0}]
[]
["DADOS DO EMPREENDIMENTO "]
["Atividade:",{"$f":"INDUSTRIA!A14","v":"Preparação de concreto e argamassa"}]
["CÓDIGO da Atividade:",{"$f":"INDUSTRIA!A59","v":"72.04.875"}]
["Número da Licença Anterior (quando houver):",{"$f":"INDUSTRIA!E59","v":0}]
["Descrição da(s) atividades: ",{"$f":"INDUSTRIA!A66","v":0}]
[]
[]
[]
[{"$f":"INDUSTRIA!A60","v":"Faturamento Anual (R$):"},{"$f":"INDUSTRIA!A61","v":0}]
[{"$f":"INDUSTRIA!E60","v":"Nº de Funcionários:"},{"$f":"INDUSTRIA!E61","v":0}]
[{"$f":"INDUSTRIA!A62","v":"Área do Empreendimento (m²):"},{"$f":"INDUSTRIA!A63","v":0}]
[{"$f":"INDUSTRIA!E62","v":"Área Construida (m²):"},{"$f":"INDUSTRIA!E63","v":0}]
["Logradouro/Nº",{"$f":"INDUSTRIA!A71","v":0}]
["Município:",{"$f":"INDUSTRIA!E73","v":0},{"$f":"INDUSTRIA!AB72","v":"CEP: "},{"$f":"INDUSTRIA!AB73","v":"Bairro: "}]
["Estado:",{"$f":"INDUSTRIA!H75","v":0}]
["Complemento:",{"$f":"INDUSTRIA!A75","v":0}]
["Coordenadas Geográficas:",{"$f":"INDUSTRIA!AB75","v":"Latitude: "},null,{"$f":"INDUSTRIA!AB76","v":"Longitude: "}]
[]
["DECLARO PARA OS DEVIDOS FINS, QUE O DESENVOLVIMENTO DAS ATIVIDADES RELACIONADAS NESTE REQUERIMENTO REALIZAR-SE-Á DE ACORDO COM OS DADOS TRANSCRITOS E ANEXOS INDICADOS NO ITEM 7(SETE). PELO QUE VENHO REQUERER A SUDEMA (Superintendência de Administração do Meio Ambiente), A EXPEDIÇÃO DA RESPECTIVA LICENÇA."]
[]
[]
[]
[]
[]
[]
[{"$f":"P18","v":"2022-04-28"}]
[]
["_______________________________________________________________ (assinatura) (nome)"]

{"sheet":"MODELO (10)","index":11,"n_rows":65,"n_cols":20,"rows_kept":65,"cut":false,"hidden":false,"merged":[[1,1,6,4],[37,2,37,4],[22,2,22,4],[8,1,8,4],[9,1,9,2],[10,1,10,2],[11,1,11,2],[12,1,12,2],[13,1,13,2],[14,1,14,2],[15,1,15,2],[19,1,19,4],[20,2,20,4],[21,2,21,4],[39,2,39,4],[23,2,23,4],[24,2,24,4],[26,2,26,3],[29,1,29,4],[30,2,30,4],[31,2,31,4],[32,2,32,4],[33,2,33,4],[34,2,34,4],[36,1,36,4],[38,2,38,4],[62,1,62,4],[64,1,64,4],[46,2,46,4],[40,1,43,1],[40,2,43,4],[45,2,45,4],[47,2,47,4],[48,2,48,4],[55,1,59,4],[49,2,49,4],[53,2,53,3],[52,2,52,4],[51,2,51,4]]}
[]
[null,null,null,null,null,null,null,null,null,null,null,null,null,null,null,null,"Autorização Ambiental - AA",{"$f":"IF(Q2=$Q$21,\"X\",\"\")","v":""},null,"Licença Prévia - LP"]
[null,null,null,null,null,null,null,null,null,null,null,null,null,null,null,null,"Dispensa de Licença",{"$f":"IF(Q3=$Q$21,\"X\",\"\")","v":""},null,"Licença de Instalação – LI"]
[null,null,null,null,null,null,null,null,null,null,null,null,null,null,null,null,"Licença por Adesão e Compromisso - LAC",{"$f":"IF(Q4=$Q$21,\"X\",\"\")","v":""},null,"Licença de Operação – LO"]
[null,null,null,null,null,null,null,null,null,null,null,null,null,null,null,null,"Licença Simplificada - LS","",null,"Licença de Alteração de Operação - LAO"]
[null,null,null,null,null,null,null,null,null,null,null,null,null,null,null,null,"Licença de Alteração de Instalação - LAI","",null,"Licença de Alteração de Instalação - LAI"]
[null,null,null,null,null,null,null,null,null,null,null,null,null,null,null,null,"Licença de Alteração de Operação - LAO","",null,"Licença Simplificada - LS"]
[null,null,null,null,null,null,null,null,null,null,null,null,null,null,null,1,"Licença Prévia - LP",{"$f":"IF(R21=1,\"X\",IF(OR(R21=4,R21=5),\"X\",\"\"))","v":""},null,"Autorização Ambiental - AA"]
[null,"TIPO DE SOLICITAÇÃO",null,null,null,null,null,null,null,null,null,null,null,null,null,null,"Licença de Operação de Pesquisa Mineral - LOP","",null,"Licença de Regularização de Operação – LRO"]
[null,"[   ] Autorização Ambiental - AA",null,"[   ] Licença de Instalação – LI",null,null,null,null,null,null,null,null,null,null,null,2,"Licença de Instalação – LI",{"$f":"IF(R21=2,\"X\",IF(OR(R21=4,R21=5),\"X\",\"\"))","v":""},4,"Licença Prévia - LP + Licença de Instalação – LI"]
[null,"[   ] Dispensa de Licença",null,"[   ] Renovação de Licença de Instalação – RLI",null,null,null,null,null,null,null,null,null,null,null,null,"Renovação de Licença de Instalação – RLI","",5,"Licença Prévia - LP + Licença de Instalação – LI + Licença de Operação – LO"]
[null,"[   ] Licença por Adesão e Compromisso - LAC",null,"[   ] Licença de Operação – LO",null,null,null,null,null,null,null,null,null,null,null,3,"Licença de Operação – LO",{"$f":"IF(R21=3,\"X\",IF(R21=5,\"X\",\"\"))","v":""}]
[null,"[   ] Licença Simplificada - LS",null,"[   ] Renovação de Licença de Operação – RLO",null,null,null,null,null,null,null,null,null,null,null,null,"Renovação de Licença de Operação – RLO",""]
[null,"[   ] Licença de Alteração de Instalação - LAI",null,"[   ] Licença de Regularização de Operação – LRO",null,null,null,null,null,null,null,null,null,null,null,null,"Licença de Regularização de Operação – LRO",""]
[null,"[   ] Licença de Alteração de Operação - LAO",null,"[   ] Licença de Transporte Estadual – LTE",null,null,null,null,null,null,null,null,null,null,null,null,"Licença de Transporte Estadual – LTE",""]
[null,"[   ] Licença Prévia - LP",null,"[   ] Licença para Veículo de Publicidade ou Eventos – LVPE",null,null,null,null,null,null,null,null,null,null,null,null,"Licença para Veículo de Publicida de ou Eventos – LVPE",""]
[null,"[   ] L. de Operação de Pesquisa Mineral - LOP",null,"[   ] Registro",null,null,null,null,null,null,null,null,null,null,null,null,"Registro",{"$f":"IF(Q17=$Q$21,\"X\",\"\")","v":"X"}]
[null,null,null,"[   ] Outros (especificar):",null,null,null,null,null,null,null,null,null,null,null,null,"Outros (especificar)",""]
[null,null,null,null,null,null,null,null,null,null,null,null,null,null,null,null,{"$f":"TODAY()","v":"2022-04-28"}]
[null,"DADOS DO REQUERENTE"]
[null,"Nome/Razão Social:",{"$f":"SISPASS!A26","v":0},null,null,null,null,null,null,null,null,null,null,null,null,null,{"$f":"SISPASS!A17","v":"REGISTRO"},{"$f":"IFERROR(IF(Q21=Q8,1,IF(Q21=Q10,2,IF(Q21=Q12,3,IF(Q21=T10,4,IF(Q21=T11,5,\"\"))))),\"\")","v":""}]
[null,"CNPJ/CPF:",{"$f":"SISPASS!A28","v":0},null,null,null,null,null,null,null,null,null,null,null,null,null,{"$f":"INDUSTRIA!L18","v":0}]
[null,"Código CNAE:",{"$f":"SISPASS!E28","v":0},null,null,null,null,null,null,null,null,null,null,null,null,null,{"$f":"IF(Q22=0,\"\",Q22)","v":""}]
[null,"Nome Fantasia (caso haja):",{"$f":"SISPASS!A30","v":0},null,null,null,null,null,null,null,null,null,null,null,null,null,{"$f":"SISPASS!A34","v":0}]
[null,"Logradouro/Nº",{"$f":"SISPASS!A32","v":0},null,null,null,null,null,null,null,null,null,null,null,null,null,{"$f":"SISPASS!I34","v":0}]
[null,"Município:",{"$f":"SISPASS!E34","v":0},"CEP:","Bairro:",null,null,null,null,null,null,null,null,null,null,null,{"$f":"SISPASS!H36","v":0}]
[null,"Complemento:",{"$f":"SISPASS!A36","v":0},null,"Estado:",null,null,null,null,null,null,null,null,null,null,null,{"$f":"SISPASS!F38","v":0}]
[null,"Coordenadas Geográficas:","Latitude:",null,null,null,null,null,null,null,null,null,null,null,null,null,{"$f":"SISPASS!H38","v":0}]
[null,null,null,null,null,null,null,null,null,null,null,null,null,null,null,null,{"$f":"SISPASS!E61","v":0}]
[null,"REPRESENTANTES LEGAIS "]
[null,"Nome:",{"$f":"SISPASS!A46","v":0}]
[null,"CPF: ",{"$f":"SISPASS!A48","v":0}]
[null,"Telefone para contato:",{"$f":"SISPASS!E48","v":0}]
[null,"E-mail para contato:",{"$f":"SISPASS!A50","v":0}]
[null,"Endereço para correspondencia:",{"$f":"SISPASS!A52","v":0}]
[]
[null,"DADOS DO EMPREENDIMENTO "]
[null,"Atividade:",{"$f":"SISPASS!A14","v":"Alteração no registro de sexo para Criação Amadora de Passeriformes Silvestres Nativos"}]
[null,"CÓDIGO da Atividade:",{"$f":"SISPASS!I14","v":"80.49.250"}]
[null,"Número da Licença Anterior (quando houver):",{"$f":"SISPASS!E59","v":0}]
[null,"Descrição da(s) atividades: ",{"$f":"SISPASS!A68","v":0}]
[]
[]
[]
[null,"Número de Aves:",{"$f":"SISPASS!A61","v":0}]
[null,"Área do Empreendimento (m²) ou (HA):",{"$f":"SISPASS!E61","v":0}]
[null,"Faturamento Anual (R$):",{"$f":"SISPASS!A63","v":0}]
[null,"Numero de Funcionários:",{"$f":"SISPASS!E63","v":0}]
[null,"Área Construida (m²) OU (HA):",{"$f":"SISPASS!A65","v":0}]
[null,"Endereço da Atividade:",{"$f":"SISPASS!A73","v":0}]
[null,"Município:",{"$f":"SISPASS!E75","v":0},{"$f":"SISPASS!M74","v":"CEP: "},{"$f":"SISPASS!M75","v":"Bairro: "}]
[null,"Estado:",{"$f":"SISPASS!H77","v":0}]
[null,"Complemento:",{"$f":"SISPASS!A77","v":0}]
[null,"Coordenadas Geográficas:",{"$f":"SISPASS!M77","v":"Latitude: "},null,{"$f":"SISPASS!M78","v":"Longitude: "}]
[]
[null,"DECLARO PARA OS DEVIDOS FINS, QUE O DESENVOLVIMENTO DAS ATIVIDADES RELACIONADAS NESTE REQUERIMENTO REALIZAR-SE-Á DE ACORDO COM OS DADOS TRANSCRITOS E ANEXOS INDICADOS NO ITEM 7(SETE). PELO QUE VENHO REQUERER A SUDEMA (Superintendência de Administração do Meio Ambiente), A EXPEDIÇÃO DA RESPECTIVA LICENÇA."]
[]
[]
[]
[]
[]
[]
[null,{"$f":"Q19","v":"2022-04-28"}]
[]
[null,"_______________________________________________________________ (assinatura) (nome)"]

{"sheet":"MODELO (11)","index":12,"n_rows":63,"n_cols":19,"rows_kept":63,"cut":false,"hidden":false,"merged":[[32,1,32,3],[18,0,18,3],[19,1,19,3],[20,1,20,3],[30,1,30,3],[31,1,31,3],[10,0,10,1],[11,0,11,1],[12,0,12,1],[13,0,13,1],[14,0,14,1],[33,1,33,3],[35,0,35,3],[0,0,5,3],[36,1,36,3],[53,0,57,3],[38,1,38,3],[22,1,22,3],[23,1,23,3],[25,1,25,2],[28,0,28,3],[29,1,29,3],[37,1,37,3],[21,1,21,3],[7,0,7,3],[8,0,8,1],[9,0,9,1],[60,0,60,3],[62,0,62,3],[39,0,42,0],[39,1,42,3],[44,1,44,3],[45,1,45,3],[46,1,46,3],[47,1,47,3],[51,1,51,2],[50,1,50,3],[49,1,49,3],[43,1,43,3]]}
[null,null,null,null,null,null,null,null,null,null,null,null,null,null,null,"Autorização Ambiental - AA",{"$f":"IF(P1=$P$20,\"X\",\"\")","v":""},null,"Licença Prévia - LP"]
[null,null,null,null,null,null,null,null,null,null,null,null,null,null,null,"Dispensa de Licença",{"$f":"IF(P2=$P$20,\"X\",\"\")","v":""},null,"Licença de Instalação – LI"]
[null,null,null,null,null,null,null,null,null,null,null,null,null,null,null,"Licença por Adesão e Compromisso - LAC",{"$f":"IF(P3=$P$20,\"X\",\"\")","v":""},null,"Licença de Operação – LO"]
[null,null,null,null,null,null,null,null,null,null,null,null,null,null,null,"Licença Simplificada - LS","",null,"Licença de Alteração de Operação - LAO"]
[null,null,null,null,null,null,null,null,null,null,null,null,null,null,null,"Licença de Alteração de Instalação - LAI","",null,"Licença de Alteração de Instalação - LAI"]
[null,null,null,null,null,null,null,null,null,null,null,null,null,null,null,"Licença de Alteração de Operação - LAO","",null,"Licença Simplificada - LS"]
[null,null,null,null,null,null,null,null,null,null,null,null,null,null,1,"Licença Prévia - LP",{"$f":"IF(Q20=1,\"X\",IF(OR(Q20=4,Q20=5),\"X\",\"\"))","v":""},null,"Autorização Ambiental - AA"]
["TIPO DE SOLICITAÇÃO",null,null,null,null,null,null,null,null,null,null,null,null,null,null,"Licença de Operação de Pesquisa Mineral - LOP","",null,"Licença de Regularização de Operação – LRO"]
["[   ] Autorização Ambiental - AA",null,"[   ] Licença de Instalação – LI",null,null,null,null,null,null,null,null,null,null,null,2,"Licença de Instalação – LI",{"$f":"IF(Q20=2,\"X\",IF(OR(Q20=4,Q20=5),\"X\",\"\"))","v":""},4,"Licença Prévia - LP + Licença de Instalação – LI"]
["[   ] Dispensa de Licença",null,"[   ] Renovação de Licença de Instalação – RLI",null,null,null,null,null,null,null,null,null,null,null,null,"Renovação de Licença de Instalação – RLI","",5,"Licença Prévia - LP + Licença de Instalação – LI + Licença de Operação – LO"]
["[   ] Licença por Adesão e Compromisso - LAC",null,"[   ] Licença de Operação – LO",null,null,null,null,null,null,null,null,null,null,null,3,"Licença de Operação – LO",{"$f":"IF(Q20=3,\"X\",IF(Q20=5,\"X\",\"\"))","v":""}]
["[   ] Licença Simplificada - LS",null,"[   ] Renovação de Licença de Operação – RLO",null,null,null,null,null,null,null,null,null,null,null,null,"Renovação de Licença de Operação – RLO","X"]
["[   ] Licença de Alteração de Instalação - LAI",null,"[   ] Licença de Regularização de Operação – LRO",null,null,null,null,null,null,null,null,null,null,null,null,"Licença de Regularização de Operação – LRO",""]
["[   ] Licença de Alteração de Operação - LAO",null,"[   ] Licença de Transporte Estadual – LTE",null,null,null,null,null,null,null,null,null,null,null,null,"Licença de Transporte Estadual – LTE",""]
["[   ] Licença Prévia - LP",null,"[   ] Licença para Veículo de Publicidade ou Eventos – LVPE",null,null,null,null,null,null,null,null,null,null,null,null,"Licença para Veículo de Publicida de ou Eventos – LVPE",""]
["[   ] L. de Operação de Pesquisa Mineral - LOP",null,"[   ] Registro",null,null,null,null,null,null,null,null,null,null,null,null,"Registro",{"$f":"IF(P16=$P$20,\"X\",\"\")","v":""}]
[null,null,"[   ] Outros (especificar):",null,null,null,null,null,null,null,null,null,null,null,null,"Outros (especificar)",""]
[null,null,null,null,null,null,null,null,null,null,null,null,null,null,null,{"$f":"TODAY()","v":"2022-04-28"}]
["DADOS DO REQUERENTE"]
["Nome/Razão Social:",{"$f":"FAUNA!A26","v":0},null,null,null,null,null,null,null,null,null,null,null,null,null,{"$f":"FAUNA!A17","v":"Renovação de Licença de Operação – RLO"},{"$f":"IFERROR(IF(P20=P7,1,IF(P20=P9,2,IF(P20=P11,3,IF(P20=S9,4,IF(P20=S10,5,\"\"))))),\"\")","v":""}]
["CNPJ/CPF:",{"$f":"FAUNA!A28","v":0},null,null,null,null,null,null,null,null,null,null,null,null,null,{"$f":"MINERIO!L18","v":0}]
["Código CNAE:",{"$f":"FAUNA!E28","v":0},null,null,null,null,null,null,null,null,null,null,null,null,null,{"$f":"IF(P21=0,\"\",P21)","v":""}]
["Nome Fantasia (caso haja):",{"$f":"FAUNA!A30","v":0},null,null,null,null,null,null,null,null,null,null,null,null,null,{"$f":"FAUNA!A34","v":0}]
["Logradouro/Nº",{"$f":"FAUNA!A32","v":0},null,null,null,null,null,null,null,null,null,null,null,null,null,{"$f":"FAUNA!I34","v":0}]
["Município:",{"$f":"MINERIO!E34","v":0},"CEP:","Bairro:",null,null,null,null,null,null,null,null,null,null,null,{"$f":"FAUNA!H36","v":0}]
["Complemento:",{"$f":"FAUNA!A36","v":0},null,"Estado:",null,null,null,null,null,null,null,null,null,null,null,{"$f":"FAUNA!F38","v":0}]
["Coordenadas Geográficas:","Latitude:",null,null,null,null,null,null,null,null,null,null,null,null,null,{"$f":"FAUNA!H38","v":0}]
[null,null,null,null,null,null,null,null,null,null,null,null,null,null,null,{"$f":"MINERIOFAUNA","v":{"$error":"#NAME?"}}]
["REPRESENTANTES LEGAIS "]
["Nome:",{"$f":"FAUNA!A46","v":0}]
["CPF: ",{"$f":"FAUNA!A48","v":0}]
["Telefone para contato:",{"$f":"FAUNA!E48","v":0}]
["E-mail para contato:",{"$f":"FAUNA!A50","v":0}]
["Endereço para correspondencia:",{"$f":"FAUNA!A52","v":0}]
[]
["DADOS DO EMPREENDIMENTO "]
["Atividade:",{"$f":"FAUNA!A14","v":"Atividade de Criação e Exploração Econômica de Fauna Exótica e de Fauna Silvestre – Revenda de Animais Vivos"}]
["CÓDIGO da Atividade:",{"$f":"FAUNA!A59","v":"88.33.288"}]
["Número da Licença Anterior (quando houver):",{"$f":"FAUNA!E59","v":0}]
["Descrição da(s) atividades: ",{"$f":"FAUNA!A66","v":0}]
[]
[]
[]
["Área do Empreendimento (m²) ou (HA):",{"$f":"FAUNA!A61","v":0}]
["Faturamento Anual (R$):",{"$f":"FAUNA!E61","v":0}]
["Numero de Funcionários:",{"$f":"FAUNA!A63","v":0}]
["Área Construida (m²) OU (HA):",{"$f":"FAUNA!E63","v":0}]
["Endereço da Atividade:",{"$f":"FAUNA!A71","v":0}]
["Município:",{"$f":"FAUNA!E73","v":0},{"$f":"FAUNA!AA72","v":"CEP: "},{"$f":"FAUNA!AA73","v":"Bairro: "}]
["Estado:",{"$f":"FAUNA!H75","v":0}]
["Complemento:",{"$f":"FAUNA!A75","v":0}]
["Coordenadas Geográficas:",{"$f":"FAUNA!AA75","v":"Latitude: "},null,{"$f":"FAUNA!AA76","v":"Longitude: "}]
[]
["DECLARO PARA OS DEVIDOS FINS, QUE O DESENVOLVIMENTO DAS ATIVIDADES RELACIONADAS NESTE REQUERIMENTO REALIZAR-SE-Á DE ACORDO COM OS DADOS TRANSCRITOS E ANEXOS INDICADOS NO ITEM 7(SETE). PELO QUE VENHO REQUERER A SUDEMA (Superintendência de Administração do Meio Ambiente), A EXPEDIÇÃO DA RESPECTIVA LICENÇA."]
[]
[]
[]
[]
[]
[]
[{"$f":"P18","v":"2022-04-28"}]
[]
["_______________________________________________________________ (assinatura) (nome)"]

{"sheet":"MODELO (12)","index":13,"n_rows":62,"n_cols":19,"rows_kept":62,"cut":false,"hidden":false,"merged":[[59,0,59,3],[61,0,61,3],[43,1,43,3],[39,0,42,0],[39,1,42,3],[44,1,44,3],[45,1,45,3],[52,0,56,3],[46,1,46,3],[50,1,50,2],[49,1,49,3],[48,1,48,3],[38,1,38,3],[22,1,22,3],[23,1,23,3],[25,1,25,2],[28,0,28,3],[29,1,29,3],[30,1,30,3],[31,1,31,3],[32,1,32,3],[33,1,33,3],[35,0,35,3],[37,1,37,3],[0,0,5,3],[36,1,36,3],[21,1,21,3],[7,0,7,3],[8,0,8,1],[9,0,9,1],[10,0,10,1],[11,0,11,1],[12,0,12,1],[13,0,13,1],[14,0,14,1],[18,0,18,3],[19,1,19,3],[20,1,20,3]]}
[null,null,null,null,null,null,null,null,null,null,null,null,null,null,null,"Autorização Ambiental - AA",{"$f":"IF(P1=$P$20,\"X\",\"\")","v":""},null,"Licença Prévia - LP"]
[null,null,null,null,null,null,null,null,null,null,null,null,null,null,null,"Dispensa de Licença",{"$f":"IF(P2=$P$20,\"X\",\"\")","v":""},null,"Licença de Instalação – LI"]
[null,null,null,null,null,null,null,null,null,null,null,null,null,null,null,"Licença por Adesão e Compromisso - LAC",{"$f":"IF(P3=$P$20,\"X\",\"\")","v":""},null,"Licença de Operação – LO"]
[null,null,null,null,null,null,null,null,null,null,null,null,null,null,null,"Licença Simplificada - LS","",null,"Licença de Alteração de Operação - LAO"]
[null,null,null,null,null,null,null,null,null,null,null,null,null,null,null,"Licença de Alteração de Instalação - LAI","",null,"Licença de Alteração de Instalação - LAI"]
[null,null,null,null,null,null,null,null,null,null,null,null,null,null,null,"Licença de Alteração de Operação - LAO","",null,"Licença Simplificada - LS"]
[null,null,null,null,null,null,null,null,null,null,null,null,null,null,1,"Licença Prévia - LP",{"$f":"IF(Q20=1,\"X\",IF(OR(Q20=4,Q20=5),\"X\",\"\"))","v":""},null,"Autorização Ambiental - AA"]
["TIPO DE SOLICITAÇÃO",null,null,null,null,null,null,null,null,null,null,null,null,null,null,"Licença de Operação de Pesquisa Mineral - LOP","",null,"Licença de Regularização de Operação – LRO"]
["[   ] Autorização Ambiental - AA",null,"[   ] Licença de Instalação – LI",null,null,null,null,null,null,null,null,null,null,null,2,"Licença de Instalação – LI",{"$f":"IF(Q20=2,\"X\",IF(OR(Q20=4,Q20=5),\"X\",\"\"))","v":""},4,"Licença Prévia - LP + Licença de Instalação – LI"]
["[   ] Dispensa de Licença",null,"[   ] Renovação de Licença de Instalação – RLI",null,null,null,null,null,null,null,null,null,null,null,null,"Renovação de Licença de Instalação – RLI","",5,"Licença Prévia - LP + Licença de Instalação – LI + Licença de Operação – LO"]
["[   ] Licença por Adesão e Compromisso - LAC",null,"[   ] Licença de Operação – LO",null,null,null,null,null,null,null,null,null,null,null,3,"Licença de Operação – LO",{"$f":"IF(Q20=3,\"X\",IF(Q20=5,\"X\",\"\"))","v":""}]
["[   ] Licença Simplificada - LS",null,"[   ] Renovação de Licença de Operação – RLO",null,null,null,null,null,null,null,null,null,null,null,null,"Renovação de Licença de Operação – RLO","X"]
["[   ] Licença de Alteração de Instalação - LAI",null,"[   ] Licença de Regularização de Operação – LRO",null,null,null,null,null,null,null,null,null,null,null,null,"Licença de Regularização de Operação – LRO",""]
["[   ] Licença de Alteração de Operação - LAO",null,"[   ] Licença de Transporte Estadual – LTE",null,null,null,null,null,null,null,null,null,null,null,null,"Licença de Transporte Estadual – LTE",""]
["[   ] Licença Prévia - LP",null,"[   ] Licença para Veículo de Publicidade ou Eventos – LVPE",null,null,null,null,null,null,null,null,null,null,null,null,"Licença para Veículo de Publicida de ou Eventos – LVPE",""]
["[   ] L. de Operação de Pesquisa Mineral - LOP",null,"[   ] Registro",null,null,null,null,null,null,null,null,null,null,null,null,"Registro",{"$f":"IF(P16=$P$20,\"X\",\"\")","v":""}]
[null,null,"[   ] Outros (especificar):",null,null,null,null,null,null,null,null,null,null,null,null,"Outros (especificar)",""]
[null,null,null,null,null,null,null,null,null,null,null,null,null,null,null,{"$f":"TODAY()","v":"2022-04-28"}]
["DADOS DO REQUERENTE"]
["Nome/Razão Social:",{"$f":"LAC!A24","v":0},null,null,null,null,null,null,null,null,null,null,null,null,null,{"$f":"FAUNA!A17","v":"Renovação de Licença de Operação – RLO"},{"$f":"IFERROR(IF(P20=P7,1,IF(P20=P9,2,IF(P20=P11,3,IF(P20=S9,4,IF(P20=S10,5,\"\"))))),\"\")","v":""}]
["CNPJ/CPF:",{"$f":"LAC!A26","v":0},null,null,null,null,null,null,null,null,null,null,null,null,null,{"$f":"MINERIO!L18","v":0}]
["Código CNAE:",{"$f":"LAC!E26","v":0},null,null,null,null,null,null,null,null,null,null,null,null,null,{"$f":"IF(P21=0,\"\",P21)","v":""}]
["Nome Fantasia (caso haja):",{"$f":"LAC!A28","v":0},null,null,null,null,null,null,null,null,null,null,null,null,null,{"$f":"LAC!A32","v":0}]
["Logradouro/Nº",{"$f":"LAC!A30","v":0},null,null,null,null,null,null,null,null,null,null,null,null,null,{"$f":"LAC!I32","v":0}]
["Município:",{"$f":"LAC!E32","v":0},"CEP:","Bairro:",null,null,null,null,null,null,null,null,null,null,null,{"$f":"LAC!H34","v":0}]
["Complemento:",{"$f":"LAC!A34","v":0},null,"Estado:",null,null,null,null,null,null,null,null,null,null,null,{"$f":"LAC!F36","v":0}]
["Coordenadas Geográficas:",null,null,null,null,null,null,null,null,null,null,null,null,null,null,{"$f":"LAC!H36","v":0}]
[null,null,null,null,null,null,null,null,null,null,null,null,null,null,null,{"$f":"lacFAUNA","v":{"$error":"#NAME?"}}]
["REPRESENTANTES LEGAIS "]
["Nome:",{"$f":"LAC!A44","v":0}]
["CPF: ",{"$f":"LAC!A46","v":0}]
["Telefone para contato:",{"$f":"LAC!E46","v":0}]
["E-mail para contato:",{"$f":"LAC!A48","v":0}]
["Endereço para correspondencia:",{"$f":"LAC!A50","v":0}]
[]
["DADOS DO EMPREENDIMENTO "]
["Atividade:",{"$f":"LAC!A14","v":"Ovinocaprinocultura superior a 50 e inferior a 100 animais"}]
["CÓDIGO da Atividade:",{"$f":"LAC!A57","v":"51.42.333"}]
["Número da Licença Anterior (quando houver):",{"$f":"LAC!E57","v":0}]
["Descrição da(s) atividades: ",{"$f":"LAC!A64","v":0}]
[]
[]
[]
["Área do Empreendimento (m²):",{"$f":"LAC!A59","v":0}]
["Número de Funcionários:",{"$f":"LAC!A61","v":0}]
["Área Construida (m²):",{"$f":"LAC!E61","v":0}]
["Endereço da Atividade:",{"$f":"LAC!A69","v":0}]
["Município:",{"$f":"LAC!E71","v":0},{"$f":"LAC!L70","v":"CEP: "},{"$f":"LAC!L71","v":"Bairro: "}]
["Estado:",{"$f":"LAC!H73","v":0}]
["Complemento:",{"$f":"LAC!A73","v":0}]
["Coordenadas Geográficas:",{"$f":"LAC!L73","v":"Latitude: "},null,{"$f":"LAC!L74","v":"Longitude: "}]
[]
["DECLARO PARA OS DEVIDOS FINS, QUE O DESENVOLVIMENTO DAS ATIVIDADES RELACIONADAS NESTE REQUERIMENTO REALIZAR-SE-Á DE ACORDO COM OS DADOS TRANSCRITOS E ANEXOS INDICADOS NO ITEM 7(SETE). PELO QUE VENHO REQUERER A SUDEMA (Superintendência de Administração do Meio Ambiente), A EXPEDIÇÃO DA RESPECTIVA LICENÇA."]
[]
[]
[]
[]
[]
[]
[{"$f":"P18","v":"2022-04-28"}]
[]
["_______________________________________________________________ (assinatura) (nome)"]

{"sheet":"MODELO (13)","index":14,"n_rows":63,"n_cols":19,"rows_kept":63,"cut":false,"hidden":false,"merged":[[38,1,38,3],[22,1,22,3],[23,1,23,3],[25,1,25,2],[28,0,28,3],[31,1,31,3],[32,1,32,3],[33,1,33,3],[29,1,29,3],[30,1,30,3],[53,0,57,3],[60,0,60,3],[62,0,62,3],[39,0,42,0],[39,1,42,3],[43,1,43,3],[44,1,44,3],[45,1,45,3],[46,1,46,3],[47,1,47,3],[51,1,51,2],[50,1,50,3],[49,1,49,3],[0,0,5,3],[36,1,36,3],[35,0,35,3],[37,1,37,3],[21,1,21,3],[7,0,7,3],[8,0,8,1],[9,0,9,1],[10,0,10,1],[11,0,11,1],[12,0,12,1],[13,0,13,1],[14,0,14,1],[18,0,18,3],[19,1,19,3],[20,1,20,3]]}
[null,null,null,null,null,null,null,null,null,null,null,null,null,null,null,"Autorização Ambiental - AA",{"$f":"IF(P1=$P$20,\"X\",\"\")","v":""},null,"Licença Prévia - LP"]
[null,null,null,null,null,null,null,null,null,null,null,null,null,null,null,"Dispensa de Licença",{"$f":"IF(P2=$P$20,\"X\",\"\")","v":""},null,"Licença de Instalação – LI"]
[null,null,null,null,null,null,null,null,null,null,null,null,null,null,null,"Licença por Adesão e Compromisso - LAC",{"$f":"IF(P3=$P$20,\"X\",\"\")","v":""},null,"Licença de Operação – LO"]
[null,null,null,null,null,null,null,null,null,null,null,null,null,null,null,"Licença Simplificada - LS","",null,"Licença de Alteração de Operação - LAO"]
[null,null,null,null,null,null,null,null,null,null,null,null,null,null,null,"Licença de Alteração de Instalação - LAI","",null,"Licença de Alteração de Instalação - LAI"]
[null,null,null,null,null,null,null,null,null,null,null,null,null,null,null,"Licença de Alteração de Operação - LAO","",null,"Licença Simplificada - LS"]
[null,null,null,null,null,null,null,null,null,null,null,null,null,null,1,"Licença Prévia - LP",{"$f":"IF(Q20=1,\"X\",IF(OR(Q20=4,Q20=5),\"X\",\"\"))","v":""},null,"Autorização Ambiental - AA"]
["TIPO DE SOLICITAÇÃO",null,null,null,null,null,null,null,null,null,null,null,null,null,null,"Licença de Operação de Pesquisa Mineral - LOP","",null,"Licença de Regularização de Operação – LRO"]
["[   ] Autorização Ambiental - AA",null,"[   ] Licença de Instalação – LI",null,null,null,null,null,null,null,null,null,null,null,2,"Licença de Instalação – LI",{"$f":"IF(Q20=2,\"X\",IF(OR(Q20=4,Q20=5),\"X\",\"\"))","v":""},4,"Licença Prévia - LP + Licença de Instalação – LI"]
["[   ] Dispensa de Licença",null,"[   ] Renovação de Licença de Instalação – RLI",null,null,null,null,null,null,null,null,null,null,null,null,"Renovação de Licença de Instalação – RLI","",5,"Licença Prévia - LP + Licença de Instalação – LI + Licença de Operação – LO"]
["[   ] Licença por Adesão e Compromisso - LAC",null,"[   ] Licença de Operação – LO",null,null,null,null,null,null,null,null,null,null,null,3,"Licença de Operação – LO",{"$f":"IF(Q20=3,\"X\",IF(Q20=5,\"X\",\"\"))","v":""}]
["[   ] Licença Simplificada - LS",null,"[   ] Renovação de Licença de Operação – RLO",null,null,null,null,null,null,null,null,null,null,null,null,"Renovação de Licença de Operação – RLO","X"]
["[   ] Licença de Alteração de Instalação - LAI",null,"[   ] Licença de Regularização de Operação – LRO",null,null,null,null,null,null,null,null,null,null,null,null,"Licença de Regularização de Operação – LRO",""]
["[   ] Licença de Alteração de Operação - LAO",null,"[   ] Licença de Transporte Estadual – LTE",null,null,null,null,null,null,null,null,null,null,null,null,"Licença de Transporte Estadual – LTE",""]
["[   ] Licença Prévia - LP",null,"[   ] Licença para Veículo de Publicidade ou Eventos – LVPE",null,null,null,null,null,null,null,null,null,null,null,null,"Licença para Veículo de Publicida de ou Eventos – LVPE",""]
["[   ] L. de Operação de Pesquisa Mineral - LOP",null,"[   ] Registro",null,null,null,null,null,null,null,null,null,null,null,null,"Registro",{"$f":"IF(P16=$P$20,\"X\",\"\")","v":""}]
[null,null,"[   ] Outros (especificar):",null,null,null,null,null,null,null,null,null,null,null,null,"Outros (especificar)",""]
[null,null,null,null,null,null,null,null,null,null,null,null,null,null,null,{"$f":"TODAY()","v":"2022-04-28"}]
["DADOS DO REQUERENTE"]
["Nome/Razão Social:",{"$f":"LS!A24","v":0},null,null,null,null,null,null,null,null,null,null,null,null,null,{"$f":"FAUNA!A17","v":"Renovação de Licença de Operação – RLO"},{"$f":"IFERROR(IF(P20=P7,1,IF(P20=P9,2,IF(P20=P11,3,IF(P20=S9,4,IF(P20=S10,5,\"\"))))),\"\")","v":""}]
["CNPJ/CPF:",{"$f":"LS!A26","v":0},null,null,null,null,null,null,null,null,null,null,null,null,null,{"$f":"MINERIO!L18","v":0}]
["Código CNAE:",{"$f":"LS!E26","v":0},null,null,null,null,null,null,null,null,null,null,null,null,null,{"$f":"IF(P21=0,\"\",P21)","v":""}]
["Nome Fantasia (caso haja):",{"$f":"LS!A28","v":0},null,null,null,null,null,null,null,null,null,null,null,null,null,{"$f":"LS!A32","v":0}]
["Logradouro/Nº",{"$f":"LS!A30","v":0},null,null,null,null,null,null,null,null,null,null,null,null,null,{"$f":"LS!I32","v":0}]
["Município:",{"$f":"LS!E32","v":0},"CEP:","Bairro:",null,null,null,null,null,null,null,null,null,null,null,{"$f":"LS!H34","v":0}]
["Complemento:",{"$f":"LS!A34","v":0},null,"Estado:",null,null,null,null,null,null,null,null,null,null,null,{"$f":"LS!F36","v":0}]
["Coordenadas Geográficas:",null,null,null,null,null,null,null,null,null,null,null,null,null,null,{"$f":"LS!H36","v":0}]
[null,null,null,null,null,null,null,null,null,null,null,null,null,null,null,{"$f":"lacFAUNA","v":{"$error":"#NAME?"}}]
["REPRESENTANTES LEGAIS "]
["Nome:",{"$f":"LS!A44","v":0}]
["CPF: ",{"$f":"LS!A46","v":0}]
["Telefone para contato:",{"$f":"LS!E46","v":0}]
["E-mail para contato:",{"$f":"LS!A48","v":0}]
["Endereço para correspondencia:",{"$f":"LS!A50","v":0}]
[]
["DADOS DO EMPREENDIMENTO "]
["Atividade:",{"$f":"LS!A14","v":"Ovinocaprinocultura superior a 100 e inferior a 200 animais"}]
["CÓDIGO da Atividade:",{"$f":"LS!A57","v":"49.65.497"}]
["Número da Licença Anterior (quando houver):",{"$f":"LS!E57","v":0}]
["Descrição da(s) atividades: ",{"$f":"LS!A64","v":0}]
[]
[]
[]
["Área do Empreendimento (m²):",{"$f":"LS!A59","v":0}]
["Faturamento Anual (R$):",{"$f":"LS!E59","v":0}]
["Número de Funcionários:",{"$f":"LS!A61","v":0}]
["Área Construida (m²):",{"$f":"LS!E61","v":0}]
["Endereço da Atividade:",{"$f":"LS!A69","v":0}]
["Município:",{"$f":"LS!E71","v":0},{"$f":"LS!L70","v":"CEP: "},{"$f":"LS!L71","v":"Bairro: "}]
["Estado:",{"$f":"DISPENSA!H73","v":0}]
["Complemento:",{"$f":"LS!A73","v":0}]
["Coordenadas Geográficas:",{"$f":"LS!L73","v":"Latitude: "},null,{"$f":"LS!L74","v":"Longitude: "}]
[]
["DECLARO PARA OS DEVIDOS FINS, QUE O DESENVOLVIMENTO DAS ATIVIDADES RELACIONADAS NESTE REQUERIMENTO REALIZAR-SE-Á DE ACORDO COM OS DADOS TRANSCRITOS E ANEXOS INDICADOS NO ITEM 7(SETE). PELO QUE VENHO REQUERER A SUDEMA (Superintendência de Administração do Meio Ambiente), A EXPEDIÇÃO DA RESPECTIVA LICENÇA."]
[]
[]
[]
[]
[]
[]
[{"$f":"P18","v":"2022-04-28"}]
[]
["_______________________________________________________________ (assinatura) (nome)"]

{"sheet":"MODELO (14)","index":15,"n_rows":62,"n_cols":19,"rows_kept":62,"cut":false,"hidden":false,"merged":[[59,0,59,3],[61,0,61,3],[39,0,42,0],[39,1,42,3],[43,1,43,3],[44,1,44,3],[45,1,45,3],[46,1,46,3],[50,1,50,2],[49,1,49,3],[48,1,48,3],[33,1,33,3],[35,0,35,3],[0,0,5,3],[36,1,36,4],[52,0,56,3],[38,1,38,3],[22,1,22,3],[23,1,23,3],[25,1,25,2],[28,0,28,3],[29,1,29,3],[37,1,37,3],[21,1,21,3],[7,0,7,3],[8,0,8,1],[9,0,9,1],[10,0,10,1],[11,0,11,1],[12,0,12,1],[13,0,13,1],[14,0,14,1],[32,1,32,3],[18,0,18,3],[19,1,19,3],[20,1,20,3],[30,1,30,3],[31,1,31,3]]}
[null,null,null,null,null,null,null,null,null,null,null,null,null,null,null,"Autorização Ambiental - AA",{"$f":"IF(P1=$P$20,\"X\",\"\")","v":""},null,"Licença Prévia - LP"]
[null,null,null,null,null,null,null,null,null,null,null,null,null,null,null,"Dispensa de Licença",{"$f":"IF(P2=$P$20,\"X\",\"\")","v":""},null,"Licença de Instalação – LI"]
[null,null,null,null,null,null,null,null,null,null,null,null,null,null,null,"Licença por Adesão e Compromisso - LAC",{"$f":"IF(P3=$P$20,\"X\",\"\")","v":""},null,"Licença de Operação – LO"]
[null,null,null,null,null,null,null,null,null,null,null,null,null,null,null,"Licença Simplificada - LS","",null,"Licença de Alteração de Operação - LAO"]
[null,null,null,null,null,null,null,null,null,null,null,null,null,null,null,"Licença de Alteração de Instalação - LAI","",null,"Licença de Alteração de Instalação - LAI"]
[null,null,null,null,null,null,null,null,null,null,null,null,null,null,null,"Licença de Alteração de Operação - LAO","",null,"Licença Simplificada - LS"]
[null,null,null,null,null,null,null,null,null,null,null,null,null,null,1,"Licença Prévia - LP",{"$f":"IF(Q20=1,\"X\",IF(OR(Q20=4,Q20=5),\"X\",\"\"))","v":""},null,"Autorização Ambiental - AA"]
["TIPO DE SOLICITAÇÃO",null,null,null,null,null,null,null,null,null,null,null,null,null,null,"Licença de Operação de Pesquisa Mineral - LOP","",null,"Licença de Regularização de Operação – LRO"]
["[   ] Autorização Ambiental - AA",null,"[   ] Licença de Instalação – LI",null,null,null,null,null,null,null,null,null,null,null,2,"Licença de Instalação – LI",{"$f":"IF(Q20=2,\"X\",IF(OR(Q20=4,Q20=5),\"X\",\"\"))","v":""},4,"Licença Prévia - LP + Licença de Instalação – LI"]
["[   ] Dispensa de Licença",null,"[   ] Renovação de Licença de Instalação – RLI",null,null,null,null,null,null,null,null,null,null,null,null,"Renovação de Licença de Instalação – RLI","",5,"Licença Prévia - LP + Licença de Instalação – LI + Licença de Operação – LO"]
["[   ] Licença por Adesão e Compromisso - LAC",null,"[   ] Licença de Operação – LO",null,null,null,null,null,null,null,null,null,null,null,3,"Licença de Operação – LO",{"$f":"IF(Q20=3,\"X\",IF(Q20=5,\"X\",\"\"))","v":""}]
["[   ] Licença Simplificada - LS",null,"[   ] Renovação de Licença de Operação – RLO",null,null,null,null,null,null,null,null,null,null,null,null,"Renovação de Licença de Operação – RLO","X"]
["[   ] Licença de Alteração de Instalação - LAI",null,"[   ] Licença de Regularização de Operação – LRO",null,null,null,null,null,null,null,null,null,null,null,null,"Licença de Regularização de Operação – LRO",""]
["[   ] Licença de Alteração de Operação - LAO",null,"[   ] Licença de Transporte Estadual – LTE",null,null,null,null,null,null,null,null,null,null,null,null,"Licença de Transporte Estadual – LTE",""]
["[   ] Licença Prévia - LP",null,"[   ] Licença para Veículo de Publicidade ou Eventos – LVPE",null,null,null,null,null,null,null,null,null,null,null,null,"Licença para Veículo de Publicida de ou Eventos – LVPE",""]
["[   ] L. de Operação de Pesquisa Mineral - LOP",null,"[   ] Registro",null,null,null,null,null,null,null,null,null,null,null,null,"Registro",{"$f":"IF(P16=$P$20,\"X\",\"\")","v":""}]
[null,null,"[   ] Outros (especificar):",null,null,null,null,null,null,null,null,null,null,null,null,"Outros (especificar)",""]
[null,null,null,null,null,null,null,null,null,null,null,null,null,null,null,{"$f":"TODAY()","v":"2022-04-28"}]
["DADOS DO REQUERENTE"]
["Nome/Razão Social:",{"$f":"DISPENSA!A24","v":0},null,null,null,null,null,null,null,null,null,null,null,null,null,{"$f":"FAUNA!A17","v":"Renovação de Licença de Operação – RLO"},{"$f":"IFERROR(IF(P20=P7,1,IF(P20=P9,2,IF(P20=P11,3,IF(P20=S9,4,IF(P20=S10,5,\"\"))))),\"\")","v":""}]
["CNPJ/CPF:",{"$f":"DISPENSA!A26","v":0},null,null,null,null,null,null,null,null,null,null,null,null,null,{"$f":"MINERIO!L18","v":0}]
["Código CNAE:",{"$f":"DISPENSA!E26","v":0},null,null,null,null,null,null,null,null,null,null,null,null,null,{"$f":"IF(P21=0,\"\",P21)","v":""}]
["Nome Fantasia (caso haja):",{"$f":"DISPENSA!A28","v":0},null,null,null,null,null,null,null,null,null,null,null,null,null,{"$f":"DISPENSA!A32","v":0}]
["Logradouro/Nº",{"$f":"DISPENSA!A30","v":0},null,null,null,null,null,null,null,null,null,null,null,null,null,{"$f":"DISPENSA!I32","v":0}]
["Município:",{"$f":"DISPENSA!E32","v":0},"CEP:","Bairro:",null,null,null,null,null,null,null,null,null,null,null,{"$f":"DISPENSA!H34","v":0}]
["Complemento:",{"$f":"DISPENSA!A34","v":0},null,"Estado:",null,null,null,null,null,null,null,null,null,null,null,{"$f":"DISPENSA!F36","v":0}]
["Coordenadas Geográficas:","Latitude:",null,null,null,null,null,null,null,null,null,null,null,null,null,{"$f":"DISPENSA!H36","v":0}]
[null,null,null,null,null,null,null,null,null,null,null,null,null,null,null,{"$f":"lacFAUNA","v":{"$error":"#NAME?"}}]
["REPRESENTANTES LEGAIS "]
["Nome:",{"$f":"DISPENSA!A44","v":0}]
["CPF: ",{"$f":"DISPENSA!A46","v":0}]
["Telefone para contato:",{"$f":"DISPENSA!E46","v":0}]
["E-mail para contato:",{"$f":"DISPENSA!A48","v":0}]
["Endereço para correspondencia:",{"$f":"DISPENSA!A50","v":0}]
[]
["DADOS DO EMPREENDIMENTO "]
["Atividade:",{"$f":"DISPENSA!A14","v":"Comércio varejista de artigos de colchoaria com área útil até de 50 m²"}]
["CÓDIGO da Atividade:",{"$f":"DISPENSA!A57","v":50413}]
["Número da Licença Anterior (quando houver):",{"$f":"DISPENSA!E57","v":0}]
["Descrição da(s) atividades: ",{"$f":"DISPENSA!A64","v":0}]
[]
[]
[]
["Área do Empreendimento (m²):",{"$f":"DISPENSA!A59","v":0}]
["Numero de Funcionários:",{"$f":"DISPENSA!A61","v":0}]
["Área Construida (m²):",{"$f":"DISPENSA!E61","v":0}]
["Endereço da Atividade:",{"$f":"DISPENSA!A69","v":0}]
["Município:",{"$f":"DISPENSA!E71","v":0},{"$f":"DISPENSA!L70","v":"CEP: "},{"$f":"DISPENSA!L71","v":"Bairro: "}]
["Estado:",{"$f":"DISPENSA!H73","v":0}]
["Complemento:",{"$f":"DISPENSA!A73","v":0}]
["Coordenadas Geográficas:",{"$f":"DISPENSA!L73","v":"Latitude: "},null,{"$f":"DISPENSA!L74","v":"Longitude: "}]
[]
["DECLARO PARA OS DEVIDOS FINS, QUE O DESENVOLVIMENTO DAS ATIVIDADES RELACIONADAS NESTE REQUERIMENTO REALIZAR-SE-Á DE ACORDO COM OS DADOS TRANSCRITOS E ANEXOS INDICADOS NO ITEM 7(SETE). PELO QUE VENHO REQUERER A SUDEMA (Superintendência de Administração do Meio Ambiente), A EXPEDIÇÃO DA RESPECTIVA LICENÇA."]
[]
[]
[]
[]
[]
[]
[{"$f":"P18","v":"2022-04-28"}]
[]
["_______________________________________________________________ (assinatura) (nome)"]

{"sheet":"ATVFLORESTAIS","index":16,"n_rows":80,"n_cols":27,"rows_kept":80,"cut":false,"hidden":false,"merged":[[19,0,19,9],[18,0,18,3],[88,0,88,2],[79,0,83,9],[61,0,61,2],[62,0,62,9],[65,0,68,9],[58,4,58,9],[57,0,57,2],[59,7,59,9],[60,7,60,9],[64,0,64,2],[59,0,59,2],[60,0,60,2],[60,4,60,5],[59,4,59,5],[58,0,58,2],[57,4,57,7],[12,0,12,1],[13,0,13,6],[12,8,12,9],[13,8,13,9],[15,0,15,1],[29,0,29,9],[28,0,28,3],[30,0,30,3],[31,0,31,9],[16,0,16,6],[24,0,24,1],[25,0,25,9],[26,0,26,1],[27,0,27,2],[27,4,27,9],[36,7,36,9],[37,7,37,9],[32,8,32,9],[33,8,33,9],[37,0,37,4],[34,0,34,3],[35,0,35,5],[34,7,34,8],[35,7,35,9],[32,0,32,1],[33,0,33,2],[32,4,32,5],[33,4,33,6],[48,0,48,1],[49,0,49,9],[50,0,50,3],[51,0,51,9],[44,0,44,1],[45,0,45,9],[46,0,46,1],[47,0,47,2],[46,4,46,5],[47,4,47,5],[69,0,69,3],[70,0,70,9],[71,0,71,1],[71,4,71,5],[71,8,71,9],[72,0,72,2],[72,4,72,6],[72,8,72,9],[73,0,73,3],[73,7,73,8],[74,0,74,5],[74,7,74,9],[75,7,75,9],[76,0,76,4],[76,7,76,9]]}
[null,null,null,null,null,null,null,null,null,null,null,null,null,null,null,null,null,null,null,null,null,"ATIVIDADES FLORESTAIS","CÓDIGO","ESPECIFICAÇÕES",null,null,"Licenças"]
[null,null,null,null,null,null,null,null,null,null,null,null,null,null,null,null,null,null,null,null,null,"Autorização Para Uso Alternativo do Solo (AUS)","08.49.100",null,null,null,"Autorização Ambiental - AA"]
[null,null,null,null,null,null,null,null,null,null,null,null,null,null,null,null,null,null,null,null,null,"Autorização Para uso do fogo Controlado","08.49.200",null,null,null,"REGISTRO"]
[null,null,null,null,null,null,null,null,null,null,null,null,null,null,null,null,null,null,null,null,null,"Autorização exploração de planos de manejo florestais (PMFS)","08.49.300",null,null,null,"Outros (especificar)"]
[null,null,null,null,null,null,null,null,null,null,null,null,null,null,null,null,null,null,null,null,null,"Autorização de exploração de plano operacional anual (POA)","08.49.400"]
[null,null,null,null,null,null,null,null,null,null,null,null,null,null,null,null,null,null,null,null,null,"Autorização de cortes de Arvores isoladas (CAI)","08.49.500","Unidade (árvores):"]
[null,null,null,null,null,null,null,null,null,null,null,null,null,null,null,null,null,null,null,null,null,"Autorização para exploração de floresta plantada","08.49.600"]
[null,null,null,null,null,null,null,null,null,null,null,null,null,null,null,null,null,null,null,null,null,"Cadastro de Consumidores de Produtos de Origem Florestal","08.49.900","Consumo (M²):"]
[]
[]
[null,null,null,null,null,null,null,null,null,null,null,null,null,null,null,null,null,null,null,null,null,"Autorização para Plano de Recuperação de Área Degradada (PRAD)","08.49.700"]
[null,null,null,null,null,null,null,null,null,null,null,null,null,null,null,null,null,null,null,null,null,"Autorização para Plano   de   Recuperação de Área   de Preservação Permanente (PRAD)","08.49.800"]
["Escolha a Atividade:",null,null,null,null,null,null,null,"Código da Atividade:",null,null,null,null,null,null,null,null,null,null,null,null,"Registro - Homologação de Pátio no sistema de Documento de Origem Florestal (DOF)","08.49.950"]
["Autorização para Plano   de   Recuperação de Área   de Preservação Permanente (PRAD)",null,null,null,null,null,null,null,{"$f":"VLOOKUP(A14,V11:W13,2,0)","v":"08.49.800"},null,null,{"$f":"VLOOKUP(I14,Tabela1[[CÓDIGO]:[ESPECIFICAÇÕES]],2,0)","v":0}]
[null,null,null,null,null,null,null,null,null,null,null,{"$f":"IF(A17=MODELO!P17,ATVFLORESTAIS!A20,\"\")","v":""}]
["Escolha a Licença:"]
["Autorização Ambiental - AA"]
[]
["Se OUTROS, Especifique a Licença:"]
[]
[]
[]
[]
[]
["Nome/ Razão Social:"]
[]
["CPF/CNPJ:",null,null,null,"Código CNAE:"]
[]
["Nome Fantasia (quando houver):"]
[]
["Logradouro/ Nº:"]
[]
["Bairro:",null,null,null,"Município:",null,null,null,"CEP:"]
[null,null,null,null,"BREJO DA CRUZ"]
["Complemento:",null,null,null,null,null,null,"Estado:"]
[]
[null,null,null,null,null,"Latitude:",null,"Longitude:"]
["Coordenadas Geograficas:"]
[]
[]
[]
[]
[]
[]
["Nome:"]
[]
["CPF/CNPJ:",null,null,null,"Telefone para Contato:"]
[]
["E-mail para Contato:"]
[]
["Endereço para Correspondência:"]
[]
[]
[]
[]
[]
[]
["CÓDIGO da Atividade:",null,null,null,"Número da Licença Anterior (quando houver):"]
[{"$f":"I14","v":"08.49.800"}]
["Área do Empreendimento (Ha):",null,null,null,"Faturamento Anual (R$):",null,null,"Nº de Funcionários:"]
[]
[{"$f":"IF(L14=0,\"\",L14)","v":""}]
[]
[]
["Descrição da Atividade:"]
[]
[]
[]
[]
["Endereço da Atividade:"]
[]
["Bairro:",null,null,null,"Município:",null,null,null,"CEP:"]
[]
["Complemento:",null,null,null,null,null,null,"Estado:"]
[]
[null,null,null,null,null,"Latitude:",null,"Longitude:",null,null,null,null,{"$f":"CONCATENATE(I72,\" \",I73)","v":"CEP: "}]
["Coordenadas Geograficas:",null,null,null,null,null,null,null,null,null,null,null,{"$f":"CONCATENATE(A72,\" \",A73)","v":"Bairro: "}]
[null,null,null,null,null,null,null,null,null,null,null,null,{"$f":"CONCATENATE(H74,\" \",H75)","v":"Estado: "}]
[null,null,null,null,null,null,null,null,null,null,null,null,{"$f":"CONCATENATE(F76,\" \",F77)","v":"Latitude: "}]
["DECLARO PARA OS DEVIDOS FINS, QUE O DESENVOLVIMENTO DAS ATIVIDADES RELACIONADAS NESTE REQUERIMENTO REALIZAR-SE-Á DE ACORDO COM OS DADOS TRANSCRITOS E ANEXOS INDICADOS NO ITEM 7(SETE). PELO QUE VENHO REQUERER A SUDEMA (Superintendência de Administração do Meio Ambiente), A EXPEDIÇÃO DA RESPECTIVA LICENÇA.",null,null,null,null,null,null,null,null,null,null,null,{"$f":"CONCATENATE(H76,\" \",H77)","v":"Longitude: "}]

{"sheet":"ATVFLORESTAIS (2)","index":17,"n_rows":174,"n_cols":24,"rows_kept":174,"cut":false,"hidden":false,"merged":[[47,11,47,16],[170,1,171,19],[173,1,175,19],[160,1,160,2],[160,3,160,14],[162,1,162,3],[162,4,166,7],[143,1,151,18],[155,1,155,4],[155,5,155,18],[157,2,157,8],[157,11,157,14],[141,1,141,9],[153,1,153,6],[136,1,136,2],[136,3,136,6],[136,8,136,9],[136,10,136,13],[138,1,138,2],[138,3,138,8],[129,16,129,18],[132,1,132,9],[134,1,134,2],[134,3,134,9],[134,12,134,18],[125,1,125,7],[127,1,127,2],[127,3,127,18],[129,7,129,8],[129,2,129,5],[129,9,129,10],[129,11,129,13],[114,1,114,4],[114,6,114,9],[117,1,117,7],[118,2,122,18],[110,1,110,2],[111,1,111,4],[112,1,112,4],[113,1,113,4],[111,6,111,9],[112,6,112,9],[113,6,113,9],[110,6,110,9],[101,13,101,18],[103,1,103,7],[105,1,105,3],[105,4,105,18],[108,1,108,7],[99,13,99,15],[99,17,99,18],[101,1,101,2],[101,3,101,5],[101,7,101,10],[101,11,101,12],[97,1,97,2],[97,3,97,10],[99,1,99,2],[99,3,99,10],[99,11,99,12],[91,1,91,5],[93,1,93,4],[93,5,93,18],[95,1,95,3],[95,6,95,7],[95,9,95,10],[74,1,74,2],[74,3,74,7],[76,1,76,7],[78,1,78,3],[78,4,78,18],[70,17,70,18],[72,5,72,6],[72,2,72,4],[72,7,72,9],[72,11,72,13],[72,14,72,15],[72,16,72,18],[64,12,64,15],[65,12,65,15],[66,12,66,15],[67,12,67,15],[68,12,68,15],[70,1,70,2],[70,3,70,9],[70,10,70,11],[70,12,70,15],[64,3,64,6],[65,3,65,6],[64,7,64,11],[65,7,65,11],[63,7,63,11],[67,8,67,11],[66,7,66,11],[68,7,68,11],[60,10,60,11],[60,12,60,15],[60,16,60,18],[62,1,62,5],[63,1,63,2],[63,3,63,6],[63,12,63,15],[64,1,64,2],[65,1,65,2],[58,11,58,12],[58,13,58,14],[58,15,58,16],[58,17,58,18],[60,1,60,2],[60,3,60,6],[60,7,60,9],[54,4,54,18],[56,6,56,7],[56,9,56,10],[58,1,58,2],[58,3,58,6],[58,7,58,8],[58,9,58,10],[52,1,52,5],[54,1,54,3],[56,1,56,3],[40,11,40,16],[41,11,41,16],[42,11,42,16],[43,11,43,16],[48,11,48,13],[48,14,48,18],[44,2,44,6],[45,2,45,6],[46,2,46,7],[43,2,43,7],[47,2,47,6],[48,2,48,6],[49,2,49,6],[50,2,50,6],[40,2,40,6],[41,2,41,8],[42,2,42,7],[44,11,44,16],[45,11,45,16],[46,11,46,16],[34,3,34,6],[34,8,34,9],[34,10,34,13],[34,16,34,18],[37,1,37,5],[39,2,39,6],[39,11,39,16],[28,5,28,18],[30,1,30,3],[30,4,30,11],[32,1,32,4],[32,5,32,18],[34,1,34,2],[28,1,28,4],[20,8,20,11],[23,2,23,6],[18,14,18,19],[25,1,26,19],[27,1,27,3],[17,1,17,3],[18,1,18,3],[19,2,19,3],[19,4,19,6],[19,7,19,10],[20,2,20,5],[20,6,20,7],[15,1,16,19],[6,15,6,16],[6,17,6,19],[8,15,8,16],[8,17,8,19],[10,15,10,16],[10,17,10,19],[6,1,10,5],[6,6,10,14],[11,1,14,19]]}
[]
[]
[]
[]
[]
[]
[null,null,null,null,null,null,"REQUERIMENTO ATIVIDADE FLORESTAL - RAF",null,null,null,null,null,null,null,null,"Processo nº:",null,"_______________________"]
[]
[null,null,null,null,null,null,null,null,null,null,null,null,null,null,null,"Data de formação:",null,"_____/______/________"]
[]
[null,null,null,null,null,null,null,null,null,null,null,null,null,null,null,"Assinatura:",null,"_________________________"]
[null,"Atenção Requerente\nOs PRAZOS para análise conforme Regulamento da Legislação Ambiental Estadual Vigente : Autorizações, Plano de Manejo Florestal, provação do PAS, Certificados e Registros, entre outros são de 90"]
[]
[]
[]
[null,"USO EXCLUSIVO DA SUDEMA"]
[]
[null,"MUNICÍPIO HABILITADO?: ",null,null,null,"(     ) SIM",null,"(     ) NÃO"]
[null,"Área total:",null,null,null,null,null,null,null,null,null,null,null,null,"Conferência pela DIAT"]
[null,null,"(     ) até 20 Ha        ",null,"(     ) acima de 20 a 500 Ha         ",null,null,"(     ) acima de 500 a 2.000 Ha "]
[null,null,"(     ) de 2.000 a 5.000 Ha       ",null,null,null,"(     )  acima de 5.000 Ha     ",null,"(     ) Projetos/ Associações"]
[]
[]
[null,null,"TAXA: R$ _______________________________________________"]
[]
[null,"PREENCHIMENTO PELO INTERESSADO"]
[]
[null,"01. Requerente:"]
[null,"Razão Social / Pessoa Física:"]
[]
[null,"  CNPJ / CPF:"]
[]
[null,"Endereço do Requerente:"]
[]
[null,"Bairro:",null,null,null,null,null,null,"Município:",null,null,null,null,null,null,"CEP:"]
[]
[]
[null,"02. Requerimento para:"]
[]
[null,"(       )","Autorização para Uso Alternativo do Solo (Supressão Vegetal )",null,null,null,null,null,null,null,"(       )","Análise de Plano de Auto Suprimento (PAS)"]
[null,"(       )","Autorização para Exploração Florestal (Manejo Florestal)",null,null,null,null,null,null,null,"(       )","Cadastro de Consumidores Florestais   (P.Física)"]
[null,"(       )","Autorização para Implantação de Florestas de Produção (Reflorestamento)",null,null,null,null,null,null,null,"(       )","Cadastro de Consumidores Florestais   (P. Jurídica)"]
[null,"(       )","Autorização para Uso do Fogo Controlado",null,null,null,null,null,null,null,"(       )","Prorrogação de Prazo de Validade"]
[null,"(       )","Autorização para o Plano de Corte Racional",null,null,null,null,null,null,null,"(       )","Transferência / Alteração / Renovação"]
[null,"(       )","Autorização para Transporte Florestal – ATPF-PB",null,null,null,null,null,null,null,"(       )","Autorização de exploração de plano operacional anual (POA)"]
[null,null,"Volume (st)______________ Volume (mdc) ________________",null,null,null,null,null,null,null,"(       )","Autorização de cortes de Arvores isoladas (CAI)"]
[null,"(       )","Autorização para Limpeza Agricola/Agropastoril/Silvipastoril",null,null,null,null,null,null,null,"(       )","Autorização para exploração de floresta plantada"]
[null,"(       )","Vistoria Prévia para Averbação de Reserva Legal",null,null,null,null,null,null,null,"(       )","Cadastro de Consumidores de Produtos de Origem Florestal"]
[null,"(       )","Análise de Plano de Manejo Florestal Sustentado",null,null,null,null,null,null,null,"(       )","Outros /Especificar:"]
[null,"(       )","Analise de Plano de Manejo Agroflorestal"]
[null,"(       )","Levantamento Circunstanciado"]
[]
[null,"03. Propriedade:"]
[]
[null,"Nome da Propriedade:"]
[]
[null,"Coordenada da sede:",null,null,"UTM:","X:",null,null,"Y:"]
[]
[null,"Registro:",null,null,null,null,null,"Matricula:",null,null,null,"Livro:",null,null,null,"Folha:"]
[]
[null,"INCRA:",null,null,null,null,null,"Área Total(Há):",null,null,null,null,"Área para supressão vegetal(Ha): "]
[]
[null,"Uso atual da Propriedade(Ha): "]
[null,"CULTURA:",null,null,null,null,null,"SERVIDÃO FLORESTAL:"]
[null,"PASTAGEM:",null,null,null,null,null,"PRESERVAÇÃO PERMANENTE:"]
[null,"POUSIO:",null,null,null,null,null,"INFRA-ESTRUTURA:"]
[null,null,null,null,null,null,null,"RESERVA LEGAL:"]
[null,null,null,null,null,null,null,null,"MANEJO FLORESTAL:"]
[null,null,null,null,null,null,null,"OUTROS:"]
[]
[null,"Localidade: ",null,null,null,null,null,null,null,null,"Município:",null,null,null,null,null,"CEP:"]
[]
[null,"UF: ",null,null,null,"Telefone:",null,null,null,null,"FAX:",null,null,null,"E-mail:"]
[]
[null,"E-mail:"]
[]
[null,"Atividade situada em Unidade de Conservação?   ",null,null,null,null,null,null,"(       )","SIM","(       )","NÃO"]
[]
[null,"Nome da UC:"]
[]
[]
[]
[]
[]
[]
[]
[]
[]
[]
[]
[]
[null,"04. Empreendimento:"]
[]
[null,"Nome do Empreendimento:"]
[]
[null,"Coordenadas:",null,null,"UTM:","X:",null,null,"Y:"]
[]
[null,"Atividade:"]
[]
[null,"Endereço:",null,null,null,null,null,null,null,null,null,"Bairro:",null,null,null,null,"CEP:"]
[]
[null,"Município:",null,null,null,null,"Telefone:",null,null,null,null,"E-mail:"]
[]
[null,"Atividade situada em Unidade de Conservação?   ",null,null,null,null,null,null,"(       )","SIM","(       )","NÃO"]
[]
[null,"Nome da UC:"]
[]
[]
[null,"05. O Empreendimento possui Autorização anterior? ",null,null,null,null,null,null,"(       )","SIM","(       )","NÃO"]
[]
[null,"NÚMERO",null,null,null,null,"VALIDADE"]
[]
[]
[]
[]
[]
[]
[null,"06. Descrição do Empreendimento: "]
[]
[]
[]
[]
[]
[]
[]
[null,"07. Endereço para Correspondência: "]
[]
[null,"Endereço:"]
[]
[null,"Bairro:",null,null,null,null,"CEP:",null,null,"Município:",null,null,null,null,null,"UF:"]
[]
[]
[null,"08. Contato para Assuntos Relacionados ao Requerimento:"]
[]
[null,"Nome:",null,null,null,null,null,null,null,null,null,"Cargo:"]
[]
[null,"Telefone:",null,null,null,null,null,null,"Celular:"]
[]
[null,"E-mail:"]
[]
[]
[null,"09. Declaração do Representante Legal:"]
[]
[null,"Declaro que são verdadeiras as informações prestadas pelo(a) ora requerente neste processo de atividade florestal, o que caso contrário incorre a parte interessada em flagrante infração ao que determina a Lei Estadual No 6.002/94 e o seu Regulamento aprovado pelo Decreto Estadual No 23.835/02 e também a Lei Federal Nº 9.605/98 e seu Regulamento aprovado pelo Decreto Federal Nº 3.179/99 (LEI DE CRIMES AMBIENTAIS). A documentação e as informações complementares que vierem a ser exigida pela SUDEMA serão fornecidas nos prazos estabelecidos sob pena de perempção do processo e perda de qualquer direito sobre os pagamentos realizados.\n\nPara fins de acompanhamento deste processo autorizamos o contato com o profissional indicado no campo 8 deste Requerimento."]
[]
[]
[]
[]
[]
[]
[]
[]
[]
[null,"João Pessoa, 04 de abril de 2022",null,null,null,null,null,null,null,null,null,null,null,null,null,null,null,null,null,null,null,null,null,{"$f":"TODAY()","v":"2022-04-28"}]
[null,null,null,null,null,null,null,null,null,null,null,null,null,null,null,null,null,null,null,null,null,null,null,{"$f":"TEXT(X154,\"dd\")","v":"28"}]
[null,"Nome do responsável legal:",null,null,null,null,null,null,null,null,null,null,null,null,null,null,null,null,null,null,null,null,null,{"$f":"TEXT(X154,\"mmmm\")","v":"abril"}]
[null,null,null,null,null,null,null,null,null,null,null,null,null,null,null,null,null,null,null,null,null,null,null,{"$f":"TEXT(X154,\"aaaa\")","v":"2022"}]
[null,"Cargo:",null,null,null,null,null,null,null,null,"CPF:"]
[null,null,null,null,null,null,null,null,null,null,null,null,null,null,null,null,null,null,null,null,null,null,null,{"$f":"CONCATENATE(\"João Pessoa, \",X155,\" de \",X156,\" de \",X157)","v":"João Pessoa, 28 de abril de 2022"}]
[]
[null,"Assinatura:",null,"_______________________________________________________________________________________________________________________"]
[]
[null,"Carimbo da empresa:"]
[]
[]
[]
[]
[]
[]
[]
[null,"Os atos processuais praticados só poderão ser efetivados pelo Requerente ou por seu Representante Legal, mediante apresentação de documentação comprobatória."]
[]
[]
[null,"Este REQUERIMENTO não tem caráter autorizatório"]

{"sheet":"AGROPECUÁRIA","index":18,"n_rows":79,"n_cols":28,"rows_kept":79,"cut":false,"hidden":false,"merged":[[27,0,27,2],[27,4,27,9],[12,0,12,1],[12,8,12,9],[13,0,13,6],[13,8,13,9],[15,0,15,1],[16,0,16,6],[18,0,18,3],[19,0,19,9],[24,0,24,1],[25,0,25,9],[26,0,26,1],[35,0,35,5],[35,7,35,9],[28,0,28,3],[29,0,29,9],[30,0,30,3],[31,0,31,9],[32,0,32,1],[32,4,32,5],[32,8,32,9],[33,0,33,2],[33,4,33,6],[33,8,33,9],[34,0,34,3],[34,7,34,8],[49,0,49,9],[36,0,36,3],[36,7,36,9],[37,0,37,3],[37,7,37,9],[44,0,44,1],[45,0,45,9],[46,0,46,1],[46,4,46,5],[47,0,47,2],[47,4,47,5],[48,0,48,1],[50,0,50,3],[51,0,51,9],[57,0,57,2],[57,4,57,7],[58,0,58,2],[58,4,58,9],[87,0,87,2],[59,0,59,2],[59,4,59,5],[59,7,59,9],[60,0,60,2],[60,4,60,5],[60,7,60,9],[61,0,61,2],[62,0,62,9],[64,0,64,2],[65,0,68,9],[78,0,82,9],[69,0,69,3],[70,0,70,9],[71,0,71,1],[71,4,71,5],[71,8,71,9],[72,0,72,2],[72,4,72,6],[72,8,72,9],[73,0,73,3],[73,7,73,8],[74,0,74,5],[74,7,74,9],[75,0,75,3],[75,7,75,9],[76,0,76,3],[76,7,76,9]]}
[null,null,null,null,null,null,null,null,null,null,null,null,null,null,null,null,null,null,null,null,null,"AGROPECUÁRIA","CODIGO","ESPECIFICAÇÕES",null,null,"Licenças"]
[null,null,null,null,null,null,null,null,null,null,null,null,null,null,null,null,null,null,null,null,null,"Avicultura (postura e corte)","16.15.499","Número de Cabeças:",null,null,"Licença de Alteração de Instalação - LAI"]
[null,null,null,null,null,null,null,null,null,null,null,null,null,null,null,null,null,null,null,null,null,"Suinocultura","16.30.499","Número de Cabeças:",null,null,"Licença de Alteração de Operação - LAO"]
[null,null,null,null,null,null,null,null,null,null,null,null,null,null,null,null,null,null,null,null,null,"Ovinocaprinocultura","16.45.499","Número de Cabeças:",null,null,"Licença de Instalação – LI"]
[null,null,null,null,null,null,null,null,null,null,null,null,null,null,null,null,null,null,null,null,null,"Bovinocultura e Bubalinocultura","16.60.499","Número de Cabeças:",null,null,"Licença de Operação – LO"]
[null,null,null,null,null,null,null,null,null,null,null,null,null,null,null,null,null,null,null,null,null,"Carcinicultura","16.75.200",null,null,null,"Licença de Regularização de Operação – LRO"]
[null,null,null,null,null,null,null,null,null,null,null,null,null,null,null,null,null,null,null,null,null,"Piscicultura","16.75.400",null,null,null,"Licença por Adesão e Compromisso - LAC"]
[null,null,null,null,null,null,null,null,null,null,null,null,null,null,null,null,null,null,null,null,null,"Miticultura e/ou ostreicultura","16.75.600","Número de sementes:",null,null,"Licença Prévia - LP"]
[null,null,null,null,null,null,null,null,null,null,null,null,null,null,null,null,null,null,null,null,null,"Ranicultura","16.75.800",null,null,null,"Licença Prévia - LP + Licença de Instalação – LI"]
[null,null,null,null,null,null,null,null,null,null,null,null,null,null,null,null,null,null,null,null,null,"Projetos agrícolas de sequeiro (sem uso de agrotóxicos)","16.90.333",null,null,null,"Licença Prévia - LP + Licença de Instalação – LI + Licença de Operação – LO"]
[null,null,null,null,null,null,null,null,null,null,null,null,null,null,null,null,null,null,null,null,null,"Projetos agrícolas irrigados (sem uso de agrotóxicos)","16.90.666",null,null,null,"Licença Simplificada - LS"]
[null,null,null,null,null,null,null,null,null,null,null,null,null,null,null,null,null,null,null,null,null,null,null,null,null,null,"Outros (especificar)"]
["Escolha a Atividade:",null,null,null,null,null,null,null,"Código da Atividade:",null,null,null,null,null,null,null,null,null,null,null,null,null,null,null,null,null,"Renovação de Licença de Instalação – RLI"]
["Bovinocultura e Bubalinocultura",null,null,null,null,null,null,null,{"$f":"IFERROR(VLOOKUP(A14,APOIO!A14:B23,2,0),\"\")","v":"16.60.499"},null,null,{"$f":"VLOOKUP(I14,Tabela3[[CODIGO]:[ESPECIFICAÇÕES]],2,0)","v":"Número de Cabeças:"},null,null,null,null,null,null,null,null,null,null,null,null,null,null,"Renovação de Licença de Operação – RLO"]
[null,null,null,null,null,null,null,null,null,null,null,{"$f":"IF(A17='MODELO (2)'!P17,AGROPECUÁRIA!A20,\"\")","v":""}]
["Escolha a Licença:"]
["Renovação de Licença de Instalação – RLI"]
[]
["Se OUTROS, Especifique a Licença:"]
[]
[]
[]
[]
[]
["Nome/ Razão Social:"]
[]
["CPF/CNPJ:",null,null,null,"Código CNAE:"]
[]
["Nome Fantasia (quando houver):"]
[]
["Logradouro/ Nº:"]
[]
["Bairro:",null,null,null,"Município:",null,null,null,"CEP:"]
[]
["Complemento:",null,null,null,null,null,null,"Estado:"]
[]
[]
[]
[]
[]
[]
[]
[]
[]
["Nome:"]
[]
["CPF/CNPJ:",null,null,null,"Telefone para Contato:"]
[]
["E-mail para Contato:"]
[]
["Endereço para Correspondência:"]
[]
[]
[]
[]
[]
[]
["CÓDIGO da Atividade:",null,null,null,"Número da Licença Anterior (quando houver):"]
[{"$f":"I14","v":"16.60.499"}]
["Área do Empreendimento:",null,null,null,"Faturamento Anual (R$):",null,null,"Nº de Funcionários:"]
[]
[{"$f":"IF(L14=0,\"\",L14)","v":"Número de Cabeças:"}]
[]
[]
["Descrição da Atividade:"]
[]
[]
[]
[]
["Endereço da Atividade:"]
[]
["Bairro:",null,null,null,"Município:",null,null,null,"CEP:"]
[]
["Complemento:",null,null,null,null,null,null,"Estado:",null,null,null,null,null,null,null,null,null,null,null,null,null,null,null,null,null,null,null,{"$f":"CONCATENATE(I72,\" \",I73)","v":"CEP: "}]
[null,null,null,null,null,null,null,null,null,null,null,null,null,null,null,null,null,null,null,null,null,null,null,null,null,null,null,{"$f":"CONCATENATE(A72,\" \",A73)","v":"Bairro: "}]
[null,null,null,null,null,"Latidude:",null,"Longitude:",null,null,null,null,null,null,null,null,null,null,null,null,null,null,null,null,null,null,null,{"$f":"CONCATENATE(H74,\" \",H75)","v":"Estado: "}]
["Coordenadas Geográficas:",null,null,null,null,null,null,null,null,null,null,null,null,null,null,null,null,null,null,null,null,null,null,null,null,null,null,{"$f":"CONCATENATE(F76,\" \",F77)","v":"Latidude: "}]
[null,null,null,null,null,null,null,null,null,null,null,null,null,null,null,null,null,null,null,null,null,null,null,null,null,null,null,{"$f":"CONCATENATE(H76,\" \",H77)","v":"Longitude: "}]
["DECLARO PARA OS DEVIDOS FINS, QUE O DESENVOLVIMENTO DAS ATIVIDADES RELACIONADAS NESTE REQUERIMENTO REALIZAR-SE-Á DE ACORDO COM OS DADOS TRANSCRITOS E ANEXOS INDICADOS NO ITEM 7(SETE). PELO QUE VENHO REQUERER A SUDEMA (Superintendência de Administração do Meio Ambiente), A EXPEDIÇÃO DA RESPECTIVA LICENÇA."]

{"sheet":"TELECOMUNICAÇÃO","index":19,"n_rows":81,"n_cols":28,"rows_kept":81,"cut":false,"hidden":false,"merged":[[27,0,27,2],[27,4,27,9],[12,0,12,1],[12,8,12,9],[13,0,13,6],[13,8,13,9],[15,0,15,1],[16,0,16,6],[18,0,18,3],[19,0,19,9],[24,0,24,1],[25,0,25,9],[26,0,26,1],[35,0,35,5],[35,7,35,9],[28,0,28,3],[29,0,29,9],[30,0,30,3],[31,0,31,9],[32,0,32,1],[32,4,32,5],[32,8,32,9],[33,0,33,2],[33,4,33,6],[33,8,33,9],[34,0,34,3],[34,7,34,8],[49,0,49,9],[36,0,36,3],[36,7,36,9],[37,0,37,3],[37,7,37,9],[44,0,44,1],[45,0,45,9],[46,0,46,1],[46,4,46,5],[47,0,47,2],[47,4,47,5],[48,0,48,1],[50,0,50,3],[51,0,51,9],[57,0,57,2],[57,4,57,7],[58,0,58,2],[58,4,58,9],[67,0,70,9],[80,0,84,9],[89,0,89,2],[61,6,61,8],[59,0,59,2],[59,4,59,6],[60,0,60,2],[60,4,60,5],[60,7,60,9],[63,0,63,2],[64,0,64,9],[61,0,61,2],[62,0,62,9],[66,0,66,2],[71,0,71,3],[72,0,72,9],[73,0,73,1],[73,4,73,5],[73,8,73,9],[74,0,74,2],[74,4,74,6],[74,8,74,9],[78,0,78,3],[78,7,78,9],[75,0,75,3],[75,7,75,8],[76,0,76,5],[76,7,76,9],[77,0,77,3],[77,7,77,9]]}
[null,null,null,null,null,null,null,null,null,null,null,null,null,null,null,null,null,null,null,null,null,"SISTEMA DE TELECOMUNICAÇÕES","CÓDIGO","ESPECIFICAÇÕES","ESPECIFICAÇÕES2",null,"Licenças"]
[null,null,null,null,null,null,null,null,null,null,null,null,null,null,null,null,null,null,null,null,null,"Estrutura para instalação de sistemas de telecomunicações e equipamentos afins instaladas em área de preservação","24.33.666","Área efetiva para implantação da estrutura (m²):",null,null,"Licença de Alteração de Instalação - LAI"]
[null,null,null,null,null,null,null,null,null,null,null,null,null,null,null,null,null,null,null,null,null,"Ligação de cabeamento óptico de Telecomunicações, aéreo ou subterrâneo pelo Método não Destrutivo","24.66.333","Área do Empreendimento (m²):","Comprimento de Rede (km): ",null,"Licença de Alteração de Operação - LAO"]
[null,null,null,null,null,null,null,null,null,null,null,null,null,null,null,null,null,null,null,null,null,"Ligação de cabeamento óptico de Telecomunicações, subterrâneo pelo Método Destrutivo","24.66.666","Área do Empreendimento (m²):","Comprimento de Rede (km): ",null,"Licença de Instalação – LI"]
[null,null,null,null,null,null,null,null,null,null,null,null,null,null,null,null,null,null,null,null,null,null,null,null,null,null,"Licença de Operação – LO"]
[null,null,null,null,null,null,null,null,null,null,null,null,null,null,null,null,null,null,null,null,null,null,null,null,null,null,"Licença de Regularização de Operação – LRO"]
[null,null,null,null,null,null,null,null,null,null,null,null,null,null,null,null,null,null,null,null,null,null,null,null,null,null,"Licença por Adesão e Compromisso - LAC"]
[null,null,null,null,null,null,null,null,null,null,null,null,null,null,null,null,null,null,null,null,null,null,null,null,null,null,"Licença Prévia - LP"]
[null,null,null,null,null,null,null,null,null,null,null,null,null,null,null,null,null,null,null,null,null,null,null,null,null,null,"Licença Prévia - LP + Licença de Instalação – LI"]
[null,null,null,null,null,null,null,null,null,null,null,null,null,null,null,null,null,null,null,null,null,null,null,null,null,null,"Licença Prévia - LP + Licença de Instalação – LI + Licença de Operação – LO"]
[null,null,null,null,null,null,null,null,null,null,null,null,null,null,null,null,null,null,null,null,null,null,null,null,null,null,"Licença Simplificada - LS"]
[null,null,null,null,null,null,null,null,null,null,null,null,null,null,null,null,null,null,null,null,null,null,null,null,null,null,"Outros (especificar)"]
["Escolha a Atividade:",null,null,null,null,null,null,null,"Código da Atividade:",null,null,null,null,null,null,null,null,null,null,null,null,null,null,null,null,null,"Renovação de Licença de Instalação – RLI"]
["Estrutura para instalação de sistemas de telecomunicações e equipamentos afins instaladas em área de preservação",null,null,null,null,null,null,null,{"$f":"IFERROR(VLOOKUP(A14,APOIO!A29:B278,2,0),\"\")","v":"24.33.666"},null,null,{"$f":"VLOOKUP(I14,Tabela4[[CÓDIGO]:[ESPECIFICAÇÕES]],2,0)","v":"Área efetiva para implantação da estrutura (m²):"},null,null,null,null,null,null,null,null,null,null,null,null,null,null,"Renovação de Licença de Operação – RLO"]
[null,null,null,null,null,null,null,null,null,null,null,{"$f":"VLOOKUP(I14,Tabela4[[CÓDIGO]:[ESPECIFICAÇÕES2]],3,0)","v":0}]
["Escolha a Licença:",null,null,null,null,null,null,null,null,null,null,{"$f":"IF(A17='MODELO (3)'!P17,TELECOMUNICAÇÃO!A20,\"\")","v":""}]
["Renovação de Licença de Operação – RLO"]
[]
["Se OUTROS, Especifique a Licença:"]
[]
[]
[]
[]
[]
["Nome/ Razão Social:"]
[]
["CPF/CNPJ:",null,null,null,"Código CNAE:"]
[]
["Nome Fantasia (quando houver):"]
[]
["Logradouro/ Nº:"]
[]
["Bairro:",null,null,null,"Município:",null,null,null,"CEP:"]
[]
["Complemento:",null,null,null,null,null,null,"Estado:"]
[]
[null,null,null,null,null,"Latitude:",null,"Longitude:"]
["Coordenadas Geograficas:"]
[]
[]
[]
[]
[]
[]
["Nome:"]
[]
["CPF/CNPJ:",null,null,null,"Telefone para Contato:"]
[]
["E-mail para Contato:"]
[]
["Endereço para Correspondência:"]
[]
[]
[]
[]
[]
[]
["CÓDIGO da Atividade:",null,null,null,"Número da Licença Anterior (quando houver):"]
[{"$f":"I14","v":"24.33.666"}]
["Faturamento Anual (R$):",null,null,null,"Nº de Funcionários:"]
[]
[{"$f":"IF(L14=0,\"\",L14)","v":"Área efetiva para implantação da estrutura (m²):"}]
[]
[{"$f":"IF(L15=0,\"\",L15)","v":""}]
[]
[]
["Descrição da Atividade:"]
[]
[]
[]
[]
["Endereço da Atividade:"]
[]
["Bairro:",null,null,null,"Município:",null,null,null,"CEP:"]
[null,null,null,null,null,null,null,null,null,null,null,null,null,null,null,null,null,null,null,null,null,null,null,null,null,null,null,{"$f":"CONCATENATE(I74,\" \",I75)","v":"CEP: "}]
["Complemento:",null,null,null,null,null,null,"Estado:",null,null,null,null,null,null,null,null,null,null,null,null,null,null,null,null,null,null,null,{"$f":"CONCATENATE(A74,\" \",A75)","v":"Bairro: "}]
[null,null,null,null,null,null,null,null,null,null," ",null,null,null,null,null,null,null,null,null,null,null,null,null,null,null,null,{"$f":"CONCATENATE(H76,\" \",H77)","v":"Estado: "}]
[null,null,null,null,null,"Latitude:",null,"Longitude:",null,null,null,null,null,null,null,null,null,null,null,null,null,null,null,null,null,null,null,{"$f":"CONCATENATE(F78,\" \",F79)","v":"Latitude: "}]
["Coordenadas Geograficas:",null,null,null,null,null,null,null,null,null,null,null,null,null,null,null,null,null,null,null,null,null,null,null,null,null,null,{"$f":"CONCATENATE(H78,\" \",H79)","v":"Longitude: "}]
[]
["DECLARO PARA OS DEVIDOS FINS, QUE O DESENVOLVIMENTO DAS ATIVIDADES RELACIONADAS NESTE REQUERIMENTO REALIZAR-SE-Á DE ACORDO COM OS DADOS TRANSCRITOS E ANEXOS INDICADOS NO ITEM 7(SETE). PELO QUE VENHO REQUERER A SUDEMA (Superintendência de Administração do Meio Ambiente), A EXPEDIÇÃO DA RESPECTIVA LICENÇA."]

{"sheet":"COLETATRANSPORTE","index":20,"n_rows":85,"n_cols":32,"rows_kept":85,"cut":false,"hidden":false,"merged":[[93,0,93,2],[70,0,70,2],[71,0,74,9],[84,0,88,9],[62,0,62,2],[68,0,68,2],[67,0,67,1],[64,0,64,2],[65,0,65,1],[66,0,66,2],[63,0,63,1],[75,0,75,3],[76,0,76,9],[77,0,77,1],[77,4,77,5],[77,8,77,9],[59,0,59,2],[59,4,59,6],[60,0,60,2],[60,7,60,9],[61,0,61,2],[61,6,61,8],[60,4,60,6],[50,0,50,3],[51,0,51,9],[57,0,57,2],[57,4,57,7],[58,0,58,2],[58,4,58,9],[49,0,49,9],[36,0,36,3],[36,7,36,9],[37,0,37,3],[37,7,37,9],[44,0,44,1],[45,0,45,9],[46,0,46,1],[46,4,46,5],[47,0,47,2],[47,4,47,5],[48,0,48,1],[35,0,35,5],[35,7,35,9],[28,0,28,3],[29,0,29,9],[30,0,30,3],[31,0,31,9],[32,0,32,1],[32,4,32,5],[32,8,32,9],[33,0,33,2],[33,4,33,6],[33,8,33,9],[34,0,34,3],[34,7,34,8],[27,0,27,2],[27,4,27,9],[12,0,12,1],[12,8,12,9],[13,0,13,6],[13,8,13,9],[15,0,15,1],[16,0,16,6],[18,0,18,3],[19,0,19,9],[24,0,24,1],[25,0,25,9],[26,0,26,1],[78,0,78,2],[78,4,78,6],[78,8,78,9],[79,0,79,3],[79,7,79,8],[80,0,80,5],[80,7,80,9],[81,0,81,3],[81,7,81,9],[82,0,82,3],[82,7,82,9]]}
[null,null,null,null,null,null,null,null,null,null,null,null,null,null,null,null,null,null,null,null,null,"COLETA E TRANSPORTE","CÓDIGO","ESPECIFICAÇÕES","ESPECIFICAÇÕES2","ESPECIFICAÇÕES3","ESPECIFICAÇÕES4","ESPECIFICAÇÕES5",null,null,"LICENÇAS:"]
[null,null,null,null,null,null,null,null,null,null,null,null,null,null,null,null,null,null,null,null,null,"Coleta e Transporte de Resíduos Classe I – Perigosos","32.15.143","Número de veículos: ",null,null,null,null,null,null,"Autorização Ambiental - AA"]
[null,null,null,null,null,null,null,null,null,null,null,null,null,null,null,null,null,null,null,null,null,"Coleta e Transporte de Resíduos de Classe II – Não Perigosos","32.15.286","Número de veículos: ",null,null,null,null,null,null,"Licença de Alteração de Instalação - LAI"]
[null,null,null,null,null,null,null,null,null,null,null,null,null,null,null,null,null,null,null,null,null,"Coleta e Transporte de Resíduos de Serviços de Saúde","32.15.429","Número de veículos: ",null,null,null,null,null,null,"Licença de Alteração de Operação - LAO"]
[null,null,null,null,null,null,null,null,null,null,null,null,null,null,null,null,null,null,null,null,null,"Coleta e Transporte de Resíduos da Construção Civil","32.15.572","Número de veículos: ",null,null,null,null,null,null,"Licença de Instalação – LI"]
[null,null,null,null,null,null,null,null,null,null,null,null,null,null,null,null,null,null,null,null,null,"Coleta e Transporte de Efluentes Líquidos (desentupidoras de limpeza de fossas e esgotos)","32.15.715","Número de veículos: ",null,null,null,null,null,null,"Licença de Operação – LO"]
[null,null,null,null,null,null,null,null,null,null,null,null,null,null,null,null,null,null,null,null,null,"Transporte de Cargas Perigosas, Produtos Perigosos ou Inflamáveis","32.15.858","Número de veículos: ",null,null,null,null,null,null,"Licença de Regularização de Operação – LRO"]
[null,null,null,null,null,null,null,null,null,null,null,null,null,null,null,null,null,null,null,null,null,"Unidade de triagem de recicláveis","32.30.250","Tonelada∕DIA:","Área do Empreendimento (m²):","Área Construida (m²):",null,null,null,null,"Licença de Transporte Estadual – LTE"]
[null,null,null,null,null,null,null,null,null,null,null,null,null,null,null,null,null,null,null,null,null,"Unidade de compostagem de resíduos orgânicos","32.30.500","Tonelada∕DIA:","Área do Empreendimento (m²):","Área Construida (m²):",null,null,null,null,"Licença Prévia - LP"]
[null,null,null,null,null,null,null,null,null,null,null,null,null,null,null,null,null,null,null,null,null,"Unidade de triagem e compostagem de resíduos","32.30.750","Tonelada∕DIA:","Área do Empreendimento (m²):","Área Construida (m²):",null,null,null,null,"Licença Prévia - LP + Licença de Instalação – LI"]
[null,null,null,null,null,null,null,null,null,null,null,null,null,null,null,null,null,null,null,null,null,"Central de recebimento, armazenamento temporário_triagem ou transbordo de SUCATA metálica_papel_papelão_plástico e vidro_não contaminados com óleos_graxas_agrotóxicos ou produtos químicos","32.45.143","Área do Empreendimento (m²):","Área Construida (m²):",null,null,null,null,null,"Licença Prévia - LP + Licença de Instalação – LI + Licença de Operação – LO"]
[null,null,null,null,null,null,null,null,null,null,null,null,null,null,null,null,null,null,null,null,null,"Central de recebimento, armazenamento temporário, triagem de pilhas e baterias","32.45.286","Área do Empreendimento (m²):","Área Construida (m²):",null,null,null,null,null,"Licença Simplificada - LS"]
["Escolha a Atividade:",null,null,null,null,null,null,null,"Código da Atividade:",null,null,null,null,null,null,null,null,null,null,null,null,"Central de recebimento, armazenamento temporário, triagem de eletroeletrônicos com a separação de componentes","32.45.429","Área do Empreendimento (m²):","Área Construida (m²):",null,null,null,null,null,"Outros (especificar)"]
["Coleta e Transporte de Resíduos Classe I – Perigosos",null,null,null,null,null,null,null,{"$f":"IFERROR(VLOOKUP(A14,APOIO!A42:B66,2,0),\"\")","v":"32.15.143"},null,null,{"$f":"VLOOKUP(I14,Tabela8[[CÓDIGO]:[ESPECIFICAÇÕES4]],2,0)","v":"Número de veículos: "},null,null,null,null,null,null,null,null,null,"Central de recebimento de embalagens contaminadas com produtos perigosos","32.45.572","Área do Empreendimento (m²):","Área Construida (m²):",null,null,null,null,null,"Renovação de Licença de Instalação – RLI"]
[null,null,null,null,null,null,null,null,null,null,null,{"$f":"VLOOKUP(I14,Tabela8[[CÓDIGO]:[ESPECIFICAÇÕES4]],3,0)","v":0},null,null,null,null,null,null,null,null,null,"Estação de transbordo (armazenamento temporário) para resíduos sólidos urbanos","32.45.715","Tonelada∕DIA:","Área do Empreendimento (m²):","Área Construida (m²):",null,null,null,null,"Renovação de Licença de Operação – RLO"]
["Escolha a Licença:",null,null,null,null,null,null,null,null,null,null,{"$f":"VLOOKUP(I14,Tabela8[[CÓDIGO]:[ESPECIFICAÇÕES4]],4,0)","v":0},null,null,null,null,null,null,null,null,null,"Estação de transbordo (armazenamento temporário) para resíduos de serviço de saúde","32.45.858","Tonelada∕DIA:","Área do Empreendimento (m²):","Área Construida (m²):"]
["Renovação de Licença de Instalação – RLI",null,null,null,null,null,null,null,null,null,null,{"$f":"VLOOKUP(I14,Tabela8[[CÓDIGO]:[ESPECIFICAÇÕES4]],5,0)","v":0},null,null,null,null,null,null,null,null,null,"Unidade de Gerenciamento Integrado de Resíduos Sólidos Urbanos (unidade de triagem, compostagem e destinação final de rejeitos)","32.60.125","Número de habitantes:","Tonelada∕DIA:","Área do Empreendimento (m²):","Área Construida (m²):"]
[null,null,null,null,null,null,null,null,null,null,null,{"$f":"IF(A17='MODELO (4)'!P17,COLETATRANSPORTE!A20,\"\")","v":""},null,null,null,null,null,null,null,null,null,"Aterro Sanitário","32.60.250","Tonelada∕DIA:","Área do Empreendimento (m²):","Área Construida (m²):"]
["Se OUTROS, Especifique a Licença:",null,null,null,null,null,null,null,null,null,null,null,null,null,null,null,null,null,null,null,null,"Aterro Industrial (Perigoso e Não Perigoso)","32.60.375","Tonelada∕DIA:","Área do Empreendimento (m²):","Área Construida (m²):"]
[null,null,null,null,null,null,null,null,null,null,null,null,null,null,null,null,null,null,null,null,null,"Aterro de Resíduo de Classe A para reservação de material para usos futuros","32.60.500","Tonelada∕DIA:","Área do Empreendimento (m²):","Área Construida (m²):"]
[null,null,null,null,null,null,null,null,null,null,null,null,null,null,null,null,null,null,null,null,null,"Aterro Sanitário com unidade de triagem","32.60.750","Tonelada∕DIA:","Área do Empreendimento (m²):","Área Construida (m²):"]
[null,null,null,null,null,null,null,null,null,null,null,null,null,null,null,null,null,null,null,null,null,"Aterro Sanitário com unidade de triagem e unidade de compostagem","32.60.875","Tonelada∕DIA:","Área do Empreendimento (m²):","Área Construida (m²):"]
[null,null,null,null,null,null,null,null,null,null,null,null,null,null,null,null,null,null,null,null,null,"Tratamento térmico de resíduos sólidos urbanos","32.75.250","Capacidade instalada (Ton∕hora): ","Área do Empreendimento (m²):","Área Construida (m²):"]
[null,null,null,null,null,null,null,null,null,null,null,null,null,null,null,null,null,null,null,null,null,"Tratamento térmico de resíduos industriais","32.75.500","Capacidade instalada (Ton∕hora): ","Área do Empreendimento (m²):","Área Construida (m²):"]
["Nome/ Razão Social:",null,null,null,null,null,null,null,null,null,null,null,null,null,null,null,null,null,null,null,null,"Tratamento térmico de resíduos de serviço de saúde","32.75.750","Capacidade instalada (Ton∕hora): ","Área do Empreendimento (m²):","Área Construida (m²):"]
[null,null,null,null,null,null,null,null,null,null,null,null,null,null,null,null,null,null,null,null,null,"Cooprocessamento e blendagem de resíduos","32.90.499","Tonelada/mês de resíduos cooprocessados:","Área Construida (m²):"]
["CPF/CNPJ:",null,null,null,"Código CNAE:"]
[]
["Nome Fantasia (quando houver):"]
[]
["Logradouro/ Nº:"]
[]
["Bairro:",null,null,null,"Município:",null,null,null,"CEP:"]
[]
["Complemento:",null,null,null,null,null,null,"Estado:"]
[]
[null,null,null,null,null,"Latitude:",null,"Longitude:"]
["Coordenadas Geograficas:"]
[]
[]
[]
[]
[]
[]
["Nome:"]
[]
["CPF/CNPJ:",null,null,null,"Telefone para Contato:"]
[]
["E-mail para Contato:"]
[]
["Endereço para Correspondência:"]
[]
[]
[]
[]
[]
[]
["CÓDIGO da Atividade:",null,null,null,"Número da Licença Anterior (quando houver):"]
[{"$f":"I14","v":"32.15.143"}]
["Faturamento Anual (R$):",null,null,null,"Nº de Funcionários:"]
[]
[{"$f":"IF(L14=0,\"\",L14)","v":"Número de veículos: "}]
[]
[{"$f":"IF(L15=0,\"\",L15)","v":""}]
[]
[{"$f":"IF(L16=0,\"\",L16)","v":""}]
[]
[{"$f":"IF(L17=0,\"\",L17)","v":""}]
[]
[]
["Descrição da Atividade:"]
[]
[]
[]
[]
["Endereço da Atividade:"]
[]
["Bairro:",null,null,null,"Município:",null,null,null,"CEP:"]
[null,null,null,null,null,null,null,null,null,null,null,null,null,null,null,null,null,null,null,null,null,null,null,null,null,null,null,null,null,null,null,{"$f":"CONCATENATE(I78,\" \",I79)","v":"CEP: "}]
["Complemento:",null,null,null,null,null,null,"Estado:",null,null,null,null,null,null,null,null,null,null,null,null,null,null,null,null,null,null,null,null,null,null,null,{"$f":"CONCATENATE(A78,\" \",A79)","v":"Bairro: "}]
[null,null,null,null,null,null,null,null,null,null,null,null,null,null,null,null,null,null,null,null,null,null,null,null,null,null,null,null,null,null,null,{"$f":"CONCATENATE(H80,\" \",H81)","v":"Estado: "}]
[null,null,null,null,null,"Latitude:",null,"Longitude:",null,null,null,null,null,null,null,null,null,null,null,null,null,null,null,null,null,null,null,null,null,null,null,{"$f":"CONCATENATE(F82,\" \",F83)","v":"Latitude: "}]
["Coordenadas Geograficas:",null,null,null,null,null,null,null,null,null,null,null,null,null,null,null,null,null,null,null,null,null,null,null,null,null,null,null,null,null,null,{"$f":"CONCATENATE(H82,\" \",H83)","v":"Longitude: "}]
[]
["DECLARO PARA OS DEVIDOS FINS, QUE O DESENVOLVIMENTO DAS ATIVIDADES RELACIONADAS NESTE REQUERIMENTO REALIZAR-SE-Á DE ACORDO COM OS DADOS TRANSCRITOS E ANEXOS INDICADOS NO ITEM 7(SETE). PELO QUE VENHO REQUERER A SUDEMA (Superintendência de Administração do Meio Ambiente), A EXPEDIÇÃO DA RESPECTIVA LICENÇA."]

{"sheet":"ENERGIA","index":21,"n_rows":86,"n_cols":31,"rows_kept":86,"cut":false,"hidden":false,"merged":[[27,0,27,2],[27,4,27,9],[12,0,12,1],[12,8,12,9],[13,0,13,6],[13,8,13,9],[15,0,15,1],[16,0,16,6],[18,0,18,3],[19,0,19,9],[24,0,24,1],[25,0,25,9],[26,0,26,1],[35,0,35,5],[35,7,35,9],[28,0,28,3],[29,0,29,9],[30,0,30,3],[31,0,31,9],[32,0,32,1],[32,4,32,5],[32,8,32,9],[33,0,33,2],[33,4,33,6],[33,8,33,9],[34,0,34,3],[34,7,34,8],[49,0,49,9],[36,0,36,3],[36,7,36,9],[37,0,37,3],[37,7,37,9],[44,0,44,1],[45,0,45,9],[46,0,46,1],[46,4,46,5],[47,0,47,2],[47,4,47,5],[48,0,48,1],[60,7,60,9],[61,0,61,2],[61,6,61,8],[50,0,50,3],[51,0,51,9],[57,0,57,2],[57,4,57,7],[58,0,58,2],[58,4,58,9],[67,0,67,1],[59,0,59,2],[59,4,59,6],[60,0,60,2],[60,4,60,6],[62,0,62,2],[63,0,63,1],[64,0,64,2],[65,0,65,1],[66,0,66,2],[68,0,68,2],[70,0,70,2],[71,0,74,9],[85,0,89,9],[94,0,94,2],[75,0,75,3],[76,0,76,9],[77,0,77,1],[77,4,77,5],[77,8,77,9],[78,0,78,2],[78,4,78,6],[78,8,78,9],[79,0,79,3],[79,7,79,8],[80,0,80,5],[80,7,80,9],[81,0,81,3],[81,7,81,9],[82,0,82,3],[82,7,82,9]]}
[null,null,null,null,null,null,null,null,null,null,null,null,null,null,null,null,null,null,null,null,null,"ENERGIA","CÓDIGO","ESPECIFICAÇÕES","ESPECIFICAÇÕES2","ESPECIFICAÇÕES3","ESPECIFICAÇÕES4","ESPECIFICAÇÕES5",null,null,"LICENÇAS:"]
[null,null,null,null,null,null,null,null,null,null,null,null,null,null,null,null,null,null,null,null,null,"Linhas de Distribuição até 15 kV","40.10.150","EXTENSÃO (Km):","Área do Empreendimento (m²):","Área Construida (m²):",null,null,null,null,"Autorização Ambiental - AA"]
[null,null,null,null,null,null,null,null,null,null,null,null,null,null,null,null,null,null,null,null,null,"Linha de Distribuição com potência entre 15 kV menor ou igual a 138 kV","40.10.300","EXTENSÃO (Km):","Área do Empreendimento (m²):","Área Construida (m²):",null,null,null,null,"Licença de Alteração de Instalação - LAI"]
[null,null,null,null,null,null,null,null,null,null,null,null,null,null,null,null,null,null,null,null,null,"Linha de Transmissão até 138 Kv","40.10.450","EXTENSÃO (Km):","Área do Empreendimento (m²):","Área Construida (m²):",null,null,null,null,"Licença de Alteração de Operação - LAO"]
[null,null,null,null,null,null,null,null,null,null,null,null,null,null,null,null,null,null,null,null,null,"Linha de Transmissão acima de 138 kV","40.10.600","EXTENSÃO (Km):","Área do Empreendimento (m²):","Área Construida (m²):",null,null,null,null,"Licença de Instalação – LI"]
[null,null,null,null,null,null,null,null,null,null,null,null,null,null,null,null,null,null,null,null,null,"Subestação abaixadora/elevadora de tensão/seccionadora","40.10.750","Tensão (KVA):","Área do Empreendimento (m²):","Área Construida (m²):",null,null,null,null,"Licença de Operação – LO"]
[null,null,null,null,null,null,null,null,null,null,null,null,null,null,null,null,null,null,null,null,null,"Central Geradora Hidrelétrica (CGH)","40.20.250","Potencia Gerada (Mw): ","Área do Empreendimento (m²):","Área Construida (m²):",null,null,null,null,"Licença de Regularização de Operação – LRO"]
[null,null,null,null,null,null,null,null,null,null,null,null,null,null,null,null,null,null,null,null,null,"Pequena Central Hidrelétrica","40.20.500","Potencia Gerada (Mw): ","Área do Empreendimento (m²):","Área Construida (m²):",null,null,null,null,"Licença por Adesão e Compromisso - LAC"]
[null,null,null,null,null,null,null,null,null,null,null,null,null,null,null,null,null,null,null,null,null,"Usina Hidrelétrica (UHE)","40.20.750","Potencia Gerada (Mw): ","Área do Empreendimento (m²):","Área Construida (m²):",null,null,null,null,"Licença Prévia - LP"]
[null,null,null,null,null,null,null,null,null,null,null,null,null,null,null,null,null,null,null,null,null,"Usina Termelétrica (UTE)","40.30.499","Potencia Gerada (Mw): ","Área do Empreendimento (m²):","Área Construida (m²):",null,null,null,null,"Licença Prévia - LP + Licença de Instalação – LI"]
[null,null,null,null,null,null,null,null,null,null,null,null,null,null,null,null,null,null,null,null,null,"Energia Solar/ Fotovoltaica/ Termosolar","40.40.499","Potencia Gerada (Mw): ","Área do Empreendimento (m²):","Área Construida (m²):",null,null,null,null,"Licença Prévia - LP + Licença de Instalação – LI + Licença de Operação – LO"]
[null,null,null,null,null,null,null,null,null,null,null,null,null,null,null,null,null,null,null,null,null,"Energia a partir de Biomassas (Provinientes de rejeitos)","40.50.499","Potencia Gerada (Mw): ","Área do Empreendimento (m²):","Área Construida (m²):",null,null,null,null,"Licença Simplificada - LS"]
["Escolha a Atividade:",null,null,null,null,null,null,null,"Código da Atividade:",null,null,null,null,null,null,null,null,null,null,null,null,"Unidade de cogeração de energia elétrica","40.60.499","Potencia Gerada (Mw): ","Área do Empreendimento (m²):","Área Construida (m²):",null,null,null,null,"Outros (especificar)"]
["Geração de energia Eólica",null,null,null,null,null,null,null,{"$f":"IFERROR(VLOOKUP(A14,APOIO!A69:B83,2,0),\"\")","v":"40.70.499"},null,null,{"$f":"VLOOKUP(I14,Tabela10[[CÓDIGO]:[ESPECIFICAÇÕES4]],2,0)","v":"Potencia Gerada (Mw): "},null,null,null,null,null,null,null,null,null,"Geração de energia Eólica","40.70.499","Potencia Gerada (Mw): ","Numero de aerogeradores: ","Área do Empreendimento (m²):","Área Construida (m²):",null,null,null,"Renovação de Licença de Instalação – RLI"]
[null,null,null,null,null,null,null,null,null,null,null,{"$f":"VLOOKUP(I14,Tabela10[[CÓDIGO]:[ESPECIFICAÇÕES4]],3,0)","v":"Numero de aerogeradores: "},null,null,null,null,null,null,null,null,null,"Equipamentos de Sondagem: Estações solarimétricas / torres anemométricas","40.80.499","Unidades: ","Área do Empreendimento (m²):","Área Construida (m²):",null,null,null,null,"Renovação de Licença de Operação – RLO"]
["Escolha a Licença:",null,null,null,null,null,null,null,null,null,null,{"$f":"VLOOKUP(I14,Tabela10[[CÓDIGO]:[ESPECIFICAÇÕES4]],4,0)","v":"Área do Empreendimento (m²):"},null,null,null,null,null,null,null,null,null,"Geração distribuidora","40.90.499","Potência gerada (MW):","Área do Empreendimento (m²):","Área Construida (m²):"]
["Renovação de Licença de Instalação – RLI",null,null,null,null,null,null,null,null,null,null,{"$f":"VLOOKUP(I14,Tabela10[[CÓDIGO]:[ESPECIFICAÇÕES4]],5,0)","v":"Área Construida (m²):"}]
[null,null,null,null,null,null,null,null,null,null,null,{"$f":"IF(A17='MODELO (5)'!P20,ENERGIA!A20,\"\")","v":0}]
["Se OUTROS, Especifique a Licença:"]
[]
[]
[]
[]
[]
["Nome/ Razão Social:"]
["Carmen Vilar Filho"]
["CPF/CNPJ:",null,null,null,"Código CNAE:"]
["368.395.374-80",null,null,null,"28.952.102-6"]
["Nome Fantasia (quando houver):"]
["Carmen Vilar Filho"]
["Logradouro/ Nº:"]
["Rua Artur Ataíde"]
["Bairro:",null,null,null,"Município:",null,null,null,"CEP:"]
["Oitizeiro",null,null,null,"João Pessoa",null,null,null,"58087-050"]
["Complemento:",null,null,null,null,null,null,"Estado:"]
["Casa 101",null,null,null,null,null,null,"PB"]
[null,null,null,null,null,"Latitude:",null,"Longitude:"]
["Coordenadas Geograficas:",null,null,null,null,"3.85.866.6896",null,"3.85.866.6896"]
[]
[]
[]
[]
[]
[]
["Nome:"]
["Carmen Vilar Filho"]
["CPF/CNPJ:",null,null,null,"Telefone para Contato:"]
["368.395.374-80",null,null,null,"(83) 99740-4734"]
["E-mail para Contato:"]
["carmen.filho@geradornv.com.br"]
["Endereço para Correspondência:"]
["Carmen Vilar Filho,731 - Oitizeiro - João Pessoa - PB"]
[]
[]
[]
[]
[]
["CÓDIGO da Atividade:",null,null,null,"Número da Licença Anterior (quando houver):"]
[{"$f":"I14","v":"40.70.499"}]
["Faturamento Anual (R$):",null,null,null,"Nº de Funcionários:"]
[158005,null,null,null,15]
[{"$f":"IF(L14=0,\"\",L14)","v":"Potencia Gerada (Mw): "}]
[588]
[{"$f":"IF(L15=0,\"\",L15)","v":"Numero de aerogeradores: "}]
[56]
[{"$f":"IF(L16=0,\"\",L16)","v":"Área do Empreendimento (m²):"}]
[352]
[{"$f":"IF(L17=0,\"\",L17)","v":"Área Construida (m²):"}]
[285]
[]
["Descrição da Atividade:"]
["ATIVIDADES DE IMPLANTAÇÃO DE NOVO GERADOR DE ENERGIA"]
[]
[]
[]
["Endereço da Atividade:"]
["Rua Artur Ataíde"]
["Bairro:",null,null,null,"Município:",null,null,null,"CEP:",null,null,null,{"$f":"CONCATENATE(I78,\" \",I79)","v":"CEP: 58087-050"}]
["Oitizeiro",null,null,null,"João Pessoa",null,null,null,"58087-050",null,null,null,{"$f":"CONCATENATE(A78,\" \",A79)","v":"Bairro: Oitizeiro"}]
["Complemento:",null,null,null,null,null,null,"Estado:",null,null,null,null,{"$f":"CONCATENATE(H80,\" \",H81)","v":"Estado: PB"}]
["Casa 101",null,null,null,null,null,null,"PB",null,null,null,null,{"$f":"CONCATENATE(F82,\" \",F83)","v":"Latitude: 3.85.866.6896"}]
[null,null,null,null,null,"Latitude:",null,"Longitude:",null,null,null,null,{"$f":"CONCATENATE(H82,\" \",H83)","v":"Longitude: 3.85.866.6896"}]
["Coordenadas Geograficas:",null,null,null,null,"3.85.866.6896",null,"3.85.866.6896"]
[]
[]
["DECLARO PARA OS DEVIDOS FINS, QUE O DESENVOLVIMENTO DAS ATIVIDADES RELACIONADAS NESTE REQUERIMENTO REALIZAR-SE-Á DE ACORDO COM OS DADOS TRANSCRITOS E ANEXOS INDICADOS NO ITEM 7(SETE). PELO QUE VENHO REQUERER A SUDEMA (Superintendência de Administração do Meio Ambiente), A EXPEDIÇÃO DA RESPECTIVA LICENÇA."]

{"sheet":"COMERCIO","index":22,"n_rows":86,"n_cols":32,"rows_kept":86,"cut":false,"hidden":false,"merged":[[27,0,27,2],[27,4,27,9],[12,0,12,1],[12,8,12,9],[13,0,13,6],[13,8,13,9],[15,0,15,1],[16,0,16,6],[18,0,18,3],[19,0,19,9],[24,0,24,1],[25,0,25,9],[26,0,26,1],[35,0,35,5],[35,7,35,9],[28,0,28,3],[29,0,29,9],[30,0,30,3],[31,0,31,9],[32,0,32,1],[32,4,32,5],[32,8,32,9],[33,0,33,2],[33,4,33,6],[33,8,33,9],[34,0,34,3],[34,7,34,8],[49,0,49,9],[36,0,36,3],[36,7,36,9],[37,0,37,3],[37,7,37,9],[44,0,44,1],[45,0,45,9],[46,0,46,1],[46,4,46,5],[47,0,47,2],[47,4,47,5],[48,0,48,1],[60,7,60,9],[61,0,61,2],[61,6,61,8],[50,0,50,3],[51,0,51,9],[57,0,57,2],[57,4,57,7],[58,0,58,2],[58,4,58,9],[67,0,67,1],[59,0,59,2],[59,4,59,6],[60,0,60,2],[60,4,60,6],[62,0,62,2],[63,0,63,1],[64,0,64,2],[65,0,65,1],[66,0,66,2],[68,0,68,2],[70,0,70,2],[71,0,74,9],[85,0,89,9],[94,0,94,2],[75,0,75,3],[76,0,76,9],[77,0,77,1],[77,4,77,5],[77,8,77,9],[78,0,78,2],[78,4,78,6],[78,8,78,9],[79,0,79,3],[79,7,79,8],[80,0,80,5],[80,7,80,9],[81,0,81,3],[81,7,81,9],[82,0,82,3],[82,7,82,9]]}
[null,null,null,null,null,null,null,null,null,null,null,null,null,null,null,null,null,null,null,null,null,"COMERCIO E SERVIÇOS","CÓDIGO","ESPECIFICAÇÕES","ESPECIFICAÇÕES2","ESPECIFICAÇÕES3","ESPECIFICAÇÕES4","ESPECIFICAÇÕES5",null,null,"LICENÇAS:"]
[null,null,null,null,null,null,null,null,null,null,null,null,null,null,null,null,null,null,null,null,null,"Hotéis, pousadas, casas de repouso, spa, motéis e semelhantes","48.11.143","Área do Empreendimento (m²) ou (HA):","Área Construida (m²) OU (HA):",null,null,null,null,null,"Autorização Ambiental - AA"]
[null,null,null,null,null,null,null,null,null,null,null,null,null,null,null,null,null,null,null,null,null,"Empresa de serviços de turismo e ecoturismo","48.11.286","Área do Empreendimento (m²) ou (HA):","Área Construida (m²) OU (HA):",null,null,null,null,null,"Licença de Alteração de Instalação - LAI"]
[null,null,null,null,null,null,null,null,null,null,null,null,null,null,null,null,null,null,null,null,null,"Parques aquáticos, hotéis fazenda, balneários, clube de campo, clube recreativo e similares","48.11.429","Área do Empreendimento (m²) ou (HA):","Área Construida (m²) OU (HA):",null,null,null,null,null,"Licença de Alteração de Operação - LAO"]
[null,null,null,null,null,null,null,null,null,null,null,null,null,null,null,null,null,null,null,null,null,"Parques de diversão e temáticos, permanentes","48.11.572","Área do Empreendimento (m²) ou (HA):","Área Construida (m²) OU (HA):",null,null,null,null,null,"Licença de Instalação – LI"]
[null,null,null,null,null,null,null,null,null,null,null,null,null,null,null,null,null,null,null,null,null,"Jardim zoológico, aquário e semelhantes","48.11.715","Área do Empreendimento (m²) ou (HA):","Área Construida (m²) OU (HA):",null,null,null,null,null,"Licença de Operação – LO"]
[null,null,null,null,null,null,null,null,null,null,null,null,null,null,null,null,null,null,null,null,null,"Bares, restaurantes e similares (sem uso de recursos florestais)","48.11.858","Área do Empreendimento (m²) ou (HA):","Área Construida (m²) OU (HA):",null,null,null,null,null,"Licença de Regularização de Operação – LRO"]
[null,null,null,null,null,null,null,null,null,null,null,null,null,null,null,null,null,null,null,null,null,"Estabelecimentos comerciais com uso de recursos florestais (Ex.: Padarias, pizzarias, entre outros)","48.22.045","Área do Empreendimento (m²) ou (HA):","Área Construida (m²) OU (HA):",null,null,null,null,null,"Licença de Transporte Estadual – LTE"]
[null,null,null,null,null,null,null,null,null,null,null,null,null,null,null,null,null,null,null,null,null,"Empresa prestadora de serviço aeromédico e táxi aéreo","48.22.090","Área do Empreendimento (m²) ou (HA):","Área Construida (m²) OU (HA):",null,null,null,null,null,"Licença para Veículo de Publicida de ou Eventos – LVPE"]
[null,null,null,null,null,null,null,null,null,null,null,null,null,null,null,null,null,null,null,null,null,"Oficinas mecânicas, consertos de veículos em geral, inclusive parte elétrica, fibra de vidro e semelhantes, com troca de óleo","48.22.135","Área do Empreendimento (m²) ou (HA):","Área Construida (m²) OU (HA):",null,null,null,null,null,"Licença por Adesão e Compromisso - LAC"]
[null,null,null,null,null,null,null,null,null,null,null,null,null,null,null,null,null,null,null,null,null,"Oficinas mecânicas, consertos de veículos em geral, inclusive parte elétrica, fibra de vidro e semelhantes, sem troca de óleo","48.22.180","Área do Empreendimento (m²) ou (HA):","Área Construida (m²) OU (HA):",null,null,null,null,null,"Licença Prévia - LP"]
[null,null,null,null,null,null,null,null,null,null,null,null,null,null,null,null,null,null,null,null,null,"Oficinas mecânicas com serviços de lanternagem e pintura","48.22.225","Área do Empreendimento (m²) ou (HA):","Área Construida (m²) OU (HA):",null,null,null,null,null,"Licença Prévia - LP + Licença de Instalação – LI"]
["Escolha a Atividade:",null,null,null,null,null,null,null,"Código da Atividade:",null,null,null,null,null,null,null,null,null,null,null,null,"Transporte urbano de passageiros","48.22.270","Área do Empreendimento (m²) ou (HA):","Área Construida (m²) OU (HA):",null,null,null,null,null,"Licença Prévia - LP + Licença de Instalação – LI + Licença de Operação – LO"]
["Cemitério com crematório",null,null,null,null,null,null,null,{"$f":"IFERROR(VLOOKUP(A14,APOIO!A87:B146,2,0),\"\")","v":"48.55.625"},null,null,{"$f":"VLOOKUP(I14,Tabela12[[CÓDIGO]:[ESPECIFICAÇÕES5]],2,0)","v":"Área do Empreendimento (m²) ou (HA):"},null,null,null,null,null,null,null,null,null,"Posto de apoio para veículos em geral, caminhões, ônibus, etc, com troca de óleo","48.22.315","Área do Empreendimento (m²) ou (HA):","Área Construida (m²) OU (HA):",null,null,null,null,null,"Licença Simplificada - LS"]
[null,null,null,null,null,null,null,null,null,null,null,{"$f":"VLOOKUP(I14,Tabela12[[CÓDIGO]:[ESPECIFICAÇÕES5]],3,0)","v":"Área Construida (m²) OU (HA):"},null,null,null,null,null,null,null,null,null,"Posto de apoio para veículos em geral, caminhões, ônibus, etc, sem troca de óleo","48.22.360","Área do Empreendimento (m²) ou (HA):","Área Construida (m²) OU (HA):",null,null,null,null,null,"Outros (especificar)"]
["Escolha a Licença:",null,null,null,null,null,null,null,null,null,null,{"$f":"VLOOKUP(I14,Tabela12[[CÓDIGO]:[ESPECIFICAÇÕES5]],4,0)","v":"Número de Jazigos:"},null,null,null,null,null,null,null,null,null,"Recuperação e manutenção de botijões GLP","48.22.405","Área do Empreendimento (m²) ou (HA):","Área Construida (m²) OU (HA):",null,null,null,null,null,"Renovação de Licença de Instalação – RLI"]
["Renovação de Licença de Operação – RLO",null,null,null,null,null,null,null,null,null,null,{"$f":"VLOOKUP(I14,Tabela12[[CÓDIGO]:[ESPECIFICAÇÕES5]],5,0)","v":"Capacidade instalada (kg∕dia):"},null,null,null,null,null,null,null,null,null,"Comércio varejista de gás liquefeito (gás cozinha)","48.22.420","Área do Empreendimento (m²) ou (HA):","Área Construida (m²) OU (HA):",null,null,null,null,null,"Renovação de Licença de Operação – RLO"]
[null,null,null,null,null,null,null,null,null,null,null,{"$f":"IF(A17='MODELO (6)'!P20,COMERCIO!A20,\"\")","v":0},null,null,null,null,null,null,null,null,null,"Distribuidora e armazenamento de gás GLP (cozinha) e gás natural por gasodutos","48.22.430","Área do Empreendimento (m²) ou (HA):","Área Construida (m²) OU (HA):"]
["Se OUTROS, Especifique a Licença:",null,null,null,null,null,null,null,null,null,null,null,null,null,null,null,null,null,null,null,null,"Borracharia – consertos de pneus em geral, câmara de ar.","48.22.450","Área do Empreendimento (m²) ou (HA):","Área Construida (m²) OU (HA):"]
[null,null,null,null,null,null,null,null,null,null,null,null,null,null,null,null,null,null,null,null,null,"Troca de óleo","48.22.495","Área do Empreendimento (m²) ou (HA):","Área Construida (m²) OU (HA):"]
[null,null,null,null,null,null,null,null,null,null,null,null,null,null,null,null,null,null,null,null,null,"Lavagem e lubrificação de veículos","48.22.540","Área do Empreendimento (m²) ou (HA):","Área Construida (m²) OU (HA):"]
[null,null,null,null,null,null,null,null,null,null,null,null,null,null,null,null,null,null,null,null,null,"Empresa de serviços geraisnão mencionados anteriormente","48.22.585","Área do Empreendimento (m²) ou (HA):","Área Construida (m²) OU (HA):"]
[null,null,null,null,null,null,null,null,null,null,null,null,null,null,null,null,null,null,null,null,null,"Lavanderia para peças domesticas","48.22.630","Área do Empreendimento (m²) ou (HA):","Área Construida (m²) OU (HA):"]
[null,null,null,null,null,null,null,null,null,null,null,null,null,null,null,null,null,null,null,null,null,"Empresa de armazenamento e distribuição em geral","48.22.675","Área do Empreendimento (m²) ou (HA):","Área Construida (m²) OU (HA):"]
["Nome/ Razão Social:",null,null,null,null,null,null,null,null,null,null,null,null,null,null,null,null,null,null,null,null,"Locadora (aluguel) de veículos em geral","48.22.710","Área do Empreendimento (m²) ou (HA):","Área Construida (m²) OU (HA):"]
[null,null,null,null,null,null,null,null,null,null,null,null,null,null,null,null,null,null,null,null,null,"Empresa de transporte de passageiros e recreação aquática","48.22.755","Número de passageiros:","Área do Empreendimento (m²) ou (HA):","Área Construida (m²) OU (HA):"]
["CPF/CNPJ:",null,null,null,"Código CNAE:",null,null,null,null,null,null,null,null,null,null,null,null,null,null,null,null,"Empresa de transporte aquático de cargas","48.22.800","Área do Empreendimento (m²) ou (HA):","Área Construida (m²) OU (HA):"]
[null,null,null,null,null,null,null,null,null,null,null,null,null,null,null,null,null,null,null,null,null,"Empresa de transporte aquático de cargas Perigosas","48.22.830","Área do Empreendimento (m²) ou (HA):","Área Construida (m²) OU (HA):"]
["Nome Fantasia (quando houver):",null,null,null,null,null,null,null,null,null,null,null,null,null,null,null,null,null,null,null,null,"Frigorífico para estocagem e conservação de alimentos perecíveis – carnes, peixes, grãos, entre outros","48.22.845","Área do Empreendimento (m²) ou (HA):","Área Construida (m²) OU (HA):"]
[null,null,null,null,null,null,null,null,null,null,null,null,null,null,null,null,null,null,null,null,null,"Comércio e vendas em atacado e varejo, supermercado, shoppings, mercadinhos e semelhantes","48.22.890","Área do Empreendimento (m²) ou (HA):","Área Construida (m²) OU (HA):"]
["Logradouro/ Nº:",null,null,null,null,null,null,null,null,null,null,null,null,null,null,null,null,null,null,null,null,"Sede de Associações","48.22.935","Área do Empreendimento (m²) ou (HA):","Área Construida (m²) OU (HA):"]
[null,null,null,null,null,null,null,null,null,null,null,null,null,null,null,null,null,null,null,null,null,"Hospitais, sanatórios e maternidades","48.33.77","Número de leitos:","Área do Empreendimento (m²) ou (HA):","Área Construida (m²) OU (HA):"]
["Bairro:",null,null,null,"Município:",null,null,null,"CEP:",null,null,null,null,null,null,null,null,null,null,null,null,"Hospitais veterinários e centro de zoonoses","48.33.154","Área do Empreendimento (m²) ou (HA):","Área Construida (m²) OU (HA):"]
[null,null,null,null,null,null,null,null,null,null,null,null,null,null,null,null,null,null,null,null,null,"Clinicas médicas e/ou odontológicas com realização de exames e/ou procedimentos","48.33.231","Área do Empreendimento (m²) ou (HA):","Área Construida (m²) OU (HA):"]
["Complemento:",null,null,null,null,null,null,"Estado:",null,null,null,null,null,null,null,null,null,null,null,null,null,"Clinicas médicas com realização de exames e/ou procedimentos com utilização de radioterapia, quimioterapia e medicina nuclear","48.33.308","Área do Empreendimento (m²) ou (HA):","Área Construida (m²) OU (HA):"]
[null,null,null,null,null,null,null,null,null,null,null,null,null,null,null,null,null,null,null,null,null,"Posto de coleta laboratorial","48.33.385","Área do Empreendimento (m²) ou (HA):","Área Construida (m²) OU (HA):"]
[null,null,null,null,null,"Latitude:",null,"Longitude:",null,null,null,null,null,null,null,null,null,null,null,null,null,"Laboratórios de analises de serviços de saúde","48.33.462","Área do Empreendimento (m²) ou (HA):","Área Construida (m²) OU (HA):"]
["Coordenadas Geograficas:",null,null,null,null,null,null,null,null,null,null,null,null,null,null,null,null,null,null,null,null,"Laboratórios de análises biológicas, físicas, físico-químicas","48.33.539","Área do Empreendimento (m²) ou (HA):","Área Construida (m²) OU (HA):"]
[null,null,null,null,null,null,null,null,null,null,null,null,null,null,null,null,null,null,null,null,null,"Lavanderia industrial para serviços de saúde","48.33.616","Área do Empreendimento (m²) ou (HA):","Área Construida (m²) OU (HA):"]
[null,null,null,null,null,null,null,null,null,null,null,null,null,null,null,null,null,null,null,null,null,"Comercio varejista de produtos farmacêuticos","48.33.693","Área do Empreendimento (m²) ou (HA):","Área Construida (m²) OU (HA):"]
[null,null,null,null,null,null,null,null,null,null,null,null,null,null,null,null,null,null,null,null,null,"Comércio atacadista e Distribuidora de produtos farmacêuticos","48.33.770","Área do Empreendimento (m²) ou (HA):","Área Construida (m²) OU (HA):"]
[null,null,null,null,null,null,null,null,null,null,null,null,null,null,null,null,null,null,null,null,null,"Comércio de produtos médico hospitalares","48.33.847","Área do Empreendimento (m²) ou (HA):","Área Construida (m²) OU (HA):"]
[null,null,null,null,null,null,null,null,null,null,null,null,null,null,null,null,null,null,null,null,null,"Esterilizadora de materiais cirúrgicos","48.33.924","Área do Empreendimento (m²) ou (HA):","Área Construida (m²) OU (HA):"]
[null,null,null,null,null,null,null,null,null,null,null,null,null,null,null,null,null,null,null,null,null,"Distribuidora de produtos químicos","48.44.143","Área do Empreendimento (m²) ou (HA):","Área Construida (m²) OU (HA):"]
["Nome:",null,null,null,null,null,null,null,null,null,null,null,null,null,null,null,null,null,null,null,null,"Dedetizadora e imunizadora","54.44.286","Área do Empreendimento (m²) ou (HA):","Área Construida (m²) OU (HA):"]
[null,null,null,null,null,null,null,null,null,null,null,null,null,null,null,null,null,null,null,null,null,"Empresa com serviço de pulverização de defensivos agrícolas, terrestre e aérea","48.44.429","Área do Empreendimento (m²) ou (HA):","Área Construida (m²) OU (HA):"]
["CPF/CNPJ:",null,null,null,"Telefone para Contato:",null,null,null,null,null,null,null,null,null,null,null,null,null,null,null,null,"Comércio e venda de combustíveis em geral, gasolina, álcool, óleo lubrificante, gás natural automotivo, entre outros","48.44.572","Área do Empreendimento (m²) ou (HA):","Área Construida (m²) OU (HA):"]
[null,null,null,null,null,null,null,null,null,null,null,null,null,null,null,null,null,null,null,null,null,"Transporte de combustível em geral, gasolina, álcool, diesel, óleo lubrificante, entre outros","48.44.715","Tipo de veículo:","Área do Empreendimento (m²) ou (HA):","Área Construida (m²) OU (HA):"]
["E-mail para Contato:",null,null,null,null,null,null,null,null,null,null,null,null,null,null,null,null,null,null,null,null,"Distribuidoras de combustível em geral, gasolina, álcool, diesel e óleo lubrificante, gás natural, entre outros (incluindo auto abastecimento)","48.44.858","Área do Empreendimento (m²) ou (HA):","Área Construida (m²) OU (HA):"]
[null,null,null,null,null,null,null,null,null,null,null,null,null,null,null,null,null,null,null,null,null,"Cemitérios horizontais","48.55.125","Área do Empreendimento (m²) ou (HA):","Área Construida (m²) OU (HA):","Número de Jazigos:"]
["Endereço para Correspondência:",null,null,null,null,null,null,null,null,null,null,null,null,null,null,null,null,null,null,null,null,"Cemitérios verticais","48.55.250","Área do Empreendimento (m²) ou (HA):","Área Construida (m²) OU (HA):","Número de Jazigos:"]
[null,null,null,null,null,null,null,null,null,null,null,null,null,null,null,null,null,null,null,null,null,"Cemitérios horizontais e verticais","48.55.375","Área do Empreendimento (m²) ou (HA):","Área Construida (m²) OU (HA):","Número de Jazigos:"]
[null,null,null,null,null,null,null,null,null,null,null,null,null,null,null,null,null,null,null,null,null,"Crematórios","48.55.500","Área do Empreendimento (m²) ou (HA):","Área Construida (m²) OU (HA):","Número de Jazigos:","Capacidade instalada (kg∕dia):"]
[null,null,null,null,null,null,null,null,null,null,null,null,null,null,null,null,null,null,null,null,null,"Cemitério com crematório","48.55.625","Área do Empreendimento (m²) ou (HA):","Área Construida (m²) OU (HA):","Número de Jazigos:","Capacidade instalada (kg∕dia):"]
[null,null,null,null,null,null,null,null,null,null,null,null,null,null,null,null,null,null,null,null,null,"Central de velório","48.55.750","Área do Empreendimento (m²) ou (HA):","Área Construida (m²) OU (HA):","Número de Jazigos:"]
[null,null,null,null,null,null,null,null,null,null,null,null,null,null,null,null,null,null,null,null,null,"Central de velório com tanatopraxia","48.55.875","Área do Empreendimento (m²) ou (HA):","Área Construida (m²) OU (HA):","Número de Jazigos:"]
[null,null,null,null,null,null,null,null,null,null,null,null,null,null,null,null,null,null,null,null,null,"Centros educacionais","48.66.333","Área do Empreendimento (m²) ou (HA):","Área Construida (m²) OU (HA):"]
["CÓDIGO da Atividade:",null,null,null,"Número da Licença Anterior (quando houver):",null,null,null,null,null,null,null,null,null,null,null,null,null,null,null,null,"Centros educacionais com geração de resíduos especiais","48.66.666","Área do Empreendimento (m²) ou (HA):","Área Construida (m²) OU (HA):"]
[{"$f":"I14","v":"48.55.625"},null,null,null,null,null,null,null,null,null,null,null,null,null,null,null,null,null,null,null,null,"Evento privados em via pública e/ou áreas públicas, sendo estas abertas (gratuitas) ou fechadas (com cobranças de ingresso)","48.77.499","Área do Empreendimento (m²) ou (HA):","Área Construida (m²) OU (HA):"]
["Faturamento Anual (R$):",null,null,null,"Nº de Funcionários:",null,null,null,null,null,null,null,null,null,null,null,null,null,null,null,null,"Publicidade Volante e eventos","48.88.333","Tipo de veículo:","Área do Empreendimento (m²) ou (HA):","Área Construida (m²) OU (HA):"]
[null,null,null,null,null,null,null,null,null,null,null,null,null,null,null,null,null,null,null,null,null,"Trio elétricos (Exclusivos para eventos)","48.88.666","Tipo de veículo:","Área do Empreendimento (m²) ou (HA):","Área Construida (m²) OU (HA):"]
[{"$f":"IF(L14=0,\"\",L14)","v":"Área do Empreendimento (m²) ou (HA):"}]
[]
[{"$f":"IF(L15=0,\"\",L15)","v":"Área Construida (m²) OU (HA):"}]
[]
[{"$f":"IF(L16=0,\"\",L16)","v":"Número de Jazigos:"}]
[]
[{"$f":"IF(L17=0,\"\",L17)","v":"Capacidade instalada (kg∕dia):"}]
[]
[]
["Descrição da Atividade:"]
[]
[]
[]
[]
["Endereço da Atividade:"]
[null,null,null,null,null,null,null,null,null,null,null,null,null,null,null,null,null,null,null,null,null,null,null,null,null,null,null,null,null,null,null,{"$f":"CONCATENATE(I78,\" \",I79)","v":"CEP: "}]
["Bairro:",null,null,null,"Município:",null,null,null,"CEP:",null,null,null,null,null,null,null,null,null,null,null,null,null,null,null,null,null,null,null,null,null,null,{"$f":"CONCATENATE(A78,\" \",A79)","v":"Bairro: "}]
[null,null,null,null,null,null,null,null,null,null,null,null,null,null,null,null,null,null,null,null,null,null,null,null,null,null,null,null,null,null,null,{"$f":"CONCATENATE(H80,\" \",H81)","v":"Estado: "}]
["Complemento:",null,null,null,null,null,null,"Estado:",null,null,null,null,null,null,null,null,null,null,null,null,null,null,null,null,null,null,null,null,null,null,null,{"$f":"CONCATENATE(F82,\" \",F83)","v":"Latitude: "}]
[null,null,null,null,null,null,null,null,null,null,null,null,null,null,null,null,null,null,null,null,null,null,null,null,null,null,null,null,null,null,null,{"$f":"CONCATENATE(H82,\" \",H83)","v":"Longitude: "}]
[null,null,null,null,null,"Latitude:",null,"Longitude:"]
["Coordenadas Geograficas:"]
[]
[]
["DECLARO PARA OS DEVIDOS FINS, QUE O DESENVOLVIMENTO DAS ATIVIDADES RELACIONADAS NESTE REQUERIMENTO REALIZAR-SE-Á DE ACORDO COM OS DADOS TRANSCRITOS E ANEXOS INDICADOS NO ITEM 7(SETE). PELO QUE VENHO REQUERER A SUDEMA (Superintendência de Administração do Meio Ambiente), A EXPEDIÇÃO DA RESPECTIVA LICENÇA."]

{"sheet":"OBRAS","index":23,"n_rows":86,"n_cols":32,"rows_kept":86,"cut":false,"hidden":false,"merged":[[68,0,68,2],[70,0,70,2],[71,0,74,9],[85,0,89,9],[94,0,94,2],[75,0,75,3],[76,0,76,9],[77,0,77,1],[77,4,77,5],[77,8,77,9],[78,0,78,2],[78,4,78,6],[78,8,78,9],[79,0,79,3],[79,7,79,8],[80,0,80,5],[67,0,67,1],[59,0,59,2],[59,4,59,6],[60,0,60,2],[60,4,60,6],[62,0,62,2],[63,0,63,1],[64,0,64,2],[65,0,65,1],[66,0,66,2],[60,7,60,9],[61,0,61,2],[61,6,61,8],[50,0,50,3],[51,0,51,9],[57,0,57,2],[57,4,57,7],[58,0,58,2],[58,4,58,9],[49,0,49,9],[36,0,36,3],[36,7,36,9],[37,0,37,3],[37,7,37,9],[44,0,44,1],[45,0,45,9],[46,0,46,1],[46,4,46,5],[47,0,47,2],[47,4,47,5],[48,0,48,1],[35,0,35,5],[35,7,35,9],[29,0,29,9],[30,0,30,3],[31,0,31,9],[32,0,32,1],[32,4,32,5],[32,8,32,9],[33,0,33,2],[33,4,33,6],[33,8,33,9],[34,0,34,3],[34,7,34,8],[28,0,28,3],[12,0,12,1],[12,8,12,9],[13,0,13,6],[13,8,13,9],[15,0,15,1],[16,0,16,6],[18,0,18,3],[19,0,19,9],[24,0,24,1],[25,0,25,9],[26,0,26,1],[27,0,27,2],[27,4,27,9],[80,7,80,9],[81,0,81,3],[81,7,81,9],[82,0,82,3],[82,7,82,9]]}
[null,null,null,null,null,null,null,null,null,null,null,null,null,null,null,null,null,null,null,null,null,"OBRAS CIVIS","CÓDIGO","ESPECIFICAÇÕES","ESPECIFICAÇÕES2","ESPECIFICAÇÕES3","ESPECIFICAÇÕES4","ESPECIFICAÇÕES5",null,null,"Licenças"]
[null,null,null,null,null,null,null,null,null,null,null,null,null,null,null,null,null,null,null,null,null,"Atividades e empreendimentos residenciais unifamiliar, comercial ou residencial unifamiliar misto","56.17.53","Área do Empreendimento (m²) ou (HA):","Área Construida (m²) OU (HA):",null,null,null,null,null,"Autorização Ambiental - AA"]
[null,null,null,null,null,null,null,null,null,null,null,null,null,null,null,null,null,null,null,null,null,"Atividades e empreendimentos residenciais unifamiliar, comercial ou residencial unifamiliar misto com infraestrutura completa","56.17.106","Área do Empreendimento (m²) ou (HA):","Área Construida (m²) OU (HA):",null,null,null,null,null,"Licença de Alteração de Instalação - LAI"]
[null,null,null,null,null,null,null,null,null,null,null,null,null,null,null,null,null,null,null,null,null,"Atividades e empreendimentos residenciais multifamiliar horizontal","56.17.159","Área do Empreendimento (m²) ou (HA):","Área Construida (m²) OU (HA):",null,null,null,null,null,"Licença de Alteração de Operação - LAO"]
[null,null,null,null,null,null,null,null,null,null,null,null,null,null,null,null,null,null,null,null,null,"Atividades e empreendimentos residenciais multifamiliar horizontal com infraestrutura completa","56.17.212","Área do Empreendimento (m²) ou (HA):","Área Construida (m²) OU (HA):",null,null,null,null,null,"Licença de Instalação – LI"]
[null,null,null,null,null,null,null,null,null,null,null,null,null,null,null,null,null,null,null,null,null,"Atividades e empreendimentos industriais","56.17.265","Área do Empreendimento (m²) ou (HA):","Área Construida (m²) OU (HA):",null,null,null,null,null,"Licença de Operação – LO"]
[null,null,null,null,null,null,null,null,null,null,null,null,null,null,null,null,null,null,null,null,null,"Atividades e empreendimentos industriais com infraestrutura completa","56.17.318","Área do Empreendimento (m²) ou (HA):","Área Construida (m²) OU (HA):",null,null,null,null,null,"Licença de Regularização de Operação – LRO"]
[null,null,null,null,null,null,null,null,null,null,null,null,null,null,null,null,null,null,null,null,null,"Atividades ou empreendimentos esportivos (Quadra, Ginásio, Campo deb Futebol, Estádios...)","56.17.371","Área do Empreendimento (m²) ou (HA):","Área Construida (m²) OU (HA):",null,null,null,null,null,"Licença Prévia - LP"]
[null,null,null,null,null,null,null,null,null,null,null,null,null,null,null,null,null,null,null,null,null,"Atividades ou empreendimentos esportivos (Quadra, Ginásio, Campo de Futebol, Estádios...) com infraestrutura completa","56.17.424","Área do Empreendimento (m²) ou (HA):","Área Construida (m²) OU (HA):",null,null,null,null,null,"Licença Prévia - LP + Licença de Instalação – LI"]
[null,null,null,null,null,null,null,null,null,null,null,null,null,null,null,null,null,null,null,null,null,"Edificações verticais: condomínios","56.17.477","Área do Empreendimento (m²) ou (HA):","Área Construida (m²) OU (HA):",null,null,null,null,null,"Licença Prévia - LP + Licença de Instalação – LI + Licença de Operação – LO"]
[null,null,null,null,null,null,null,null,null,null,null,null,null,null,null,null,null,null,null,null,null,"Edificações verticais: condomínios com infraestrutura completa","56.17.530","Área do Empreendimento (m²) ou (HA):","Área Construida (m²) OU (HA):",null,null,null,null,null,"Licença Simplificada - LS"]
[null,null,null,null,null,null,null,null,null,null,null,null,null,null,null,null,null,null,null,null,null,"Empreendimentos lineares: condomínios fechados rurais e urbanos","56.17.583","Área do Empreendimento (m²) ou (HA):","Área Construida (m²) OU (HA):",null,null,null,null,null,"Outros (especificar)"]
["Escolha a Atividade:",null,null,null,null,null,null,null,"Código da Atividade:",null,null,null,null,null,null,null,null,null,null,null,null,"Empreendimentos lineares: condomínios fechados rurais e urbanos com infraestrutura completa","56.17.636","Área do Empreendimento (m²) ou (HA):","Área Construida (m²) OU (HA):",null,null,null,null,null,"Renovação de Licença de Instalação – RLI"]
["Captação de águas subterrâneas",null,null,null,null,null,null,null,{"$f":"IFERROR(VLOOKUP(A14,APOIO!A150:B198,2,0),\"\")","v":"56.85.800"},null,null,{"$f":"VLOOKUP(I14,Tabela15[[CÓDIGO]:[ESPECIFICAÇÕES5]],2,0)","v":"Vazão (M³/H)"},null,null,null,null,null,null,null,null,null,"Empreendimentos lineares: loteamentos","56.17.689","Área do Empreendimento (m²) ou (HA):","Área Construida (m²) OU (HA):",null,null,null,null,null,"Renovação de Licença de Operação – RLO"]
[null,null,null,null,null,null,null,null,null,null,null,{"$f":"VLOOKUP(I14,Tabela15[[CÓDIGO]:[ESPECIFICAÇÕES5]],3,0)","v":"Área do Empreendimento (m²) ou (HA):"},null,null,null,null,null,null,null,null,null,"Empreendimentos lineares: loteamentos com infraestrutura completa","56.17.742","Área do Empreendimento (m²) ou (HA):","Área Construida (m²) OU (HA):"]
["Escolha a Licença:",null,null,null,null,null,null,null,null,null,null,{"$f":"VLOOKUP(I14,Tabela15[[CÓDIGO]:[ESPECIFICAÇÕES5]],4,0)","v":"Área Construida (m²) OU (HA):"},null,null,null,null,null,null,null,null,null,"Assentamentos Rurais de Reforma Agrária","56.17.795","Área do Empreendimento (m²) ou (HA):","Área Construida (m²) OU (HA):"]
["Renovação de Licença de Instalação – RLI",null,null,null,null,null,null,null,null,null,null,{"$f":"VLOOKUP(I14,Tabela15[[CÓDIGO]:[ESPECIFICAÇÕES5]],5,0)","v":0},null,null,null,null,null,null,null,null,null,"Assentamentos Rurais de Reforma Agrária com infraestrutura completa","56.17.848","Área do Empreendimento (m²) ou (HA):","Área Construida (m²) OU (HA):"]
[null,null,null,null,null,null,null,null,null,null,null,{"$f":"IF(A17='MODELO (7)'!P20,OBRAS!A20,\"\")","v":0},null,null,null,null,null,null,null,null,null,"Projeto de urbanização","56.17.901","Área do Empreendimento (m²) ou (HA):","Área Construida (m²) OU (HA):"]
["Se OUTROS, Especifique a Licença:",null,null,null,null,null,null,null,null,null,null,null,null,null,null,null,null,null,null,null,null,"Projeto de urbanização com infraestrutura completa","56.17.954","Área do Empreendimento (m²) ou (HA):","Área Construida (m²) OU (HA):"]
[null,null,null,null,null,null,null,null,null,null,null,null,null,null,null,null,null,null,null,null,null,"Portos e instalações portuárias","56.34.84","Área do Empreendimento (m²) ou (HA):","Área Construida (m²) OU (HA):"]
[null,null,null,null,null,null,null,null,null,null,null,null,null,null,null,null,null,null,null,null,null,"Marinas e garagem de barcos","56.34.168","Área do Empreendimento (m²) ou (HA):","Área Construida (m²) OU (HA):"]
[null,null,null,null,null,null,null,null,null,null,null,null,null,null,null,null,null,null,null,null,null,"Estaleiros","56.34.252","Área do Empreendimento (m²) ou (HA):","Área Construida (m²) OU (HA):"]
[null,null,null,null,null,null,null,null,null,null,null,null,null,null,null,null,null,null,null,null,null,"Atracadouros e molhes","56.34.336","Área do Empreendimento (m²) ou (HA):","Área Construida (m²) OU (HA):"]
[null,null,null,null,null,null,null,null,null,null,null,null,null,null,null,null,null,null,null,null,null,"Pontilhões e Bueiros","56.34.420","Área do Empreendimento (m²) ou (HA):","Área Construida (m²) OU (HA):"]
["Nome/ Razão Social:",null,null,null,null,null,null,null,null,null,null,null,null,null,null,null,null,null,null,null,null,"Aeroportos","56.34.504","PASSAGEIROS X 1000/ANO","Área do Empreendimento (m²) ou (HA):","Área Construida (m²) OU (HA):"]
[null,null,null,null,null,null,null,null,null,null,null,null,null,null,null,null,null,null,null,null,null,"Outros sítios aeroportuários","56.34.588","PASSAGEIROS X 1000/ANO","Área do Empreendimento (m²) ou (HA):","Área Construida (m²) OU (HA):"]
["CPF/CNPJ:",null,null,null,"Código CNAE:",null,null,null,null,null,null,null,null,null,null,null,null,null,null,null,null,"Pontes e viadutos","56.34.672","Comprimento do tabuleiro (m)","Área do Empreendimento (m²) ou (HA):","Área Construida (m²) OU (HA):"]
[null,null,null,null,null,null,null,null,null,null,null,null,null,null,null,null,null,null,null,null,null,"Canalizações e retificações de cursos d’água","56.34.756","Comprimento (Km):","Área do Empreendimento (m²) ou (HA):","Área Construida (m²) OU (HA):"]
["Nome Fantasia (quando houver):",null,null,null,null,null,null,null,null,null,null,null,null,null,null,null,null,null,null,null,null,"Gasoduto","56.34.840","Comprimento (Km):","Área do Empreendimento (m²) ou (HA):","Área Construida (m²) OU (HA):"]
[null,null,null,null,null,null,null,null,null,null,null,null,null,null,null,null,null,null,null,null,null,"Oleoduto","56.34.924","Comprimento (Km):","Área do Empreendimento (m²) ou (HA):","Área Construida (m²) OU (HA):"]
["Logradouro/ Nº:",null,null,null,null,null,null,null,null,null,null,null,null,null,null,null,null,null,null,null,null,"Pavimentação e Drenagem de Vias Urbanas","56.51.143","Comprimento (Km):","Área do Empreendimento (m²) ou (HA):","Área Construida (m²) OU (HA):"]
[null,null,null,null,null,null,null,null,null,null,null,null,null,null,null,null,null,null,null,null,null,"Rodovias e binários com faixa de rolamento simples","56.51.286","Comprimento (Km):","Área do Empreendimento (m²) ou (HA):","Área Construida (m²) OU (HA):"]
["Bairro:",null,null,null,"Município:",null,null,null,"CEP:",null,null,null,null,null,null,null,null,null,null,null,null,"Rodovias e binários com 2 faixas de rolamento","56.51.429","Comprimento (Km):","Área do Empreendimento (m²) ou (HA):","Área Construida (m²) OU (HA):"]
[null,null,null,null,null,null,null,null,null,null,null,null,null,null,null,null,null,null,null,null,null,"Ferrovias, metrôs e VLT","56.51.572","Comprimento (Km):","Área do Empreendimento (m²) ou (HA):","Área Construida (m²) OU (HA):"]
["Complemento:",null,null,null,null,null,null,"Estado:",null,null,null,null,null,null,null,null,null,null,null,null,null,"Hidrovias","56.51.715","Comprimento (Km):","Área do Empreendimento (m²) ou (HA):","Área Construida (m²) OU (HA):"]
[null,null,null,null,null,null,null,null,null,null,null,null,null,null,null,null,null,null,null,null,null,"Túneis","56.51.858","Comprimento (Km):","Área do Empreendimento (m²) ou (HA):","Área Construida (m²) OU (HA):"]
[null,null,null,null,null,"Latitude:",null,"Longitude:",null,null,null,null,null,null,null,null,null,null,null,null,null,"Sistemas de distribuição de água","56.68.143","Vazão (M³/H)","Área do Empreendimento (m²) ou (HA):","Área Construida (m²) OU (HA):"]
["Coordenadas Geograficas:",null,null,null,null,null,null,null,null,null,null,null,null,null,null,null,null,null,null,null,null,"Instalação de Interceptores, Emissários e Rede Coletora de Esgoto","56.68.286","Comprimento (Km):","Área do Empreendimento (m²) ou (HA):","Área Construida (m²) OU (HA):"]
[null,null,null,null,null,null,null,null,null,null,null,null,null,null,null,null,null,null,null,null,null,"Estação de Tratamento de Efluentes - ETE","56.68.429","Vazão (M³/H)","Área do Empreendimento (m²) ou (HA):","Área Construida (m²) OU (HA):"]
[null,null,null,null,null,null,null,null,null,null,null,null,null,null,null,null,null,null,null,null,null,"Estação Elevatória de Efluente (EEE) com ou sem tratamento preliminar","56.68.572","Vazão (M³/H)","Área do Empreendimento (m²) ou (HA):","Área Construida (m²) OU (HA):"]
[null,null,null,null,null,null,null,null,null,null,null,null,null,null,null,null,null,null,null,null,null,"Sistema de tratamento de água","56.68.715","Vazão (M³/H)","Área do Empreendimento (m²) ou (HA):","Área Construida (m²) OU (HA):"]
[null,null,null,null,null,null,null,null,null,null,null,null,null,null,null,null,null,null,null,null,null,"Rede de Drenagem","56.68.858","Comprimento (Km):","Área do Empreendimento (m²) ou (HA):","Área Construida (m²) OU (HA):"]
[null,null,null,null,null,null,null,null,null,null,null,null,null,null,null,null,null,null,null,null,null,"Barragens, açudes e represas","56.85.200","Superfície (Km²):","Volume (10^6 m³)","Área do Empreendimento (m²) ou (HA):","Área Construida (m²) OU (HA):"]
[null,null,null,null,null,null,null,null,null,null,null,null,null,null,null,null,null,null,null,null,null,"Barragens de derivação ou regularização de nível de água","56.85.400","Área Alagada (HA):","Área do Empreendimento (m²) ou (HA):","Área Construida (m²) OU (HA):"]
["Nome:",null,null,null,null,null,null,null,null,null,null,null,null,null,null,null,null,null,null,null,null,"Captação e tratamento de águas superficiais","56.85.600","Vazão (M³/H)","Área do Empreendimento (m²) ou (HA):","Área Construida (m²) OU (HA):"]
[null,null,null,null,null,null,null,null,null,null,null,null,null,null,null,null,null,null,null,null,null,"Captação de águas subterrâneas","56.85.800","Vazão (M³/H)","Área do Empreendimento (m²) ou (HA):","Área Construida (m²) OU (HA):"]
["CPF/CNPJ:",null,null,null,"Telefone para Contato:",null,null,null,null,null,null,null,null,null,null,null,null,null,null,null,null,"Instalação de Canteiro de Obras","56.90.200","Área do Empreendimento (m²) ou (HA):","Área Construida (m²) OU (HA):"]
[null,null,null,null,null,null,null,null,null,null,null,null,null,null,null,null,null,null,null,null,null,"Dragagem, terraplanagem e desassoreamento","56.90.400","Volume ( m³):","Área do Empreendimento (m²) ou (HA):","Área Construida (m²) OU (HA):"]
["E-mail para Contato:",null,null,null,null,null,null,null,null,null,null,null,null,null,null,null,null,null,null,null,null,"Usinas de Asfalto ou Concreto","56.90.600","Área do Empreendimento (m²) ou (HA):","Área Construida (m²) OU (HA):"]
[null,null,null,null,null,null,null,null,null,null,null,null,null,null,null,null,null,null,null,null,null,"Recuperação de áreas degradadas","56.90.800","Área do Empreendimento (m²) ou (HA):","Área Construida (m²) OU (HA):"]
["Endereço para Correspondência:"]
[]
[]
[]
[]
[]
[]
["CÓDIGO da Atividade:",null,null,null,"Número da Licença Anterior (quando houver):"]
[{"$f":"I14","v":"56.85.800"}]
["Faturamento Anual (R$):",null,null,null,"Nº de Funcionários:"]
[]
[{"$f":"IF(L14=0,\"\",L14)","v":"Vazão (M³/H)"}]
[]
[{"$f":"IF(L15=0,\"\",L15)","v":"Área do Empreendimento (m²) ou (HA):"}]
[]
[{"$f":"IF(L16=0,\"\",L16)","v":"Área Construida (m²) OU (HA):"}]
[]
[{"$f":"IF(L17=0,\"\",L17)","v":""}]
[]
[]
["Descrição da Atividade:"]
[]
[]
[]
[]
["Endereço da Atividade:"]
[]
["Bairro:",null,null,null,"Município:",null,null,null,"CEP:"]
[null,null,null,null,null,null,null,null,null,null,null,null,null,null,null,null,null,null,null,null,null,null,null,null,null,null,null,null,null,null,null,{"$f":"CONCATENATE(I78,\" \",I79)","v":"CEP: "}]
["Complemento:",null,null,null,null,null,null,"Estado:",null,null,null,null,null,null,null,null,null,null,null,null,null,null,null,null,null,null,null,null,null,null,null,{"$f":"CONCATENATE(A78,\" \",A79)","v":"Bairro: "}]
[null,null,null,null,null,null,null,null,null,null," ",null,null,null,null,null,null,null,null,null,null,null,null,null,null,null,null,null,null,null,null,{"$f":"CONCATENATE(H80,\" \",H81)","v":"Estado: "}]
[null,null,null,null,null,"Latitude:",null,"Longitude:",null,null,null,null,null,null,null,null,null,null,null,null,null,null,null,null,null,null,null,null,null,null,null,{"$f":"CONCATENATE(F82,\" \",F83)","v":"Latitude: "}]
["Coordenadas Geograficas:",null,null,null,null,null,null,null,null,null,null,null,null,null,null,null,null,null,null,null,null,null,null,null,null,null,null,null,null,null,null,{"$f":"CONCATENATE(H82,\" \",H83)","v":"Longitude: "}]
[]
[]
["DECLARO PARA OS DEVIDOS FINS, QUE O DESENVOLVIMENTO DAS ATIVIDADES RELACIONADAS NESTE REQUERIMENTO REALIZAR-SE-Á DE ACORDO COM OS DADOS TRANSCRITOS E ANEXOS INDICADOS NO ITEM 7(SETE). PELO QUE VENHO REQUERER A SUDEMA (Superintendência de Administração do Meio Ambiente), A EXPEDIÇÃO DA RESPECTIVA LICENÇA."]

{"sheet":"MINERIO","index":24,"n_rows":86,"n_cols":32,"rows_kept":86,"cut":false,"hidden":false,"merged":[[80,7,80,9],[81,0,81,3],[81,7,81,9],[82,0,82,3],[82,7,82,9],[68,0,68,2],[70,0,70,2],[71,0,74,9],[85,0,89,9],[94,0,94,2],[75,0,75,3],[76,0,76,9],[77,0,77,1],[77,4,77,5],[77,8,77,9],[78,0,78,2],[78,4,78,6],[78,8,78,9],[79,0,79,3],[79,7,79,8],[80,0,80,5],[67,0,67,1],[59,0,59,2],[59,4,59,6],[60,0,60,2],[60,4,60,6],[62,0,62,2],[63,0,63,1],[64,0,64,2],[65,0,65,1],[66,0,66,2],[60,7,60,9],[61,0,61,2],[61,6,61,8],[50,0,50,3],[51,0,51,9],[57,0,57,2],[57,4,57,7],[58,0,58,2],[58,4,58,9],[49,0,49,9],[36,0,36,3],[36,7,36,9],[37,0,37,3],[37,7,37,9],[44,0,44,1],[45,0,45,9],[46,0,46,1],[46,4,46,5],[47,0,47,2],[47,4,47,5],[48,0,48,1],[35,0,35,5],[35,7,35,9],[28,0,28,3],[29,0,29,9],[30,0,30,3],[31,0,31,9],[32,0,32,1],[32,4,32,5],[32,8,32,9],[33,0,33,2],[33,4,33,6],[33,8,33,9],[34,0,34,3],[34,7,34,8],[27,0,27,2],[27,4,27,9],[12,0,12,1],[12,8,12,9],[13,0,13,6],[13,8,13,9],[15,0,15,1],[16,0,16,6],[18,0,18,3],[19,0,19,9],[24,0,24,1],[25,0,25,9],[26,0,26,1]]}
[null,null,null,null,null,null,null,null,null,null,null,null,null,null,null,null,null,null,null,null,null,"LAVRA DE MINÉRIO","CÓDIGO","ESPECIFICAÇÕES","ESPECIFICAÇÕES2","ESPECIFICAÇÕES3","ESPECIFICAÇÕES4","ESPECIFICAÇÕES5",null,null,"LICENÇAS:"]
[null,null,null,null,null,null,null,null,null,null,null,null,null,null,null,null,null,null,null,null,null,"Pesquisa Mineral","64.8.499","Área requerida ANM (HA):","Investimento Total (R$)","Área Construída (m²):",null,null,null,null,"Autorização Ambiental - AA"]
[null,null,null,null,null,null,null,null,null,null,null,null,null,null,null,null,null,null,null,null,null,"Lavra Envasamento e Gaseificação de água mineral (Poço ou Surgência)","64.16.499","Capacidade de Produção (L/h):","Área Construída (m²):","Área do Empreendimento (m²):","Investimento Total (R$):",null,null,null,"L. de Operação de Pesquisa Mineral - LOP"]
[null,null,null,null,null,null,null,null,null,null,null,null,null,null,null,null,null,null,null,null,null,"Lavra de minérios de ouro - (Autorização e Concessão)","64.24.200","Área requerida ANM (HA):","Investimento Total (R$)","Área Construída (m²):",null,null,null,null,"Licença de Alteração de Instalação - LAI"]
[null,null,null,null,null,null,null,null,null,null,null,null,null,null,null,null,null,null,null,null,null,"Lavra de minérios de ouro - (Lavra Garimpeira)","64.24.400","Área requerida ANM (HA):","Investimento Total (R$)","Área Construída (m²):",null,null,null,null,"Licença de Alteração de Operação - LAO"]
[null,null,null,null,null,null,null,null,null,null,null,null,null,null,null,null,null,null,null,null,null,"Lavra de minérios de platina - (Autorização e Concessão)","64.24.600","Área requerida ANM (HA):","Investimento Total (R$)","Área Construída (m²):",null,null,null,null,"Licença de Instalação – LI"]
[null,null,null,null,null,null,null,null,null,null,null,null,null,null,null,null,null,null,null,null,null,"Lavra de minérios de prata - (Autorização e Concessão)","64.24.800","Área requerida ANM (HA):","Investimento Total (R$)","Área Construída (m²):",null,null,null,null,"Licença de Operação – LO"]
[null,null,null,null,null,null,null,null,null,null,null,null,null,null,null,null,null,null,null,null,null,"Lavra de minérios de alumínio - (Autorização e Concessão)","64.32.100","Área requerida ANM (HA):","Investimento Total (R$)","Área Construída (m²):",null,null,null,null,"Licença de Regularização de Operação – LRO"]
[null,null,null,null,null,null,null,null,null,null,null,null,null,null,null,null,null,null,null,null,null,"Lavra de minérios de chumbo e estanho - (Autorização e Concessão)","64.32.200","Área requerida ANM (HA):","Investimento Total (R$)","Área Construída (m²):",null,null,null,null,"Licença de Transporte Estadual – LTE"]
[null,null,null,null,null,null,null,null,null,null,null,null,null,null,null,null,null,null,null,null,null,"Lavra de minérios de cobre - (Autorização e Concessão)","64.32.300","Área requerida ANM (HA):","Investimento Total (R$)","Área Construída (m²):",null,null,null,null,"Licença Prévia - LP"]
[null,null,null,null,null,null,null,null,null,null,null,null,null,null,null,null,null,null,null,null,null,"Lavra de minérios de cobre - (Lavra Garimpeira)","64.32.400","Área requerida ANM (HA):","Investimento Total (R$)","Área Construída (m²):",null,null,null,null,"Licença Prévia - LP + Licença de Instalação – LI"]
[null,null,null,null,null,null,null,null,null,null,null,null,null,null,null,null,null,null,null,null,null,"Lavra de minérios de ferro - (Autorização e Concessão)","64.32.500","Área requerida ANM (HA):","Investimento Total (R$)","Área Construída (m²):",null,null,null,null,"Licença Prévia - LP + Licença de Instalação – LI + Licença de Operação – LO"]
["Escolha a Atividade:",null,null,null,null,null,null,null,"Código da Atividade:",null,null,null,null,null,null,null,null,null,null,null,null,"Lavra de minérios de manganês - (Autorização e Concessão)","64.32.600","Área requerida ANM (HA):","Investimento Total (R$)","Área Construída (m²):",null,null,null,null,"Outros (especificar)"]
["Pesquisa Mineral",null,null,null,null,null,null,null,{"$f":"IFERROR(VLOOKUP(A14,APOIO!A203:B259,2,0),\"\")","v":"64.8.499"},null,null,{"$f":"VLOOKUP(I14,Tabela17[[CÓDIGO]:[ESPECIFICAÇÕES5]],2,0)","v":"Área requerida ANM (HA):"},null,null,null,null,null,null,null,null,null,"Lavra de minérios de níquel - (Autorização e Concessão)","64.32.700","Área requerida ANM (HA):","Investimento Total (R$)","Área Construída (m²):",null,null,null,null,"Renovação de Licença de Instalação – RLI"]
[null,null,null,null,null,null,null,null,null,null,null,{"$f":"VLOOKUP(I14,Tabela17[[CÓDIGO]:[ESPECIFICAÇÕES5]],3,0)","v":"Investimento Total (R$)"},null,null,null,null,null,null,null,null,null,"Lavra de minérios de tungstênio - (Autorização e Concessão)","64.32.800","Área requerida ANM (HA):","Investimento Total (R$)","Área Construída (m²):",null,null,null,null,"Renovação de Licença de Operação – RLO"]
["Escolha a Licença:",null,null,null,null,null,null,null,null,null,null,{"$f":"VLOOKUP(I14,Tabela17[[CÓDIGO]:[ESPECIFICAÇÕES5]],4,0)","v":"Área Construída (m²):"},null,null,null,null,null,null,null,null,null,"Lavra de minérios de zinco - (Autorização e Concessão)","64.32.900","Área requerida ANM (HA):","Investimento Total (R$)","Área Construída (m²):"]
["L. de Operação de Pesquisa Mineral - LOP",null,null,null,null,null,null,null,null,null,null,{"$f":"VLOOKUP(I14,Tabela17[[CÓDIGO]:[ESPECIFICAÇÕES5]],5,0)","v":0},null,null,null,null,null,null,null,null,null,"Lavra de argilas bentonita - (Autorização e Concessão)","64.40.50","Área requerida ANM (HA):","Investimento Total (R$)","Área Construída (m²):"]
[null,null,null,null,null,null,null,null,null,null,null,{"$f":"IF(A17='MODELO (8)'!P20,MINERIO!A20,\"\")","v":0},null,null,null,null,null,null,null,null,null,"Lavra de calcário (pedras e mariscos) gipsita (gesso bruto) - (Autorização e Concessão)","64.40.100","Área requerida ANM (HA):","Investimento Total (R$)","Área Construída (m²):"]
["Se OUTROS, Especifique a Licença:",null,null,null,null,null,null,null,null,null,null,null,null,null,null,null,null,null,null,null,null,"Lavra de calcário (pedras e mariscos) gipsita (gesso bruto) - (Regime de Licenciamento)","64.40.150","Área requerida ANM (HA):","Investimento Total (R$)","Área Construída (m²):"]
[null,null,null,null,null,null,null,null,null,null,null,null,null,null,null,null,null,null,null,null,null,"Lavra de caulim (argila refratária) - (Autorização e Concessão)","64.40.200","Área requerida ANM (HA):","Investimento Total (R$)","Área Construída (m²):"]
[null,null,null,null,null,null,null,null,null,null,null,null,null,null,null,null,null,null,null,null,null,"Lavra de cristal de rocha (quartzo) - (Autorização e Concessão)","64.40.250","Área requerida ANM (HA):","Investimento Total (R$)","Área Construída (m²):"]
[null,null,null,null,null,null,null,null,null,null,null,null,null,null,null,null,null,null,null,null,null,"Lavra de cristal de rocha (quartzo) - (Lavra Garimpeira)","64.40.300","Área requerida ANM (HA):","Investimento Total (R$)","Área Construída (m²):"]
[null,null,null,null,null,null,null,null,null,null,null,null,null,null,null,null,null,null,null,null,null,"Lavra de feldspato, apatita, grafita, baritina pirita e materiais abrasivos - (Autorização e Concessão)","64.40.350","Área requerida ANM (HA):","Investimento Total (R$)","Área Construída (m²):"]
[null,null,null,null,null,null,null,null,null,null,null,null,null,null,null,null,null,null,null,null,null,"Lavra de feldspato, apatita, grafita, baritina pirita e materiais abrasivos - (Lavra Garimpeira)","64.40.400","Área requerida ANM (HA):","Investimento Total (R$)","Área Construída (m²):"]
["Nome/ Razão Social:",null,null,null,null,null,null,null,null,null,null,null,null,null,null,null,null,null,null,null,null,"Lavra de micas - (Autorização e Concessão)","64.40.450","Área requerida ANM (HA):","Investimento Total (R$)","Área Construída (m²):"]
[null,null,null,null,null,null,null,null,null,null,null,null,null,null,null,null,null,null,null,null,null,"Lavra de micas - (Lavra Garimpeira)","64.40.500","Área requerida ANM (HA):","Investimento Total (R$)","Área Construída (m²):"]
["CPF/CNPJ:",null,null,null,"Código CNAE:",null,null,null,null,null,null,null,null,null,null,null,null,null,null,null,null,"Lavra de ocre e outras terras corantes - (Autorização e Concessão)","64.40.550","Área requerida ANM (HA):","Investimento Total (R$)","Área Construída (m²):"]
[null,null,null,null,null,null,null,null,null,null,null,null,null,null,null,null,null,null,null,null,null,"Lavra de ocre e outras terras corantes - (Regime de Licenciamento)","64.40.600","Área requerida ANM (HA):","Investimento Total (R$)","Área Construída (m²):"]
["Nome Fantasia (quando houver):",null,null,null,null,null,null,null,null,null,null,null,null,null,null,null,null,null,null,null,null,"Lavra de talco - (Autorização e Concessão)","64.40.650","Área requerida ANM (HA):","Investimento Total (R$)","Área Construída (m²):"]
[null,null,null,null,null,null,null,null,null,null,null,null,null,null,null,null,null,null,null,null,null,"Lavra de cascalho e saibro e argila para cerâmica - (Autorização e Concessão)","64.40.700","Área requerida ANM (HA):","Investimento Total (R$)","Área Construída (m²):"]
["Logradouro/ Nº:",null,null,null,null,null,null,null,null,null,null,null,null,null,null,null,null,null,null,null,null,"Lavra de cascalho e saibro e argila para cerâmica - (Regime de Licenciamento)","64.40.750","Área requerida ANM (HA):","Investimento Total (R$)","Área Construída (m²):"]
[null,null,null,null,null,null,null,null,null,null,null,null,null,null,null,null,null,null,null,null,null,"Lavra de rochas ornamentais (mármore, ardósia, granitoides, quartzito) -(Autorização e Concessão)","64.40.800","Área requerida ANM (HA):","Investimento Total (R$)","Área Construída (m²):"]
["Bairro:",null,null,null,"Município:",null,null,null,"CEP:",null,null,null,null,null,null,null,null,null,null,null,null,"Lavra de rochas ornamentais (mármore, ardósia, granitoides, quartzito) -(Regime de Licenciamento)","64.40.850","Área requerida ANM (HA):","Investimento Total (R$)","Área Construída (m²):"]
[null,null,null,null,null,null,null,null,null,null,null,null,null,null,null,null,null,null,null,null,null,"Lavra de rochas para utilização na construção civil - (Autorização e Concessão)","64.40.900","Área requerida ANM (HA):","Investimento Total (R$)","Área Construída (m²):"]
["Complemento:",null,null,null,null,null,null,"Estado:",null,null,null,null,null,null,null,null,null,null,null,null,null,"Lavra de rochas para utilização na construção civil - (Regime de Licenciamento)","64.40.950","Área requerida ANM (HA):","Investimento Total (R$)","Área Construída (m²):"]
[null,null,null,null,null,null,null,null,null,null,null,null,null,null,null,null,null,null,null,null,null,"Lavra de gemas (água marinha, topázio, turmalina, berilo, espodumênio,rubi, granada) - (Autorização e Concessão)","64.48.333","Área requerida ANM (HA):","Investimento Total (R$)","Área Construída (m²):"]
[null,null,null,null,null,"Latitude:",null,"Longitude:",null,null,null,null,null,null,null,null,null,null,null,null,null,"Lavra de gemas (água marinha, topázio, turmalina, berilo, espodumênio,rubi, granada) - (Lavra Garimpeira)","64.48.666","Área requerida ANM (HA):","Investimento Total (R$)","Área Construída (m²):"]
["Coordenadas Geograficas:",null,null,null,null,null,null,null,null,null,null,null,null,null,null,null,null,null,null,null,null,"Areia, cascalho, silte e argila - em leito de rios e riachos - (Autorização e Concessão)","64.56.111","Área requerida ANM (HA):","Investimento Total (R$)","Área Construída (m²):"]
[null,null,null,null,null,null,null,null,null,null,null,null,null,null,null,null,null,null,null,null,null,"Areia, cascalho, silte e argila - em leito de rios e riachos - (Regime de Licenciamento)","64.56.222","Área requerida ANM (HA):","Investimento Total (R$)","Área Construída (m²):"]
[null,null,null,null,null,null,null,null,null,null,null,null,null,null,null,null,null,null,null,null,null,"Lavra de areia em tabuleiro - (Autorização e Concessão)","64.56.333","Área requerida ANM (HA):","Investimento Total (R$)","Área Construída (m²):"]
[null,null,null,null,null,null,null,null,null,null,null,null,null,null,null,null,null,null,null,null,null,"Lavra de areia em tabuleiro - (Regime de Licenciamento)","64.56.444","Área requerida ANM (HA):","Investimento Total (R$)","Área Construída (m²):"]
[null,null,null,null,null,null,null,null,null,null,null,null,null,null,null,null,null,null,null,null,null,"Lavra de Argila - (Autorização e Concessão)","64.56.555","Área requerida ANM (HA):","Investimento Total (R$)","Área Construída (m²):"]
[null,null,null,null,null,null,null,null,null,null,null,null,null,null,null,null,null,null,null,null,null,"Lavra de Argila - (Regime de Licenciamento)","64.56.666","Área requerida ANM (HA):","Investimento Total (R$)","Área Construída (m²):"]
[null,null,null,null,null,null,null,null,null,null,null,null,null,null,null,null,null,null,null,null,null,"Lavra de Saibro - (Autorização e Concessão)","64.56.777","Área requerida ANM (HA):","Investimento Total (R$)","Área Construída (m²):"]
["Nome:",null,null,null,null,null,null,null,null,null,null,null,null,null,null,null,null,null,null,null,null,"Lavra de Saibro - (Regime de Licenciamento)","64.56.888","Área requerida ANM (HA):","Investimento Total (R$)","Área Construída (m²):"]
[null,null,null,null,null,null,null,null,null,null,null,null,null,null,null,null,null,null,null,null,null,"Lavra de sal gema - (Autorização e Concessão)","64.64.333","Área requerida ANM (HA):","Investimento Total (R$)","Área Construída (m²):"]
["CPF/CNPJ:",null,null,null,"Telefone para Contato:",null,null,null,null,null,null,null,null,null,null,null,null,null,null,null,null,"Lavra de sal marinho - (Autorização e Concessão)","64.64.666","Área requerida ANM (HA):","Investimento Total (R$)","Área Construída (m²):"]
[null,null,null,null,null,null,null,null,null,null,null,null,null,null,null,null,null,null,null,null,null,"Lavra de carvão mineral - (Autorização e Concessão)","64.72.200","Área requerida ANM (HA):","Investimento Total (R$)","Área Construída (m²):"]
["E-mail para Contato:",null,null,null,null,null,null,null,null,null,null,null,null,null,null,null,null,null,null,null,null,"Lavra de petróleo e gás natural - (Autorização e Concessão)","64.72.400","Área requerida ANM (HA):","Investimento Total (R$)","Área Construída (m²):"]
[null,null,null,null,null,null,null,null,null,null,null,null,null,null,null,null,null,null,null,null,null,"Lavra de xisto betuminoso - (Autorização e Concessão)","64.72.600","Área requerida ANM (HA):","Investimento Total (R$)","Área Construída (m²):"]
["Endereço para Correspondência:",null,null,null,null,null,null,null,null,null,null,null,null,null,null,null,null,null,null,null,null,"Lavra de xisto betuminoso - (Regime de Licenciamento)","64.72.800","Área requerida ANM (HA):","Investimento Total (R$)","Área Construída (m²):"]
[null,null,null,null,null,null,null,null,null,null,null,null,null,null,null,null,null,null,null,null,null,"Lavra de minérios de rádio - (Autorização e Concessão)","64.80.200","Área requerida ANM (HA):","Investimento Total (R$)","Área Construída (m²):"]
[null,null,null,null,null,null,null,null,null,null,null,null,null,null,null,null,null,null,null,null,null,"Lavra de minérios de tório - (Autorização e Concessão)","64.80.400","Área requerida ANM (HA):","Investimento Total (R$)","Área Construída (m²):"]
[null,null,null,null,null,null,null,null,null,null,null,null,null,null,null,null,null,null,null,null,null,"Lavra de minérios de urânio - (Autorização e Concessão)","64.80.600","Área requerida ANM (HA):","Investimento Total (R$)","Área Construída (m²):"]
[null,null,null,null,null,null,null,null,null,null,null,null,null,null,null,null,null,null,null,null,null,"Lavra de areia monazítica - (Autorização e Concessão)","64.80.800","Área requerida ANM (HA):","Investimento Total (R$)","Área Construída (m²):"]
[null,null,null,null,null,null,null,null,null,null,null,null,null,null,null,null,null,null,null,null,null,"Desassoreamento em leito de rio","64.88.333","Volume de material (m³):","Área do Empreendimento (m²):"]
[null,null,null,null,null,null,null,null,null,null,null,null,null,null,null,null,null,null,null,null,null,"Movimentação de terras","64.88.666","Volume de área (Ha):","Área do Empreendimento (m²):"]
["CÓDIGO da Atividade:",null,null,null,"Número da Licença Anterior (quando houver):",null,null,null,null,null,null,null,null,null,null,null,null,null,null,null,null,"Transporte de minérios","64.96.499","Número de Veículos:","Área do Empreendimento (m²):","Rota percorrida (KM)"]
[{"$f":"I14","v":"64.8.499"}]
["Faturamento Anual (R$):",null,null,null,"Nº de Funcionários:"]
[]
[{"$f":"IF(L14=0,\"\",L14)","v":"Área requerida ANM (HA):"}]
[]
[{"$f":"IF(L15=0,\"\",L15)","v":"Investimento Total (R$)"}]
[]
[{"$f":"IF(L16=0,\"\",L16)","v":"Área Construída (m²):"}]
[]
[{"$f":"IF(L17=0,\"\",L17)","v":""}]
[]
[]
["Descrição da Atividade:"]
[]
[]
[]
[]
["Endereço da Atividade:"]
[null,null,null,null,null,null,null,null,null,null,null,null,null,null,null,null,null,null,null,null,null,null,null,null,null,null,null,null,null,null,null,{"$f":"CONCATENATE(I78,\" \",I79)","v":"CEP: "}]
["Bairro:",null,null,null,"Município:",null,null,null,"CEP:",null,null,null,null,null,null,null,null,null,null,null,null,null,null,null,null,null,null,null,null,null,null,{"$f":"CONCATENATE(A78,\" \",A79)","v":"Bairro: "}]
[null,null,null,null,null,null,null,null,null,null,null,null,null,null,null,null,null,null,null,null,null,null,null,null,null,null,null,null,null,null,null,{"$f":"CONCATENATE(H80,\" \",H81)","v":"Estado: "}]
["Complemento:",null,null,null,null,null,null,"Estado:",null,null,null,null,null,null,null,null,null,null,null,null,null,null,null,null,null,null,null,null,null,null,null,{"$f":"CONCATENATE(F82,\" \",F83)","v":"Latitude: "}]
[null,null,null,null,null,null,null,null,null,null,null,null,null,null,null,null,null,null,null,null,null,null,null,null,null,null,null,null,null,null,null,{"$f":"CONCATENATE(H82,\" \",H83)","v":"Longitude: "}]
[null,null,null,null,null,"Latitude:",null,"Longitude:"]
["Coordenadas Geograficas:"]
[]
[]
["DECLARO PARA OS DEVIDOS FINS, QUE O DESENVOLVIMENTO DAS ATIVIDADES RELACIONADAS NESTE REQUERIMENTO REALIZAR-SE-Á DE ACORDO COM OS DADOS TRANSCRITOS E ANEXOS INDICADOS NO ITEM 7(SETE). PELO QUE VENHO REQUERER A SUDEMA (Superintendência de Administração do Meio Ambiente), A EXPEDIÇÃO DA RESPECTIVA LICENÇA."]

{"sheet":"INDUSTRIA","index":25,"n_rows":359,"n_cols":28,"rows_kept":359,"cut":false,"hidden":false,"merged":[[75,0,75,3],[75,7,75,9],[76,0,76,3],[76,7,76,9],[72,8,72,9],[73,0,73,3],[73,7,73,8],[74,0,74,5],[74,7,74,9],[64,0,64,2],[65,0,68,9],[79,0,83,9],[88,0,88,2],[61,4,61,5],[62,4,62,6],[62,0,62,2],[61,0,61,2],[61,6,61,8],[69,0,69,3],[70,0,70,9],[71,0,71,1],[71,4,71,5],[71,8,71,9],[72,0,72,2],[72,4,72,6],[59,0,59,2],[59,4,59,6],[60,0,60,2],[60,4,60,6],[60,7,60,9],[50,0,50,3],[51,0,51,9],[57,0,57,2],[57,4,57,7],[58,0,58,2],[58,4,58,9],[49,0,49,9],[36,0,36,3],[36,7,36,9],[37,0,37,3],[37,7,37,9],[44,0,44,1],[45,0,45,9],[46,0,46,1],[46,4,46,5],[47,0,47,2],[47,4,47,5],[48,0,48,1],[35,0,35,5],[35,7,35,9],[28,0,28,3],[29,0,29,9],[30,0,30,3],[31,0,31,9],[32,0,32,1],[32,4,32,5],[32,8,32,9],[33,0,33,2],[33,4,33,6],[33,8,33,9],[34,0,34,3],[34,7,34,8],[27,0,27,2],[27,4,27,9],[12,0,12,1],[12,8,12,9],[13,0,13,6],[13,8,13,9],[15,0,15,1],[16,0,16,6],[18,0,18,3],[19,0,19,9],[24,0,24,1],[25,0,25,9],[26,0,26,1]]}
[null,null,null,null,null,null,null,null,null,null,null,null,null,null,null,null,null,null,null,null,null,"ATIVIDADES INDUSTRIAIS","CÓDIGOS",null,null,null,"LICENÇAS:"]
[null,null,null,null,null,null,null,null,null,null,null,null,null,null,null,null,null,null,null,null,null,"Aparelho de mármore, ardósia, granito e outras pedras em chapas e placas","72.02.063",null,null,null,"Licença de Alteração de Instalação - LAI"]
[null,null,null,null,null,null,null,null,null,null,null,null,null,null,null,null,null,null,null,null,null,"Britamento de pedras","72.02.126",null,null,null,"Licença de Alteração de Operação - LAO"]
[null,null,null,null,null,null,null,null,null,null,null,null,null,null,null,null,null,null,null,null,null,"Execução de esculturas, entalhos e trabalho em alabastre, mármore,ardósia, granito e outras pedras","72.02.189",null,null,null,"Licença de Instalação – LI"]
[null,null,null,null,null,null,null,null,null,null,null,null,null,null,null,null,null,null,null,null,null,"Execução de obras de cantaria","72.02.252",null,null,null,"Licença de Operação – LO"]
[null,null,null,null,null,null,null,null,null,null,null,null,null,null,null,null,null,null,null,null,null,"Fabricação de polímeros (pedras para lavagem stonewash)","72.02.315",null,null,null,"Licença de Regularização de Operação – LRO"]
[null,null,null,null,null,null,null,null,null,null,null,null,null,null,null,null,null,null,null,null,null,"Fabricação de cal de mariscos","72.02.378",null,null,null,"Licença Prévia - LP"]
[null,null,null,null,null,null,null,null,null,null,null,null,null,null,null,null,null,null,null,null,null,"Fabricação de cal hidratada ou extinta","72.02.441",null,null,null,"Licença Prévia - LP + Licença de Instalação – LI"]
[null,null,null,null,null,null,null,null,null,null,null,null,null,null,null,null,null,null,null,null,null,"Fabricação de cal virgem","72.02.504",null,null,null,"Licença Prévia - LP + Licença de Instalação – LI + Licença de Operação – LO"]
[null,null,null,null,null,null,null,null,null,null,null,null,null,null,null,null,null,null,null,null,null,"Fabricação de artefatos de louça, porcelana, faiança e cerâmica artística","72.02.567",null,null,null,"Outros (especificar)"]
[null,null,null,null,null,null,null,null,null,null,null,null,null,null,null,null,null,null,null,null,null,"Fabricação de artigo de grês e material cerâmico refratário (telhas,tijolos, ladrilhos, mosaicos, pastilhas, tubos)","72.02.630",null,null,null,"Renovação de Licença de Instalação – RLI"]
[null,null,null,null,null,null,null,null,null,null,null,null,null,null,null,null,null,null,null,null,null,"Fabricação de artigos de barro cozido, manilhas, tijolos, vasilhames, etc","72.02.693",null,null,null,"Renovação de Licença de Operação – RLO"]
["Escolha a Atividade:",null,null,null,null,null,null,null,"Código da Atividade:",null,null,null,null,null,null,null,null,null,null,null,null,"Fabricação de louças para serviço de mesa","72.02.756"]
["Preparação de concreto e argamassa",null,null,null,null,null,null,null,{"$f":"IFERROR(VLOOKUP(A14,APOIO!A264:B613,2,0),\"\")","v":"72.04.875"},null,null,null,null,null,null,null,null,null,null,null,null,"Fabricação de aparelhos sanitários de louça (banheiras, bidês pias e vasos)","72.02.819"]
[null,null,null,null,null,null,null,null,null,null,null,null,null,null,null,null,null,null,null,null,null,"Fabricação de azulejos, calhas, cantos, rodapés e semelhantes","72.02.882"]
["Escolha a Licença:",null,null,null,null,null,null,null,null,null,null,null,null,null,null,null,null,null,null,null,null,"Fabricação de copos graduados e outros artigos de porcelana para laboratórios","72.02.945"]
["Licença de Instalação – LI",null,null,null,null,null,null,null,null,null,null,null,null,null,null,null,null,null,null,null,null,"Fabricação de artefatos de cimento e cimento armado (caixas d'água,caixas de gordura, fossas sépticas e semelhantes)","72.04.125"]
[null,null,null,null,null,null,null,null,null,null,null,{"$f":"IF(A17='MODELO (9)'!P20,INDUSTRIA!A20,\"\")","v":0},null,null,null,null,null,null,null,null,null,"Fabricação de   artefatos   de   fibrocimento   (chapas,   telhas,   canos,manilhas, tubos, conexões, caixa d'água e semelhantes)","72.04.250"]
["Se OUTROS, Especifique a Licença:",null,null,null,null,null,null,null,null,null,null,null,null,null,null,null,null,null,null,null,null,"Fabricação de ladrilhos e mosaicos de cimento","72.04.375"]
[null,null,null,null,null,null,null,null,null,null,null,null,null,null,null,null,null,null,null,null,null,"Fabricação de artigos de gesso e estuque","72.04.500"]
[null,null,null,null,null,null,null,null,null,null,null,null,null,null,null,null,null,null,null,null,null,"Fabricação de cimento","72.04.625"]
[null,null,null,null,null,null,null,null,null,null,null,null,null,null,null,null,null,null,null,null,null,"Fabricação de ladrilhos e produtos afins de marmorite, granitina e materiais semelhantes","72.04.750"]
[null,null,null,null,null,null,null,null,null,null,null,null,null,null,null,null,null,null,null,null,null,"Preparação de concreto e argamassa","72.04.875"]
[null,null,null,null,null,null,null,null,null,null,null,null,null,null,null,null,null,null,null,null,null,"Fabricação de artigos diversos de vidro e cristal para aparelhos de iluminação","72.05.125"]
["Nome/ Razão Social:",null,null,null,null,null,null,null,null,null,null,null,null,null,null,null,null,null,null,null,null,"Fabricação de artefatos de vidro, refratário e cristal para uso doméstico","72.05.250"]
[null,null,null,null,null,null,null,null,null,null,null,null,null,null,null,null,null,null,null,null,null,"Fabricação de   artefatos   de   vidro   para   indústrias   farmacêuticas,laboratórios, hospitais e afins","72.05.375"]
["CPF/CNPJ:",null,null,null,"Código CNAE:",null,null,null,null,null,null,null,null,null,null,null,null,null,null,null,null,"Fabricação de vidros para relógios","72.05.500"]
[null,null,null,null,null,null,null,null,null,null,null,null,null,null,null,null,null,null,null,null,null,"Fabricação de espelhos","72.05.625"]
["Nome Fantasia (quando houver):",null,null,null,null,null,null,null,null,null,null,null,null,null,null,null,null,null,null,null,null,"Fabricação de garrafas e semelhantes","72.05.750"]
[null,null,null,null,null,null,null,null,null,null,null,null,null,null,null,null,null,null,null,null,null,"Fabricação de vidro plano e de estrutura de vidro","72.05.875"]
["Logradouro/ Nº:",null,null,null,null,null,null,null,null,null,null,null,null,null,null,null,null,null,null,null,null,"Fabricação de artigos de grafita","72.06.143"]
[null,null,null,null,null,null,null,null,null,null,null,null,null,null,null,null,null,null,null,null,null,"Fabricação de materiais abrasivo, lixas e rebolas de esmeril","72.06.286"]
["Bairro:",null,null,null,"Município:",null,null,null,"CEP:",null,null,null,null,null,null,null,null,null,null,null,null,"Preparação de cristal de rocha (quartzo)","72.06.429"]
[null,null,null,null,null,null,null,null,null,null,null,null,null,null,null,null,null,null,null,null,null,"Preparação de talco, gesso e caulim","72.06.572"]
["Complemento:",null,null,null,null,null,null,"Estado:",null,null,null,null,null,null,null,null,null,null,null,null,null,"Preparação de mica","72.06.858"]
[null,null,null,null,null,null,null,null,null,null,null,null,null,null,null,null,null,null,null,null,null,"Siderurgia - Fabricação de artefatos de ferro, aço e metais não ferrosos trefilados","72.08.83"]
[null,null,null,null,null,"Latitude:",null,"Longitude:",null,null,null,null,null,null,null,null,null,null,null,null,null,"Siderurgia - Produção de tubos de ferro e aço, ferro-ligas, cordoalhas de navios e massame","72.08.167"]
["Coordenadas Geograficas:",null,null,null,null,null,null,null,null,null,null,null,null,null,null,null,null,null,null,null,null,"Fabricação de estruturas metálicas","72.08.250"]
[null,null,null,null,null,null,null,null,null,null,null,null,null,null,null,null,null,null,null,null,null,"Fabricação de artefatos de ferro, aço e metais não ferrosos trefilados. Fabricação de pregos, tachas, arestas e semelhantes","72.08.333"]
[null,null,null,null,null,null,null,null,null,null,null,null,null,null,null,null,null,null,null,null,null,"Fabricação de telas e outros artigos de arame","72.08.416"]
[null,null,null,null,null,null,null,null,null,null,null,null,null,null,null,null,null,null,null,null,null,"Fabricação de artigos de ferro, aço e metais trefilados","72.08.500"]
[null,null,null,null,null,null,null,null,null,null,null,null,null,null,null,null,null,null,null,null,null,"Forjaria e fundição de produtos siderúrgicos e metalúrgicos","72.08.583"]
[null,null,null,null,null,null,null,null,null,null,null,null,null,null,null,null,null,null,null,null,null,"Fundições de metais não ferrosos","72.08.666"]
[null,null,null,null,null,null,null,null,null,null,null,null,null,null,null,null,null,null,null,null,null,"Laminação de relaminação de produtos siderúrgicos e metalúrgicos","72.08.749"]
["Nome:",null,null,null,null,null,null,null,null,null,null,null,null,null,null,null,null,null,null,null,null,"Metalurgia dos metais não ferrosos","72.08.833"]
[null,null,null,null,null,null,null,null,null,null,null,null,null,null,null,null,null,null,null,null,null,"Metalurgia - cobre, chumbo e estanho. Produção de chapas, perfis,trefilados de alumínio, cobre e ligas de cobre","72.08.910"]
["CPF/CNPJ:",null,null,null,"Telefone para Contato:",null,null,null,null,null,null,null,null,null,null,null,null,null,null,null,null,"Fabricação de artigos de alumínio estampado","72.10.250"]
[null,null,null,null,null,null,null,null,null,null,null,null,null,null,null,null,null,null,null,null,null,"Fabricação de artigos de funilaria e latoaria em chapas de aço e ferro","72.10.375"]
["E-mail para Contato:",null,null,null,null,null,null,null,null,null,null,null,null,null,null,null,null,null,null,null,null,"Fabricação de artigos de funilaria e latoaria em chapas de cobre, zinco e semelhantes","72.10.500"]
[null,null,null,null,null,null,null,null,null,null,null,null,null,null,null,null,null,null,null,null,null,"Fabricação de artigos de funilaria e latoaria em chapas de flandres","72.10.625"]
["Endereço para Correspondência:",null,null,null,null,null,null,null,null,null,null,null,null,null,null,null,null,null,null,null,null,"Fabricação de artigos de metal estampado","72.10.750"]
[null,null,null,null,null,null,null,null,null,null,null,null,null,null,null,null,null,null,null,null,null,"Fabricação de artigos de aço estampado","72.10.875"]
[null,null,null,null,null,null,null,null,null,null,null,null,null,null,null,null,null,null,null,null,null,"Fabricação de artigos de caldeiraria","72.12.111"]
[null,null,null,null,null,null,null,null,null,null,null,null,null,null,null,null,null,null,null,null,null,"Fabricação de artefatos de serralheria artística","72.12.333"]
[null,null,null,null,null,null,null,null,null,null,null,null,null,null,null,null,null,null,null,null,null,"Fabricação de cofres","72.12.444"]
[null,null,null,null,null,null,null,null,null,null,null,null,null,null,null,null,null,null,null,null,null,"Fabricação de ferragens","72.12.555"]
[null,null,null,null,null,null,null,null,null,null,null,null,null,null,null,null,null,null,null,null,null,"Fabricação de recipientes de aço (para embalagens de gases,combustíveis)","72.12.666"]
["CÓDIGO da Atividade:",null,null,null,"Número da Licença Anterior (quando houver):",null,null,null,null,null,null,null,null,null,null,null,null,null,null,null,null,"Fabricação esquadrias de metal","72.12.777"]
[{"$f":"I14","v":"72.04.875"},null,null,null,null,null,null,null,null,null,null,null,null,null,null,null,null,null,null,null,null,"Fabricação fogões, fogareiros e aquecedores não elétricos","72.12.888"]
["Faturamento Anual (R$):",null,null,null,"Nº de Funcionários:",null,null,null,null,null,null,null,null,null,null,null,null,null,null,null,null,"Fabricação de facas, facões, tesouras, canivetes e talheres","72.14.125"]
[null,null,null,null,null,null,null,null,null,null,null,null,null,null,null,null,null,null,null,null,null,"Fabricação de navalhas e lâminas de barbear","72.14.250"]
["Área do Empreendimento (m²):",null,null,null,"Área Construida (m²):",null,null,null,null,null,null,null,null,null,null,null,null,null,null,null,null,"Fabricação de quinquilharias para escrita e uso pessoal","72.14.375"]
[null,null,null,null,null,null,null,null,null,null,null,null,null,null,null,null,null,null,null,null,null,"Fabricação de armas de fogo e/ou seus insumos","72.14.500"]
[null,null,null,null,null,null,null,null,null,null,null,null,null,null,null,null,null,null,null,null,null,"Fabricação esponjas e palhas de aço","72.14.625"]
["Descrição da Atividade:",null,null,null,null,null,null,null,null,null,null,null,null,null,null,null,null,null,null,null,null,"Fabricação ferramentas e utensílios para trabalho manual","72.14.750"]
[null,null,null,null,null,null,null,null,null,null,null,null,null,null,null,null,null,null,null,null,null,"Fabricação punhais, sabres, floretes e outra arma branca","72.14.875"]
[null,null,null,null,null,null,null,null,null,null,null,null,null,null,null,null,null,null,null,null,null,"Têmpera, galvanização e operações similares. Anodização, niquelagem e cromagem","72.16.333"]
[null,null,null,null,null,null,null,null,null,null,null,null,null,null,null,null,null,null,null,null,null,"Extintores de incêndio","72.18.100"]
[null,null,null,null,null,null,null,null,null,null,null,null,null,null,null,null,null,null,null,null,null,"Fabricação de máquinas, aparelhos e equipamentos não elétricos para instalação hidráulica térmica","72.18.200"]
["Endereço da Atividade:",null,null,null,null,null,null,null,null,null,null,null,null,null,null,null,null,null,null,null,null,"Fabricação de máquinas, aparelhos e equipamentos não elétricos para instalação de ventilação e aparelhos de refrigeração","72.18.300"]
[null,null,null,null,null,null,null,null,null,null,null,null,null,null,null,null,null,null,null,null,null,"Fabricação de caldeiras, geradores de vapor","72.18.400"]
["Bairro:",null,null,null,"Município:",null,null,null,"CEP:",null,null,null,null,null,null,null,null,null,null,null,null,null,null,null,null,null,null,{"$f":"CONCATENATE(I72,\" \",I73)","v":"CEP: "}]
[null,null,null,null,null,null,null,null,null,null,null,null,null,null,null,null,null,null,null,null,null,null,null,null,null,null,null,{"$f":"CONCATENATE(A72,\" \",A73)","v":"Bairro: "}]
["Complemento:",null,null,null,null,null,null,"Estado:",null,null,null,null,null,null,null,null,null,null,null,null,null,null,null,null,null,null,null,{"$f":"CONCATENATE(H74,\" \",H75)","v":"Estado: "}]
[null,null,null,null,null,null,null,null,null,null," ",null,null,null,null,null,null,null,null,null,null,null,null,null,null,null,null,{"$f":"CONCATENATE(F76,\" \",F77)","v":"Latitude: "}]
[null,null,null,null,null,"Latitude:",null,"Longitude:",null,null,null,null,null,null,null,null,null,null,null,null,null,null,null,null,null,null,null,{"$f":"CONCATENATE(H76,\" \",H77)","v":"Longitude: "}]
["Coordenadas Geograficas:"]
[]
[]
["DECLARO PARA OS DEVIDOS FINS, QUE O DESENVOLVIMENTO DAS ATIVIDADES RELACIONADAS NESTE REQUERIMENTO REALIZAR-SE-Á DE ACORDO COM OS DADOS TRANSCRITOS E ANEXOS INDICADOS NO ITEM 7(SETE). PELO QUE VENHO REQUERER A SUDEMA (Superintendência de Administração do Meio Ambiente), A EXPEDIÇÃO DA RESPECTIVA LICENÇA.",null,null,null,null,null,null,null,null,null,null,null,null,null,null,null,null,null,null,null,null,"Fabricação de máquinas e aparelhos para indústrias no geral","72.20.100"]
[null,null,null,null,null,null,null,null,null,null,null,null,null,null,null,null,null,null,null,null,null,"Fabricação de máquinas e aparelhos para indústria de açúcar, destilaria do álcool e aguardente","72.20.200"]
[null,null,null,null,null,null,null,null,null,null,null,null,null,null,null,null,null,null,null,null,null,"Fabricação de peças, acessórios, utensílios, ferramentas para máquinas industriais","72.20.300"]
[null,null,null,null,null,null,null,null,null,null,null,null,null,null,null,null,null,null,null,null,null,"Fabricação de máquinas e aparelhos para olarias, indústria de cerâmica e para tratam de pedras, saibros e areias","72.20.400"]
[null,null,null,null,null,null,null,null,null,null,null,null,null,null,null,null,null,null,null,null,null,"Fabricação de máquinas e aparelhos para indústria de couro e calçado","72.20.500"]
[null,null,null,null,null,null,null,null,null,null,null,null,null,null,null,null,null,null,null,null,null,"Fabricação de maquinas e aparelhos para indústria de madeira","72.20.600"]
[null,null,null,null,null,null,null,null,null,null,null,null,null,null,null,null,null,null,null,null,null,"Fabricação de máquinas e aparelhos para indústria de celulose, papel e papelão","72.20.700"]
[null,null,null,null,null,null,null,null,null,null,null,null,null,null,null,null,null,null,null,null,null,"Fabricação de máquinas e aparelhos para indústria de óleos vegetais","72.20.800"]
[null,null,null,null,null,null,null,null,null,null,null,null,null,null,null,null,null,null,null,null,null,"Fabricação de máquinas e aparelhos para indústria siderúrgica","72.20.900"]
[null,null,null,null,null,null,null,null,null,null,null,null,null,null,null,null,null,null,null,null,null,"Fabricação de arados, ceifaderas, trilhadeiras, semeadeiras, cultivadores e semelhantes","72.21.111"]
[null,null,null,null,null,null,null,null,null,null,null,null,null,null,null,null,null,null,null,null,null,"Fabricação   de   debulhadores,   desnatadeiras,   batedeiras e outros aparelhos de tipo manual","72.21.222"]
[null,null,null,null,null,null,null,null,null,null,null,null,null,null,null,null,null,null,null,null,null,"Fabricação de aparelhos avícolas, como incubadoras e afins","72.21.333"]
[null,null,null,null,null,null,null,null,null,null,null,null,null,null,null,null,null,null,null,null,null,"Fabricação de máquinas e aparelhos para beneficiamento de café e cereais","72.21.444"]
[null,null,null,null,null,null,null,null,null,null,null,null,null,null,null,null,null,null,null,null,null,"Fabricação de máquinas e aparelhos para beneficiamento do algodão e outras fibras","72.21.555"]
[null,null,null,null,null,null,null,null,null,null,null,null,null,null,null,null,null,null,null,null,null,"Fabricação de peças e acessórios para máquinas de agricultura e indústrias rurais","72.21.666"]
[null,null,null,null,null,null,null,null,null,null,null,null,null,null,null,null,null,null,null,null,null,"Fabricação de pulverizadores, polvilhadores, extintores de formiga e semelhantes","72.21.777"]
[null,null,null,null,null,null,null,null,null,null,null,null,null,null,null,null,null,null,null,null,null,"Fabricação e montagem de tratores agrícolas","72.21.888"]
[null,null,null,null,null,null,null,null,null,null,null,null,null,null,null,null,null,null,null,null,null,"Fabricação de aparelhos de transporte e elevação de casa para fins industriais","72.22.167"]
[null,null,null,null,null,null,null,null,null,null,null,null,null,null,null,null,null,null,null,null,null,"Fabricação de balanças, básculas e máquinas de fatiar","72.22.334"]
[null,null,null,null,null,null,null,null,null,null,null,null,null,null,null,null,null,null,null,null,null,"Fabricação de bombas para gasolina e outros combustíveis","72.22.501"]
[null,null,null,null,null,null,null,null,null,null,null,null,null,null,null,null,null,null,null,null,null,"Fabricação de elevadores e escadas rolantes para transporte de pessoas","72.22.668"]
[null,null,null,null,null,null,null,null,null,null,null,null,null,null,null,null,null,null,null,null,null,"Fabricação de maquinas, aparelhos e equipamentos para instalações industriais e comerciais","72.22.835"]
[null,null,null,null,null,null,null,null,null,null,null,null,null,null,null,null,null,null,null,null,null,"Fabricação de máquinas e aparelhos para escritório","72.24.334"]
[null,null,null,null,null,null,null,null,null,null,null,null,null,null,null,null,null,null,null,null,null,"Fabricação de máquinas de costura","72.24.501"]
[null,null,null,null,null,null,null,null,null,null,null,null,null,null,null,null,null,null,null,null,null,"Fabricação de máquinas e aparelhos para barbeiros, cabeleireiros e afins","72.24.668"]
[null,null,null,null,null,null,null,null,null,null,null,null,null,null,null,null,null,null,null,null,null,"Fabricação de refrigeradores não elétricos","72.24.835"]
[null,null,null,null,null,null,null,null,null,null,null,null,null,null,null,null,null,null,null,null,null,"Fabricação de acumuladores, baterias e pilhas secas","72.26.100"]
[null,null,null,null,null,null,null,null,null,null,null,null,null,null,null,null,null,null,null,null,null,"Fabricação de aparelhos de medidas elétricas","72.26.200"]
[null,null,null,null,null,null,null,null,null,null,null,null,null,null,null,null,null,null,null,null,null,"Fabricação de eletrodos","72.26.300"]
[null,null,null,null,null,null,null,null,null,null,null,null,null,null,null,null,null,null,null,null,null,"Fabricação de materiais para instalação elétrica e afins","72.26.400"]
[null,null,null,null,null,null,null,null,null,null,null,null,null,null,null,null,null,null,null,null,null,"Fabricação de materiais elétricos para veículos","72.26.500"]
[null,null,null,null,null,null,null,null,null,null,null,null,null,null,null,null,null,null,null,null,null,"Fabricação de resistências e condensadores elétricos","72.26.600"]
[null,null,null,null,null,null,null,null,null,null,null,null,null,null,null,null,null,null,null,null,null,"Fabricação de   transformadores   para   radio,   televisor   e   aparelhos eletrônicos","72.26.700"]
[null,null,null,null,null,null,null,null,null,null,null,null,null,null,null,null,null,null,null,null,null,"Fabricação de geradores, motores, conversores e transformadores","72.26.900"]
[null,null,null,null,null,null,null,null,null,null,null,null,null,null,null,null,null,null,null,null,null,"Fabricação de aparelhos de raio-x para eletrodiagnostico e semelhantes","72.28.111"]
[null,null,null,null,null,null,null,null,null,null,null,null,null,null,null,null,null,null,null,null,null,"Fabricação de aparelho de ferro de soldar","72.28.222"]
[null,null,null,null,null,null,null,null,null,null,null,null,null,null,null,null,null,null,null,null,null,"Fabricação de aparelho de galvanização e aparelhos eletrotécnicos","72.28.333"]
[null,null,null,null,null,null,null,null,null,null,null,null,null,null,null,null,null,null,null,null,null,"Fabricação de aparelhos de válvulas e tubos para aparelhos médicos e radiológicos","72.28.444"]
[null,null,null,null,null,null,null,null,null,null,null,null,null,null,null,null,null,null,null,null,null,"Fabricação de esterilizadores e estufas","72.28.666"]
[null,null,null,null,null,null,null,null,null,null,null,null,null,null,null,null,null,null,null,null,null,"Fabricação de fogões, fogareiros e semelhantes","72.28.777"]
[null,null,null,null,null,null,null,null,null,null,null,null,null,null,null,null,null,null,null,null,null,"Fabricação de refrigeradores e eletrodomésticos e semelhantes","72.28.888"]
[null,null,null,null,null,null,null,null,null,null,null,null,null,null,null,null,null,null,null,null,null,"Fabricação de aparelhos de sinalização para aeródromos, ferrovias e afins","72.30.111"]
[null,null,null,null,null,null,null,null,null,null,null,null,null,null,null,null,null,null,null,null,null,"Fabricação de Aparelhos e Equipamentos Elétricos, Eletrônicos, Eletrodomésticos, Informática e Telecomunicações","72.30.222"]
[null,null,null,null,null,null,null,null,null,null,null,null,null,null,null,null,null,null,null,null,null,"Fabricação de aparelhos telefônicos, centrais telefônicas, mesas telefônicas, inclusive peças e acessórios","72.30.333"]
[null,null,null,null,null,null,null,null,null,null,null,null,null,null,null,null,null,null,null,null,null,"Fabricação e montagem de tv, rádios, fonográficos e toca discos","72.30.555"]
[null,null,null,null,null,null,null,null,null,null,null,null,null,null,null,null,null,null,null,null,null,"Fabricação de equipamentos de aparelho, transmissores de radiotelefonia, radiotelegrafia e de gravação e amplificação de som,inclusive peças e acessórios","72.30.666"]
[null,null,null,null,null,null,null,null,null,null,null,null,null,null,null,null,null,null,null,null,null,"Fabricação de peças, e acessórios para tv, rádios e fonografos, inclusive antenas","72.30.777"]
[null,null,null,null,null,null,null,null,null,null,null,null,null,null,null,null,null,null,null,null,null,"Montagem de som/módulos em geral","72.30.888"]
[null,null,null,null,null,null,null,null,null,null,null,null,null,null,null,null,null,null,null,null,null,"Fabricação de veículos ferroviários e ferrocarris urbanos (locomotivas,carros, motores e vagões)","72.32.200"]
[null,null,null,null,null,null,null,null,null,null,null,null,null,null,null,null,null,null,null,null,null,"Fabricação de peças e acessórios para embarcações","72.32.600"]
[null,null,null,null,null,null,null,null,null,null,null,null,null,null,null,null,null,null,null,null,null,"Fabricação de peças e acessórios para veículos ferroviários e ferrocarris","72.32.800"]
[null,null,null,null,null,null,null,null,null,null,null,null,null,null,null,null,null,null,null,null,null,"Fabricação de carrocerias para veículos a motor","72.34.200"]
[null,null,null,null,null,null,null,null,null,null,null,null,null,null,null,null,null,null,null,null,null,"Fabricação e montagem de ônibus elétrico","72.34.400"]
[null,null,null,null,null,null,null,null,null,null,null,null,null,null,null,null,null,null,null,null,null,"Fabricação e montagem de veículo automotivo","72.34.600"]
[null,null,null,null,null,null,null,null,null,null,null,null,null,null,null,null,null,null,null,null,null,"Fabricação de peças e acessórios não elétricos e motores completos para veículos de auto propulsão","72.34.800"]
[null,null,null,null,null,null,null,null,null,null,null,null,null,null,null,null,null,null,null,null,null,"Fabricação de peças e acessórios para motocicletas e motores para bicicleta","72.36.333"]
[null,null,null,null,null,null,null,null,null,null,null,null,null,null,null,null,null,null,null,null,null,"Fabricação e montagem de motocicleta, motoneta e triciclo motorizado","72.36.666"]
[null,null,null,null,null,null,null,null,null,null,null,null,null,null,null,null,null,null,null,null,null,"Fabricação de peças e acessórios para tratores não agrícolas","72.37.200"]
[null,null,null,null,null,null,null,null,null,null,null,null,null,null,null,null,null,null,null,null,null,"Fabricação de peças e acessórios para maquinas de terraplanagem","72.37.400"]
[null,null,null,null,null,null,null,null,null,null,null,null,null,null,null,null,null,null,null,null,null,"Fabricação e montagem de máquinas e terraplanagem","72.37.600"]
[null,null,null,null,null,null,null,null,null,null,null,null,null,null,null,null,null,null,null,null,null,"Fabricação e montagem de tratores não agrícolas","72.37.800"]
[null,null,null,null,null,null,null,null,null,null,null,null,null,null,null,null,null,null,null,null,null,"Fabricação de peças e acessórios para aviões, inclusive motores","72.38.333"]
[null,null,null,null,null,null,null,null,null,null,null,null,null,null,null,null,null,null,null,null,null,"Fabricação e montagem de aviões","72.38.666"]
[null,null,null,null,null,null,null,null,null,null,null,null,null,null,null,null,null,null,null,null,null,"Fabricação de   outros   veículos   (carrinho   de   mão,   carrocinhas   e semelhantes)","72.40.500"]
[null,null,null,null,null,null,null,null,null,null,null,null,null,null,null,null,null,null,null,null,null,"Fabricação de veículos a tração animal (carroças, carroções, charretes e semelhantes)","72.40.750"]
[null,null,null,null,null,null,null,null,null,null,null,null,null,null,null,null,null,null,null,null,null,"Desdobramento de madeira, produção serralheria","72.42.100"]
[null,null,null,null,null,null,null,null,null,null,null,null,null,null,null,null,null,null,null,null,null,"Fabricação de   cabos   de   madeira   para   ferramentas   e   utensílios (calçados), artefatos de madeira torneada","72.42.200"]
[null,null,null,null,null,null,null,null,null,null,null,null,null,null,null,null,null,null,null,null,null,"Fabricação de artigos de madeira arqueada e artigos de tanoaria","72.42.400"]
[null,null,null,null,null,null,null,null,null,null,null,null,null,null,null,null,null,null,null,null,null,"Fabricação de artigos de madeira para uso doméstico e comercial","72.42.500"]
[null,null,null,null,null,null,null,null,null,null,null,null,null,null,null,null,null,null,null,null,null,"Fabricação de cestos, esteiras e outros artefatos de bambu, vime, junco ou palha trançados","72.42.600"]
[null,null,null,null,null,null,null,null,null,null,null,null,null,null,null,null,null,null,null,null,null,"Fabricação de esquadrias, tesouras e outras estruturas de madeira","72.42.700"]
[null,null,null,null,null,null,null,null,null,null,null,null,null,null,null,null,null,null,null,null,null,"Fabricação de madeira compensada, folheada e laminada","72.42.800"]
[null,null,null,null,null,null,null,null,null,null,null,null,null,null,null,null,null,null,null,null,null,"Fabricação de pás, colheres e palitos de madeira","72.42.900"]
[null,null,null,null,null,null,null,null,null,null,null,null,null,null,null,null,null,null,null,null,null,"Fabricação de móveis de ferro e metal artístico","72.43.111"]
[null,null,null,null,null,null,null,null,null,null,null,null,null,null,null,null,null,null,null,null,null,"Fabricação de artigos de colchoaria, edredons e semelhantes","72.43.222"]
[null,null,null,null,null,null,null,null,null,null,null,null,null,null,null,null,null,null,null,null,null,"Fabricação de caixa ou gab. para maquina de costura e semelhantes","72.43.333"]
[null,null,null,null,null,null,null,null,null,null,null,null,null,null,null,null,null,null,null,null,null,"Fabricação móveis de metal e moveis de aço","72.43.444"]
[null,null,null,null,null,null,null,null,null,null,null,null,null,null,null,null,null,null,null,null,null,"Fabricação móveis de madeira para instalações comerciais","72.43.555"]
[null,null,null,null,null,null,null,null,null,null,null,null,null,null,null,null,null,null,null,null,null,"Fabricação móveis de madeira, vime, bambu, semelhantes","72.43.666"]
[null,null,null,null,null,null,null,null,null,null,null,null,null,null,null,null,null,null,null,null,null,"Fabricação de artigos diversos de mobília","72.43.777"]
[null,null,null,null,null,null,null,null,null,null,null,null,null,null,null,null,null,null,null,null,null,"Fabricação de persianas","72.43.888"]
[null,null,null,null,null,null,null,null,null,null,null,null,null,null,null,null,null,null,null,null,null,"Fabricação de artefatos de papel associado a fabricação papel e semelhantes","72.44.125"]
[null,null,null,null,null,null,null,null,null,null,null,null,null,null,null,null,null,null,null,null,null,"Fabricação de artefatos de papel não associado a fabricação de papel","72.44.250"]
[null,null,null,null,null,null,null,null,null,null,null,null,null,null,null,null,null,null,null,null,null,"Fabricação de artefatos de papelão e semelhantes","72.44.375"]
[null,null,null,null,null,null,null,null,null,null,null,null,null,null,null,null,null,null,null,null,null,"Fabricação de celulose e de pasta mecânica","72.44.500"]
[null,null,null,null,null,null,null,null,null,null,null,null,null,null,null,null,null,null,null,null,null,"Fabricação de fraldas descartáveis e absorventes higiênicos","72.44.625"]
[null,null,null,null,null,null,null,null,null,null,null,null,null,null,null,null,null,null,null,null,null,"Fabricação de papel, papelão, cartolina e semelhantes","72.44.750"]
[null,null,null,null,null,null,null,null,null,null,null,null,null,null,null,null,null,null,null,null,null,"Fabricação de sacos de papel e de embalagens","72.44.875"]
[null,null,null,null,null,null,null,null,null,null,null,null,null,null,null,null,null,null,null,null,null,"Beneficiamento de borracha (lavagem, prensagem, laminação e regeneração)","72.46.100"]
[null,null,null,null,null,null,null,null,null,null,null,null,null,null,null,null,null,null,null,null,null,"Fabricação de artefatos de borracha para uso médico cirúrgico e para laboratórios","72.46.200"]
[null,null,null,null,null,null,null,null,null,null,null,null,null,null,null,null,null,null,null,null,null,"Fabricação de artefatos diversos de borrachas","72.46.300"]
[null,null,null,null,null,null,null,null,null,null,null,null,null,null,null,null,null,null,null,null,null,"Fabricação de artigos de borracha para uso pessoal e doméstico","72.46.400"]
[null,null,null,null,null,null,null,null,null,null,null,null,null,null,null,null,null,null,null,null,null,"Fabricação de calçados e artefatos para calçados de borracha","72.46.500"]
[null,null,null,null,null,null,null,null,null,null,null,null,null,null,null,null,null,null,null,null,null,"Fabricação de espuma e de artigos de espuma de borracha, inclusive látex","72.46.600"]
[null,null,null,null,null,null,null,null,null,null,null,null,null,null,null,null,null,null,null,null,null,"Fabricação de pneumáticos e câmaras-de-ar","72.46.700"]
[null,null,null,null,null,null,null,null,null,null,null,null,null,null,null,null,null,null,null,null,null,"Recondicionamento e consertos de pneus em geral (Recauchutagem)","72.46.800"]
[null,null,null,null,null,null,null,null,null,null,null,null,null,null,null,null,null,null,null,null,null,"Transformação de espuma sintética em artigos diversos","72.46.900"]
[null,null,null,null,null,null,null,null,null,null,null,null,null,null,null,null,null,null,null,null,null,"Comercialização de couros em geral","72.48.125"]
[null,null,null,null,null,null,null,null,null,null,null,null,null,null,null,null,null,null,null,null,null,"Fabricação de artigos de selaria","72.48.375"]
[null,null,null,null,null,null,null,null,null,null,null,null,null,null,null,null,null,null,null,null,null,"Fabricação de correias e outros artigos de couros para máquinas","72.48.500"]
[null,null,null,null,null,null,null,null,null,null,null,null,null,null,null,null,null,null,null,null,null,"Fabricação de malas, maletas, valises e de outros artigos de couros e peles e outros materiais para viagem","72.48.625"]
[null,null,null,null,null,null,null,null,null,null,null,null,null,null,null,null,null,null,null,null,null,"Fabricação de pastas de couro, porta notas, porta níqueis, porta documentos e semelhantes de couros e peles","72.48.750"]
[null,null,null,null,null,null,null,null,null,null,null,null,null,null,null,null,null,null,null,null,null,"Preparação, curtimento e tingimento de couros, peles e correaria","72.48.875"]
[null,null,null,null,null,null,null,null,null,null,null,null,null,null,null,null,null,null,null,null,null,"Fabricação de matéria plásticas básicas, de borracha sintética, celulóide, galalite, baquelita e outras matérias-plásticas PVC","72.50.125"]
[null,null,null,null,null,null,null,null,null,null,null,null,null,null,null,null,null,null,null,null,null,"Fabricação de amidos, dextrinas, féculas gomas, colas, adesivos vegetais e semelhantes","72.50.250"]
[null,null,null,null,null,null,null,null,null,null,null,null,null,null,null,null,null,null,null,null,null,"Fabricação de pigmentos, corantes, substâncias tanantes, curtimentos e prod. sintéticos para curtume, inclusive lacas","72.50.375"]
[null,null,null,null,null,null,null,null,null,null,null,null,null,null,null,null,null,null,null,null,null,"Fabricação de elementos químicos","72.50.500"]
[null,null,null,null,null,null,null,null,null,null,null,null,null,null,null,null,null,null,null,null,null,"Fabricação de fios artificiais (fios de acetado, viscose, nylon, rayon, lâ-de-vidro e semelhantes)","72.50.625"]
[null,null,null,null,null,null,null,null,null,null,null,null,null,null,null,null,null,null,null,null,null,"Fabricação de produtos quimicamente puros para uso em laboratórios e para fins medicinais","72.50.750"]
[null,null,null,null,null,null,null,null,null,null,null,null,null,null,null,null,null,null,null,null,null,"Fabricação de produtos químicos inorgânicos","72.50.875"]
[null,null,null,null,null,null,null,null,null,null,null,null,null,null,null,null,null,null,null,null,null,"Fabricação de detonantes e de munição","72.52.200"]
[null,null,null,null,null,null,null,null,null,null,null,null,null,null,null,null,null,null,null,null,null,"Fabricação de fogos de artifício","72.52.400"]
[null,null,null,null,null,null,null,null,null,null,null,null,null,null,null,null,null,null,null,null,null,"Fabricação de fósforo de segurança","72.52.600"]
[null,null,null,null,null,null,null,null,null,null,null,null,null,null,null,null,null,null,null,null,null,"Fabricação de pólvora e explosivos","72.52.800"]
[null,null,null,null,null,null,null,null,null,null,null,null,null,null,null,null,null,null,null,null,null,"Produção de gorduras, óleos e essências vegetais","72.54.666"]
[null,null,null,null,null,null,null,null,null,null,null,null,null,null,null,null,null,null,null,null,null,"Produção de ceras vegetais e ácidos gordurosos","72.54.333"]
[null,null,null,null,null,null,null,null,null,null,null,null,null,null,null,null,null,null,null,null,null,"Distribuição e comercialização de produto de limpeza em geral","72.56.200"]
[null,null,null,null,null,null,null,null,null,null,null,null,null,null,null,null,null,null,null,null,null,"Fabricação de produtos para limpeza e polimento (ceras para assoalho,líquidos e pastas para polimento de calçados, metais e móveis)","72.56.400"]
[null,null,null,null,null,null,null,null,null,null,null,null,null,null,null,null,null,null,null,null,null,"Fabricação de desinfetantes (água sanitária, creolina e semelhantes)","72.56.600"]
[null,null,null,null,null,null,null,null,null,null,null,null,null,null,null,null,null,null,null,null,null,"Fabricação de inseticidas, germicidas, fungicidas e produtos afins","72.56.800"]
[null,null,null,null,null,null,null,null,null,null,null,null,null,null,null,null,null,null,null,null,null,"Fabricação de solventes, impermeabilizantes e secantes","72.58.250"]
[null,null,null,null,null,null,null,null,null,null,null,null,null,null,null,null,null,null,null,null,null,"Fabricação de tintas para escrever e para desenho, inclusive tinta para impressão","72.58.500"]
[null,null,null,null,null,null,null,null,null,null,null,null,null,null,null,null,null,null,null,null,null,"Fabricação de tintas, esmalte, lacas e vernizes","72.58.750"]
[null,null,null,null,null,null,null,null,null,null,null,null,null,null,null,null,null,null,null,null,null,"Beneficiamento e britagem de carvão-de-pedra","72.60.143"]
[null,null,null,null,null,null,null,null,null,null,null,null,null,null,null,null,null,null,null,null,null,"Comércio varejista de gás liquefeito (gás cozinha)","72.60.286"]
[null,null,null,null,null,null,null,null,null,null,null,null,null,null,null,null,null,null,null,null,null,"Distribuidora e armazenamento de gás GLP (cozinha) e gás natural por gasodutos","72.60.429"]
[null,null,null,null,null,null,null,null,null,null,null,null,null,null,null,null,null,null,null,null,null,"Fabricação de produtos derivados da destilação de carvão-de-pedra e da madeira. Produção de gás, coque, alcatrão e semelhantes","72.60.572"]
[null,null,null,null,null,null,null,null,null,null,null,null,null,null,null,null,null,null,null,null,null,"Fabricação de produtos derivados da destilação do petróleo e de xistos betuminosos, creosoto","72.60.715"]
[null,null,null,null,null,null,null,null,null,null,null,null,null,null,null,null,null,null,null,null,null,"Recuperação de óleos lubrificantes e de óleos queimados (de cárter)","72.60.858"]
[null,null,null,null,null,null,null,null,null,null,null,null,null,null,null,null,null,null,null,null,null,"Fabricação de adubos","72.61.333"]
[null,null,null,null,null,null,null,null,null,null,null,null,null,null,null,null,null,null,null,null,null,"Fabricação de fertilizantes (fosforita, superfosfato e semelhantes)","72.61.666"]
[null,null,null,null,null,null,null,null,null,null,null,null,null,null,null,null,null,null,null,null,null,"Comercialização e manipulação de produtos farmacêuticos em geral","72.62.143"]
[null,null,null,null,null,null,null,null,null,null,null,null,null,null,null,null,null,null,null,null,null,"Fabricação de produtos de perfumaria e cosméticos","72.62.286"]
[null,null,null,null,null,null,null,null,null,null,null,null,null,null,null,null,null,null,null,null,null,"Fabricação de produtos veterinários","72.62.429"]
[null,null,null,null,null,null,null,null,null,null,null,null,null,null,null,null,null,null,null,null,null,"Fabricação de sabões e detergentes","72.62.572"]
[null,null,null,null,null,null,null,null,null,null,null,null,null,null,null,null,null,null,null,null,null,"Fabricação de velas","72.62.715"]
[null,null,null,null,null,null,null,null,null,null,null,null,null,null,null,null,null,null,null,null,null,"Fabricação e manipulação de produtos farmacêuticos e medicinais","72.62.858"]
[null,null,null,null,null,null,null,null,null,null,null,null,null,null,null,null,null,null,null,null,null,"Beneficiamento de Metais Nobres","72.63.075"]
[null,null,null,null,null,null,null,null,null,null,null,null,null,null,null,null,null,null,null,null,null,"Beneficiamento de Minerais Metálicos","72.63.149"]
[null,null,null,null,null,null,null,null,null,null,null,null,null,null,null,null,null,null,null,null,null,"Beneficiamento de Minerais Não Metálicos","72.63.223"]
[null,null,null,null,null,null,null,null,null,null,null,null,null,null,null,null,null,null,null,null,null,"Beneficiamento de Rochas Ornamentais e Minerais da Construção","72.63.197"]
[null,null,null,null,null,null,null,null,null,null,null,null,null,null,null,null,null,null,null,null,null,"Beneficiamento de Sal","72.63.371"]
[null,null,null,null,null,null,null,null,null,null,null,null,null,null,null,null,null,null,null,null,null,"Beneficiamento de Combustíveis Minerais Combustíveis","72.63.445"]
[null,null,null,null,null,null,null,null,null,null,null,null,null,null,null,null,null,null,null,null,null,"Beneficiamento de Minerais Físseis","72.63.519"]
[null,null,null,null,null,null,null,null,null,null,null,null,null,null,null,null,null,null,null,null,null,"Beneficiamento de Produtos Vegetais e Vegetais Oleaginosos","72.63.593"]
[null,null,null,null,null,null,null,null,null,null,null,null,null,null,null,null,null,null,null,null,null,"Beneficiamento de Produtos Vegetais Ceríficos","72.63.667"]
[null,null,null,null,null,null,null,null,null,null,null,null,null,null,null,null,null,null,null,null,null,"Beneficiamento de Produtos Tanantes e Tintorais","72.63.741"]
[null,null,null,null,null,null,null,null,null,null,null,null,null,null,null,null,null,null,null,null,null,"Beneficiamento de Produtos Vegetais Medicinais","72.63.815"]
[null,null,null,null,null,null,null,null,null,null,null,null,null,null,null,null,null,null,null,null,null,"Beneficiamento de Produtos Vegetais Tóxicos","72.63.889"]
[null,null,null,null,null,null,null,null,null,null,null,null,null,null,null,null,null,null,null,null,null,"Beneficiamento de Combustíveis Vegetais","72.63.963"]
[null,null,null,null,null,null,null,null,null,null,null,null,null,null,null,null,null,null,null,null,null,"Fabricação de artigos de matérias plásticas, fios plásticos, sacos e embalagens plásticas","72.64.167"]
[null,null,null,null,null,null,null,null,null,null,null,null,null,null,null,null,null,null,null,null,null,"Fabricação de artigos de fibra ótica e de vidro","72.64.334"]
[null,null,null,null,null,null,null,null,null,null,null,null,null,null,null,null,null,null,null,null,null,"Fabricação de tubos em PVC rígido (resina) e afins","72.64.501"]
[null,null,null,null,null,null,null,null,null,null,null,null,null,null,null,null,null,null,null,null,null,"Reciclagem de plástico em geral","72.64.668"]
[null,null,null,null,null,null,null,null,null,null,null,null,null,null,null,null,null,null,null,null,null,"Transformação e beneficiamento de poliestireno expansível (isopor /isolantes térmicos / painéis térmicos)","72.64.835"]
[null,null,null,null,null,null,null,null,null,null,null,null,null,null,null,null,null,null,null,null,null,"Beneficiamento de fibras têxteis vegetais","72.66.100"]
[null,null,null,null,null,null,null,null,null,null,null,null,null,null,null,null,null,null,null,null,null,"Beneficiamento de matérias têxteis de origem animal (beneficiamento de lã, seda, pelos e crinas)","72.66.200"]
[null,null,null,null,null,null,null,null,null,null,null,null,null,null,null,null,null,null,null,null,null,"Fabricação de estopa e de material para estofos, inclusive recuperação de resíduos têxteis","72.66.300"]
[null,null,null,null,null,null,null,null,null,null,null,null,null,null,null,null,null,null,null,null,null,"Fabricação de sacos de polipropileno e fios","72.66.400"]
[null,null,null,null,null,null,null,null,null,null,null,null,null,null,null,null,null,null,null,null,null,"Fabricação de telas","72.66.500"]
[null,null,null,null,null,null,null,null,null,null,null,null,null,null,null,null,null,null,null,null,null,"Fiação e tecelagem de algodão e outras fibras têxteis vegetais","72.66.600"]
[null,null,null,null,null,null,null,null,null,null,null,null,null,null,null,null,null,null,null,null,null,"Fabricação de fios e linhas de algodão, seda, lã, linho, rami, juta, caroá e outras fibras, têxteis","72.66.700"]
[null,null,null,null,null,null,null,null,null,null,null,null,null,null,null,null,null,null,null,null,null,"Fabricação de tecidos de malha e artigos de malharia","72.66.800"]
[null,null,null,null,null,null,null,null,null,null,null,null,null,null,null,null,null,null,null,null,null,"Tingimento de produtos têxteis","72.66.900"]
[null,null,null,null,null,null,null,null,null,null,null,null,null,null,null,null,null,null,null,null,null,"Fabricação de artefatos de lona, pano-couro e outros tecidos de acabamento especial","72.68.222"]
[null,null,null,null,null,null,null,null,null,null,null,null,null,null,null,null,null,null,null,null,null,"Fabricação de artigos de passamanaria. Fabricação de cadarços, galões,fitas, filós, rendas e bordados","72.68.333"]
[null,null,null,null,null,null,null,null,null,null,null,null,null,null,null,null,null,null,null,null,null,"Fabricação de artigos de tapeçaria","72.68.444"]
[null,null,null,null,null,null,null,null,null,null,null,null,null,null,null,null,null,null,null,null,null,"Fabricação de cobertores, mantas e toalhas de banho","72.68.555"]
[null,null,null,null,null,null,null,null,null,null,null,null,null,null,null,null,null,null,null,null,null,"Fabricação de redes e artigos de cordoaria","72.68.666"]
[null,null,null,null,null,null,null,null,null,null,null,null,null,null,null,null,null,null,null,null,null,"Fabricação de sacos de tecidos","72.68.777"]
[null,null,null,null,null,null,null,null,null,null,null,null,null,null,null,null,null,null,null,null,null,"Fabricação de tecidos impermeáveis e de acabamento especial","72.68.888"]
[null,null,null,null,null,null,null,null,null,null,null,null,null,null,null,null,null,null,null,null,null,"Fabricação de cortinas, estofos e decorações interiores","72.68.111"]
[null,null,null,null,null,null,null,null,null,null,null,null,null,null,null,null,null,null,null,null,null,"Confecção de artefatos diversos de tecidos. Confecção de roupas de cama e mesa (lençóis, colchas, fronhas, guardanapos toalhas de mesa e  semelhantes, bandeiras, estandartes e flâmulas)","72.70.200"]
[null,null,null,null,null,null,null,null,null,null,null,null,null,null,null,null,null,null,null,null,null,"Confecção de roupas e agasalhos","72.70.300"]
[null,null,null,null,null,null,null,null,null,null,null,null,null,null,null,null,null,null,null,null,null,"Fabricação de chapéus. Fabricação de guarda-chuvas, sombrinhas,bengalas, toldos, barracas, velames, guarda sol de praias e semelhantes","72.70.400"]
[null,null,null,null,null,null,null,null,null,null,null,null,null,null,null,null,null,null,null,null,null,"Fabricação de calçados, alpargatas, chinelos sandálias e semelhantes. Fabricação de tamancos, sapatos","72.70.500"]
[null,null,null,null,null,null,null,null,null,null,null,null,null,null,null,null,null,null,null,null,null,"Fabricação de cintas elásticas, bolsas e outros acessórios de vestuário","72.70.600"]
[null,null,null,null,null,null,null,null,null,null,null,null,null,null,null,null,null,null,null,null,null,"Fabricação de cintos, ligas e suspensórios","72.70.700"]
[null,null,null,null,null,null,null,null,null,null,null,null,null,null,null,null,null,null,null,null,null,"Fabricação de gravatas","72.70.800"]
[null,null,null,null,null,null,null,null,null,null,null,null,null,null,null,null,null,null,null,null,null,"Fabricação de lenços, luvas, chales e semelhantes","72.70.900"]
[null,null,null,null,null,null,null,null,null,null,null,null,null,null,null,null,null,null,null,null,null,"Beneficiamento de café, cereais e produtos","72.72.100"]
[null,null,null,null,null,null,null,null,null,null,null,null,null,null,null,null,null,null,null,null,null,"Fabricação de aveia em lâminas","72.72.200"]
[null,null,null,null,null,null,null,null,null,null,null,null,null,null,null,null,null,null,null,null,null,"Fabricação de farinha e de produtos derivados de coco-da-baía","72.72.300"]
[null,null,null,null,null,null,null,null,null,null,null,null,null,null,null,null,null,null,null,null,null,"Fabricação de produtos de mandioca (farinha de mandioca, polvilho, raspa, farinha de raspa e outros derivados de mandioca)","72.72.500"]
[null,null,null,null,null,null,null,null,null,null,null,null,null,null,null,null,null,null,null,null,null,"Fabricação de farinha e féculas alimentícias de arroz, araruta, batata e semelhantes","72.72.600"]
[null,null,null,null,null,null,null,null,null,null,null,null,null,null,null,null,null,null,null,null,null,"Fabricação de produtos de milho (fubá, farinha de milho, maisena e de outros derivados do milho)","72.72.700"]
[null,null,null,null,null,null,null,null,null,null,null,null,null,null,null,null,null,null,null,null,null,"Moagem de trigo. Fabricação de farinha de trigo e de outros derivados do trigo em grão","72.72.800"]
[null,null,null,null,null,null,null,null,null,null,null,null,null,null,null,null,null,null,null,null,null,"Torrefação e moagem de café","72.72.900"]
[null,null,null,null,null,null,null,null,null,null,null,null,null,null,null,null,null,null,null,null,null,"Preparação de conservas de frutas, legumes e de outras conservas","72.74.250"]
[null,null,null,null,null,null,null,null,null,null,null,null,null,null,null,null,null,null,null,null,null,"Preparação de conservas, especiarias e condimentos","72.74.500"]
[null,null,null,null,null,null,null,null,null,null,null,null,null,null,null,null,null,null,null,null,null,"Preparação e conservação de polpas de frutas/legumes","72.74.750"]
[null,null,null,null,null,null,null,null,null,null,null,null,null,null,null,null,null,null,null,null,null,"Abate de reses e preparação de carne para terceiros","72.76.091"]
[null,null,null,null,null,null,null,null,null,null,null,null,null,null,null,null,null,null,null,null,null,"Abate de reses e preparação de carne verde por conta própria","72.76.182"]
[null,null,null,null,null,null,null,null,null,null,null,null,null,null,null,null,null,null,null,null,null,"Abate de reses em charqueadas, e preparação de carne seca e salgada (inclusive subprodutos) charque","72.76.273"]
[null,null,null,null,null,null,null,null,null,null,null,null,null,null,null,null,null,null,null,null,null,"Abate de reses em matadouros frigoríficos e preparação de carne congelada e em conserva (inclusive subprodutos)","72.76.364"]
[null,null,null,null,null,null,null,null,null,null,null,null,null,null,null,null,null,null,null,null,null,"Abate e preparação de carne de aves e pequenos animais","72.76.455"]
[null,null,null,null,null,null,null,null,null,null,null,null,null,null,null,null,null,null,null,null,null,"Beneficiamento de sebo e osso bovino e demais","72.76.546"]
[null,null,null,null,null,null,null,null,null,null,null,null,null,null,null,null,null,null,null,null,null,"Frigorífico e preparação de pescado","72.76.637"]
[null,null,null,null,null,null,null,null,null,null,null,null,null,null,null,null,null,null,null,null,null,"Preparação de algas marinhas, gelatinas","72.76.728"]
[null,null,null,null,null,null,null,null,null,null,null,null,null,null,null,null,null,null,null,null,null,"Preparação de banha e preparação de conservas de carne e produtos de salsicharia","72.76.819"]
[null,null,null,null,null,null,null,null,null,null,null,null,null,null,null,null,null,null,null,null,null,"Preparação de conservas de pescado","72.76.910"]
[null,null,null,null,null,null,null,null,null,null,null,null,null,null,null,null,null,null,null,null,null,"Fabricação de cremes, coalhada e semelhantes","72.78.167"]
[null,null,null,null,null,null,null,null,null,null,null,null,null,null,null,null,null,null,null,null,null,"Fabricação de leite em pó e condensado e farinha Láctea","72.78.334"]
[null,null,null,null,null,null,null,null,null,null,null,null,null,null,null,null,null,null,null,null,null,"Fabricação de manteiga","72.78.501"]
[null,null,null,null,null,null,null,null,null,null,null,null,null,null,null,null,null,null,null,null,null,"Fabricação de queijo","72.78.668"]
[null,null,null,null,null,null,null,null,null,null,null,null,null,null,null,null,null,null,null,null,null,"Pasteurização e frigorificação do leite","72.78.835"]
[null,null,null,null,null,null,null,null,null,null,null,null,null,null,null,null,null,null,null,null,null,"Fabricação de açúcar de usina e rapadura","72.80.200"]
[null,null,null,null,null,null,null,null,null,null,null,null,null,null,null,null,null,null,null,null,null,"Fabricação de balas, caramelos e semelhantes","72.80.400"]
[null,null,null,null,null,null,null,null,null,null,null,null,null,null,null,null,null,null,null,null,null,"Fabricação de doces de leite","72.80.600"]
[null,null,null,null,null,null,null,null,null,null,null,null,null,null,null,null,null,null,null,null,null,"Refinação, moagem e trituração de açúcar","72.80.800"]
[null,null,null,null,null,null,null,null,null,null,null,null,null,null,null,null,null,null,null,null,null,"Fabricação de massas alimentícias","72.82.020"]
[null,null,null,null,null,null,null,null,null,null,null,null,null,null,null,null,null,null,null,null,null,"Fabricação de produtos de padaria e confeitaria","72.82.400"]
[null,null,null,null,null,null,null,null,null,null,null,null,null,null,null,null,null,null,null,null,null,"Fabricação de produtos de pastelaria","72.82.600"]
[null,null,null,null,null,null,null,null,null,null,null,null,null,null,null,null,null,null,null,null,null,"Fabricação de sorvetes","72.82.800"]
[null,null,null,null,null,null,null,null,null,null,null,null,null,null,null,null,null,null,null,null,null,"Fabricação de café e mate solúveis","72.84.125"]
[null,null,null,null,null,null,null,null,null,null,null,null,null,null,null,null,null,null,null,null,null,"Fabricação de fermentos e leveduras","72.84.250"]
[null,null,null,null,null,null,null,null,null,null,null,null,null,null,null,null,null,null,null,null,null,"Fabricação de gelo","72.84.375"]
[null,null,null,null,null,null,null,null,null,null,null,null,null,null,null,null,null,null,null,null,null,"Fabricação de rações balanceadas para animais","72.84.500"]
[null,null,null,null,null,null,null,null,null,null,null,null,null,null,null,null,null,null,null,null,null,"Fabricação de vinagre","72.84.625"]
[null,null,null,null,null,null,null,null,null,null,null,null,null,null,null,null,null,null,null,null,null,"Preparação de sal de cozinha. Refinação, moagem e preparação de sal de cozinha","72.84.750"]
[null,null,null,null,null,null,null,null,null,null,null,null,null,null,null,null,null,null,null,null,null,"Preparação e refinação de óleos e gorduras vegetais destinados à alimentação. Preparação de gorduras mistas, destinadas à alimentação.","72.84.875"]
[null,null,null,null,null,null,null,null,null,null,null,null,null,null,null,null,null,null,null,null,null,"Destilação de álcool - Destilaria","72.85.125"]
[null,null,null,null,null,null,null,null,null,null,null,null,null,null,null,null,null,null,null,null,null,"Engarrafamento e gaseificação de águas minerais","72.85.250"]
[null,null,null,null,null,null,null,null,null,null,null,null,null,null,null,null,null,null,null,null,null,"Fabricação de aguardentes","72.85.375"]
[null,null,null,null,null,null,null,null,null,null,null,null,null,null,null,null,null,null,null,null,null,"Fabricação de cervejas, chopes e semelhantes","72.85.500"]
[null,null,null,null,null,null,null,null,null,null,null,null,null,null,null,null,null,null,null,null,null,"Fabricação de refrigerantes xaropes, concentrados e sucos de frutas","72.85.625"]
[null,null,null,null,null,null,null,null,null,null,null,null,null,null,null,null,null,null,null,null,null,"Fabricação de vinhos, licores e bebidas alcóolicas diversas (amargos e aperitivos)","72.85.750"]
[null,null,null,null,null,null,null,null,null,null,null,null,null,null,null,null,null,null,null,null,null,"Fabricação de conhaque, whisky, genebra, vodka, gim, rum e semelhantes","72.85.875"]
[null,null,null,null,null,null,null,null,null,null,null,null,null,null,null,null,null,null,null,null,null,"Fabricação de cigarros, fumos desfinados, charutos e cigarrilhas","72.86.250"]
[null,null,null,null,null,null,null,null,null,null,null,null,null,null,null,null,null,null,null,null,null,"Preparação de fumo em folha","72.86.500"]
[null,null,null,null,null,null,null,null,null,null,null,null,null,null,null,null,null,null,null,null,null,"Preparação de fumo em rolo ou em corda","72.86.750"]
[null,null,null,null,null,null,null,null,null,null,null,null,null,null,null,null,null,null,null,null,null,"Edição de   impressão   de   revistas, almanaques,   figurinos   e   outras publicações periódicas","72.87.125"]
[null,null,null,null,null,null,null,null,null,null,null,null,null,null,null,null,null,null,null,null,null,"Edição de jornal","72.87.250"]
[null,null,null,null,null,null,null,null,null,null,null,null,null,null,null,null,null,null,null,null,null,"Edição de obras de texto. Edição de livros religiosos. Edição e impressão de obras de texto. Edição e impressão de livros religiosos","72.87.375"]
[null,null,null,null,null,null,null,null,null,null,null,null,null,null,null,null,null,null,null,null,null,"Edição de revistas, almanaques, figurinos e outras publicações periódicas","72.87.500"]
[null,null,null,null,null,null,null,null,null,null,null,null,null,null,null,null,null,null,null,null,null,"Edição e impressão de jornal","72.87.625"]
[null,null,null,null,null,null,null,null,null,null,null,null,null,null,null,null,null,null,null,null,null,"Serigrafia em geral","72.87.875"]
[null,null,null,null,null,null,null,null,null,null,null,null,null,null,null,null,null,null,null,null,null,"Fabricação de aparelhos de precisão para laboratórios e pesquisas","72.88.167"]
[null,null,null,null,null,null,null,null,null,null,null,null,null,null,null,null,null,null,null,null,null,"Fabricação de aparelhos de medida não elétricos","72.88.334"]
[null,null,null,null,null,null,null,null,null,null,null,null,null,null,null,null,null,null,null,null,null,"Fabricação de cronômetros e relógios","72.88.501"]
[null,null,null,null,null,null,null,null,null,null,null,null,null,null,null,null,null,null,null,null,null,"Fabricação de instrumento para engenharia, topografia e geodésia","72.88.668"]
[null,null,null,null,null,null,null,null,null,null,null,null,null,null,null,null,null,null,null,null,null,"Fabricação de utensílios para uso técnicos e profissionais","72.88.835"]
[null,null,null,null,null,null,null,null,null,null,null,null,null,null,null,null,null,null,null,null,null,"Fabricação de aparelhos e utensílios para gabinete dentário. Fabricação de equipamentos dentários (inclusive instrumental dentário)","72.89.167"]
[null,null,null,null,null,null,null,null,null,null,null,null,null,null,null,null,null,null,null,null,null,"Fabricação de aparelhos e utensílios não elétricos para uso médico e hospitalar","72.89.334"]
[null,null,null,null,null,null,null,null,null,null,null,null,null,null,null,null,null,null,null,null,null,"Fabricação de aparelhos ortopédicos","72.89.501"]
[null,null,null,null,null,null,null,null,null,null,null,null,null,null,null,null,null,null,null,null,null,"Fabricação de   dentes   artificiais,   porcelanas,   massas,   esmaltes   e semelhantes. Fabricação de material dentário","72.89.668"]
[null,null,null,null,null,null,null,null,null,null,null,null,null,null,null,null,null,null,null,null,null,"Fabricação de material cirúrgico","72.89.835"]
[null,null,null,null,null,null,null,null,null,null,null,null,null,null,null,null,null,null,null,null,null,"Fabricação de aparelhos fotográficos e cinematográficos","72.90.167"]
[null,null,null,null,null,null,null,null,null,null,null,null,null,null,null,null,null,null,null,null,null,"Fabricação de armações para óculos","72.90.334"]
[null,null,null,null,null,null,null,null,null,null,null,null,null,null,null,null,null,null,null,null,null,"Fabricação de material fotográfico. Fabricação de filmes e chapas virgens, de papeis sensíveis para fotografia, cópia heliográfica, fotostática e semelhantes","72.90.501"]
[null,null,null,null,null,null,null,null,null,null,null,null,null,null,null,null,null,null,null,null,null,"Fabricação de material de ótica. Fabricação de lentes, óculos, lunetas,binóculos e semelhantes","72.90.668"]
[null,null,null,null,null,null,null,null,null,null,null,null,null,null,null,null,null,null,null,null,null,"Fabricação de máquinas fotográficas e de aparelhos de projeção cinematográficos","72.90.835"]
[null,null,null,null,null,null,null,null,null,null,null,null,null,null,null,null,null,null,null,null,null,"Fabricação de artigos de ourivesaria e joalheria. Fabricação de joias","72.91.333"]
[null,null,null,null,null,null,null,null,null,null,null,null,null,null,null,null,null,null,null,null,null,"Lapidação de pedras preciosas e semipreciosas. Lapidação de diamantes","72.91.666"]
[null,null,null,null,null,null,null,null,null,null,null,null,null,null,null,null,null,null,null,null,null,"Fabricação de acordeões e semelhantes","72.92.200"]
[null,null,null,null,null,null,null,null,null,null,null,null,null,null,null,null,null,null,null,null,null,"Fabricação de instrumentos de música. Fabricação de instrumento de sopro, corda e percussão","72.92.400"]
[null,null,null,null,null,null,null,null,null,null,null,null,null,null,null,null,null,null,null,null,null,"Fabricação de pianos e órgãos","72.92.600"]
[null,null,null,null,null,null,null,null,null,null,null,null,null,null,null,null,null,null,null,null,null,"Gravação de discos musicais e outros. Edição de músicas, gravação de fitas sonoras","72.92.800"]
[null,null,null,null,null,null,null,null,null,null,null,null,null,null,null,null,null,null,null,null,null,"Fabricação de broxas e pincéis","72.94.200"]
[null,null,null,null,null,null,null,null,null,null,null,null,null,null,null,null,null,null,null,null,null,"Fabricação de escova para outros fins","72.94.400"]
[null,null,null,null,null,null,null,null,null,null,null,null,null,null,null,null,null,null,null,null,null,"Fabricação de escovas para dentes","72.94.600"]
[null,null,null,null,null,null,null,null,null,null,null,null,null,null,null,null,null,null,null,null,null,"Fabricação de vassouras, enxugadores, espanadores e semelhantes","72.94.800"]
[null,null,null,null,null,null,null,null,null,null,null,null,null,null,null,null,null,null,null,null,null,"Fabricação de artigos para fins comerciais e industriais","72.95.100"]
[null,null,null,null,null,null,null,null,null,null,null,null,null,null,null,null,null,null,null,null,null,"Fabricação de canetas","72.95.200"]
[null,null,null,null,null,null,null,null,null,null,null,null,null,null,null,null,null,null,null,null,null,"Fabricação de carimbos, sinetes e semelhantes","72.95.300"]
[null,null,null,null,null,null,null,null,null,null,null,null,null,null,null,null,null,null,null,null,null,"Fabricação de fitas para máquinas de escrever, papel carbono, stencil e semelhantes","72.95.400"]
[null,null,null,null,null,null,null,null,null,null,null,null,null,null,null,null,null,null,null,null,null,"Fabricação de Lápis","72.95.500"]
[null,null,null,null,null,null,null,null,null,null,null,null,null,null,null,null,null,null,null,null,null,"Fabricação de material escolar. Fabricação de figurinhas, globos e peças   didáticas de qualquer material. Fabricação de giz, quadros-negros, lousas e semelhantes","72.95.600"]
[null,null,null,null,null,null,null,null,null,null,null,null,null,null,null,null,null,null,null,null,null,"Fabricação de painéis de anúncios luminosos","72.95.700"]
[null,null,null,null,null,null,null,null,null,null,null,null,null,null,null,null,null,null,null,null,null,"Fabricação de penas para escrever e de outros artigos para escritórios","72.95.800"]
[null,null,null,null,null,null,null,null,null,null,null,null,null,null,null,null,null,null,null,null,null,"Fabricação de placas luminosas em geral","72.95.900"]
[null,null,null,null,null,null,null,null,null,null,null,null,null,null,null,null,null,null,null,null,null,"Fabricação de artigos para esportes","72.96.250"]
[null,null,null,null,null,null,null,null,null,null,null,null,null,null,null,null,null,null,null,null,null,"Fabricação de artigos parajogos recreativos","72.96.500"]
[null,null,null,null,null,null,null,null,null,null,null,null,null,null,null,null,null,null,null,null,null,"Fabricação de brinquedos. Fabricação de velocípedes, patinetes e semelhantes","72.96.750"]
[null,null,null,null,null,null,null,null,null,null,null,null,null,null,null,null,null,null,null,null,null,"Fabricação de artigos de toucador, flores e plumas artificiais","72.98.143"]
[null,null,null,null,null,null,null,null,null,null,null,null,null,null,null,null,null,null,null,null,null,"Empalhamento de animais (taxidermia)","72.98.285"]
[null,null,null,null,null,null,null,null,null,null,null,null,null,null,null,null,null,null,null,null,null,"Fabricação de artefatos de pelos, plumas, chifres, garras e outros produtos de origem animal. Fabricação de perucas","72.98.428"]
[null,null,null,null,null,null,null,null,null,null,null,null,null,null,null,null,null,null,null,null,null,"Fabricação de botões, fivelas e outros artigos de fantasia para modas, inclusive aviamentos para costuras","72.98.570"]
[null,null,null,null,null,null,null,null,null,null,null,null,null,null,null,null,null,null,null,null,null,"Fabricação de manequins","72.98.714"]
[null,null,null,null,null,null,null,null,null,null,null,null,null,null,null,null,null,null,null,null,null,"Produção cinematográfica. Produção de filmes cinematográficos. Películas cinematográficas. Cinegrafia","72.98.856"]

{"sheet":"SISPASS","index":26,"n_rows":82,"n_cols":26,"rows_kept":82,"cut":false,"hidden":false,"merged":[[76,0,76,5],[76,7,76,9],[77,0,77,3],[77,7,77,9],[78,0,78,3],[78,7,78,9],[74,0,74,2],[74,4,74,6],[74,8,74,9],[75,0,75,3],[75,7,75,8],[71,0,71,3],[72,0,72,9],[73,0,73,1],[73,4,73,5],[73,8,73,9],[27,0,27,2],[27,4,27,9],[12,0,12,1],[12,8,12,9],[13,0,13,6],[13,8,13,9],[15,0,15,1],[16,0,16,6],[18,0,18,3],[19,0,19,9],[24,0,24,1],[25,0,25,9],[26,0,26,1],[35,0,35,5],[35,7,35,9],[28,0,28,3],[29,0,29,9],[30,0,30,3],[31,0,31,9],[32,0,32,1],[32,4,32,5],[32,8,32,9],[33,0,33,2],[33,4,33,6],[33,8,33,9],[34,0,34,3],[34,7,34,8],[49,0,49,9],[36,0,36,3],[36,7,36,9],[37,0,37,3],[37,7,37,9],[44,0,44,1],[45,0,45,9],[46,0,46,1],[46,4,46,5],[47,0,47,2],[47,4,47,5],[48,0,48,1],[50,0,50,3],[51,0,51,9],[57,0,57,2],[57,4,57,7],[58,0,58,2],[58,4,58,9],[90,0,90,2],[63,0,63,1],[64,0,64,2],[59,0,59,2],[59,4,59,6],[60,0,60,2],[60,4,60,6],[62,0,62,2],[62,4,62,6],[66,0,66,2],[67,0,70,9],[81,0,85,9],[60,7,60,9],[61,0,61,2],[61,4,61,5],[61,6,61,8]]}
[null,null,null,null,null,null,null,null,null,null,null,null,null,null,null,null,null,null,null,null,null,"SISPASS","CÓDIGO",null,null,"Autorização Ambiental - AA"]
[null,null,null,null,null,null,null,null,null,null,null,null,null,null,null,null,null,null,null,null,null,"Homologação e Renovação anual de acesso ao SISPASS para Criação Amadora de Passeriformes Silvestres Nativos","80.49.050",null,null,"REGISTRO"]
[null,null,null,null,null,null,null,null,null,null,null,null,null,null,null,null,null,null,null,null,null,"Inclusão no Plantel de ave oriunda de criador comercial para Criação Amadora de Passeriformes Silvestres Nativos","80.49.100",null,null,"Outros (especificar)"]
[null,null,null,null,null,null,null,null,null,null,null,null,null,null,null,null,null,null,null,null,null,"Fuga, furto ou óbito para Criação Amadora de Passeriformes Silvestres Nativos","80.49.150"]
[null,null,null,null,null,null,null,null,null,null,null,null,null,null,null,null,null,null,null,null,null,"Reversão de fuga, furto ou óbito para Criação Amadora de Passeriformes Silvestres Nativos","80.49.200"]
[null,null,null,null,null,null,null,null,null,null,null,null,null,null,null,null,null,null,null,null,null,"Alteração no registro de sexo para Criação Amadora de Passeriformes Silvestres Nativos","80.49.250"]
[null,null,null,null,null,null,null,null,null,null,null,null,null,null,null,null,null,null,null,null,null,"Entrega de Anilhas","80.49.300"]
[null,null,null,null,null,null,null,null,null,null,null,null,null,null,null,null,null,null,null,null,null,"Alteração de vínculo de anilha para Criação Amadora de Passeriformes Silvestres Nativos","80.49.350"]
[null,null,null,null,null,null,null,null,null,null,null,null,null,null,null,null,null,null,null,null,null,"Mudança de Unidade Federativa (Vistoria para desbloqueio do Sistema)","80.49.400"]
[null,null,null,null,null,null,null,null,null,null,null,null,null,null,null,null,null,null,null,null,null,"Mudança de Endereço (mesmo Estado)","80.49.450"]
[null,null,null,null,null,null,null,null,null,null,null,null,null,null,null,null,null,null,null,null,null,"Criação/Cadastro de Associações na SUDEMA","80.49.750"]
[null,null,null,null,null,null,null,null,null,null,null,null,null,null,null,null,null,null,null,null,null,"Autorização ou Renovação para exposição, concurso e torneio de animais silvestres","80.49.800"]
["Escolha a Atividade:",null,null,null,null,null,null,null,"Código da Atividade:",null,null,null,null,null,null,null,null,null,null,null,null,"Torneio de Passeriformes Silvestres para associações cadastradas na SUDEMA","80.49.850"]
["Alteração no registro de sexo para Criação Amadora de Passeriformes Silvestres Nativos",null,null,null,null,null,null,null,{"$f":"IFERROR(VLOOKUP(A14,APOIO!A617:B630,2,0),\"\")","v":"80.49.250"},null,null,null,null,null,null,null,null,null,null,null,null,"Criador Mantenedor de Passeriformes Silvestres","80.49.900"]
[null,null,null,null,null,null,null,null,null,null,null,null,null,null,null,null,null,null,null,null,null,"Vistoria presencial de Passeriformes Silvestres Nativos","80.49.950"]
["Escolha a Licença:"]
["REGISTRO"]
[null,null,null,null,null,null,null,null,null,null,null,{"$f":"IF(A17='MODELO (10)'!Q21,SISPASS!A20,\"\")","v":0}]
["Se OUTROS, Especifique a Licença:"]
[]
[]
[]
[]
[]
["Nome/ Razão Social:"]
[]
["CPF/CNPJ:",null,null,null,"Código CNAE:"]
[]
["Nome Fantasia (quando houver):"]
[]
["Logradouro/ Nº:"]
[]
["Bairro:",null,null,null,"Município:",null,null,null,"CEP:"]
[]
["Complemento:",null,null,null,null,null,null,"Estado:"]
[]
[null,null,null,null,null,"Latitude:",null,"Longitude:"]
["Coordenadas Geograficas:"]
[]
[]
[]
[]
[]
[]
["Nome:"]
[]
["CPF/CNPJ:",null,null,null,"Telefone para Contato:"]
[]
["E-mail para Contato:"]
[]
["Endereço para Correspondência:"]
[]
[]
[]
[]
[]
[]
["CÓDIGO da Atividade:",null,null,null,"Número da Licença Anterior (quando houver):"]
[{"$f":"I14","v":"80.49.250"}]
["Número de Aves:",null,null,null,"Área do Empreendimento (m²) ou (HA):"]
[]
["Faturamento Anual (R$):",null,null,null,"Numero de Funcionários:"]
[]
["Área Construida (m²) OU (HA):"]
[]
[]
["Descrição da Atividade:"]
[]
[]
[]
[]
["Endereço da Atividade:"]
[]
["Bairro:",null,null,null,"Município:",null,null,null,"CEP:",null,null,null,{"$f":"CONCATENATE(I74,\" \",I75)","v":"CEP: "}]
[null,null,null,null,null,null,null,null,null,null,null,null,{"$f":"CONCATENATE(A74,\" \",A75)","v":"Bairro: "}]
["Complemento:",null,null,null,null,null,null,"Estado:",null,null,null,null,{"$f":"CONCATENATE(H76,\" \",H77)","v":"Estado: "}]
[null,null,null,null,null,null,null,null,null,null,null,null,{"$f":"CONCATENATE(F78,\" \",F79)","v":"Latitude: "}]
[null,null,null,null,null,"Latitude:",null,"Longitude:",null,null,null,null,{"$f":"CONCATENATE(H78,\" \",H79)","v":"Longitude: "}]
["Coordenadas Geograficas:"]
[]
[]
["DECLARO PARA OS DEVIDOS FINS, QUE O DESENVOLVIMENTO DAS ATIVIDADES RELACIONADAS NESTE REQUERIMENTO REALIZAR-SE-Á DE ACORDO COM OS DADOS TRANSCRITOS E ANEXOS INDICADOS NO ITEM 7(SETE). PELO QUE VENHO REQUERER A SUDEMA (Superintendência de Administração do Meio Ambiente), A EXPEDIÇÃO DA RESPECTIVA LICENÇA."]

{"sheet":"FAUNA","index":27,"n_rows":80,"n_cols":27,"rows_kept":80,"cut":false,"hidden":false,"merged":[[74,0,74,5],[74,7,74,9],[75,0,75,3],[75,7,75,9],[76,0,76,3],[76,7,76,9],[27,0,27,2],[27,4,27,9],[12,0,12,1],[12,8,12,9],[13,0,13,6],[13,8,13,9],[15,0,15,1],[16,0,16,6],[18,0,18,3],[19,0,19,9],[24,0,24,1],[25,0,25,9],[26,0,26,1],[35,0,35,5],[35,7,35,9],[28,0,28,3],[29,0,29,9],[30,0,30,3],[31,0,31,9],[32,0,32,1],[32,4,32,5],[32,8,32,9],[33,0,33,2],[33,4,33,6],[33,8,33,9],[34,0,34,3],[34,7,34,8],[49,0,49,9],[36,0,36,3],[36,7,36,9],[37,0,37,3],[37,7,37,9],[44,0,44,1],[45,0,45,9],[46,0,46,1],[46,4,46,5],[47,0,47,2],[47,4,47,5],[48,0,48,1],[61,0,61,2],[61,4,61,5],[61,6,61,8],[50,0,50,3],[51,0,51,9],[57,0,57,2],[57,4,57,7],[58,0,58,2],[58,4,58,9],[59,0,59,2],[59,4,59,6],[60,0,60,2],[60,4,60,6],[60,7,60,9],[79,0,83,9],[88,0,88,2],[62,0,62,2],[62,4,62,6],[64,0,64,2],[65,0,68,9],[69,0,69,3],[70,0,70,9],[71,0,71,1],[71,4,71,5],[71,8,71,9],[72,0,72,2],[72,4,72,6],[72,8,72,9],[73,0,73,3],[73,7,73,8]]}
[null,null,null,null,null,null,null,null,null,null,null,null,null,null,null,null,null,null,null,null,null,"FAUNA","CÓDIGO",null,null,"LICENÇAS:"]
[null,null,null,null,null,null,null,null,null,null,null,null,null,null,null,null,null,null,null,null,null,"Atividade de Criação e Exploração Econômica de Fauna Exótica e de Fauna Silvestre – Jardim Zoológico, Aquários e semelhantes","88.33.072",null,null,"Autorização Ambiental - AA"]
[null,null,null,null,null,null,null,null,null,null,null,null,null,null,null,null,null,null,null,null,null,"Atividade de Criação e Exploração Econômica de Fauna Exótica e de Fauna Silvestre – Criação Comercial","88.33.144",null,null,"Licença de Alteração de Instalação - LAI"]
[null,null,null,null,null,null,null,null,null,null,null,null,null,null,null,null,null,null,null,null,null,"Atividade de Criação e Exploração Econômica de Fauna Exótica e de Fauna Silvestre – Comércio de Partes, produtos e subprodutos","88.33.216",null,null,"Licença de Alteração de Operação - LAO"]
[null,null,null,null,null,null,null,null,null,null,null,null,null,null,null,null,null,null,null,null,null,"Atividade de Criação e Exploração Econômica de Fauna Exótica e de Fauna Silvestre – Revenda de Animais Vivos","88.33.288",null,null,"Licença de Instalação – LI"]
[null,null,null,null,null,null,null,null,null,null,null,null,null,null,null,null,null,null,null,null,null,"Centro de Triagem de Animais Silvestres - CETAS","88.33.360",null,null,"Licença de Operação – LO"]
[null,null,null,null,null,null,null,null,null,null,null,null,null,null,null,null,null,null,null,null,null,"Centro de Reabilitação de Fauna Silvestre Nativa - CRAS","88.33.432",null,null,"Licença de Regularização de Operação – LRO"]
[null,null,null,null,null,null,null,null,null,null,null,null,null,null,null,null,null,null,null,null,null,"Área de Soltura de Animais Silvestres – ASAS","88.33.504",null,null,"Licença Prévia - LP"]
[null,null,null,null,null,null,null,null,null,null,null,null,null,null,null,null,null,null,null,null,null,"Manutenção de Fauna Silvestre – Mantenedor de Fauna Silvestre","88.33.576",null,null,"Licença Prévia - LP + Licença de Instalação – LI"]
[null,null,null,null,null,null,null,null,null,null,null,null,null,null,null,null,null,null,null,null,null,"Criação Científica de Fauna Silvestre Para Fins de Pesquisa","88.33.648",null,null,"Licença Prévia - LP + Licença de Instalação – LI + Licença de Operação – LO"]
[null,null,null,null,null,null,null,null,null,null,null,null,null,null,null,null,null,null,null,null,null,"Criação Científica de Fauna Silvestre Para Fins de Conservação","88.33.720",null,null,"Outros (especificar)"]
[null,null,null,null,null,null,null,null,null,null,null,null,null,null,null,null,null,null,null,null,null,"Abatedouro de Fauna Silvestre","88.33.792",null,null,"Renovação de Licença de Instalação – RLI"]
["Escolha a Atividade:",null,null,null,null,null,null,null,"Código da Atividade:",null,null,null,null,null,null,null,null,null,null,null,null,"Frigorífico de Fauna Silvestre","88.33.864",null,null,"Renovação de Licença de Operação – RLO"]
["Atividade de Criação e Exploração Econômica de Fauna Exótica e de Fauna Silvestre – Revenda de Animais Vivos",null,null,null,null,null,null,null,{"$f":"IFERROR(VLOOKUP(A14,APOIO!A634:B652,2,0),\"\")","v":"88.33.288"},null,null,null,null,null,null,null,null,null,null,null,null,"Curtume e Outras Preparações de Couros e Peles de Fauna Silvestre","88.33.936"]
[null,null,null,null,null,null,null,null,null,null,null,null,null,null,null,null,null,null,null,null,null,"Manejo de Fauna Silvestre (Levantamento)","88.66.167"]
["Escolha a Licença:",null,null,null,null,null,null,null,null,null,null,null,null,null,null,null,null,null,null,null,null,"Manejo de Fauna Silvestre (Monitoramento)","88.66.334"]
["Renovação de Licença de Operação – RLO",null,null,null,null,null,null,null,null,null,null,null,null,null,null,null,null,null,null,null,null,"Manejo de Fauna Silvestre (Salvamento, Resgate e Destinação de Fauna)","88.66.501"]
[null,null,null,null,null,null,null,null,null,null,null,{"$f":"IF(A17='MODELO (11)'!P20,FAUNA!A20,\"\")","v":0},null,null,null,null,null,null,null,null,null,"Empreendimentos para Manejo de Fauna Sinantópica","88.66.668"]
["Se OUTROS, Especifique a Licença:",null,null,null,null,null,null,null,null,null,null,null,null,null,null,null,null,null,null,null,null,"Transporte Interestadual de Animais Silvestres (por formulário até 50 espécimes)","88.66.835"]
[null,null,null,null,null,null,null,null,null,null,null,null,null,null,null,null,null,null,null,null,null,"Transporte intermunicipal de animais silvestres (por formulário até 50 espécimes)","88.66.946"]
[]
[]
[]
[]
["Nome/ Razão Social:"]
[]
["CPF/CNPJ:",null,null,null,"Código CNAE:"]
[]
["Nome Fantasia (quando houver):"]
[]
["Logradouro/ Nº:"]
[]
["Bairro:",null,null,null,"Município:",null,null,null,"CEP:"]
[]
["Complemento:",null,null,null,null,null,null,"Estado:"]
[]
[null,null,null,null,null,"Latitude:",null,"Longitude:"]
["Coordenadas Geograficas:"]
[]
[]
[]
[]
[]
[]
["Nome:"]
[]
["CPF/CNPJ:",null,null,null,"Telefone para Contato:"]
[]
["E-mail para Contato:"]
[]
["Endereço para Correspondência:"]
[]
[]
[]
[]
[]
[]
["CÓDIGO da Atividade:",null,null,null,"Número da Licença Anterior (quando houver):"]
[{"$f":"I14","v":"88.33.288"}]
["Área do Empreendimento (m²) ou (HA):",null,null,null,"Faturamento Anual (R$):"]
[]
["Numero de Funcionários:",null,null,null,"Área Construida (m²) OU (HA):"]
[]
[]
["Descrição da Atividade:"]
[]
[]
[]
[]
["Endereço da Atividade:"]
[]
["Bairro:",null,null,null,"Município:",null,null,null,"CEP:",null,null,null,null,null,null,null,null,null,null,null,null,null,null,null,null,null,{"$f":"CONCATENATE(I72,\" \",I73)","v":"CEP: "}]
[null,null,null,null,null,null,null,null,null,null,null,null,null,null,null,null,null,null,null,null,null,null,null,null,null,null,{"$f":"CONCATENATE(A72,\" \",A73)","v":"Bairro: "}]
["Complemento:",null,null,null,null,null,null,"Estado:",null,null,null,null,null,null,null,null,null,null,null,null,null,null,null,null,null,null,{"$f":"CONCATENATE(H74,\" \",H75)","v":"Estado: "}]
[null,null,null,null,null,null,null,null,null,null,null,null,null,null,null,null,null,null,null,null,null,null,null,null,null,null,{"$f":"CONCATENATE(F76,\" \",F77)","v":"Latitude: "}]
[null,null,null,null,null,"Latitude:",null,"Longitude:",null,null,null,null,null,null,null,null,null,null,null,null,null,null,null,null,null,null,{"$f":"CONCATENATE(H76,\" \",H77)","v":"Longitude: "}]
["Coordenadas Geograficas:"]
[]
[]
["DECLARO PARA OS DEVIDOS FINS, QUE O DESENVOLVIMENTO DAS ATIVIDADES RELACIONADAS NESTE REQUERIMENTO REALIZAR-SE-Á DE ACORDO COM OS DADOS TRANSCRITOS E ANEXOS INDICADOS NO ITEM 7(SETE). PELO QUE VENHO REQUERER A SUDEMA (Superintendência de Administração do Meio Ambiente), A EXPEDIÇÃO DA RESPECTIVA LICENÇA."]

{"sheet":"LAC","index":28,"n_rows":91,"n_cols":22,"rows_kept":91,"cut":false,"hidden":false,"merged":[[74,0,74,3],[74,7,74,9],[71,0,71,3],[71,7,71,8],[72,0,72,5],[72,7,72,9],[73,0,73,3],[73,7,73,9],[69,0,69,1],[69,4,69,5],[69,8,69,9],[70,0,70,2],[70,4,70,6],[70,8,70,9],[86,0,86,2],[57,0,57,2],[57,4,57,6],[58,0,58,2],[58,4,58,6],[60,0,60,2],[60,4,60,6],[62,0,62,2],[63,0,66,9],[77,0,81,9],[58,7,58,9],[59,0,59,2],[59,4,59,5],[59,6,59,8],[67,0,67,3],[68,0,68,9],[48,0,48,3],[49,0,49,9],[55,0,55,2],[55,4,55,7],[56,0,56,2],[56,4,56,9],[47,0,47,9],[34,0,34,3],[34,7,34,9],[35,0,35,3],[35,7,35,9],[42,0,42,1],[43,0,43,9],[44,0,44,1],[44,4,44,5],[45,0,45,2],[45,4,45,5],[46,0,46,1],[33,0,33,5],[33,7,33,9],[26,0,26,3],[27,0,27,9],[28,0,28,3],[29,0,29,9],[30,0,30,1],[30,4,30,5],[30,8,30,9],[31,0,31,2],[31,4,31,6],[31,8,31,9],[32,0,32,3],[32,7,32,8],[22,0,22,1],[23,0,23,9],[24,0,24,1],[25,0,25,2],[25,4,25,9],[16,0,16,6],[12,0,12,1],[12,8,12,9],[13,0,13,6],[13,8,13,9],[15,0,15,1]]}
[null,null,null,null,null,null,null,null,null,null,null,null,null,null,null,null,null,null,null,null,"ATIVIDADE","CÓDIGO DA LICENÇA"]
[null,null,null,null,null,null,null,null,null,null,null,null,null,null,null,null,null,null,null,null,"Microempreendedor Individual (MEI) que possua atividades depotencial poluidor/degradador classificado como PEQUENO, com a apresentação de certidão de MEI, que não se enquadrarem nas atividades passiveis de Dispensa","49.14.499"]
[null,null,null,null,null,null,null,null,null,null,null,null,null,null,null,null,null,null,null,null,"Sistemas Simplificados de Abastecimento de Água Composto por captação (açudes ou poços), com capacidade de reserva até 50 m³ podendo ser em um reservatório único ou distribuído, vazão até 3 m³/h, tratamento singelo, rede de distribuição e ligações domiciliares","49.14.143"]
[null,null,null,null,null,null,null,null,null,null,null,null,null,null,null,null,null,null,null,null,"Projeto de poços vazão até 2 m³/h (dois metros cúbicos) por hora","49.14.429"]
[null,null,null,null,null,null,null,null,null,null,null,null,null,null,null,null,null,null,null,null,"Barramento ou represamento de curso d’água natural, com área inferior a 1ha, exceto em rios e riachos receptores das águas provenientes do projeto de integração do Rio São Francisco sendo vedada a comercialização de bens minerais, além do material lenhoso resultante da limpeza da bacia hidráulica","49.14.572"]
[null,null,null,null,null,null,null,null,null,null,null,null,null,null,null,null,null,null,null,null,"Sistema de Dessalinizadores de água para o abastecimento humano até 2 m³/h (dois metros cúbicos) por hora","49.14.715"]
[null,null,null,null,null,null,null,null,null,null,null,null,null,null,null,null,null,null,null,null,"Recuperação de barragens que sejam contemplados em Programas Governamentais com área inferior a 1 ha","49.14.858"]
[null,null,null,null,null,null,null,null,null,null,null,null,null,null,null,null,null,null,null,null,"Avicultura (postura e corte) superior a 300 e inferior a 1.500 animais","51.42.111"]
[null,null,null,null,null,null,null,null,null,null,null,null,null,null,null,null,null,null,null,null,"Suinocultura superior a 10 e inferior a 30 animais","51.42.222"]
[null,null,null,null,null,null,null,null,null,null,null,null,null,null,null,null,null,null,null,null,"Ovinocaprinocultura superior a 50 e inferior a 100 animais","51.42.333"]
[null,null,null,null,null,null,null,null,null,null,null,null,null,null,null,null,null,null,null,null,"Bovinocultura e Bubalinocultura superior a 20 e inferior a 50 animais","51.42.444"]
[null,null,null,null,null,null,null,null,null,null,null,null,null,null,null,null,null,null,null,null,"Ranicultura superior a 400 e inferior a 1000 m²","51.42.555"]
["Escolha a Atividade:",null,null,null,null,null,null,null,"Código da Atividade:",null,null,null,null,null,null,null,null,null,null,null,"Projetos agrícolas de sequeiro (sem uso de agrotóxicos) com área de 20 a 100 ha","51.42.950"]
["Ovinocaprinocultura superior a 50 e inferior a 100 animais",null,null,null,null,null,null,null,{"$f":"IFERROR(VLOOKUP(A14,U:V,2,0),\"\")","v":"51.42.333"},null,null,null,null,null,null,null,null,null,null,null,"Evento único comemorativo, realizado em via pública e/ou áreas públicas, que não haja comercialização de ingresso e/ou benefícios rentáveis, ou seja, que não possa auferir lucro","49.56.20"]
[null,null,null,null,null,null,null,null,null,null,null,null,null,null,null,null,null,null,null,null,"Produção artesanal de alimentos, bebidas e artesanatos (em pequena escala com características tradicionais ou regionais próprias) de cunho social e coletivo","49.56.40"]
["Escolha a Licença:",null,null,null,null,null,null,null,null,null,null,null,null,null,null,null,null,null,null,null,"Atividades de produção de artesanato realizadas por associações comunitárias","49.56.50"]
["Licença por Adesão e Compromisso - LAC",null,null,null,null,null,null,null,null,null,null,null,null,null,null,null,null,null,null,null,"Incineração e queima de substâncias químicas, drogas e ou entorpecentes no qual o responsável pela queima ou incineração esteja devidamente licenciado e que, as solicitações para queima/incineração sejam feitas por autoridades policiais ou do judiciário","49.56.60"]
[null,null,null,null,null,null,null,null,null,null,null,null,null,null,null,null,null,null,null,null,"Prestação de serviço de informática em desenvolvimentos de sistemas com área útil de 50 a 120m²","49.56.100"]
[null,null,null,null,null,null,null,null,null,null,null,null,null,null,null,null,null,null,null,null,"Comércio varejista de equipamentos e artigos de uso doméstico com área útil de 50 a 120m²","49.56.120"]
[null,null,null,null,null,null,null,null,null,null,null,null,null,null,null,null,null,null,null,null,"Comércio varejista de artigos culturais, recreativos e esportivos com área útil de 50 a 120m²","49.56.140"]
[null,null,null,null,null,null,null,null,null,null,null,null,null,null,null,null,null,null,null,null,"Agências de notícias e publicidade com área útil de 50 a 120m²","49.56.160"]
[null,null,null,null,null,null,null,null,null,null,null,null,null,null,null,null,null,null,null,null,"Agências de viagens que não possuam veículos com área útil de 50 a 120m²","49.56.180"]
["Nome/ Razão Social:",null,null,null,null,null,null,null,null,null,null,null,null,null,null,null,null,null,null,null,"Empreendimentos que tratam de aluguel de equipamentos recreativos e esportivos com área útil de 50 a 120m²","49.56.200"]
[null,null,null,null,null,null,null,null,null,null,null,null,null,null,null,null,null,null,null,null,"Empreendimentos que tratam de aluguel de produtos audiovisuais com área útil de 50 a 120m²","49.56.220"]
["CPF/CNPJ:",null,null,null,"Código CNAE:",null,null,null,null,null,null,null,null,null,null,null,null,null,null,null,"Empreendimentos que tratam de aluguel de máquinas e equipamentos para escritório com área útil de 50 a 120m²","49.56.240"]
[null,null,null,null,null,null,null,null,null,null,null,null,null,null,null,null,null,null,null,null,"Empreendimentos que tratam de aluguel de móveis, utensílios e aparelhos de uso doméstico e pessoal; instrumentos musicais com área útil de 50 a 120m²","49.56.260"]
["Nome Fantasia (quando houver):",null,null,null,null,null,null,null,null,null,null,null,null,null,null,null,null,null,null,null,"Empreendimentos que tratam de aluguel de objetos do vestuário, joias e acessórios com área útil de 50 a 120m²","49.56.280"]
[null,null,null,null,null,null,null,null,null,null,null,null,null,null,null,null,null,null,null,null,"Atividades de gravação de som e de edição de música com a devida proteção acústica com área de 50 a 120m²","49.56.300"]
["Logradouro/ Nº:",null,null,null,null,null,null,null,null,null,null,null,null,null,null,null,null,null,null,null,"Atividades de monitoramento de sistemas de segurança eletrônico com área útil de 50 a 120m²","49.56.320"]
[null,null,null,null,null,null,null,null,null,null,null,null,null,null,null,null,null,null,null,null,"Atividades de tele atendimento com área útil de 50 a 120m²","49.56.340"]
["Bairro:",null,null,null,"Município:",null,null,null,"CEP:",null,null,null,null,null,null,null,null,null,null,null,"Atividades de profissionais da área de saúde, exceto médicos e odontológicos, que não gerem resíduos de serviço de saúde, com área útil de 50 a 120m²","49.56.360"]
[null,null,null,null,null,null,null,null,null,null,null,null,null,null,null,null,null,null,null,null,"Comércio varejista de antiguidades com área útil de 50 a 120m²","49.56.380"]
["Complemento:",null,null,null,null,null,null,"Estado:",null,null,null,null,null,null,null,null,null,null,null,null,"Comercio varejista de artigos de armarinho com área útil de 50 a 120m²","49.56.400"]
[null,null,null,null,null,null,null,null,null,null,null,null,null,null,null,null,null,null,null,null,"Comercio varejista de artigos de cama, mesa e banho com área útil de 50 a 120m²","49.56.420"]
[null,null,null,null,null,"Latitude:",null,"Longitude:",null,null,null,null,null,null,null,null,null,null,null,null,"Comércio varejista de artigos de colchoaria com área útil de 50 a 120m²","49.56.440"]
["Coordenadas Geograficas:",null,null,null,null,null,null,null,null,null,null,null,null,null,null,null,null,null,null,null,"Comércio varejista de artigos de joalheria com área útil de 50 a 120m²","49.56.460"]
[null,null,null,null,null,null,null,null,null,null,null,null,null,null,null,null,null,null,null,null,"Comércio varejista de artigos de papelaria com área útil de 50 a 120m²","49.56.480"]
[null,null,null,null,null,null,null,null,null,null,null,null,null,null,null,null,null,null,null,null,"Comércio varejista de artigos de relojoaria com área útil de 50 a 120m²","49.56.500"]
[null,null,null,null,null,null,null,null,null,null,null,null,null,null,null,null,null,null,null,null,"Comércio varejista de artigos de tapeçaria, cortinas e persianas com área útil de 50 a 120m²","49.56.520"]
[null,null,null,null,null,null,null,null,null,null,null,null,null,null,null,null,null,null,null,null,"Comércio varejista de artigos de viagem com área útil de 50 a 120m²","49.56.540"]
[null,null,null,null,null,null,null,null,null,null,null,null,null,null,null,null,null,null,null,null,"Comércio varejista de artigos do vestuário e acessórios com área útil de 50 a 120m²","49.56.560"]
[null,null,null,null,null,null,null,null,null,null,null,null,null,null,null,null,null,null,null,null,"Comércio varejista de artigos esportivos com área útil de 50 a 120m²","49.56.580"]
["Nome:",null,null,null,null,null,null,null,null,null,null,null,null,null,null,null,null,null,null,null,"Comércio varejista de artigos fotográficos e para filmagem com área útil de 50 a 120m²","49.56.600"]
[null,null,null,null,null,null,null,null,null,null,null,null,null,null,null,null,null,null,null,null,"Comércio varejista de brinquedos e artigos recreativos com área útil de 50 a 120m²","49.56.620"]
["CPF/CNPJ:",null,null,null,"Telefone para Contato:",null,null,null,null,null,null,null,null,null,null,null,null,null,null,null,"Comércio varejista de calçados com área útil de 50 a 120m²","49.56.640"]
[null,null,null,null,null,null,null,null,null,null,null,null,null,null,null,null,null,null,null,null,"Comércio varejista de produtos audiovisuais com área útil de 50 a 120m²","49.56.660"]
["E-mail para Contato:",null,null,null,null,null,null,null,null,null,null,null,null,null,null,null,null,null,null,null,"Comércio varejista de equipamentos para escritório com área útil de 50 a 120m²","49.56.680"]
[null,null,null,null,null,null,null,null,null,null,null,null,null,null,null,null,null,null,null,null,"Comércio varejista de jornais e revistas com área útil de 50 a 120m²","49.56.700"]
["Endereço para Correspondência:",null,null,null,null,null,null,null,null,null,null,null,null,null,null,null,null,null,null,null,"Comércio varejista de livros com área útil de 50 a 120m²","49.56.720"]
[null,null,null,null,null,null,null,null,null,null,null,null,null,null,null,null,null,null,null,null,"Comércio varejista de mercadorias em lojas de conveniência com área útil de 50 a 120m²","49.56.740"]
[null,null,null,null,null,null,null,null,null,null,null,null,null,null,null,null,null,null,null,null,"Comércio varejista de móveis com área útil de 50 a 120m²","49.56.760"]
[null,null,null,null,null,null,null,null,null,null,null,null,null,null,null,null,null,null,null,null,"Comércio varejista de objetos de arte com área útil de 50 a 120m²","49.56.780"]
[null,null,null,null,null,null,null,null,null,null,null,null,null,null,null,null,null,null,null,null,"Comércio varejista especializado de instrumentos musicais e acessórios com área útil de 50 a 120m²","49.56.800"]
[null,null,null,null,null,null,null,null,null,null,null,null,null,null,null,null,null,null,null,null,"Comércio varejista especializado de peças e acessórios para aparelhos eletroeletrônicos para uso doméstico, exceto informática e comunicação com área útil de 50 a 120m²","49.56.820"]
[null,null,null,null,null,null,null,null,null,null,null,null,null,null,null,null,null,null,null,null,"Serviços combinados de escritório e apoio administrativo com área útil de 50 a 120m², cuja a atividade final realizada gere apenas resíduo do tipo doméstico","49.56.840"]
["CÓDIGO da Atividade:",null,null,null,"Número da Licença Anterior (quando houver):",null,null,null,null,null,null,null,null,null,null,null,null,null,null,null,"Serviços de acabamentos gráficos, exceto encadernação e plastificação com área útil de 50 a 120m²","49.56.860"]
[{"$f":"I14","v":"51.42.333"},null,null,null,null,null,null,null,null,null,null,null,null,null,null,null,null,null,null,null,"Serviços de encadernação e plastificação com área útil de 50 a 120m²","49.56.880"]
["Área do Empreendimento (m²):",null,null,null,null,null,null,null,null,null,null,null,null,null,null,null,null,null,null,null,"Serviços de gravação de carimbos, exceto confecção com área útil de 50 a 120m²","49.56.900"]
[null,null,null,null,null,null,null,null,null,null,null,null,null,null,null,null,null,null,null,null,"Tratamento de dados, provedores de serviços de aplicação e serviços de hospedagem na internet com área útil de 50 a 120m²","49.56.920"]
["Numero de Funcionários:",null,null,null,"Área Construida (m²):",null,null,null,null,null,null,null,null,null,null,null,null,null,null,null,"Produção artesanal de bordado em tecido e/ou tear, de cunho social e coletivo com área útil de 50 a 120m²","49.56.940"]
[null,null,null,null,null,null,null,null,null,null,null,null,null,null,null,null,null,null,null,null,"Sede de associações com área útil de 50 a 120m²","49.56.960"]
[null,null,null,null,null,null,null,null,null,null,null,null,null,null,null,null,null,null,null,null,"Centro de Comercialização de Produtos Agropecuários oriundo de atividades comunitárias e de agricultura familiar com área útil até 1500 m²","49.70.67"]
["Descrição da Atividade:",null,null,null,null,null,null,null,null,null,null,null,null,null,null,null,null,null,null,null,"Construções rurais e ambiência, auxiliando as atividades de agricultura familiar e que estejam em conformidade com a Lei Federal nº 11.326, de 24 de julho de 2006","49.70.134"]
[null,null,null,null,null,null,null,null,null,null,null,null,null,null,null,null,null,null,null,null,"Projeto de instalação de complexo sanitário na zona rural dimensionados de acordo com os critérios técnicos previsto em normas especifica da ABNT e que integrem programas governamentais de infraestrutura de interesse social","49.70.201"]
[null,null,null,null,null,null,null,null,null,null,null,null,null,null,null,null,null,null,null,null,"Edificação Residencial Unifamiliar com área construída até 120m², de infraestrutura completa de acordo com os critérios técnicos previstos em normas especificas da ABNT","49.70.268"]
[null,null,null,null,null,null,null,null,null,null,null,null,null,null,null,null,null,null,null,null,"Obras públicas consideradas de bens de uso comum e que não gerem efluentes ou que sejam atendidos por rede de coleta de esgotamento sanitário devidamente licenciada","49.70.335"]
[null,null,null,null,null,null,null,null,null,null,null,null,null,null,null,null,null,null,null,null,"Reforma de equipamentos públicos para fins de lazer, práticas esportivas e de utilidade pública, tais como, quadras de esportes, praças, campos de futebol, ginásio poliesportivo, pista de skate, portal de entrada do município, em área urbana já servidos de toda infraestrutura, em especial rede de esgoto e coleta de resíduos","49.70.402"]
["Endereço da Atividade:",null,null,null,null,null,null,null,null,null,null,null,null,null,null,null,null,null,null,null,"Reforma e/ou Ampliação (até 30% de sua área construída) de prédios públicos, tais como, escolas, creches, centros de inclusão digital, etc","49.70.469"]
[null,null,null,null,null,null,null,null,null,null,null,null,null,null,null,null,null,null,null,null,"Reformas/recuperação/melhorias de reservatórios de sistemas de abastecimento público com capacidade até 50 m³","49.70.536"]
["Bairro:",null,null,null,"Município:",null,null,null,"CEP:",null,null,{"$f":"CONCATENATE(I70,\" \",I71)","v":"CEP: "}]
[null,null,null,null,null,null,null,null,null,null,null,{"$f":"CONCATENATE(A70,\" \",A71)","v":"Bairro: "}]
["Complemento:",null,null,null,null,null,null,"Estado:",null,null,null,{"$f":"CONCATENATE(H72,\" \",H73)","v":"Estado: "}]
[null,null,null,null,null,null,null,null,null,null,null,{"$f":"CONCATENATE(F74,\" \",F75)","v":"Latitude: "}]
[null,null,null,null,null,"Latitude:",null,"Longitude:",null,null,null,{"$f":"CONCATENATE(H74,\" \",H75)","v":"Longitude: "}]
["Coordenadas Geograficas:"]
[]
[]
["DECLARO PARA OS DEVIDOS FINS, QUE O DESENVOLVIMENTO DAS ATIVIDADES RELACIONADAS NESTE REQUERIMENTO REALIZAR-SE-Á DE ACORDO COM OS DADOS TRANSCRITOS E ANEXOS INDICADOS NO ITEM 7(SETE). PELO QUE VENHO REQUERER A SUDEMA (Superintendência de Administração do Meio Ambiente), A EXPEDIÇÃO DA RESPECTIVA LICENÇA.",null,null,null,null,null,null,null,null,null,null,null,null,null,null,null,null,null,null,null,"Implantação e/ou reparação de calçadas e/ou ciclovias com comprimento até 2500 m","49.70.603"]
[null,null,null,null,null,null,null,null,null,null,null,null,null,null,null,null,null,null,null,null,"Pavimentação e Drenagem Superficial de vias públicas com comprimento de até 2500 m","49.70.670"]
[null,null,null,null,null,null,null,null,null,null,null,null,null,null,null,null,null,null,null,null,"\"Tapa buraco\", reparo no meio fio, limpeza da sarjeta, desobstrução de bueiros, limpeza do acostamento, reparos na sinalização vertical e horizontal ","49.70.737"]
[null,null,null,null,null,null,null,null,null,null,null,null,null,null,null,null,null,null,null,null,"Manutenção de rodovias pavimentadas: serviços de reparo dos defeitos ocasionados pelo desgaste natural, onde se procura reabilitar as funções de trafegabilidade, em caráter preventivo com comprimento até 2500 m","49.70.804"]
[null,null,null,null,null,null,null,null,null,null,null,null,null,null,null,null,null,null,null,null,"Recapeamento asfáltico e/ou recomposição da sinalização horizontal em vias públicas com comprimento até 2500m","49.70.871"]
[null,null,null,null,null,null,null,null,null,null,null,null,null,null,null,null,null,null,null,null,"Passagem Molhada sem barramento de recurso hídrico com extensão de até 50 metros","49.70.938"]
[null,null,null,null,null,null,null,null,null,null,null,null,null,null,null,null,null,null,null,null,"Manutenção de Iluminação Pública em área urbana e rural em que não ocorra corte/supressão de arvores e vegetação, nem transposição de áreas de preservação permanente","49.84.111"]
[null,null,null,null,null,null,null,null,null,null,null,null,null,null,null,null,null,null,null,null,"Programas governamentais de interesse social que visem a Implantação e manutenção de linhas de distribuição com tensão até 15 kV para fins de eletrificação rural em que não ocorra corte/supressão de árvores e vegetação, nem transposição de áreas de preservação permanente","49.84.222"]
[null,null,null,null,null,null,null,null,null,null,null,null,null,null,null,null,null,null,null,null,"Os sistemas de rádio enlace ponto-a-ponto que possua comprovação de licenciamento da estrutura","49.84.333"]
[null,null,null,null,null,null,null,null,null,null,null,null,null,null,null,null,null,null,null,null,"Estações Transmissoras de radiocomunicação com Potência Isotropicamente irradiada menor ou igual a 4 W (36dBm) e distância mínima entre a antena e o local onde a população em geral possa estar exposta de 1 (um) m","49.84.444"]
[null,null,null,null,null,null,null,null,null,null,null,null,null,null,null,null,null,null,null,null,"Ligação de cabeamento Óptico de Telecomunicação à uma unidade, em estruturas físicas pré-existentes","49.84.555"]
[null,null,null,null,null,null,null,null,null,null,null,null,null,null,null,null,null,null,null,null,"Radiodifusão alternativa à cabo","49.84.666"]
[null,null,null,null,null,null,null,null,null,null,null,null,null,null,null,null,null,null,null,null,"Geração distribuída de energia elétrica a partir de fontes renovável com Potência gerada ≥ 0,75 ≤ 5 MW, para consumo próprio e em áreas que não ocorra corte/supressão de árvores e vegetação","49.84.777"]
[null,null,null,null,null,null,null,null,null,null,null,null,null,null,null,null,null,null,null,null,"Linhas de Distribuição até 15 Kv com extensão de até 10 km","49.84.900"]

{"sheet":"LS","index":29,"n_rows":78,"n_cols":22,"rows_kept":78,"cut":false,"hidden":false,"merged":[[74,0,74,3],[74,7,74,9],[71,0,71,3],[71,7,71,8],[72,0,72,5],[72,7,72,9],[73,0,73,3],[73,7,73,9],[69,0,69,1],[69,4,69,5],[69,8,69,9],[70,0,70,2],[70,4,70,6],[70,8,70,9],[86,0,86,2],[57,0,57,2],[57,4,57,6],[58,0,58,2],[58,4,58,6],[60,0,60,2],[60,4,60,6],[62,0,62,2],[63,0,66,9],[77,0,81,9],[58,7,58,9],[59,0,59,2],[59,4,59,5],[59,6,59,8],[67,0,67,3],[68,0,68,9],[48,0,48,3],[49,0,49,9],[55,0,55,2],[55,4,55,7],[56,0,56,2],[56,4,56,9],[47,0,47,9],[34,0,34,3],[34,7,34,9],[35,0,35,3],[35,7,35,9],[42,0,42,1],[43,0,43,9],[44,0,44,1],[44,4,44,5],[45,0,45,2],[45,4,45,5],[46,0,46,1],[33,0,33,5],[33,7,33,9],[27,0,27,9],[28,0,28,3],[29,0,29,9],[30,0,30,1],[30,4,30,5],[30,8,30,9],[31,0,31,2],[31,4,31,6],[31,8,31,9],[32,0,32,3],[32,7,32,8],[26,0,26,3],[12,0,12,1],[12,8,12,9],[13,0,13,6],[13,8,13,9],[15,0,15,1],[16,0,16,6],[22,0,22,1],[23,0,23,9],[24,0,24,1],[25,0,25,2],[25,4,25,9]]}
[null,null,null,null,null,null,null,null,null,null,null,null,null,null,null,null,null,null,null,null,"ATIVIDADE","CÓDIGO DA LICENÇA"]
[null,null,null,null,null,null,null,null,null,null,null,null,null,null,null,null,null,null,null,null,"Unidade de triagem de produtos recicláveis orgânicos e inorgânicos, para até 10 ton (dez toneladas) por dia","49.13.333"]
[null,null,null,null,null,null,null,null,null,null,null,null,null,null,null,null,null,null,null,null,"Transporte municipal e intermunicipal de materiais recicláveis e reutilizáveis excetuando se resíduos perigosos nos centros urbanos ou na zona rural, até 03 (três) veículos","49.13.666"]
[null,null,null,null,null,null,null,null,null,null,null,null,null,null,null,null,null,null,null,null,"Unidade de beneficiamento de leite com capacidade para até 600 (seiscentos) litros/dia","49.26.67"]
[null,null,null,null,null,null,null,null,null,null,null,null,null,null,null,null,null,null,null,null,"Olaria com capacidade de produção de até 30.000 (trinta mil) peças/mês, comprovando a origem da lenha quando este for de origem florestal","49.26.134"]
[null,null,null,null,null,null,null,null,null,null,null,null,null,null,null,null,null,null,null,null,"Fábrica de tijolos alternativos com capacidade para produção de até 40.000 (quarenta mil) tijolos/mês , comprovando a origem da lenha quando este for de origem floresta","49.26.201"]
[null,null,null,null,null,null,null,null,null,null,null,null,null,null,null,null,null,null,null,null,"Unidade de Fabricação de material de limpeza com capacidade para produção de até 8,0 m³ (oito metros cúbicos) por mês, comprovando a origem da lenha quando este for de origem floresta","49.26.268"]
[null,null,null,null,null,null,null,null,null,null,null,null,null,null,null,null,null,null,null,null,"Unidade de Fabricação de doces com capacidade para produção de até 600 Kg (seiscentos quilogramas) por mês","49.26.335"]
[null,null,null,null,null,null,null,null,null,null,null,null,null,null,null,null,null,null,null,null,"Casa de farinha comunitária para produção de até 500 Kg (quinhentos quilogramas) por dia","49.26.402"]
[null,null,null,null,null,null,null,null,null,null,null,null,null,null,null,null,null,null,null,null,"Unidade de Fabricação de ração comunitária para produção de até 2,0 ton (duas toneladas) por dia","49.26.469"]
[null,null,null,null,null,null,null,null,null,null,null,null,null,null,null,null,null,null,null,null,"Unidade de Fabricação de sabão, contemplados em Programas Governamentais","49.26.536"]
[null,null,null,null,null,null,null,null,null,null,null,null,null,null,null,null,null,null,null,null,"Unidade de Fabricação de beneficiamento de frutas comunitária com capacidade para produção de até 2,0 ton (duas toneladas) por dia","49.26.603"]
["Escolha a Atividade:",null,null,null,null,null,null,null,"Código da Atividade:",null,null,null,null,null,null,null,null,null,null,null,"Serralharia comunitária para produção de até 5.000 Kg (cinco mil quilogramas) por mês","49.26.670"]
["Ovinocaprinocultura superior a 100 e inferior a 200 animais",null,null,null,null,null,null,null,{"$f":"IFERROR(VLOOKUP(A14,U:V,2,0),\"\")","v":"49.65.497"},null,null,null,null,null,null,null,null,null,null,null,"Serraria de madeira comunitária para a produção de até 5,0 m3 (cinco metros cúbicos) por mês","49.26.737"]
[null,null,null,null,null,null,null,null,null,null,null,null,null,null,null,null,null,null,null,null,"Unidades de beneficiamento de pescado com produção de até 1 ton (tonelada) dia","49.26.804"]
["Escolha a Licença:",null,null,null,null,null,null,null,null,null,null,null,null,null,null,null,null,null,null,null,"Casa de extração de mel com produção diária de até 1.000 kg/dia (um mil quilogramas","49.26.871"]
["Licença Simplificada - LS",null,null,null,null,null,null,null,null,null,null,null,null,null,null,null,null,null,null,null,"Usinas de beneficiamento de minérios operadas por cooperativas de pequenos mineradores beneficiárias de Programas Governamentais","49.26.938"]
[null,null,null,null,null,null,null,null,null,null,null,null,null,null,null,null,null,null,null,null,"Central de comercialização de produtos artesanais e da agricultura familiar, com área entre 1.500,00m² e 2.500,00m²","49.39.143"]
[null,null,null,null,null,null,null,null,null,null,null,null,null,null,null,null,null,null,null,null,"Cozinhas Comunitárias","49.39.286"]
[null,null,null,null,null,null,null,null,null,null,null,null,null,null,null,null,null,null,null,null,"Atividades com projetos sanitários domiciliares (Unidade por família), em comunidades rurais, desde que o Projeto atenda à Norma ABNT nº 7229","49.39.572"]
[null,null,null,null,null,null,null,null,null,null,null,null,null,null,null,null,null,null,null,null,"Estacionamento de veículos e motocicletas impermeável com área útil até 1.000m²","49.39.715"]
[null,null,null,null,null,null,null,null,null,null,null,null,null,null,null,null,null,null,null,null,"Edifício para estacionamento de veículos e motocicletas com área útil até 1.000m²","49.39.858"]
["Nome/ Razão Social:",null,null,null,null,null,null,null,null,null,null,null,null,null,null,null,null,null,null,null,"Espaços abertos para fins de lazer, práticas esportivas tais como, quadras de esportes e campos de futebol de várzea com área útil até 5.000m²","49.39.888"]
[null,null,null,null,null,null,null,null,null,null,null,null,null,null,null,null,null,null,null,null,"Poço para abastecimento d’água com vazão acima 2 m³/h (dois metros cúbicos) por hora","49.52.333"]
["CPF/CNPJ:",null,null,null,"Código CNAE:",null,null,null,null,null,null,null,null,null,null,null,null,null,null,null,"Sistema de Dessalinizadores de água para o abastecimento humano acima de 2m³/h","49.52.666"]
[null,null,null,null,null,null,null,null,null,null,null,null,null,null,null,null,null,null,null,null,"Central de triagem, embalagem e distribuição de produtos oriundos da agricultura familiar, com área entre 1.500,00m² e 2.500,00m²;","49.65.71"]
["Nome Fantasia (quando houver):",null,null,null,null,null,null,null,null,null,null,null,null,null,null,null,null,null,null,null,"Flores ornamentais em estufas em área até 0,5ha;","49.65.142"]
[null,null,null,null,null,null,null,null,null,null,null,null,null,null,null,null,null,null,null,null,"Atividades de floricultura e fruticultura irrigada de até 3,0 ha (três hectares) por beneficiário de projetos coletivos de agricultura familiar, sem uso intensivo de agrotóxico e com sistema de irrigação localizada (gotejamento, micro aspersão, etc);","49.65.213"]
["Logradouro/ Nº:",null,null,null,null,null,null,null,null,null,null,null,null,null,null,null,null,null,null,null,"Avicultura (postura e corte) superior a 1.500 e inferior a 10.000 animais","49.65.355"]
[null,null,null,null,null,null,null,null,null,null,null,null,null,null,null,null,null,null,null,null,"Suinocultura superior a 30 e inferior a 70 animais","49.65.426"]
["Bairro:",null,null,null,"Município:",null,null,null,"CEP:",null,null,null,null,null,null,null,null,null,null,null,"Ovinocaprinocultura superior a 100 e inferior a 200 animais","49.65.497"]
[null,null,null,null,null,null,null,null,null,null,null,null,null,null,null,null,null,null,null,null,"Bovinocultura e Bubalinocultura superior a 50 e inferior a 300 animais","49.65.568"]
["Complemento:",null,null,null,null,null,null,"Estado:",null,null,null,null,null,null,null,null,null,null,null,null,"Carcinicultura com área superior a 5 e inferior a 10 ha","49.65.639"]
[null,null,null,null,null,null,null,null,null,null,null,null,null,null,null,null,null,null,null,null,"Piscicultura com área superior a 5 e inferior a 10 ha","49.65.710"]
[null,null,null,null,null,"Latitude:",null,"Longitude:",null,null,null,null,null,null,null,null,null,null,null,null,"Miticultura e/ou ostreicultura superior a 500 e inferior a 1000 sementes","49.65.781"]
["Coordenadas Geograficas:",null,null,null,null,null,null,null,null,null,null,null,null,null,null,null,null,null,null,null,"Ranicultura com área superior a 1000 e inferior a 3000 m²","49.65.852"]
[null,null,null,null,null,null,null,null,null,null,null,null,null,null,null,null,null,null,null,null,"Projetos agrícolas de sequeiro (sem uso de agrotóxicos) com área superior a 100 e inferior a 300 ha","49.65.923"]
[null,null,null,null,null,null,null,null,null,null,null,null,null,null,null,null,null,null,null,null,"Projetos agrícolas irrigados (sem uso de agrotóxicos) com área superior a 5 e inferior a 10 ha","49.65.950"]
[null,null,null,null,null,null,null,null,null,null,null,null,null,null,null,null,null,null,null,null,"Edificação de unidade familiar em área com infraestrutura incompleta, área construída de até 120m²","49.78.250"]
[null,null,null,null,null,null,null,null,null,null,null,null,null,null,null,null,null,null,null,null,"Passagem Molhada sem barramento de recurso hídrico Com extensão acima de 50 metros","49.78.500"]
[null,null,null,null,null,null,null,null,null,null,null,null,null,null,null,null,null,null,null,null,"Passagem Molhada com barramento de recurso hidricos","49.78.750"]
[null,null,null,null,null,null,null,null,null,null,null,null,null,null,null,null,null,null,null,null,"Estrutura para instalação de sistemas de telecomunicações e equipamentos afins (em área urbana ou rural sem interferência ambiental significativa)","49.91.333"]
["Nome:",null,null,null,null,null,null,null,null,null,null,null,null,null,null,null,null,null,null,null,"Estações de telecomunicações e equipamentos afins (telefonia móvel celular; erbs; rádio; televisão; telefonia e telecomunicações em geral) os quais operem na faixa de frequência de 8,3 KHz até 300 GHz","49.91.666"]
[null,null,null,null,null,null,null,null,null,null,null,null,null,null,null,null,null,null,null,null,"Equipamentos de Sondagem: Estações solarimétricas / torres anemométricas","49.91.888"]
["CPF/CNPJ:",null,null,null,"Telefone para Contato:"]
[]
["E-mail para Contato:"]
[]
["Endereço para Correspondência:"]
[]
[]
[]
[]
[]
[]
["CÓDIGO da Atividade:",null,null,null,"Número da Licença Anterior (quando houver):"]
[{"$f":"I14","v":"49.65.497"}]
["Área do Empreendimento (m²):",null,null,null,"Faturamento Anual (R$):"]
[]
["Numero de Funcionários:",null,null,null,"Área Construida (m²):"]
[]
[]
["Descrição da Atividade:"]
[]
[]
[]
[]
["Endereço da Atividade:"]
[]
["Bairro:",null,null,null,"Município:",null,null,null,"CEP:",null,null,{"$f":"CONCATENATE(I70,\" \",I71)","v":"CEP: "}]
[null,null,null,null,null,null,null,null,null,null,null,{"$f":"CONCATENATE(A70,\" \",A71)","v":"Bairro: "}]
["Complemento:",null,null,null,null,null,null,"Estado:",null,null,null,{"$f":"CONCATENATE(H72,\" \",H73)","v":"Estado: "}]
[null,null,null,null,null,null,null,null,null,null,null,{"$f":"CONCATENATE(F74,\" \",F75)","v":"Latitude: "}]
[null,null,null,null,null,"Latitude:",null,"Longitude:",null,null,null,{"$f":"CONCATENATE(H74,\" \",H75)","v":"Longitude: "}]
["Coordenadas Geograficas:"]
[]
[]
["DECLARO PARA OS DEVIDOS FINS, QUE O DESENVOLVIMENTO DAS ATIVIDADES RELACIONADAS NESTE REQUERIMENTO REALIZAR-SE-Á DE ACORDO COM OS DADOS TRANSCRITOS E ANEXOS INDICADOS NO ITEM 7(SETE). PELO QUE VENHO REQUERER A SUDEMA (Superintendência de Administração do Meio Ambiente), A EXPEDIÇÃO DA RESPECTIVA LICENÇA."]

{"sheet":"DISPENSA","index":30,"n_rows":79,"n_cols":22,"rows_kept":79,"cut":false,"hidden":false,"merged":[[74,0,74,3],[74,7,74,9],[71,0,71,3],[71,7,71,8],[72,0,72,5],[72,7,72,9],[73,0,73,3],[73,7,73,9],[69,0,69,1],[69,4,69,5],[69,8,69,9],[70,0,70,2],[70,4,70,6],[70,8,70,9],[87,0,87,2],[57,0,57,2],[57,4,57,6],[58,0,58,2],[58,4,58,6],[60,0,60,2],[60,4,60,6],[62,0,62,2],[63,0,66,9],[78,0,82,9],[58,7,58,9],[59,0,59,2],[59,4,59,5],[59,6,59,8],[67,0,67,3],[68,0,68,9],[48,0,48,3],[49,0,49,9],[55,0,55,2],[55,4,55,7],[56,0,56,2],[56,4,56,9],[47,0,47,9],[34,0,34,3],[34,7,34,9],[35,0,35,3],[35,7,35,9],[42,0,42,1],[43,0,43,9],[44,0,44,1],[44,4,44,5],[45,0,45,2],[45,4,45,5],[46,0,46,1],[33,0,33,5],[33,7,33,9],[27,0,27,9],[28,0,28,3],[29,0,29,9],[30,0,30,1],[30,4,30,5],[30,8,30,9],[31,0,31,2],[31,4,31,6],[31,8,31,9],[32,0,32,3],[32,7,32,8],[26,0,26,3],[12,0,12,1],[12,8,12,9],[13,0,13,6],[13,8,13,9],[15,0,15,1],[16,0,16,6],[22,0,22,1],[23,0,23,9],[24,0,24,1],[25,0,25,2],[25,4,25,9]]}
[null,null,null,null,null,null,null,null,null,null,null,null,null,null,null,null,null,null,null,null,"ATIVIDADE","CÓDIGO DA LICENÇA"]
[null,null,null,null,null,null,null,null,null,null,null,null,null,null,null,null,null,null,null,null,"Avicultura (postura e corte) inferior a 300 animais",25091]
[null,null,null,null,null,null,null,null,null,null,null,null,null,null,null,null,null,null,null,null,"Suinocultura inferior a 10 animais",25182]
[null,null,null,null,null,null,null,null,null,null,null,null,null,null,null,null,null,null,null,null,"Ovinocaprinocultura inferior a 50 animais",25272]
[null,null,null,null,null,null,null,null,null,null,null,null,null,null,null,null,null,null,null,null,"Bovinocultura e Bubalinocultura inferior a 20 animais",25363]
[null,null,null,null,null,null,null,null,null,null,null,null,null,null,null,null,null,null,null,null,"Carcinicultura com área inferior a 5 ha",25454]
[null,null,null,null,null,null,null,null,null,null,null,null,null,null,null,null,null,null,null,null,"Piscicultura com área inferior a 5 ha",25545]
[null,null,null,null,null,null,null,null,null,null,null,null,null,null,null,null,null,null,null,null,"Miticultura e/ou ostreicultura inferior a 500 sementes",25636]
[null,null,null,null,null,null,null,null,null,null,null,null,null,null,null,null,null,null,null,null,"Ranicultura com área inferior a 400 m²",25727]
[null,null,null,null,null,null,null,null,null,null,null,null,null,null,null,null,null,null,null,null,"Projetos agrícolas de sequeiro (sem uso de agrotóxicos) com área até 20 ha",25817]
[null,null,null,null,null,null,null,null,null,null,null,null,null,null,null,null,null,null,null,null,"Projetos agrícolas irrigados (sem uso de agrotóxicos) com área até 1 ha",25908]
[null,null,null,null,null,null,null,null,null,null,null,null,null,null,null,null,null,null,null,null,"Cisternas domiciliares construídas na zona rural com capacidade até 20 m³",30500]
["Escolha a Atividade:",null,null,null,null,null,null,null,"Código da Atividade:",null,null,null,null,null,null,null,null,null,null,null,"Microempreendedor Individual (MEI) que possua atividades de potencial poluidor/degradador classificado como PEQUENO, com a apresentação de certidão de MEI, cuja atividade seja desenvolvida em endereço domiciliar",40500]
["Comércio varejista de artigos de colchoaria com área útil até de 50 m²",null,null,null,null,null,null,null,{"$f":"IFERROR(VLOOKUP(A14,U:V,2,0),\"\")","v":50413},null,null,null,null,null,null,null,null,null,null,null,"Salas de comércios e serviços com área até 200 m², inseridos em empreendimento que possuem Licença de Operação vigente, exceto atividades geradoras de resíduos especiais\n",50022]
[null,null,null,null,null,null,null,null,null,null,null,null,null,null,null,null,null,null,null,null,"Prestação de serviço de informática em desenvolvimentos de sistemas com área útil até de 50 m²",50043]
["Escolha a Licença:",null,null,null,null,null,null,null,null,null,null,null,null,null,null,null,null,null,null,null,"Comércio varejista de equipamentos e artigos de uso doméstico com área útil até de 50 m²",50065]
["Dispensa de Licença",null,null,null,null,null,null,null,null,null,null,null,null,null,null,null,null,null,null,null,"Comércio varejista de artigos culturais, recreativos e esportivos com área útil até de 50 m²",50087]
[null,null,null,null,null,null,null,null,null,null,null,null,null,null,null,null,null,null,null,null,"Agências de notícias e publicidade com área útil até de 50 m² ",50109]
[null,null,null,null,null,null,null,null,null,null,null,null,null,null,null,null,null,null,null,null,"Agências de viagens que não possuam veículos com área útil até de 50 m²",50130]
[null,null,null,null,null,null,null,null,null,null,null,null,null,null,null,null,null,null,null,null,"Empreendimentos que tratam de aluguel de equipamentos recreativos e esportivos com área útil até de 50 m²",50152]
[null,null,null,null,null,null,null,null,null,null,null,null,null,null,null,null,null,null,null,null,"Empreendimentos que tratam de aluguel de produtos audiovisuais com área útil até de 50 m²",50174]
[null,null,null,null,null,null,null,null,null,null,null,null,null,null,null,null,null,null,null,null,"Empreendimentos que tratam de aluguel de máquinas e equipamentos para escritório com área útil até de 50 m²",50195]
["Nome/ Razão Social:",null,null,null,null,null,null,null,null,null,null,null,null,null,null,null,null,null,null,null,"Empreendimentos que tratam de aluguel de móveis, utensílios e aparelhos de uso doméstico e pessoal; instrumentos musicais com área útil até de 50 m²",50217]
[null,null,null,null,null,null,null,null,null,null,null,null,null,null,null,null,null,null,null,null,"Empreendimentos que tratam de aluguel de objetos do vestuário, joias e acessórios com área útil até de 50 m²",50239]
["CPF/CNPJ:",null,null,null,"Código CNAE:",null,null,null,null,null,null,null,null,null,null,null,null,null,null,null,"Atividades de gravação de som e de edição de música com a devida proteção acústica com área útil até de 50 m²",50261]
[null,null,null,null,null,null,null,null,null,null,null,null,null,null,null,null,null,null,null,null,"Atividades de monitoramento de sistemas de segurança eletrônico com área útil até de 50 m²",50282]
["Nome Fantasia (quando houver):",null,null,null,null,null,null,null,null,null,null,null,null,null,null,null,null,null,null,null,"Atividades de tele atendimento com área útil até de 50 m²",50304]
[null,null,null,null,null,null,null,null,null,null,null,null,null,null,null,null,null,null,null,null,"Atividades de profissionais da área de saúde, exceto médicos e odontológicos, que não gerem resíduos de serviço de saúde, com área útil até de 50 m²",50326]
["Logradouro/ Nº:",null,null,null,null,null,null,null,null,null,null,null,null,null,null,null,null,null,null,null,"Comércio varejista de antiguidades com área útil até de 50 m²",50347]
[null,null,null,null,null,null,null,null,null,null,null,null,null,null,null,null,null,null,null,null,"Comercio varejista de artigos de armarinho com área útil até de 50 m²",50369]
["Bairro:",null,null,null,"Município:",null,null,null,"CEP:",null,null,null,null,null,null,null,null,null,null,null,"Comercio varejista de artigos de cama, mesa e banho com área útil até de 50 m²",50391]
[null,null,null,null,null,null,null,null,null,null,null,null,null,null,null,null,null,null,null,null,"Comércio varejista de artigos de colchoaria com área útil até de 50 m²",50413]
["Complemento:",null,null,null,null,null,null,"Estado:",null,null,null,null,null,null,null,null,null,null,null,null,"Comércio varejista de artigos de joalheria com área útil até de 50 m²",50434]
[null,null,null,null,null,null,null,null,null,null,null,null,null,null,null,null,null,null,null,null,"Comércio varejista de artigos de papelaria com área útil até de 50 m²",50456]
[null,null,null,null,null,"Latitude:",null,"Longitude:",null,null,null,null,null,null,null,null,null,null,null,null,"Comércio varejista de artigos de relojoaria com área útil até de 50 m²",50478]
["Coordenadas Geograficas:",null,null,null,null,null,null,null,null,null,null,null,null,null,null,null,null,null,null,null,"Comércio varejista de artigos de tapeçaria, cortinas e persianas com área útil até de 50 m²",50500]
[null,null,null,null,null,null,null,null,null,null,null,null,null,null,null,null,null,null,null,null,"Comércio varejista de artigos de viagem com área útil até de 50 m²",50521]
[null,null,null,null,null,null,null,null,null,null,null,null,null,null,null,null,null,null,null,null,"Comércio varejista de artigos do vestuário e acessórios com área útil até de 50 m²",50543]
[null,null,null,null,null,null,null,null,null,null,null,null,null,null,null,null,null,null,null,null,"Comércio varejista de artigos esportivos com área útil até de 50 m²",50565]
[null,null,null,null,null,null,null,null,null,null,null,null,null,null,null,null,null,null,null,null,"Comércio varejista de artigos fotográficos e para filmagem com área útil até de 50 m²",50586]
[null,null,null,null,null,null,null,null,null,null,null,null,null,null,null,null,null,null,null,null,"Comércio varejista de brinquedos e artigos recreativos com área útil até de 50 m²",50608]
[null,null,null,null,null,null,null,null,null,null,null,null,null,null,null,null,null,null,null,null,"Comércio varejista de calçados com área útil até de 50 m²",50630]
["Nome:",null,null,null,null,null,null,null,null,null,null,null,null,null,null,null,null,null,null,null,"Comércio varejista de produtos audiovisuais com área útil até de 50 m²",50652]
[null,null,null,null,null,null,null,null,null,null,null,null,null,null,null,null,null,null,null,null,"Comércio varejista de equipamentos para escritório com área útil até de 50 m²",50673]
["CPF/CNPJ:",null,null,null,"Telefone para Contato:",null,null,null,null,null,null,null,null,null,null,null,null,null,null,null,"Comércio varejista de jornais e revistas com área útil até de 50 m²",50695]
[null,null,null,null,null,null,null,null,null,null,null,null,null,null,null,null,null,null,null,null,"Comércio varejista de livros com área útil até de 50 m²",50717]
["E-mail para Contato:",null,null,null,null,null,null,null,null,null,null,null,null,null,null,null,null,null,null,null,"Comércio varejista de mercadorias em lojas de conveniência com área útil até de 50 m²",50738]
[null,null,null,null,null,null,null,null,null,null,null,null,null,null,null,null,null,null,null,null,"Comércio varejista de móveis com área útil até de 50 m²",50760]
["Endereço para Correspondência:",null,null,null,null,null,null,null,null,null,null,null,null,null,null,null,null,null,null,null,"Comércio varejista de objetos de arte com área útil até de 50 m²",50782]
[null,null,null,null,null,null,null,null,null,null,null,null,null,null,null,null,null,null,null,null,"Comércio varejista especializado de instrumentos musicais e acessórios com área útil até de 50 m²",50804]
[null,null,null,null,null,null,null,null,null,null,null,null,null,null,null,null,null,null,null,null,"Comércio varejista especializado de peças e acessórios para aparelhos eletroeletrônicos para uso doméstico, exceto informática e comunicação com área útil até de 50 m²",50825]
[null,null,null,null,null,null,null,null,null,null,null,null,null,null,null,null,null,null,null,null,"Serviços combinados de escritório e apoio administrativo com área útil até de 50 m²cuja a atividade final realizada gere apenas resíduo do tipo doméstico",50847]
[null,null,null,null,null,null,null,null,null,null,null,null,null,null,null,null,null,null,null,null,"Serviços de acabamentos gráficos, exceto encadernação e plastificação com área útil até de 50 m²",50869]
[null,null,null,null,null,null,null,null,null,null,null,null,null,null,null,null,null,null,null,null,"Serviços de encadernação e plastificação com área útil até de 50 m²",50890]
[null,null,null,null,null,null,null,null,null,null,null,null,null,null,null,null,null,null,null,null,"Serviços de gravação de carimbos, exceto confecção com área útil até de 50 m²",50912]
["CÓDIGO da Atividade:",null,null,null,"Número da Licença Anterior (quando houver):",null,null,null,null,null,null,null,null,null,null,null,null,null,null,null,"Tratamento de dados, provedores de serviços de aplicação e serviços de hospedagem na internet com área útil até de 50 m²",50934]
[{"$f":"I14","v":50413},null,null,null,null,null,null,null,null,null,null,null,null,null,null,null,null,null,null,null,"Produção artesanal de bordado em tecido e/ou tear, de cunho social e coletivo com área útil até de 50 m²",50956]
["Área do Empreendimento (m²):",null,null,null,null,null,null,null,null,null,null,null,null,null,null,null,null,null,null,null,"Postos de abastecimento com instalações aéreas, cuja capacidade total de armazenamento consiste em até 15 m³ (Exclusivamente destinado ao abastecimento do detentor das instalações, ou seja auto abastecimento)",50966]
[null,null,null,null,null,null,null,null,null,null,null,null,null,null,null,null,null,null,null,null,"Sede de associações com área útil até de 50 m²",50977]
["Numero de Funcionários:",null,null,null,"Área Construida (m²):",null,null,null,null,null,null,null,null,null,null,null,null,null,null,null,"Geração distribuída de energia elétrica a partir de fontes renovável com Potência gerada ≤ 0,75 MW, para consumo próprio",75500]
[]
[]
["Descrição da Atividade:"]
[]
[]
[]
[]
["Endereço da Atividade:"]
[]
["Bairro:",null,null,null,"Município:",null,null,null,"CEP:",null,null,{"$f":"CONCATENATE(I70,\" \",I71)","v":"CEP: "}]
[null,null,null,null,null,null,null,null,null,null,null,{"$f":"CONCATENATE(A70,\" \",A71)","v":"Bairro: "}]
["Complemento:",null,null,null,null,null,null,"Estado:",null,null,null,{"$f":"CONCATENATE(H72,\" \",H73)","v":"Estado: "}]
[null,null,null,null,null,null,null,null,null,null,null,{"$f":"CONCATENATE(F74,\" \",F75)","v":"Latitude: "}]
[null,null,null,null,null,"Latitude:",null,"Longitude:",null,null,null,{"$f":"CONCATENATE(H74,\" \",H75)","v":"Longitude: "}]
["Coordenadas Geograficas:"]
[]
[]
[]
["DECLARO PARA OS DEVIDOS FINS, QUE O DESENVOLVIMENTO DAS ATIVIDADES RELACIONADAS NESTE REQUERIMENTO REALIZAR-SE-Á DE ACORDO COM OS DADOS TRANSCRITOS E ANEXOS INDICADOS NO ITEM 7(SETE). PELO QUE VENHO REQUERER A SUDEMA (Superintendência de Administração do Meio Ambiente), A EXPEDIÇÃO DA RESPECTIVA LICENÇA."]

{"sheet":"APOIO","index":31,"n_rows":652,"n_cols":13,"rows_kept":652,"cut":false,"hidden":false,"merged":[]}
["ATIVIDADES FLORESTAIS","CÓDIGO","ESPECIFICAÇÕES",null,null,null,null,null,"Licenças"]
["Autorização de cortes de Arvores isoladas (CAI)","08.49.100",null,null,null,null,null,null,"Autorização Ambiental - AA",null,null,null,"Licenças"]
["Autorização de exploração de plano operacional anual (POA)","08.49.200",null,null,null,null,null,null,"REGISTRO",null,null,null,"Autorização Ambiental - AA"]
["Autorização exploração de planos de manejo florestais (PMFS)","08.49.300",null,null,null,null,null,null,"Outros (especificar)",null,null,null,"Dispensa de Licença"]
["Autorização para exploração de floresta plantada","08.49.400",null,null,null,null,null,null,null,null,null,null,"Licença por Adesão e Compromisso - LAC"]
["Autorização para Plano de Recuperação de Área de Preservação Permanente (PRAD)","08.49.500","Unidade (árvores):",null,null,null,null,null,null,null,null,null,"Licença Simplificada - LS"]
["Autorização para Plano de Recuperação de Área Degradada (PRAD)","08.49.600",null,null,null,null,null,null,null,null,null,null,"Licença de Alteração de Instalação - LAI"]
["Autorização Para Uso Alternativo do Solo (AUS)","08.49.700",null,null,null,null,null,null,null,null,null,null,"Licença de Alteração de Operação - LAO"]
["Autorização Para uso do fogo Controlado","08.49.800",null,null,null,null,null,null,null,null,null,null,"Licença Prévia - LP"]
["Cadastro de Consumidores de Produtos de Origem Florestal","08.49.900","Consumo (M²):",null,null,null,null,null,null,null,null,null,"Licença de Operação de Pesquisa Mineral - LOP"]
["Registro - Homologação de Pátio no sistema de Documento de Origem Florestal (DOF)","08.49.950",null,null,null,null,null,null,null,null,null,null,"Licença de Instalação – LI"]
[null,null,null,null,null,null,null,null,null,null,null,null,"Renovação de Licença de Instalação – RLI"]
["AGROPECUÁRIA","CODIGO","ESPECIFICAÇÕES",null,null,null,null,null,"Licenças",null,null,null,"Licença de Operação – LO"]
["Avicultura (postura e corte)","16.15.499","Número de Cabeças:",null,null,null,null,null,"Licença por Adesão e Compromisso - LAC",null,null,null,"Renovação de Licença de Operação – RLO"]
["Suinocultura","16.30.499","Número de Cabeças:",null,null,null,null,null,"Licença Simplificada - LS",null,null,null,"Licença de Regularização de Operação – LRO"]
["Ovinocaprinocultura","16.45.499","Número de Cabeças:",null,null,null,null,null,"Licença de Alteração de Instalação - LAI",null,null,null,"Licença de Transporte Estadual – LTE"]
["Bovinocultura e Bubalinocultura","16.60.499","Número de Cabeças:",null,null,null,null,null,"Licença de Alteração de Operação - LAO",null,null,null,"Licença para Veículo de Publicida de ou Eventos – LVPE"]
["Carcinicultura","16.75.200",null,null,null,null,null,null,"Licença Prévia - LP",null,null,null,"REGISTRO"]
["Piscicultura","16.75.400",null,null,null,null,null,null,"Licença de Instalação – LI",null,null,null,"Outros (especificar)"]
["Miticultura e/ou ostreicultura","16.75.600","Número de sementes:",null,null,null,null,null,"Licença de Operação – LO"]
["Ranicultura","16.75.800",null,null,null,null,null,null,"Licença de Regularização de Operação – LRO"]
["Projetos agrícolas de sequeiro (sem uso de agrotóxicos)","16.90.333",null,null,null,null,null,null,"Outros (especificar)"]
["Projetos agrícolas irrigados (sem uso de agrotóxicos)","16.90.666",null,null,null,null,null,null,"Licença Prévia - LP + Licença de Instalação – LI"]
[null,null,null,null,null,null,null,null,"Licença Prévia - LP + Licença de Instalação – LI + Licença de Operação – LO"]
[]
[]
[]
["SISTEMA DE TELECOMUNICAÇÕES","CÓDIGO","ESPECIFICAÇÕES","ESPECIFICAÇÕES2",null,null,null,null,"Licenças"]
["Estrutura para instalação de sistemas de telecomunicações e equipamentos afins instaladas em área de preservação","24.33.666","Área efetiva para implantação da estrutura (m²):",null,null,null,null,null,"Licença por Adesão e Compromisso - LAC"]
["Ligação de cabeamento óptico de Telecomunicações, aéreo ou subterrâneo pelo Método não Destrutivo","24.66.333","Área do Empreendimento (m²):","Comprimento de Rede (km): ",null,null,null,null,"Licença Simplificada - LS"]
["Ligação de cabeamento óptico de Telecomunicações, subterrâneo pelo Método Destrutivo","24.66.666","Área do Empreendimento (m²):","Comprimento de Rede (km): ",null,null,null,null,"Licença de Alteração de Instalação - LAI"]
[null,null,null,null,null,null,null,null,"Licença de Alteração de Operação - LAO"]
[null,null,null,null,null,null,null,null,"Licença Prévia - LP"]
[null,null,null,null,null,null,null,null,"Licença de Instalação – LI"]
[null,null,null,null,null,null,null,null,"Licença de Operação – LO"]
[null,null,null,null,null,null,null,null,"Licença de Regularização de Operação – LRO"]
[null,null,null,null,null,null,null,null,"Outros (especificar)"]
[null,null,null,null,null,null,null,null,"Licença Prévia - LP + Licença de Instalação – LI"]
[null,null,null,null,null,null,null,null,"Licença Prévia - LP + Licença de Instalação – LI + Licença de Operação – LO"]
[]
["COLETA E TRANSPORTE","CÓDIGO","ESPECIFICAÇÕES","ESPECIFICAÇÕES2","ESPECIFICAÇÕES3","ESPECIFICAÇÕES4","ESPECIFICAÇÕES5",null,"LICENÇAS:"]
["Coleta e Transporte de Resíduos Classe I – Perigosos","32.15.143","Número de veículos: ",null,null,null,null,null,"Autorização Ambiental - AA"]
["Coleta e Transporte de Resíduos de Classe II – Não Perigosos","32.15.286","Número de veículos: ",null,null,null,null,null,"Licença de Alteração de Instalação - LAI"]
["Coleta e Transporte de Resíduos de Serviços de Saúde","32.15.429","Número de veículos: ",null,null,null,null,null,"Licença de Alteração de Operação - LAO"]
["Coleta e Transporte de Resíduos da Construção Civil","32.15.572","Número de veículos: ",null,null,null,null,null,"Licença de Instalação – LI"]
["Coleta e Transporte de Efluentes Líquidos (desentupidoras de limpeza de fossas e esgotos)","32.15.715","Número de veículos: ",null,null,null,null,null,"Licença de Operação – LO"]
["Transporte de Cargas Perigosas, Produtos Perigosos ou Inflamáveis","32.15.858","Número de veículos: ",null,null,null,null,null,"Licença de Regularização de Operação – LRO"]
["Unidade de triagem de recicláveis","32.30.250","Tonelada∕DIA:","Área do Empreendimento (m²):","Área Construida (m²):",null,null,null,"Licença de Transporte Estadual – LTE"]
["Unidade de compostagem de resíduos orgânicos","32.30.500","Tonelada∕DIA:","Área do Empreendimento (m²):","Área Construida (m²):",null,null,null,"Licença Prévia - LP"]
["Unidade de triagem e compostagem de resíduos","32.30.750","Tonelada∕DIA:","Área do Empreendimento (m²):","Área Construida (m²):",null,null,null,"Licença Simplificada - LS"]
["Central de recebimento, armazenamento temporário_triagem ou transbordo de SUCATA metálica_papel_papelão_plástico e vidro_não contaminados com óleos_graxas_agrotóxicos ou produtos químicos","32.45.143","Área do Empreendimento (m²):","Área Construida (m²):",null,null,null,null,"Outros (especificar)"]
["Central de recebimento, armazenamento temporário, triagem de pilhas e baterias","32.45.286","Área do Empreendimento (m²):","Área Construida (m²):",null,null,null,null,"Licença Prévia - LP + Licença de Instalação – LI"]
["Central de recebimento, armazenamento temporário, triagem de eletroeletrônicos com a separação de componentes","32.45.429","Área do Empreendimento (m²):","Área Construida (m²):",null,null,null,null,"Licença Prévia - LP + Licença de Instalação – LI + Licença de Operação – LO"]
["Central de recebimento de embalagens contaminadas com produtos perigosos","32.45.572","Área do Empreendimento (m²):","Área Construida (m²):"]
["Estação de transbordo (armazenamento temporário) para resíduos sólidos urbanos","32.45.715","Tonelada∕DIA:","Área do Empreendimento (m²):","Área Construida (m²):"]
["Estação de transbordo (armazenamento temporário) para resíduos de serviço de saúde","32.45.858","Tonelada∕DIA:","Área do Empreendimento (m²):","Área Construida (m²):"]
["Unidade de Gerenciamento Integrado de Resíduos Sólidos Urbanos (unidade de triagem, compostagem e destinação final de rejeitos)","32.60.125","Número de habitantes:","Tonelada∕DIA:","Área do Empreendimento (m²):","Área Construida (m²):"]
["Aterro Sanitário","32.60.250","Tonelada∕DIA:","Área do Empreendimento (m²):","Área Construida (m²):"]
["Aterro Industrial (Perigoso e Não Perigoso)","32.60.375","Tonelada∕DIA:","Área do Empreendimento (m²):","Área Construida (m²):"]
["Aterro de Resíduo de Classe A para reservação de material para usos futuros","32.60.500","Tonelada∕DIA:","Área do Empreendimento (m²):","Área Construida (m²):"]
["Aterro Sanitário com unidade de triagem","32.60.750","Tonelada∕DIA:","Área do Empreendimento (m²):","Área Construida (m²):"]
["Aterro Sanitário com unidade de triagem e unidade de compostagem","32.60.875","Tonelada∕DIA:","Área do Empreendimento (m²):","Área Construida (m²):"]
["Tratamento térmico de resíduos sólidos urbanos","32.75.250","Capacidade instalada (Ton∕hora): ","Área do Empreendimento (m²):","Área Construida (m²):"]
["Tratamento térmico de resíduos industriais","32.75.500","Capacidade instalada (Ton∕hora): ","Área do Empreendimento (m²):","Área Construida (m²):"]
["Tratamento térmico de resíduos de serviço de saúde","32.75.750","Capacidade instalada (Ton∕hora): ","Área do Empreendimento (m²):","Área Construida (m²):"]
["Cooprocessamento e blendagem de resíduos","32.90.499","Tonelada/mês de resíduos cooprocessados:","Área Construida (m²):"]
[]
["ENERGIA","CÓDIGO","ESPECIFICAÇÕES","ESPECIFICAÇÕES2","ESPECIFICAÇÕES3","ESPECIFICAÇÕES4","ESPECIFICAÇÕES5",null,"LICENÇAS:"]
["Linhas de Distribuição até 15 kV","40.10.150","EXTENSÃO (Km):","Área do Empreendimento (m²):","Área Construida (m²):",null,null,null,{"$f":"M3","v":"Autorização Ambiental - AA"}]
["Linha de Distribuição com potência entre 15 kV menor ou igual a 138 kV","40.10.300","EXTENSÃO (Km):","Área do Empreendimento (m²):","Área Construida (m²):",null,null,null,{"$f":"M6","v":"Licença Simplificada - LS"}]
["Linha de Transmissão até 138 Kv","40.10.450","EXTENSÃO (Km):","Área do Empreendimento (m²):","Área Construida (m²):",null,null,null,{"$f":"M5","v":"Licença por Adesão e Compromisso - LAC"}]
["Linha de Transmissão acima de 138 kV","40.10.600","EXTENSÃO (Km):","Área do Empreendimento (m²):","Área Construida (m²):",null,null,null,{"$f":"M15","v":"Licença de Regularização de Operação – LRO"}]
["Subestação abaixadora/elevadora de tensão/seccionadora","40.10.750","Tensão (KVA):","Área do Empreendimento (m²):","Área Construida (m²):",null,null,null,{"$f":"M9","v":"Licença Prévia - LP"}]
["Central Geradora Hidrelétrica (CGH)","40.20.250","Potencia Gerada (Mw): ","Área do Empreendimento (m²):","Área Construida (m²):",null,null,null,{"$f":"M11","v":"Licença de Instalação – LI"}]
["Pequena Central Hidrelétrica","40.20.500","Potencia Gerada (Mw): ","Área do Empreendimento (m²):","Área Construida (m²):",null,null,null,{"$f":"M13","v":"Licença de Operação – LO"}]
["Usina Hidrelétrica (UHE)","40.20.750","Potencia Gerada (Mw): ","Área do Empreendimento (m²):","Área Construida (m²):",null,null,null,{"$f":"M8","v":"Licença de Alteração de Operação - LAO"}]
["Usina Termelétrica (UTE)","40.30.499","Potencia Gerada (Mw): ","Área do Empreendimento (m²):","Área Construida (m²):",null,null,null,{"$f":"M7","v":"Licença de Alteração de Instalação - LAI"}]
["Energia Solar/ Fotovoltaica/ Termosolar","40.40.499","Potencia Gerada (Mw): ","Área do Empreendimento (m²):","Área Construida (m²):",null,null,null,"Outros (especificar)"]
["Energia a partir de Biomassas (Provinientes de rejeitos)","40.50.499","Potencia Gerada (Mw): ","Área do Empreendimento (m²):","Área Construida (m²):",null,null,null,"Licença Prévia - LP + Licença de Instalação – LI"]
["Unidade de cogeração de energia elétrica","40.60.499","Potencia Gerada (Mw): ","Área do Empreendimento (m²):","Área Construida (m²):",null,null,null,"Licença Prévia - LP + Licença de Instalação – LI + Licença de Operação – LO"]
["Geração de energia Eólica","40.70.499","Potencia Gerada (Mw): ","Numero de aerogeradores: ","Área do Empreendimento (m²):","Área Construida (m²):"]
["Equipamentos de Sondagem: Estações solarimétricas / torres anemométricas","40.80.499","Unidades: ","Área do Empreendimento (m²):","Área Construida (m²):"]
["Geração distribuidora","40.90.499","Potência gerada (MW):","Área do Empreendimento (m²):","Área Construida (m²):"]
[]
[]
["COMERCIO E SERVIÇOS","CÓDIGO","ESPECIFICAÇÕES","ESPECIFICAÇÕES2","ESPECIFICAÇÕES3","ESPECIFICAÇÕES4","ESPECIFICAÇÕES5",null,"LICENÇAS:"]
["Hotéis, pousadas, casas de repouso, spa, motéis e semelhantes","48.11.143","Área do Empreendimento (m²) ou (HA):","Área Construida (m²) OU (HA):",null,null,null,null,"Licença de Operação – LO"]
["Empresa de serviços de turismo e ecoturismo","48.11.286","Área do Empreendimento (m²) ou (HA):","Área Construida (m²) OU (HA):",null,null,null,null,"Licença de Alteração de Operação - LAO"]
["Parques aquáticos, hotéis fazenda, balneários, clube de campo, clube recreativo e similares","48.11.429","Área do Empreendimento (m²) ou (HA):","Área Construida (m²) OU (HA):",null,null,null,null,"Licença de Alteração de Instalação - LAI"]
["Parques de diversão e temáticos, permanentes","48.11.572","Área do Empreendimento (m²) ou (HA):","Área Construida (m²) OU (HA):",null,null,null,null,"Licença Simplificada - LS"]
["Jardim zoológico, aquário e semelhantes","48.11.715","Área do Empreendimento (m²) ou (HA):","Área Construida (m²) OU (HA):",null,null,null,null,"Licença por Adesão e Compromisso - LAC"]
["Bares, restaurantes e similares (sem uso de recursos florestais)","48.11.858","Área do Empreendimento (m²) ou (HA):","Área Construida (m²) OU (HA):",null,null,null,null,"Licença Prévia - LP"]
["Estabelecimentos comerciais com uso de recursos florestais (Ex.: Padarias, pizzarias, entre outros)","48.22.045","Área do Empreendimento (m²) ou (HA):","Área Construida (m²) OU (HA):",null,null,null,null,"Licença de Instalação – LI"]
["Empresa prestadora de serviço aeromédico e táxi aéreo","48.22.090","Área do Empreendimento (m²) ou (HA):","Área Construida (m²) OU (HA):",null,null,null,null,"Autorização Ambiental - AA"]
["Oficinas mecânicas, consertos de veículos em geral, inclusive parte elétrica, fibra de vidro e semelhantes, com troca de óleo","48.22.135","Área do Empreendimento (m²) ou (HA):","Área Construida (m²) OU (HA):",null,null,null,null,"Licença de Regularização de Operação – LRO"]
["Oficinas mecânicas, consertos de veículos em geral, inclusive parte elétrica, fibra de vidro e semelhantes, sem troca de óleo","48.22.180","Área do Empreendimento (m²) ou (HA):","Área Construida (m²) OU (HA):",null,null,null,null,"Licença para Veículo de Publicida de ou Eventos – LVPE"]
["Oficinas mecânicas com serviços de lanternagem e pintura","48.22.225","Área do Empreendimento (m²) ou (HA):","Área Construida (m²) OU (HA):",null,null,null,null,"Licença de Transporte Estadual – LTE"]
["Transporte urbano de passageiros","48.22.270","Área do Empreendimento (m²) ou (HA):","Área Construida (m²) OU (HA):",null,null,null,null,"Outros (especificar)"]
["Posto de apoio para veículos em geral, caminhões, ônibus, etc, com troca de óleo","48.22.315","Área do Empreendimento (m²) ou (HA):","Área Construida (m²) OU (HA):",null,null,null,null,"Licença Prévia - LP + Licença de Instalação – LI"]
["Posto de apoio para veículos em geral, caminhões, ônibus, etc, sem troca de óleo","48.22.360","Área do Empreendimento (m²) ou (HA):","Área Construida (m²) OU (HA):",null,null,null,null,"Licença Prévia - LP + Licença de Instalação – LI + Licença de Operação – LO"]
["Recuperação e manutenção de botijões GLP","48.22.405","Área do Empreendimento (m²) ou (HA):","Área Construida (m²) OU (HA):"]
["Comércio varejista de gás liquefeito (gás cozinha)","48.22.420","Área do Empreendimento (m²) ou (HA):","Área Construida (m²) OU (HA):"]
["Distribuidora e armazenamento de gás GLP (cozinha) e gás natural por gasodutos","48.22.430","Área do Empreendimento (m²) ou (HA):","Área Construida (m²) OU (HA):"]
["Borracharia – consertos de pneus em geral, câmara de ar.","48.22.450","Área do Empreendimento (m²) ou (HA):","Área Construida (m²) OU (HA):"]
["Troca de óleo","48.22.495","Área do Empreendimento (m²) ou (HA):","Área Construida (m²) OU (HA):"]
["Lavagem e lubrificação de veículos","48.22.540","Área do Empreendimento (m²) ou (HA):","Área Construida (m²) OU (HA):"]
["Empresa de serviços geraisnão mencionados anteriormente","48.22.585","Área do Empreendimento (m²) ou (HA):","Área Construida (m²) OU (HA):"]
["Lavanderia para peças domesticas","48.22.630","Área do Empreendimento (m²) ou (HA):","Área Construida (m²) OU (HA):"]
["Empresa de armazenamento e distribuição em geral","48.22.675","Área do Empreendimento (m²) ou (HA):","Área Construida (m²) OU (HA):"]
["Locadora (aluguel) de veículos em geral","48.22.710","Área do Empreendimento (m²) ou (HA):","Área Construida (m²) OU (HA):"]
["Empresa de transporte de passageiros e recreação aquática","48.22.755","Número de passageiros:","Área do Empreendimento (m²) ou (HA):","Área Construida (m²) OU (HA):"]
["Empresa de transporte aquático de cargas","48.22.800","Área do Empreendimento (m²) ou (HA):","Área Construida (m²) OU (HA):"]
["Empresa de transporte aquático de cargas Perigosas","48.22.830","Área do Empreendimento (m²) ou (HA):","Área Construida (m²) OU (HA):"]
["Frigorífico para estocagem e conservação de alimentos perecíveis – carnes, peixes, grãos, entre outros","48.22.845","Área do Empreendimento (m²) ou (HA):","Área Construida (m²) OU (HA):"]
["Comércio e vendas em atacado e varejo, supermercado, shoppings, mercadinhos e semelhantes","48.22.890","Área do Empreendimento (m²) ou (HA):","Área Construida (m²) OU (HA):"]
["Sede de Associações","48.22.935","Área do Empreendimento (m²) ou (HA):","Área Construida (m²) OU (HA):"]
["Hospitais, sanatórios e maternidades","48.33.77","Número de leitos:","Área do Empreendimento (m²) ou (HA):","Área Construida (m²) OU (HA):"]
["Hospitais veterinários e centro de zoonoses","48.33.154","Área do Empreendimento (m²) ou (HA):","Área Construida (m²) OU (HA):"]
["Clinicas médicas e/ou odontológicas com realização de exames e/ou procedimentos","48.33.231","Área do Empreendimento (m²) ou (HA):","Área Construida (m²) OU (HA):"]
["Clinicas médicas com realização de exames e/ou procedimentos com utilização de radioterapia, quimioterapia e medicina nuclear","48.33.308","Área do Empreendimento (m²) ou (HA):","Área Construida (m²) OU (HA):"]
["Posto de coleta laboratorial","48.33.385","Área do Empreendimento (m²) ou (HA):","Área Construida (m²) OU (HA):"]
["Laboratórios de analises de serviços de saúde","48.33.462","Área do Empreendimento (m²) ou (HA):","Área Construida (m²) OU (HA):"]
["Laboratórios de análises biológicas, físicas, físico-químicas","48.33.539","Área do Empreendimento (m²) ou (HA):","Área Construida (m²) OU (HA):"]
["Lavanderia industrial para serviços de saúde","48.33.616","Área do Empreendimento (m²) ou (HA):","Área Construida (m²) OU (HA):"]
["Comercio varejista de produtos farmacêuticos","48.33.693","Área do Empreendimento (m²) ou (HA):","Área Construida (m²) OU (HA):"]
["Comércio atacadista e Distribuidora de produtos farmacêuticos","48.33.770","Área do Empreendimento (m²) ou (HA):","Área Construida (m²) OU (HA):"]
["Comércio de produtos médico hospitalares","48.33.847","Área do Empreendimento (m²) ou (HA):","Área Construida (m²) OU (HA):"]
["Esterilizadora de materiais cirúrgicos","48.33.924","Área do Empreendimento (m²) ou (HA):","Área Construida (m²) OU (HA):"]
["Distribuidora de produtos químicos","48.44.143","Área do Empreendimento (m²) ou (HA):","Área Construida (m²) OU (HA):"]
["Dedetizadora e imunizadora","54.44.286","Área do Empreendimento (m²) ou (HA):","Área Construida (m²) OU (HA):"]
["Empresa com serviço de pulverização de defensivos agrícolas, terrestre e aérea","48.44.429","Área do Empreendimento (m²) ou (HA):","Área Construida (m²) OU (HA):"]
["Comércio e venda de combustíveis em geral, gasolina, álcool, óleo lubrificante, gás natural automotivo, entre outros","48.44.572","Área do Empreendimento (m²) ou (HA):","Área Construida (m²) OU (HA):"]
["Transporte de combustível em geral, gasolina, álcool, diesel, óleo lubrificante, entre outros","48.44.715","Tipo de veículo:","Área do Empreendimento (m²) ou (HA):","Área Construida (m²) OU (HA):"]
["Distribuidoras de combustível em geral, gasolina, álcool, diesel e óleo lubrificante, gás natural, entre outros (incluindo auto abastecimento)","48.44.858","Área do Empreendimento (m²) ou (HA):","Área Construida (m²) OU (HA):"]
["Cemitérios horizontais","48.55.125","Área do Empreendimento (m²) ou (HA):","Área Construida (m²) OU (HA):","Número de Jazigos:"]
["Cemitérios verticais","48.55.250","Área do Empreendimento (m²) ou (HA):","Área Construida (m²) OU (HA):","Número de Jazigos:"]
["Cemitérios horizontais e verticais","48.55.375","Área do Empreendimento (m²) ou (HA):","Área Construida (m²) OU (HA):","Número de Jazigos:"]
["Crematórios","48.55.500","Área do Empreendimento (m²) ou (HA):","Área Construida (m²) OU (HA):","Número de Jazigos:","Capacidade instalada (kg∕dia):"]
["Cemitério com crematório","48.55.625","Área do Empreendimento (m²) ou (HA):","Área Construida (m²) OU (HA):","Número de Jazigos:","Capacidade instalada (kg∕dia):"]
["Central de velório","48.55.750","Área do Empreendimento (m²) ou (HA):","Área Construida (m²) OU (HA):","Número de Jazigos:"]
["Central de velório com tanatopraxia","48.55.875","Área do Empreendimento (m²) ou (HA):","Área Construida (m²) OU (HA):","Número de Jazigos:"]
["Centros educacionais","48.66.333","Área do Empreendimento (m²) ou (HA):","Área Construida (m²) OU (HA):"]
["Centros educacionais com geração de resíduos especiais","48.66.666","Área do Empreendimento (m²) ou (HA):","Área Construida (m²) OU (HA):"]
["Evento privados em via pública e/ou áreas públicas, sendo estas abertas (gratuitas) ou fechadas (com cobranças de ingresso)","48.77.499","Área do Empreendimento (m²) ou (HA):","Área Construida (m²) OU (HA):"]
["Publicidade Volante e eventos","48.88.333","Tipo de veículo:","Área do Empreendimento (m²) ou (HA):","Área Construida (m²) OU (HA):"]
["Trio elétricos (Exclusivos para eventos)","48.88.666","Tipo de veículo:","Área do Empreendimento (m²) ou (HA):","Área Construida (m²) OU (HA):"]
[]
[]
["OBRAS CIVIS","CÓDIGO","ESPECIFICAÇÕES","ESPECIFICAÇÕES2","ESPECIFICAÇÕES3","ESPECIFICAÇÕES4","ESPECIFICAÇÕES5",null,"Licenças",null,null,"Autorização Ambiental - AA"]
["Atividades e empreendimentos residenciais unifamiliar, comercial ou residencial unifamiliar misto","56.17.53","Área do Empreendimento (m²) ou (HA):","Área Construida (m²) OU (HA):",null,null,null,null,"Licença Prévia - LP",null,null,"Dispensa de Licença"]
["Atividades e empreendimentos residenciais unifamiliar, comercial ou residencial unifamiliar misto com infraestrutura completa","56.17.106","Área do Empreendimento (m²) ou (HA):","Área Construida (m²) OU (HA):",null,null,null,null,"Licença de Instalação – LI",null,null,"Licença por Adesão e Compromisso - LAC"]
["Atividades e empreendimentos residenciais multifamiliar horizontal","56.17.159","Área do Empreendimento (m²) ou (HA):","Área Construida (m²) OU (HA):",null,null,null,null,"Licença de Operação – LO",null,null,"Licença Simplificada - LS"]
["Atividades e empreendimentos residenciais multifamiliar horizontal com infraestrutura completa","56.17.212","Área do Empreendimento (m²) ou (HA):","Área Construida (m²) OU (HA):",null,null,null,null,"Licença de Alteração de Operação - LAO",null,null,"Licença de Alteração de Instalação - LAI"]
["Atividades e empreendimentos industriais","56.17.265","Área do Empreendimento (m²) ou (HA):","Área Construida (m²) OU (HA):",null,null,null,null,"Licença de Alteração de Instalação - LAI",null,null,"Licença de Alteração de Operação - LAO"]
["Atividades e empreendimentos industriais com infraestrutura completa","56.17.318","Área do Empreendimento (m²) ou (HA):","Área Construida (m²) OU (HA):",null,null,null,null,"Licença Simplificada - LS",null,null,"Licença Prévia - LP"]
["Atividades ou empreendimentos esportivos (Quadra, Ginásio, Campo deb Futebol, Estádios...)","56.17.371","Área do Empreendimento (m²) ou (HA):","Área Construida (m²) OU (HA):",null,null,null,null,"Autorização Ambiental - AA",null,null,"Licença de Operação de Pesquisa Mineral - LOP"]
["Atividades ou empreendimentos esportivos (Quadra, Ginásio, Campo de Futebol, Estádios...) com infraestrutura completa","56.17.424","Área do Empreendimento (m²) ou (HA):","Área Construida (m²) OU (HA):",null,null,null,null,"Licença de Regularização de Operação – LRO",null,null,"Licença de Instalação – LI"]
["Edificações verticais: condomínios","56.17.477","Área do Empreendimento (m²) ou (HA):","Área Construida (m²) OU (HA):",null,null,null,null,"Licença Prévia - LP + Licença de Instalação – LI",null,null,"Renovação de Licença de Instalação – RLI"]
["Edificações verticais: condomínios com infraestrutura completa","56.17.530","Área do Empreendimento (m²) ou (HA):","Área Construida (m²) OU (HA):",null,null,null,null,"Licença Prévia - LP + Licença de Instalação – LI + Licença de Operação – LO",null,null,"Licença de Operação – LO"]
["Empreendimentos lineares: condomínios fechados rurais e urbanos","56.17.583","Área do Empreendimento (m²) ou (HA):","Área Construida (m²) OU (HA):",null,null,null,null,"Outros (especificar)",null,null,"Renovação de Licença de Operação – RLO"]
["Empreendimentos lineares: condomínios fechados rurais e urbanos com infraestrutura completa","56.17.636","Área do Empreendimento (m²) ou (HA):","Área Construida (m²) OU (HA):",null,null,null,null,null,null,null,"Licença de Regularização de Operação – LRO"]
["Empreendimentos lineares: loteamentos","56.17.689","Área do Empreendimento (m²) ou (HA):","Área Construida (m²) OU (HA):",null,null,null,null,null,null,null,"Licença de Transporte Estadual – LTE"]
["Empreendimentos lineares: loteamentos com infraestrutura completa","56.17.742","Área do Empreendimento (m²) ou (HA):","Área Construida (m²) OU (HA):",null,null,null,null,null,null,null,"Licença para Veículo de Publicida de ou Eventos – LVPE"]
["Assentamentos Rurais de Reforma Agrária","56.17.795","Área do Empreendimento (m²) ou (HA):","Área Construida (m²) OU (HA):",null,null,null,null,null,null,null,"REGISTRO"]
["Assentamentos Rurais de Reforma Agrária com infraestrutura completa","56.17.848","Área do Empreendimento (m²) ou (HA):","Área Construida (m²) OU (HA):",null,null,null,null,null,null,null,"Outros (especificar)"]
["Projeto de urbanização","56.17.901","Área do Empreendimento (m²) ou (HA):","Área Construida (m²) OU (HA):"]
["Projeto de urbanização com infraestrutura completa","56.17.954","Área do Empreendimento (m²) ou (HA):","Área Construida (m²) OU (HA):"]
["Portos e instalações portuárias","56.34.84","Área do Empreendimento (m²) ou (HA):","Área Construida (m²) OU (HA):"]
["Marinas e garagem de barcos","56.34.168","Área do Empreendimento (m²) ou (HA):","Área Construida (m²) OU (HA):"]
["Estaleiros","56.34.252","Área do Empreendimento (m²) ou (HA):","Área Construida (m²) OU (HA):"]
["Atracadouros e molhes","56.34.336","Área do Empreendimento (m²) ou (HA):","Área Construida (m²) OU (HA):"]
["Pontilhões e Bueiros","56.34.420","Área do Empreendimento (m²) ou (HA):","Área Construida (m²) OU (HA):"]
["Aeroportos","56.34.504","PASSAGEIROS X 1000/ANO","Área do Empreendimento (m²) ou (HA):","Área Construida (m²) OU (HA):"]
["Outros sítios aeroportuários","56.34.588","PASSAGEIROS X 1000/ANO","Área do Empreendimento (m²) ou (HA):","Área Construida (m²) OU (HA):"]
["Pontes e viadutos","56.34.672","Comprimento do tabuleiro (m)","Área do Empreendimento (m²) ou (HA):","Área Construida (m²) OU (HA):"]
["Canalizações e retificações de cursos d’água","56.34.756","Comprimento (Km):","Área do Empreendimento (m²) ou (HA):","Área Construida (m²) OU (HA):"]
["Gasoduto","56.34.840","Comprimento (Km):","Área do Empreendimento (m²) ou (HA):","Área Construida (m²) OU (HA):"]
["Oleoduto","56.34.924","Comprimento (Km):","Área do Empreendimento (m²) ou (HA):","Área Construida (m²) OU (HA):"]
["Pavimentação e Drenagem de Vias Urbanas","56.51.143","Comprimento (Km):","Área do Empreendimento (m²) ou (HA):","Área Construida (m²) OU (HA):"]
["Rodovias e binários com faixa de rolamento simples","56.51.286","Comprimento (Km):","Área do Empreendimento (m²) ou (HA):","Área Construida (m²) OU (HA):"]
["Rodovias e binários com 2 faixas de rolamento","56.51.429","Comprimento (Km):","Área do Empreendimento (m²) ou (HA):","Área Construida (m²) OU (HA):"]
["Ferrovias, metrôs e VLT","56.51.572","Comprimento (Km):","Área do Empreendimento (m²) ou (HA):","Área Construida (m²) OU (HA):"]
["Hidrovias","56.51.715","Comprimento (Km):","Área do Empreendimento (m²) ou (HA):","Área Construida (m²) OU (HA):"]
["Túneis","56.51.858","Comprimento (Km):","Área do Empreendimento (m²) ou (HA):","Área Construida (m²) OU (HA):"]
["Sistemas de distribuição de água","56.68.143","Vazão (M³/H)","Área do Empreendimento (m²) ou (HA):","Área Construida (m²) OU (HA):"]
["Instalação de Interceptores, Emissários e Rede Coletora de Esgoto","56.68.286","Comprimento (Km):","Área do Empreendimento (m²) ou (HA):","Área Construida (m²) OU (HA):"]
["Estação de Tratamento de Efluentes - ETE","56.68.429","Vazão (M³/H)","Área do Empreendimento (m²) ou (HA):","Área Construida (m²) OU (HA):"]
["Estação Elevatória de Efluente (EEE) com ou sem tratamento preliminar","56.68.572","Vazão (M³/H)","Área do Empreendimento (m²) ou (HA):","Área Construida (m²) OU (HA):"]
["Sistema de tratamento de água","56.68.715","Vazão (M³/H)","Área do Empreendimento (m²) ou (HA):","Área Construida (m²) OU (HA):"]
["Rede de Drenagem","56.68.858","Comprimento (Km):","Área do Empreendimento (m²) ou (HA):","Área Construida (m²) OU (HA):"]
["Barragens, açudes e represas","56.85.200","Superfície (Km²):","Volume (10^6 m³)","Área do Empreendimento (m²) ou (HA):","Área Construida (m²) OU (HA):"]
["Barragens de derivação ou regularização de nível de água","56.85.400","Área Alagada (HA):","Área do Empreendimento (m²) ou (HA):","Área Construida (m²) OU (HA):"]
["Captação e tratamento de águas superficiais","56.85.600","Vazão (M³/H)","Área do Empreendimento (m²) ou (HA):","Área Construida (m²) OU (HA):"]
["Captação de águas subterrâneas","56.85.800","Vazão (M³/H)","Área do Empreendimento (m²) ou (HA):","Área Construida (m²) OU (HA):"]
["Instalação de Canteiro de Obras","56.90.200","Área do Empreendimento (m²) ou (HA):","Área Construida (m²) OU (HA):"]
["Dragagem, terraplanagem e desassoreamento","56.90.400","Volume ( m³):","Área do Empreendimento (m²) ou (HA):","Área Construida (m²) OU (HA):"]
["Usinas de Asfalto ou Concreto","56.90.600","Área do Empreendimento (m²) ou (HA):","Área Construida (m²) OU (HA):"]
["Recuperação de áreas degradadas","56.90.800","Área do Empreendimento (m²) ou (HA):","Área Construida (m²) OU (HA):"]
[]
[]
[]
["LAVRA DE MINÉRIO","CÓDIGO","ESPECIFICAÇÕES","ESPECIFICAÇÕES2","ESPECIFICAÇÕES3","ESPECIFICAÇÕES4","ESPECIFICAÇÕES5",null,"LICENÇAS:",null,null,"Autorização Ambiental - AA"]
["Pesquisa Mineral","64.8.499","Área requerida ANM (HA):","Investimento Total (R$)","Área Construída (m²):",null,null,null,"Licença Prévia - LP",null,null,"Dispensa de Licença"]
["Lavra Envasamento e Gaseificação de água mineral (Poço ou Surgência)","64.16.499","Capacidade de Produção (L/h):","Área Construída (m²):","Área do Empreendimento (m²):","Investimento Total (R$):",null,null,"Licença de Instalação – LI",null,null,"Licença por Adesão e Compromisso - LAC"]
["Lavra de minérios de ouro - (Autorização e Concessão)","64.24.200","Área requerida ANM (HA):","Investimento Total (R$)","Área Construída (m²):",null,null,null,"Licença de Operação – LO",null,null,"Licença Simplificada - LS"]
["Lavra de minérios de ouro - (Lavra Garimpeira)","64.24.400","Área requerida ANM (HA):","Investimento Total (R$)","Área Construída (m²):",null,null,null,"Licença de Alteração de Operação - LAO",null,null,"Licença de Alteração de Instalação - LAI"]
["Lavra de minérios de platina - (Autorização e Concessão)","64.24.600","Área requerida ANM (HA):","Investimento Total (R$)","Área Construída (m²):",null,null,null,"Licença de Alteração de Instalação - LAI",null,null,"Licença de Alteração de Operação - LAO"]
["Lavra de minérios de prata - (Autorização e Concessão)","64.24.800","Área requerida ANM (HA):","Investimento Total (R$)","Área Construída (m²):",null,null,null,"Autorização Ambiental - AA",null,null,"Licença Prévia - LP"]
["Lavra de minérios de alumínio - (Autorização e Concessão)","64.32.100","Área requerida ANM (HA):","Investimento Total (R$)","Área Construída (m²):",null,null,null,"Licença de Regularização de Operação – LRO",null,null,"Licença de Operação de Pesquisa Mineral - LOP"]
["Lavra de minérios de chumbo e estanho - (Autorização e Concessão)","64.32.200","Área requerida ANM (HA):","Investimento Total (R$)","Área Construída (m²):",null,null,null,"Licença de Transporte Estadual – LTE",null,null,"Licença de Instalação – LI"]
["Lavra de minérios de cobre - (Autorização e Concessão)","64.32.300","Área requerida ANM (HA):","Investimento Total (R$)","Área Construída (m²):",null,null,null,"Outros (especificar)",null,null,"Renovação de Licença de Instalação – RLI"]
["Lavra de minérios de cobre - (Lavra Garimpeira)","64.32.400","Área requerida ANM (HA):","Investimento Total (R$)","Área Construída (m²):",null,null,null,"Licença Prévia - LP + Licença de Instalação – LI",null,null,"Licença de Operação – LO"]
["Lavra de minérios de ferro - (Autorização e Concessão)","64.32.500","Área requerida ANM (HA):","Investimento Total (R$)","Área Construída (m²):",null,null,null,"Licença Prévia - LP + Licença de Instalação – LI + Licença de Operação – LO",null,null,"Renovação de Licença de Operação – RLO"]
["Lavra de minérios de manganês - (Autorização e Concessão)","64.32.600","Área requerida ANM (HA):","Investimento Total (R$)","Área Construída (m²):",null,null,null,null,null,null,"Licença de Regularização de Operação – LRO"]
["Lavra de minérios de níquel - (Autorização e Concessão)","64.32.700","Área requerida ANM (HA):","Investimento Total (R$)","Área Construída (m²):",null,null,null,null,null,null,"Licença de Transporte Estadual – LTE"]
["Lavra de minérios de tungstênio - (Autorização e Concessão)","64.32.800","Área requerida ANM (HA):","Investimento Total (R$)","Área Construída (m²):",null,null,null,null,null,null,"Licença para Veículo de Publicida de ou Eventos – LVPE"]
["Lavra de minérios de zinco - (Autorização e Concessão)","64.32.900","Área requerida ANM (HA):","Investimento Total (R$)","Área Construída (m²):",null,null,null,null,null,null,"REGISTRO"]
["Lavra de argilas bentonita - (Autorização e Concessão)","64.40.50","Área requerida ANM (HA):","Investimento Total (R$)","Área Construída (m²):",null,null,null,null,null,null,"Outros (especificar)"]
["Lavra de calcário (pedras e mariscos) gipsita (gesso bruto) - (Autorização e Concessão)","64.40.100","Área requerida ANM (HA):","Investimento Total (R$)","Área Construída (m²):"]
["Lavra de calcário (pedras e mariscos) gipsita (gesso bruto) - (Regime de Licenciamento)","64.40.150","Área requerida ANM (HA):","Investimento Total (R$)","Área Construída (m²):"]
["Lavra de caulim (argila refratária) - (Autorização e Concessão)","64.40.200","Área requerida ANM (HA):","Investimento Total (R$)","Área Construída (m²):"]
["Lavra de cristal de rocha (quartzo) - (Autorização e Concessão)","64.40.250","Área requerida ANM (HA):","Investimento Total (R$)","Área Construída (m²):"]
["Lavra de cristal de rocha (quartzo) - (Lavra Garimpeira)","64.40.300","Área requerida ANM (HA):","Investimento Total (R$)","Área Construída (m²):"]
["Lavra de feldspato, apatita, grafita, baritina pirita e materiais abrasivos - (Autorização e Concessão)","64.40.350","Área requerida ANM (HA):","Investimento Total (R$)","Área Construída (m²):"]
["Lavra de feldspato, apatita, grafita, baritina pirita e materiais abrasivos - (Lavra Garimpeira)","64.40.400","Área requerida ANM (HA):","Investimento Total (R$)","Área Construída (m²):"]
["Lavra de micas - (Autorização e Concessão)","64.40.450","Área requerida ANM (HA):","Investimento Total (R$)","Área Construída (m²):"]
["Lavra de micas - (Lavra Garimpeira)","64.40.500","Área requerida ANM (HA):","Investimento Total (R$)","Área Construída (m²):"]
["Lavra de ocre e outras terras corantes - (Autorização e Concessão)","64.40.550","Área requerida ANM (HA):","Investimento Total (R$)","Área Construída (m²):"]
["Lavra de ocre e outras terras corantes - (Regime de Licenciamento)","64.40.600","Área requerida ANM (HA):","Investimento Total (R$)","Área Construída (m²):"]
["Lavra de talco - (Autorização e Concessão)","64.40.650","Área requerida ANM (HA):","Investimento Total (R$)","Área Construída (m²):"]
["Lavra de cascalho e saibro e argila para cerâmica - (Autorização e Concessão)","64.40.700","Área requerida ANM (HA):","Investimento Total (R$)","Área Construída (m²):"]
["Lavra de cascalho e saibro e argila para cerâmica - (Regime de Licenciamento)","64.40.750","Área requerida ANM (HA):","Investimento Total (R$)","Área Construída (m²):"]
["Lavra de rochas ornamentais (mármore, ardósia, granitoides, quartzito) -(Autorização e Concessão)","64.40.800","Área requerida ANM (HA):","Investimento Total (R$)","Área Construída (m²):"]
["Lavra de rochas ornamentais (mármore, ardósia, granitoides, quartzito) -(Regime de Licenciamento)","64.40.850","Área requerida ANM (HA):","Investimento Total (R$)","Área Construída (m²):"]
["Lavra de rochas para utilização na construção civil - (Autorização e Concessão)","64.40.900","Área requerida ANM (HA):","Investimento Total (R$)","Área Construída (m²):"]
["Lavra de rochas para utilização na construção civil - (Regime de Licenciamento)","64.40.950","Área requerida ANM (HA):","Investimento Total (R$)","Área Construída (m²):"]
["Lavra de gemas (água marinha, topázio, turmalina, berilo, espodumênio,rubi, granada) - (Autorização e Concessão)","64.48.333","Área requerida ANM (HA):","Investimento Total (R$)","Área Construída (m²):"]
["Lavra de gemas (água marinha, topázio, turmalina, berilo, espodumênio,rubi, granada) - (Lavra Garimpeira)","64.48.666","Área requerida ANM (HA):","Investimento Total (R$)","Área Construída (m²):"]
["Areia, cascalho, silte e argila - em leito de rios e riachos - (Autorização e Concessão)","64.56.111","Área requerida ANM (HA):","Investimento Total (R$)","Área Construída (m²):"]
["Areia, cascalho, silte e argila - em leito de rios e riachos - (Regime de Licenciamento)","64.56.222","Área requerida ANM (HA):","Investimento Total (R$)","Área Construída (m²):"]
["Lavra de areia em tabuleiro - (Autorização e Concessão)","64.56.333","Área requerida ANM (HA):","Investimento Total (R$)","Área Construída (m²):"]
["Lavra de areia em tabuleiro - (Regime de Licenciamento)","64.56.444","Área requerida ANM (HA):","Investimento Total (R$)","Área Construída (m²):"]
["Lavra de Argila - (Autorização e Concessão)","64.56.555","Área requerida ANM (HA):","Investimento Total (R$)","Área Construída (m²):"]
["Lavra de Argila - (Regime de Licenciamento)","64.56.666","Área requerida ANM (HA):","Investimento Total (R$)","Área Construída (m²):"]
["Lavra de Saibro - (Autorização e Concessão)","64.56.777","Área requerida ANM (HA):","Investimento Total (R$)","Área Construída (m²):"]
["Lavra de Saibro - (Regime de Licenciamento)","64.56.888","Área requerida ANM (HA):","Investimento Total (R$)","Área Construída (m²):"]
["Lavra de sal gema - (Autorização e Concessão)","64.64.333","Área requerida ANM (HA):","Investimento Total (R$)","Área Construída (m²):"]
["Lavra de sal marinho - (Autorização e Concessão)","64.64.666","Área requerida ANM (HA):","Investimento Total (R$)","Área Construída (m²):"]
["Lavra de carvão mineral - (Autorização e Concessão)","64.72.200","Área requerida ANM (HA):","Investimento Total (R$)","Área Construída (m²):"]
["Lavra de petróleo e gás natural - (Autorização e Concessão)","64.72.400","Área requerida ANM (HA):","Investimento Total (R$)","Área Construída (m²):"]
["Lavra de xisto betuminoso - (Autorização e Concessão)","64.72.600","Área requerida ANM (HA):","Investimento Total (R$)","Área Construída (m²):"]
["Lavra de xisto betuminoso - (Regime de Licenciamento)","64.72.800","Área requerida ANM (HA):","Investimento Total (R$)","Área Construída (m²):"]
["Lavra de minérios de rádio - (Autorização e Concessão)","64.80.200","Área requerida ANM (HA):","Investimento Total (R$)","Área Construída (m²):"]
["Lavra de minérios de tório - (Autorização e Concessão)","64.80.400","Área requerida ANM (HA):","Investimento Total (R$)","Área Construída (m²):"]
["Lavra de minérios de urânio - (Autorização e Concessão)","64.80.600","Área requerida ANM (HA):","Investimento Total (R$)","Área Construída (m²):"]
["Lavra de areia monazítica - (Autorização e Concessão)","64.80.800","Área requerida ANM (HA):","Investimento Total (R$)","Área Construída (m²):"]
["Desassoreamento em leito de rio","64.88.333","Volume de material (m³):","Área do Empreendimento (m²):"]
["Movimentação de terras","64.88.666","Volume de área (Ha):","Área do Empreendimento (m²):"]
["Transporte de minérios","64.96.499","Número de Veículos:","Área do Empreendimento (m²):","Rota percorrida (KM)"]
[]
[]
[]
["ATIVIDADES INDUSTRIAIS","CÓDIGOS","ESPECIFICAÇÕES","ESPECIFICAÇÕES2","ESPECIFICAÇÕES3","ESPECIFICAÇÕES4","ESPECIFICAÇÕES5",null,"LICENÇAS:",null,null,"Autorização Ambiental - AA"]
["Aparelho de mármore, ardósia, granito e outras pedras em chapas e placas","72.02.063",null,null,null,null,null,null,"Licença Prévia - LP",null,null,"Dispensa de Licença"]
["Britamento de pedras","72.02.126",null,null,null,null,null,null,"Licença de Instalação – LI",null,null,"Licença por Adesão e Compromisso - LAC"]
["Execução de esculturas, entalhos e trabalho em alabastre, mármore,ardósia, granito e outras pedras","72.02.189",null,null,null,null,null,null,"Licença de Operação – LO",null,null,"Licença Simplificada - LS"]
["Execução de obras de cantaria","72.02.252",null,null,null,null,null,null,"Licença de Alteração de Operação - LAO",null,null,"Licença de Alteração de Instalação - LAI"]
["Fabricação de polímeros (pedras para lavagem stonewash)","72.02.315",null,null,null,null,null,null,"Licença de Alteração de Instalação - LAI",null,null,"Licença de Alteração de Operação - LAO"]
["Fabricação de cal de mariscos","72.02.378",null,null,null,null,null,null,"Licença de Regularização de Operação – LRO",null,null,"Licença Prévia - LP"]
["Fabricação de cal hidratada ou extinta","72.02.441",null,null,null,null,null,null,"Outros (especificar)",null,null,"Licença de Operação de Pesquisa Mineral - LOP"]
["Fabricação de cal virgem","72.02.504",null,null,null,null,null,null,"Licença Prévia - LP + Licença de Instalação – LI",null,null,"Licença de Instalação – LI"]
["Fabricação de artefatos de louça, porcelana, faiança e cerâmica artística","72.02.567",null,null,null,null,null,null,"Licença Prévia - LP + Licença de Instalação – LI + Licença de Operação – LO",null,null,"Renovação de Licença de Instalação – RLI"]
["Fabricação de artigo de grês e material cerâmico refratário (telhas,tijolos, ladrilhos, mosaicos, pastilhas, tubos)","72.02.630",null,null,null,null,null,null,null,null,null,"Licença de Operação – LO"]
["Fabricação de artigos de barro cozido, manilhas, tijolos, vasilhames, etc","72.02.693",null,null,null,null,null,null,null,null,null,"Renovação de Licença de Operação – RLO"]
["Fabricação de louças para serviço de mesa","72.02.756",null,null,null,null,null,null,null,null,null,"Licença de Regularização de Operação – LRO"]
["Fabricação de aparelhos sanitários de louça (banheiras, bidês pias e vasos)","72.02.819",null,null,null,null,null,null,null,null,null,"Licença de Transporte Estadual – LTE"]
["Fabricação de azulejos, calhas, cantos, rodapés e semelhantes","72.02.882",null,null,null,null,null,null,null,null,null,"Licença para Veículo de Publicida de ou Eventos – LVPE"]
["Fabricação de copos graduados e outros artigos de porcelana para laboratórios","72.02.945",null,null,null,null,null,null,null,null,null,"REGISTRO"]
["Fabricação de artefatos de cimento e cimento armado (caixas d'água,caixas de gordura, fossas sépticas e semelhantes)","72.04.125",null,null,null,null,null,null,null,null,null,"Outros (especificar)"]
["Fabricação de   artefatos   de   fibrocimento   (chapas,   telhas,   canos,manilhas, tubos, conexões, caixa d'água e semelhantes)","72.04.250"]
["Fabricação de ladrilhos e mosaicos de cimento","72.04.375"]
["Fabricação de artigos de gesso e estuque","72.04.500"]
["Fabricação de cimento","72.04.625"]
["Fabricação de ladrilhos e produtos afins de marmorite, granitina e materiais semelhantes","72.04.750"]
["Preparação de concreto e argamassa","72.04.875"]
["Fabricação de artigos diversos de vidro e cristal para aparelhos de iluminação","72.05.125"]
["Fabricação de artefatos de vidro, refratário e cristal para uso doméstico","72.05.250"]
["Fabricação de   artefatos   de   vidro   para   indústrias   farmacêuticas,laboratórios, hospitais e afins","72.05.375"]
["Fabricação de vidros para relógios","72.05.500"]
["Fabricação de espelhos","72.05.625"]
["Fabricação de garrafas e semelhantes","72.05.750"]
["Fabricação de vidro plano e de estrutura de vidro","72.05.875"]
["Fabricação de artigos de grafita","72.06.143"]
["Fabricação de materiais abrasivo, lixas e rebolas de esmeril","72.06.286"]
["Preparação de cristal de rocha (quartzo)","72.06.429"]
["Preparação de talco, gesso e caulim","72.06.572"]
["Preparação de mica","72.06.858"]
["Siderurgia - Fabricação de artefatos de ferro, aço e metais não ferrosos trefilados","72.08.83"]
["Siderurgia - Produção de tubos de ferro e aço, ferro-ligas, cordoalhas de navios e massame","72.08.167"]
["Fabricação de estruturas metálicas","72.08.250"]
["Fabricação de artefatos de ferro, aço e metais não ferrosos trefilados. Fabricação de pregos, tachas, arestas e semelhantes","72.08.333"]
["Fabricação de telas e outros artigos de arame","72.08.416"]
["Fabricação de artigos de ferro, aço e metais trefilados","72.08.500"]
["Forjaria e fundição de produtos siderúrgicos e metalúrgicos","72.08.583"]
["Fundições de metais não ferrosos","72.08.666"]
["Laminação de relaminação de produtos siderúrgicos e metalúrgicos","72.08.749"]
["Metalurgia dos metais não ferrosos","72.08.833"]
["Metalurgia - cobre, chumbo e estanho. Produção de chapas, perfis,trefilados de alumínio, cobre e ligas de cobre","72.08.910"]
["Fabricação de artigos de alumínio estampado","72.10.250"]
["Fabricação de artigos de funilaria e latoaria em chapas de aço e ferro","72.10.375"]
["Fabricação de artigos de funilaria e latoaria em chapas de cobre, zinco e semelhantes","72.10.500"]
["Fabricação de artigos de funilaria e latoaria em chapas de flandres","72.10.625"]
["Fabricação de artigos de metal estampado","72.10.750"]
["Fabricação de artigos de aço estampado","72.10.875"]
["Fabricação de artigos de caldeiraria","72.12.111"]
["Fabricação de artefatos de serralheria artística","72.12.333"]
["Fabricação de cofres","72.12.444"]
["Fabricação de ferragens","72.12.555"]
["Fabricação de recipientes de aço (para embalagens de gases,combustíveis)","72.12.666"]
["Fabricação esquadrias de metal","72.12.777"]
["Fabricação fogões, fogareiros e aquecedores não elétricos","72.12.888"]
["Fabricação de facas, facões, tesouras, canivetes e talheres","72.14.125"]
["Fabricação de navalhas e lâminas de barbear","72.14.250"]
["Fabricação de quinquilharias para escrita e uso pessoal","72.14.375"]
["Fabricação de armas de fogo e/ou seus insumos","72.14.500"]
["Fabricação esponjas e palhas de aço","72.14.625"]
["Fabricação ferramentas e utensílios para trabalho manual","72.14.750"]
["Fabricação punhais, sabres, floretes e outra arma branca","72.14.875"]
["Têmpera, galvanização e operações similares. Anodização, niquelagem e cromagem","72.16.333"]
["Extintores de incêndio","72.18.100"]
["Fabricação de máquinas, aparelhos e equipamentos não elétricos para instalação hidráulica térmica","72.18.200"]
["Fabricação de máquinas, aparelhos e equipamentos não elétricos para instalação de ventilação e aparelhos de refrigeração","72.18.300"]
["Fabricação de caldeiras, geradores de vapor","72.18.400"]
["Fabricação de máquinas e aparelhos para indústrias no geral","72.20.100"]
["Fabricação de máquinas e aparelhos para indústria de açúcar, destilaria do álcool e aguardente","72.20.200"]
["Fabricação de peças, acessórios, utensílios, ferramentas para máquinas industriais","72.20.300"]
["Fabricação de máquinas e aparelhos para olarias, indústria de cerâmica e para tratam de pedras, saibros e areias","72.20.400"]
["Fabricação de máquinas e aparelhos para indústria de couro e calçado","72.20.500"]
["Fabricação de maquinas e aparelhos para indústria de madeira","72.20.600"]
["Fabricação de máquinas e aparelhos para indústria de celulose, papel e papelão","72.20.700"]
["Fabricação de máquinas e aparelhos para indústria de óleos vegetais","72.20.800"]
["Fabricação de máquinas e aparelhos para indústria siderúrgica","72.20.900"]
["Fabricação de arados, ceifaderas, trilhadeiras, semeadeiras, cultivadores e semelhantes","72.21.111"]
["Fabricação   de   debulhadores,   desnatadeiras,   batedeiras e outros aparelhos de tipo manual","72.21.222"]
["Fabricação de aparelhos avícolas, como incubadoras e afins","72.21.333"]
["Fabricação de máquinas e aparelhos para beneficiamento de café e cereais","72.21.444"]
["Fabricação de máquinas e aparelhos para beneficiamento do algodão e outras fibras","72.21.555"]
["Fabricação de peças e acessórios para máquinas de agricultura e indústrias rurais","72.21.666"]
["Fabricação de pulverizadores, polvilhadores, extintores de formiga e semelhantes","72.21.777"]
["Fabricação e montagem de tratores agrícolas","72.21.888"]
["Fabricação de aparelhos de transporte e elevação de casa para fins industriais","72.22.167"]
["Fabricação de balanças, básculas e máquinas de fatiar","72.22.334"]
["Fabricação de bombas para gasolina e outros combustíveis","72.22.501"]
["Fabricação de elevadores e escadas rolantes para transporte de pessoas","72.22.668"]
["Fabricação de maquinas, aparelhos e equipamentos para instalações industriais e comerciais","72.22.835"]
["Fabricação de máquinas e aparelhos para escritório","72.24.334"]
["Fabricação de máquinas de costura","72.24.501"]
["Fabricação de máquinas e aparelhos para barbeiros, cabeleireiros e afins","72.24.668"]
["Fabricação de refrigeradores não elétricos","72.24.835"]
["Fabricação de acumuladores, baterias e pilhas secas","72.26.100"]
["Fabricação de aparelhos de medidas elétricas","72.26.200"]
["Fabricação de eletrodos","72.26.300"]
["Fabricação de materiais para instalação elétrica e afins","72.26.400"]
["Fabricação de materiais elétricos para veículos","72.26.500"]
["Fabricação de resistências e condensadores elétricos","72.26.600"]
["Fabricação de   transformadores   para   radio,   televisor   e   aparelhos eletrônicos","72.26.700"]
["Fabricação de geradores, motores, conversores e transformadores","72.26.900"]
["Fabricação de aparelhos de raio-x para eletrodiagnostico e semelhantes","72.28.111"]
["Fabricação de aparelho de ferro de soldar","72.28.222"]
["Fabricação de aparelho de galvanização e aparelhos eletrotécnicos","72.28.333"]
["Fabricação de aparelhos de válvulas e tubos para aparelhos médicos e radiológicos","72.28.444"]
["Fabricação de esterilizadores e estufas","72.28.666"]
["Fabricação de fogões, fogareiros e semelhantes","72.28.777"]
["Fabricação de refrigeradores e eletrodomésticos e semelhantes","72.28.888"]
["Fabricação de aparelhos de sinalização para aeródromos, ferrovias e afins","72.30.111"]
["Fabricação de Aparelhos e Equipamentos Elétricos, Eletrônicos, Eletrodomésticos, Informática e Telecomunicações","72.30.222"]
["Fabricação de aparelhos telefônicos, centrais telefônicas, mesas telefônicas, inclusive peças e acessórios","72.30.333"]
["Fabricação e montagem de tv, rádios, fonográficos e toca discos","72.30.555"]
["Fabricação de equipamentos de aparelho, transmissores de radiotelefonia, radiotelegrafia e de gravação e amplificação de som,inclusive peças e acessórios","72.30.666"]
["Fabricação de peças, e acessórios para tv, rádios e fonografos, inclusive antenas","72.30.777"]
["Montagem de som/módulos em geral","72.30.888"]
["Fabricação de veículos ferroviários e ferrocarris urbanos (locomotivas,carros, motores e vagões)","72.32.200"]
["Fabricação de peças e acessórios para embarcações","72.32.600"]
["Fabricação de peças e acessórios para veículos ferroviários e ferrocarris","72.32.800"]
["Fabricação de carrocerias para veículos a motor","72.34.200"]
["Fabricação e montagem de ônibus elétrico","72.34.400"]
["Fabricação e montagem de veículo automotivo","72.34.600"]
["Fabricação de peças e acessórios não elétricos e motores completos para veículos de auto propulsão","72.34.800"]
["Fabricação de peças e acessórios para motocicletas e motores para bicicleta","72.36.333"]
["Fabricação e montagem de motocicleta, motoneta e triciclo motorizado","72.36.666"]
["Fabricação de peças e acessórios para tratores não agrícolas","72.37.200"]
["Fabricação de peças e acessórios para maquinas de terraplanagem","72.37.400"]
["Fabricação e montagem de máquinas e terraplanagem","72.37.600"]
["Fabricação e montagem de tratores não agrícolas","72.37.800"]
["Fabricação de peças e acessórios para aviões, inclusive motores","72.38.333"]
["Fabricação e montagem de aviões","72.38.666"]
["Fabricação de   outros   veículos   (carrinho   de   mão,   carrocinhas   e semelhantes)","72.40.500"]
["Fabricação de veículos a tração animal (carroças, carroções, charretes e semelhantes)","72.40.750"]
["Desdobramento de madeira, produção serralheria","72.42.100"]
["Fabricação de   cabos   de   madeira   para   ferramentas   e   utensílios (calçados), artefatos de madeira torneada","72.42.200"]
["Fabricação de artigos de madeira arqueada e artigos de tanoaria","72.42.400"]
["Fabricação de artigos de madeira para uso doméstico e comercial","72.42.500"]
["Fabricação de cestos, esteiras e outros artefatos de bambu, vime, junco ou palha trançados","72.42.600"]
["Fabricação de esquadrias, tesouras e outras estruturas de madeira","72.42.700"]
["Fabricação de madeira compensada, folheada e laminada","72.42.800"]
["Fabricação de pás, colheres e palitos de madeira","72.42.900"]
["Fabricação de móveis de ferro e metal artístico","72.43.111"]
["Fabricação de artigos de colchoaria, edredons e semelhantes","72.43.222"]
["Fabricação de caixa ou gab. para maquina de costura e semelhantes","72.43.333"]
["Fabricação móveis de metal e moveis de aço","72.43.444"]
["Fabricação móveis de madeira para instalações comerciais","72.43.555"]
["Fabricação móveis de madeira, vime, bambu, semelhantes","72.43.666"]
["Fabricação de artigos diversos de mobília","72.43.777"]
["Fabricação de persianas","72.43.888"]
["Fabricação de artefatos de papel associado a fabricação papel e semelhantes","72.44.125"]
["Fabricação de artefatos de papel não associado a fabricação de papel","72.44.250"]
["Fabricação de artefatos de papelão e semelhantes","72.44.375"]
["Fabricação de celulose e de pasta mecânica","72.44.500"]
["Fabricação de fraldas descartáveis e absorventes higiênicos","72.44.625"]
["Fabricação de papel, papelão, cartolina e semelhantes","72.44.750"]
["Fabricação de sacos de papel e de embalagens","72.44.875"]
["Beneficiamento de borracha (lavagem, prensagem, laminação e regeneração)","72.46.100"]
["Fabricação de artefatos de borracha para uso médico cirúrgico e para laboratórios","72.46.200"]
["Fabricação de artefatos diversos de borrachas","72.46.300"]
["Fabricação de artigos de borracha para uso pessoal e doméstico","72.46.400"]
["Fabricação de calçados e artefatos para calçados de borracha","72.46.500"]
["Fabricação de espuma e de artigos de espuma de borracha, inclusive látex","72.46.600"]
["Fabricação de pneumáticos e câmaras-de-ar","72.46.700"]
["Recondicionamento e consertos de pneus em geral (Recauchutagem)","72.46.800"]
["Transformação de espuma sintética em artigos diversos","72.46.900"]
["Comercialização de couros em geral","72.48.125"]
["Fabricação de artigos de selaria","72.48.375"]
["Fabricação de correias e outros artigos de couros para máquinas","72.48.500"]
["Fabricação de malas, maletas, valises e de outros artigos de couros e peles e outros materiais para viagem","72.48.625"]
["Fabricação de pastas de couro, porta notas, porta níqueis, porta documentos e semelhantes de couros e peles","72.48.750"]
["Preparação, curtimento e tingimento de couros, peles e correaria","72.48.875"]
["Fabricação de matéria plásticas básicas, de borracha sintética, celulóide, galalite, baquelita e outras matérias-plásticas PVC","72.50.125"]
["Fabricação de amidos, dextrinas, féculas gomas, colas, adesivos vegetais e semelhantes","72.50.250"]
["Fabricação de pigmentos, corantes, substâncias tanantes, curtimentos e prod. sintéticos para curtume, inclusive lacas","72.50.375"]
["Fabricação de elementos químicos","72.50.500"]
["Fabricação de fios artificiais (fios de acetado, viscose, nylon, rayon, lâ-de-vidro e semelhantes)","72.50.625"]
["Fabricação de produtos quimicamente puros para uso em laboratórios e para fins medicinais","72.50.750"]
["Fabricação de produtos químicos inorgânicos","72.50.875"]
["Fabricação de detonantes e de munição","72.52.200"]
["Fabricação de fogos de artifício","72.52.400"]
["Fabricação de fósforo de segurança","72.52.600"]
["Fabricação de pólvora e explosivos","72.52.800"]
["Produção de gorduras, óleos e essências vegetais","72.54.666"]
["Produção de ceras vegetais e ácidos gordurosos","72.54.333"]
["Distribuição e comercialização de produto de limpeza em geral","72.56.200"]
["Fabricação de produtos para limpeza e polimento (ceras para assoalho,líquidos e pastas para polimento de calçados, metais e móveis)","72.56.400"]
["Fabricação de desinfetantes (água sanitária, creolina e semelhantes)","72.56.600"]
["Fabricação de inseticidas, germicidas, fungicidas e produtos afins","72.56.800"]
["Fabricação de solventes, impermeabilizantes e secantes","72.58.250"]
["Fabricação de tintas para escrever e para desenho, inclusive tinta para impressão","72.58.500"]
["Fabricação de tintas, esmalte, lacas e vernizes","72.58.750"]
["Beneficiamento e britagem de carvão-de-pedra","72.60.143"]
["Comércio varejista de gás liquefeito (gás cozinha)","72.60.286"]
["Distribuidora e armazenamento de gás GLP (cozinha) e gás natural por gasodutos","72.60.429"]
["Fabricação de produtos derivados da destilação de carvão-de-pedra e da madeira. Produção de gás, coque, alcatrão e semelhantes","72.60.572"]
["Fabricação de produtos derivados da destilação do petróleo e de xistos betuminosos, creosoto","72.60.715"]
["Recuperação de óleos lubrificantes e de óleos queimados (de cárter)","72.60.858"]
["Fabricação de adubos","72.61.333"]
["Fabricação de fertilizantes (fosforita, superfosfato e semelhantes)","72.61.666"]
["Comercialização e manipulação de produtos farmacêuticos em geral","72.62.143"]
["Fabricação de produtos de perfumaria e cosméticos","72.62.286"]
["Fabricação de produtos veterinários","72.62.429"]
["Fabricação de sabões e detergentes","72.62.572"]
["Fabricação de velas","72.62.715"]
["Fabricação e manipulação de produtos farmacêuticos e medicinais","72.62.858"]
["Beneficiamento de Metais Nobres","72.63.075"]
["Beneficiamento de Minerais Metálicos","72.63.149"]
["Beneficiamento de Minerais Não Metálicos","72.63.223"]
["Beneficiamento de Rochas Ornamentais e Minerais da Construção","72.63.197"]
["Beneficiamento de Sal","72.63.371"]
["Beneficiamento de Combustíveis Minerais Combustíveis","72.63.445"]
["Beneficiamento de Minerais Físseis","72.63.519"]
["Beneficiamento de Produtos Vegetais e Vegetais Oleaginosos","72.63.593"]
["Beneficiamento de Produtos Vegetais Ceríficos","72.63.667"]
["Beneficiamento de Produtos Tanantes e Tintorais","72.63.741"]
["Beneficiamento de Produtos Vegetais Medicinais","72.63.815"]
["Beneficiamento de Produtos Vegetais Tóxicos","72.63.889"]
["Beneficiamento de Combustíveis Vegetais","72.63.963"]
["Fabricação de artigos de matérias plásticas, fios plásticos, sacos e embalagens plásticas","72.64.167"]
["Fabricação de artigos de fibra ótica e de vidro","72.64.334"]
["Fabricação de tubos em PVC rígido (resina) e afins","72.64.501"]
["Reciclagem de plástico em geral","72.64.668"]
["Transformação e beneficiamento de poliestireno expansível (isopor /isolantes térmicos / painéis térmicos)","72.64.835"]
["Beneficiamento de fibras têxteis vegetais","72.66.100"]
["Beneficiamento de matérias têxteis de origem animal (beneficiamento de lã, seda, pelos e crinas)","72.66.200"]
["Fabricação de estopa e de material para estofos, inclusive recuperação de resíduos têxteis","72.66.300"]
["Fabricação de sacos de polipropileno e fios","72.66.400"]
["Fabricação de telas","72.66.500"]
["Fiação e tecelagem de algodão e outras fibras têxteis vegetais","72.66.600"]
["Fabricação de fios e linhas de algodão, seda, lã, linho, rami, juta, caroá e outras fibras, têxteis","72.66.700"]
["Fabricação de tecidos de malha e artigos de malharia","72.66.800"]
["Tingimento de produtos têxteis","72.66.900"]
["Fabricação de artefatos de lona, pano-couro e outros tecidos de acabamento especial","72.68.222"]
["Fabricação de artigos de passamanaria. Fabricação de cadarços, galões,fitas, filós, rendas e bordados","72.68.333"]
["Fabricação de artigos de tapeçaria","72.68.444"]
["Fabricação de cobertores, mantas e toalhas de banho","72.68.555"]
["Fabricação de redes e artigos de cordoaria","72.68.666"]
["Fabricação de sacos de tecidos","72.68.777"]
["Fabricação de tecidos impermeáveis e de acabamento especial","72.68.888"]
["Fabricação de cortinas, estofos e decorações interiores","72.68.111"]
["Confecção de artefatos diversos de tecidos. Confecção de roupas de cama e mesa (lençóis, colchas, fronhas, guardanapos toalhas de mesa e  semelhantes, bandeiras, estandartes e flâmulas)","72.70.200"]
["Confecção de roupas e agasalhos","72.70.300"]
["Fabricação de chapéus. Fabricação de guarda-chuvas, sombrinhas,bengalas, toldos, barracas, velames, guarda sol de praias e semelhantes","72.70.400"]
["Fabricação de calçados, alpargatas, chinelos sandálias e semelhantes. Fabricação de tamancos, sapatos","72.70.500"]
["Fabricação de cintas elásticas, bolsas e outros acessórios de vestuário","72.70.600"]
["Fabricação de cintos, ligas e suspensórios","72.70.700"]
["Fabricação de gravatas","72.70.800"]
["Fabricação de lenços, luvas, chales e semelhantes","72.70.900"]
["Beneficiamento de café, cereais e produtos","72.72.100"]
["Fabricação de aveia em lâminas","72.72.200"]
["Fabricação de farinha e de produtos derivados de coco-da-baía","72.72.300"]
["Fabricação de produtos de mandioca (farinha de mandioca, polvilho, raspa, farinha de raspa e outros derivados de mandioca)","72.72.500"]
["Fabricação de farinha e féculas alimentícias de arroz, araruta, batata e semelhantes","72.72.600"]
["Fabricação de produtos de milho (fubá, farinha de milho, maisena e de outros derivados do milho)","72.72.700"]
["Moagem de trigo. Fabricação de farinha de trigo e de outros derivados do trigo em grão","72.72.800"]
["Torrefação e moagem de café","72.72.900"]
["Preparação de conservas de frutas, legumes e de outras conservas","72.74.250"]
["Preparação de conservas, especiarias e condimentos","72.74.500"]
["Preparação e conservação de polpas de frutas/legumes","72.74.750"]
["Abate de reses e preparação de carne para terceiros","72.76.091"]
["Abate de reses e preparação de carne verde por conta própria","72.76.182"]
["Abate de reses em charqueadas, e preparação de carne seca e salgada (inclusive subprodutos) charque","72.76.273"]
["Abate de reses em matadouros frigoríficos e preparação de carne congelada e em conserva (inclusive subprodutos)","72.76.364"]
["Abate e preparação de carne de aves e pequenos animais","72.76.455"]
["Beneficiamento de sebo e osso bovino e demais","72.76.546"]
["Frigorífico e preparação de pescado","72.76.637"]
["Preparação de algas marinhas, gelatinas","72.76.728"]
["Preparação de banha e preparação de conservas de carne e produtos de salsicharia","72.76.819"]
["Preparação de conservas de pescado","72.76.910"]
["Fabricação de cremes, coalhada e semelhantes","72.78.167"]
["Fabricação de leite em pó e condensado e farinha Láctea","72.78.334"]
["Fabricação de manteiga","72.78.501"]
["Fabricação de queijo","72.78.668"]
["Pasteurização e frigorificação do leite","72.78.835"]
["Fabricação de açúcar de usina e rapadura","72.80.200"]
["Fabricação de balas, caramelos e semelhantes","72.80.400"]
["Fabricação de doces de leite","72.80.600"]
["Refinação, moagem e trituração de açúcar","72.80.800"]
["Fabricação de massas alimentícias","72.82.020"]
["Fabricação de produtos de padaria e confeitaria","72.82.400"]
["Fabricação de produtos de pastelaria","72.82.600"]
["Fabricação de sorvetes","72.82.800"]
["Fabricação de café e mate solúveis","72.84.125"]
["Fabricação de fermentos e leveduras","72.84.250"]
["Fabricação de gelo","72.84.375"]
["Fabricação de rações balanceadas para animais","72.84.500"]
["Fabricação de vinagre","72.84.625"]
["Preparação de sal de cozinha. Refinação, moagem e preparação de sal de cozinha","72.84.750"]
["Preparação e refinação de óleos e gorduras vegetais destinados à alimentação. Preparação de gorduras mistas, destinadas à alimentação.","72.84.875"]
["Destilação de álcool - Destilaria","72.85.125"]
["Engarrafamento e gaseificação de águas minerais","72.85.250"]
["Fabricação de aguardentes","72.85.375"]
["Fabricação de cervejas, chopes e semelhantes","72.85.500"]
["Fabricação de refrigerantes xaropes, concentrados e sucos de frutas","72.85.625"]
["Fabricação de vinhos, licores e bebidas alcóolicas diversas (amargos e aperitivos)","72.85.750"]
["Fabricação de conhaque, whisky, genebra, vodka, gim, rum e semelhantes","72.85.875"]
["Fabricação de cigarros, fumos desfinados, charutos e cigarrilhas","72.86.250"]
["Preparação de fumo em folha","72.86.500"]
["Preparação de fumo em rolo ou em corda","72.86.750"]
["Edição de   impressão   de   revistas, almanaques,   figurinos   e   outras publicações periódicas","72.87.125"]
["Edição de jornal","72.87.250"]
["Edição de obras de texto. Edição de livros religiosos. Edição e impressão de obras de texto. Edição e impressão de livros religiosos","72.87.375"]
["Edição de revistas, almanaques, figurinos e outras publicações periódicas","72.87.500"]
["Edição e impressão de jornal","72.87.625"]
["Serigrafia em geral","72.87.875"]
["Fabricação de aparelhos de precisão para laboratórios e pesquisas","72.88.167"]
["Fabricação de aparelhos de medida não elétricos","72.88.334"]
["Fabricação de cronômetros e relógios","72.88.501"]
["Fabricação de instrumento para engenharia, topografia e geodésia","72.88.668"]
["Fabricação de utensílios para uso técnicos e profissionais","72.88.835"]
["Fabricação de aparelhos e utensílios para gabinete dentário. Fabricação de equipamentos dentários (inclusive instrumental dentário)","72.89.167"]
["Fabricação de aparelhos e utensílios não elétricos para uso médico e hospitalar","72.89.334"]
["Fabricação de aparelhos ortopédicos","72.89.501"]
["Fabricação de   dentes   artificiais,   porcelanas,   massas,   esmaltes   e semelhantes. Fabricação de material dentário","72.89.668"]
["Fabricação de material cirúrgico","72.89.835"]
["Fabricação de aparelhos fotográficos e cinematográficos","72.90.167"]
["Fabricação de armações para óculos","72.90.334"]
["Fabricação de material fotográfico. Fabricação de filmes e chapas virgens, de papeis sensíveis para fotografia, cópia heliográfica, fotostática e semelhantes","72.90.501"]
["Fabricação de material de ótica. Fabricação de lentes, óculos, lunetas,binóculos e semelhantes","72.90.668"]
["Fabricação de máquinas fotográficas e de aparelhos de projeção cinematográficos","72.90.835"]
["Fabricação de artigos de ourivesaria e joalheria. Fabricação de joias","72.91.333"]
["Lapidação de pedras preciosas e semipreciosas. Lapidação de diamantes","72.91.666"]
["Fabricação de acordeões e semelhantes","72.92.200"]
["Fabricação de instrumentos de música. Fabricação de instrumento de sopro, corda e percussão","72.92.400"]
["Fabricação de pianos e órgãos","72.92.600"]
["Gravação de discos musicais e outros. Edição de músicas, gravação de fitas sonoras","72.92.800"]
["Fabricação de broxas e pincéis","72.94.200"]
["Fabricação de escova para outros fins","72.94.400"]
["Fabricação de escovas para dentes","72.94.600"]
["Fabricação de vassouras, enxugadores, espanadores e semelhantes","72.94.800"]
["Fabricação de artigos para fins comerciais e industriais","72.95.100"]
["Fabricação de canetas","72.95.200"]
["Fabricação de carimbos, sinetes e semelhantes","72.95.300"]
["Fabricação de fitas para máquinas de escrever, papel carbono, stencil e semelhantes","72.95.400"]
["Fabricação de Lápis","72.95.500"]
["Fabricação de material escolar. Fabricação de figurinhas, globos e peças   didáticas de qualquer material. Fabricação de giz, quadros-negros, lousas e semelhantes","72.95.600"]
["Fabricação de painéis de anúncios luminosos","72.95.700"]
["Fabricação de penas para escrever e de outros artigos para escritórios","72.95.800"]
["Fabricação de placas luminosas em geral","72.95.900"]
["Fabricação de artigos para esportes","72.96.250"]
["Fabricação de artigos parajogos recreativos","72.96.500"]
["Fabricação de brinquedos. Fabricação de velocípedes, patinetes e semelhantes","72.96.750"]
["Fabricação de artigos de toucador, flores e plumas artificiais","72.98.143"]
["Empalhamento de animais (taxidermia)","72.98.285"]
["Fabricação de artefatos de pelos, plumas, chifres, garras e outros produtos de origem animal. Fabricação de perucas","72.98.428"]
["Fabricação de botões, fivelas e outros artigos de fantasia para modas, inclusive aviamentos para costuras","72.98.570"]
["Fabricação de manequins","72.98.714"]
["Produção cinematográfica. Produção de filmes cinematográficos. Películas cinematográficas. Cinegrafia","72.98.856"]
[]
[]
["SISPASS","CÓDIGO"]
["Homologação e Renovação anual de acesso ao SISPASS para Criação Amadora de Passeriformes Silvestres Nativos","80.49.050",null,"LICENÇAS:"]
["Inclusão no Plantel de ave oriunda de criador comercial para Criação Amadora de Passeriformes Silvestres Nativos","80.49.100",null,"Autorização Ambiental - AA"]
["Fuga, furto ou óbito para Criação Amadora de Passeriformes Silvestres Nativos","80.49.150",null,"REGISTRO"]
["Reversão de fuga, furto ou óbito para Criação Amadora de Passeriformes Silvestres Nativos","80.49.200",null,"Outros (especificar)"]
["Alteração no registro de sexo para Criação Amadora de Passeriformes Silvestres Nativos","80.49.250"]
["Entrega de Anilhas","80.49.300"]
["Alteração de vínculo de anilha para Criação Amadora de Passeriformes Silvestres Nativos","80.49.350"]
["Mudança de Unidade Federativa (Vistoria para desbloqueio do Sistema)","80.49.400"]
["Mudança de Endereço (mesmo Estado)","80.49.450"]
["Criação/Cadastro de Associações na SUDEMA","80.49.750"]
["Autorização ou Renovação para exposição, concurso e torneio de animais silvestres","80.49.800"]
["Torneio de Passeriformes Silvestres para associações cadastradas na SUDEMA","80.49.850"]
["Criador Mantenedor de Passeriformes Silvestres","80.49.900"]
["Vistoria presencial de Passeriformes Silvestres Nativos","80.49.950"]
[]
[]
["FAUNA","CÓDIGO",null,"LICENÇAS:",null,"Autorização Ambiental - AA"]
["Atividade de Criação e Exploração Econômica de Fauna Exótica e de Fauna Silvestre – Jardim Zoológico, Aquários e semelhantes","88.33.072",null,"Licença Prévia - LP",null,"Dispensa de Licença"]
["Atividade de Criação e Exploração Econômica de Fauna Exótica e de Fauna Silvestre – Criação Comercial","88.33.144",null,"Licença de Instalação – LI",null,"Licença por Adesão e Compromisso - LAC"]
["Atividade de Criação e Exploração Econômica de Fauna Exótica e de Fauna Silvestre – Comércio de Partes, produtos e subprodutos","88.33.216",null,"Licença de Operação – LO",null,"Licença Simplificada - LS"]
["Atividade de Criação e Exploração Econômica de Fauna Exótica e de Fauna Silvestre – Revenda de Animais Vivos","88.33.288",null,"Licença de Alteração de Operação - LAO",null,"Licença de Alteração de Instalação - LAI"]
["Centro de Triagem de Animais Silvestres - CETAS","88.33.360",null,"Licença de Alteração de Instalação - LAI",null,"Licença de Alteração de Operação - LAO"]
["Centro de Reabilitação de Fauna Silvestre Nativa - CRAS","88.33.432",null,"Autorização Ambiental - AA",null,"Licença Prévia - LP"]
["Área de Soltura de Animais Silvestres – ASAS","88.33.504",null,"Licença de Regularização de Operação – LRO",null,"Licença de Operação de Pesquisa Mineral - LOP"]
["Manutenção de Fauna Silvestre – Mantenedor de Fauna Silvestre","88.33.576",null,"Outros (especificar)",null,"Licença de Instalação – LI"]
["Criação Científica de Fauna Silvestre Para Fins de Pesquisa","88.33.648",null,"Licença Prévia - LP + Licença de Instalação – LI",null,"Renovação de Licença de Instalação – RLI"]
["Criação Científica de Fauna Silvestre Para Fins de Conservação","88.33.720",null,"Licença Prévia - LP + Licença de Instalação – LI + Licença de Operação – LO",null,"Licença de Operação – LO"]
["Abatedouro de Fauna Silvestre","88.33.792",null,null,null,"Renovação de Licença de Operação – RLO"]
["Frigorífico de Fauna Silvestre","88.33.864",null,null,null,"Licença de Regularização de Operação – LRO"]
["Curtume e Outras Preparações de Couros e Peles de Fauna Silvestre","88.33.936",null,null,null,"Licença de Transporte Estadual – LTE"]
["Manejo de Fauna Silvestre (Levantamento)","88.66.167",null,null,null,"Licença para Veículo de Publicida de ou Eventos – LVPE"]
["Manejo de Fauna Silvestre (Monitoramento)","88.66.334",null,null,null,"REGISTRO"]
["Manejo de Fauna Silvestre (Salvamento, Resgate e Destinação de Fauna)","88.66.501",null,null,null,"Outros (especificar)"]
["Empreendimentos para Manejo de Fauna Sinantópica","88.66.668"]
["Transporte Interestadual de Animais Silvestres (por formulário até 50 espécimes)","88.66.835"]
["Transporte intermunicipal de animais silvestres (por formulário até 50 espécimes)","88.66.946"]